Workbook

Sheet GETEM - Read Me
E1: GETEM: Geothermal Electricity Technology Evaluation Model
E2: A Technology Characterization Tool for the Geothermal Technologies Program,
E3: U.S. Department of Energy, Washington, DC
A5: Note: THIS IS A BETA VERSION OF THE CURRENT GETEM MODEL THAT HAS NOT BEEN SUBJECTED TO ANY RIGOROUS CHECK OR VALIDATION. IF THE USER PROVIDES INPUT THAT DEPICTS UNREALISTIC SCENARIOS, THE MODEL WILL GIVE CORRESPONDING UNREALISTIC RESULTS. THERE ARE NO DEFAULT INPUTS. IT IS STRONGLY RECOMMENDED THAT A COPY OF THE ORIGINAL FILE BE RETAINED, AND WORKING COPIES SAVED WITH DIFFERENT FILE NAMES. IF THERE ARE PROBLEMS OR ISSUES WITH THE COST OR PERFORMANCE PROJECTIONS, PLEASE CONTACT GREG MINES (208)526-0260.
A7: Caveat:
B8: The estimates and correlations for the performance and costs of geothermal electric power systems are intended for use in analysis of government policies, and should not be construed or represented as "official" U.S. Department of Energy Estimates of performance and/or cost of any real geothermal power system or any of its components. The authors do not recommend or endorse any of the technologies described and characterized here.
A10: Description of Methodology:
B11: This model develops an estimated Levelized-Cost-of-Electricity (LCOE) based upon user input that defines the resource, exploration and confirmation activities, well field development, reservoir characteristics, power plant construction and O&M activities. For each of these areas of the project development, a user is required to provide sufficient definition that the model can estimate the costs associated with that activity. For the purposes of calculating the LCOE it is assumed that all costs associated with bringing power production are in the User defined reference year.
B13: DOE utilizes a methodology for calculating the LCOE that replicates a discounted cash flow sheet. These calculations are on sheets that begin with EERE COE. This approach allows the User to vary discount rates and time duration of each phase of the project, and includes depreciation and taxes. The model also has discounted cash flow sheets (sheets that begin with Revised COE - DCF) that are used primarily to check calculations made with the preferred DOE EERE methodology. Prior versions of the GETEM model used a fixed charge rate (FCR) when determining the LCOE. (The FCR is the fraction of the total capital cost that must be recovered annually for costs associated with capital - return on equity, interest on debt, and certain taxes and insurance.) The FCR method did not allow for varying discount rates or time duration for the project phases, and was based on a fixed project life of 30 years.
B15: The model's prediction of costs are referenced to specific years. In order to adjust costs to year defined by the User, Producer Price Indices obtained from the Bureau of Labor Statistics are applied to the projected costs. Those PPI's are found in the Tables worksheet. This sheet is protected, but not password protected, so the User can update these values as needed. Note plant costs are referenced to 2002; the well cost curves to 2010; and GETEM's estimate of well costs to 2008.
B17: GETEM's calculations are based on the assumption that the fluid in the reservoir is a liquid at a temperature which the User defines. All calculations of plant performance and cost are based on this temperature, less a calculated temperature loss in the production well bore.
B19: Model calculations are based upon either a user defined number of production wells or a defined power sales. Regardless of which of these two parameters is defined, the other is determined by the flow rate per well, the plant performance, and the geothermal pumping power. Note that the number of production wells that is required or inputted includes those wells that are successfully developed during the confirmation phase of the project, i.e., the number of successful production wells drilled during the final well field development phase is the number of wells required less the successful confirmation wells. No exploration wells are used to provide fluid supporting power production.
B21: Power sales is the net plant output less the pumping power required for the geothermal fluid. The net plant output is the turbine generator output less the parasitic power loads within the plant (exclusive of any injection pumping power).
B23: During the exploration phase, the costs incurred to evaluate locations that do not subsequently produce power are included in the costs for the 'successful' project, i.e., it may be necessary to examine multiple locations that have geothermal potential before locating one suitable for electrical power generation. Drilling may or may not be done at all exploration sites evaluated. When drilling is done, the User must specify the cost of an exploration well relative to that of a production well drilled during the final phases of the well field development.
B25: The confirmation phase allows for drilling of full size production wells at multiple locations; those costs occurring at the 'unsuccessful' sites are included in the total confirmation costs. Those 'successful' wells drilled at the final location are assumed to supply geothermal fluid to the power plant. The cost of the confirmation wells is based upon a User defined a multiplier that is applied to the production well costs occurring during the final phase of the well field development.
B27: In the final phase of the well field development, the model bases the number of production-sized wells drilled on either the number of wells specified or the number required to support the calculated plant size, less the number of successful confirmation wells, plus the sum of the number of injection wells needed, the number of unsuccessful wells and any spare wells. Production well costs are determined using 'cost curves' that are based on estimates developed by Sandia National Laboratory, or using a methodology in GETEM that estimates the well cost based on its depth and the production interval configuration. Injection well costs are determined in a similar manner. The cost estimates derived from the costs curves have been compared to historical costs and cost estimates by others, and are within the range of those costs at equivalent depths.
B29: When wells are stimulated (EGS resources), the User specifies a stimulation cost that is applied to each injection well. It is assumed that the production wells are subsequently drilled into the reservoir created by the stimulation and that the cost for the stimulation is sufficient to provide the specified flow, temperature drawdown and hydraulic drawdown (productivity index).
B31: The geothermal fluid pumping is based on the defined production well flow rate, a reservoir pressure decline and buildup (which is a function of the flow rate), fluid temperature and information provided relative to the casing in the well. The injection pumping requirement is based upon the defined ratio of injection to production wells, the well casing profile, and the hydrostatic pressure calculated by the model, the estimated temperature of the injected fluid, and any makeup water included (for EGS subsurface losses or losses associated with the evaporative cooling in flash plants).
B33: Though power sales is specified rather than plant size, GETEM's calculations of power plant cost and performance are based on the net plant output, which is the generator output less fan power and the pumping power for the working fluid, cooling water, ncg removal, condensate, ... . The model calculates the LCOE for two conversion systems: air-cooled binary and flash-steam. It does not estimate costs for binary plants that use evaporative heat rejection systems. The estimates for the air-cooled binary plant are based on an ambient temperature of 10°C (50°F), which is approximately the average annual air temperature in the US; changing this air temperature is not an option in the model. For the air-cooled binary plant, the model estimates the cost of 4 major components (turbine-generator, air-cooled condenser, geothermal heat exchangers, and working fluid pump) as a function of the plant 2nd law efficiency. Inherent in the cost correlations for these equipment items are limitations on the size of these components. For the turbine-generators and the working fluid pumps, there are assumptions relative to a maximum horsepower and minimum number of components used; with the geothermal heat exchangers there are assumptions relative to maximum size and weight. These assumptions are not part of the GETEM model; rather they were used in developing GETEM's component cost correlations. The component cost estimates are independent of the working fluid used; the working fluid was one of the variables considered in establishing the performance and cost of a fixed power plant at several different resource temperatures. For each level of plant performance (brine effectiveness or 2nd law efficiency) there was a definitive cost minimum. These costs minimums account for the variation between working fluids and process conditions. They were extracted from the data set and correlations developed for the individual components as functions of both plant performance and resource temperature. GETEM uses its component scaling factors to estimate the cost of components larger and smaller than those in the 10 MW plant used as the fixed plant size in this work. GETEM uses these component costs and cost correlations developed for the direct construction costs to predict the installed plant cost exclusive of any indirect costs for permitting, engineering, home office, startup, ... ; the User defines these indirect costs, which GETEM uses to estimate the total installed cost for the power plant.
B35: The model recognizes the relationship between a binary power plant's performance and its cost, i.e., more efficient plants have higher capital costs. When the costs to develop a geothermal resource are significant, a more efficient plant will lower the LCOE even though the plant itself has a higher capital cost. The more efficient plant either provides more power sales for a given well field development, or requires fewer wells to produce the same level of sales. GETEM allows this trade-off to be performed in a macro that the user can use when providing input for the power plant. This macro varies plant performance (and cost) until the LCOE is minimized. Note this macro should be used after all other input is provided. If subsequent changes are made to the input for any of the other project areas, the macro should be re-run.
B37: GETEM's calculation of the flash-steam plant cost requires more User input than needed for the binary plant. The User defines the ambient conditions, information needed to size the heat rejection equipment, and dissolved gas levels in the geothermal fluid and how they are to be treated or removed. The model estimates the flash pressures within constraints that the flash pressure always be above 1 atmosphere and the temperature of the unflashed brine leaving the lowest flash pressure be above the saturation temperature of amorphous silica (lower temperatures are allowed, but the User should include costs for treating the brine to prevent this scaling). Based on the plant size and the User input, the model estimates the size and cost of the major components. These costs and cost correlations of the direct construction activities are estimated and used with the User defined indirect costs to estimate the total installed cost of the flash plant.
B39: O&M costs are based upon a calculated plant staffing that is based upon the net plant power output. Non-labor costs are determined as a % of the capital costs for both the power plant or the well field development. The user has the option to input the O&M costs associated with the field and the power plant operation (these inputted values include labor, as well as taxes and insurance). Note that there are O&M input parameters that are effectively placeholders until better input can be provided; these are primarily related to chemical usage for treating geothermal fluids and cooling waters, and for lubrication of lineshaft pumps.
B41: The model predicts the effect of the reservoir's thermal drawdown on power production for both binary and flash plants. The model also calculates a maximum temperature decline that would be allowed before the well field is replaced; the User may over-ride this calculation and input a maximum level of temperature decline. The thermal drawdown is determined as an annual decline rate (% decrease in fluid temperature per year). (The model has an option to use the Carslaw Jaeger solution for transient heat conduction from a semi-infinite solid (can only be used with EGS resources); this option is currently inactive. If this method is used, the user must define the fracture - length, width and aperture.) If the temperature drops below the minimum allowed, the entire well field is replaced, with the caveat that no replacement occur in the last 5 years of the project life. The well field replacement can be limited by the User defined resource potential found during exploration activities. If sufficient potential was not found, the well field will not be replaced and power output will continue to decrease according to the predicted temperature decline.
A43: Important Information Regarding Model:
B45: A User can elect to input values for nearly all cost and performance parameters that the model calculates and uses in its determination of the LCOE. If the User opts to over-ride the calculations, the model will use the value the User provides in determining the cost of electricity.
B47: The model uses fractional wells, sites, components and personnel in its calculations, and is not intended for the examination of a specific project. Its purpose is both to provide DOE with 'representative' generation costs for geothermal and to provide a means of assessing how technology would impact those costs. A User may attempt to use the model to evaluate a specific project, but that requires the User provide all input necessary to define that project.
B49: The model has inherent limitations on the size of a project that can be evaluated. The model's cost correlations for binary plants were developed for plants larger than ~3 MWe. It will estimate costs for smaller plants, however those estimates are outside of the cost correlations used in developing the model. Though there is not a specific limit on the size of flash plants, it is not recommended that the model be used for flash plants smaller than ~10 MWe. The binary plant cost and performance correlations were developed for resource temperatures between 75°C and 200°C. It is not recommended that evaluations be done outside of this temperature range using the binary plant. Because an Excel spreadsheet is used as the model platform, it uses simple correlations for the properties of water. These correlations were developed for resource temperatures <~300°C, and may not work at higher temperatures (they will not work at temperatures above the critical temperature of water).
B51: The model's Summary worksheet has a summary of the calculated cost (and where relevant performance) associated with each phase of the project development - Exploration, Confirmation, Well field Development, Reservoir Definition, Geothermal Pumping, Operation and Maintenance, and Power Plant. (Reservoir Definition includes results/input for flow rate, reservoir stimulation, hydraulic drawdown, thermal drawdown, and water loss.) The Input worksheet is similarly laid out. The result/input for each phase are 'grouped' to facilitate both the input of data and the review of the results. These sections can be expanded or collapsed by clicking on the + or - in the blue column on the left side of each sheet. Note that these sheets are not 'protected' so if you alter these groupings, they will not restore.
B53: The model has a sheet Error-Warnings that has a summary of warnings the model generates for the input provided by the User. Though the error-warning messages are displayed on the Input sheet, they may not appear until input is changed elsewhere. The number of warning messages that are generated are shown at the top of the Input and Summary worksheets. In one goes to the Error-Warnings sheet, there are hyperlinks back to the appropriate sections of the Input sheet where the input is questioned. The User may choose to ignore these messages - the model will attempt to calculate costs and the LCOE regardless of the input.
B55: Most of the worksheets in this file are protected. The Input and Summary worksheets are not in order to allow the information on these sheets to be grouped and collapsed. The remaining sheets are protected to prevent users from "breaking" links between sheets by changing parameters in the wrong location. A number of the worksheets where calculations are made are hidden; the user can 'Unhide' these sheets, if desired.
B57: Generally the following formatting is used in the model:
D58: Yellow background | E58: User provided information
D59: Rose background | E59: User has defined performance/cost change for Improved scenario
D60: Red Font | E60: Values imported from other work sheets
D61: note | E61: Comments are embedded in cells having this text. These comments provide information on the parameter or the input for that parameter; they can be displayed by moving cursor over cell.
B64: It is strongly recommended that a user maintain a 'clean' or unmodified version of this file.
B66: The model allows two cases to be defined - a Reference Case and an Improved Case. The Improved Case allows DOE to examine how technology improvements in different areas could impact the LCOE. If one is trying to evaluate two different technologies, it should be done in two separate files with each defined using the Reference Case input.
A68: Authors and Contributors:
B70: This model and its documentation were originally prepared as required work under a subcontract from the National
B71: Renewable Energy Laboratory to Princeton Energy Resources International, Rockville, MD.
B73: Dan Entingh, PERI | D73: General plan, economics factors and calculations.
D74: Original arrangement of system performance and cost sheets.
D75: Estimates for exploration and confirmation costing.
D76: Drawdown and makeup functions and costs.
B77: Greg Mines, INL | D77: Performance and cost of power plants, production pumps, injection pumps.
D78: General arrangement of I/O, system, O&M, and power plant sheets
B79: Chip Mansure, SNL | D79: Cost of wells, based on recent geothermal experience.
B80: Susan Petty, Consultant | D80: Geothermal field practices and cost factors.
B81: Gerry Nix, NREL | D81: Technical guidance, GUI, user needs.
B83: The most recent changes to the model have been made by the LCOE Analysis team lead by Jay Nathwani, DOE GT0, other team members include:
A84: Recent History:
A108: NOTES FOR REVISIONS:
A109: [1]
A110: [2]
A112: [3]
A114: [4]
A115: [5]
A116: [6]
A118: [7]
A119: [8]
A122: [9]
A124: [10]
A127: [11]
A131: [12]
A132: [13]
A133: [14]
A134: [15]
A138: [16]
A140: [17]
A145: [18]
A149: [19]
A156: [20]
B159: Chad Augustine, NREL
B160: Erin Camp, Sentech, Inc.
B161: Greg Mines, INL
B162: Mark Paster, Consultant
B163: Ella Thodal, SRA International
B164: Steven Hanson, SRA International
B166: If there are any questions or issues with the model, please contact Greg Mines (Gregory.Mines@inl.gov / 208-526-0260), or any member of the team

Sheet P10-90's - Read
A1: ='Input A1'!T1 -> 0
B2: This spreadsheet contains modifications made to GETEM to facilitate looking at the impact of uncertainty in the inputs and costs used in the model. Five EGS scenarios and one Blind or Hidden Hydrothermal scenario were defined and P10 and P90 values were assigned to each of the selected inputs. The P10 value is an optimistic value that should lower LCOE , while a P 90 value is conservative that would raise the LCOE (both trends relative to the LCOE produced by a most likely value). This is not always the case; in some instances having a more optimistic value for a performance related parameter may increase the LCOE. Well flow rate is an example - increased flow can lower the number of wells needed, but at some point the additional pumping power needed due to losses in the well-bore and reservoir drawdown off-set the effect of reducing the well count and the LCOE increases.
B4: The P10 and P90 values, along with a most likely value for each input are shown for each on the sheet 'master list of 10-90s'. To change scenarios, you must copy all the input for the selected scenario into columns D-F of this sheet. The values in these columns are then linked to the corresponding inputs on the 'INPUT' sheet. Next go to the sheet 'LCOE Summary 10-90s'. This sheet has 3 red buttons - the upper two are for scenarios using a binary plant; the lower button is for running scenarios with a flash plant. Once a button is pushed the model calculates the LCOE for the P10, P90 and most likely values for each of the identified inputs. Once the LCOE's are determined for a given input, they are copied into the table, the P10 and P90 values reset to the most likely value for that input, and the macro moves to the next input parameter. Once all of the inputs are run, you can view results in the table on this sheet. These inputs and results are also displayed on the 'Tornado Chart' sheet.
B6: If one wants to look at the impact of a specific input, change the value of the counter in cell B2 (black background) of sheet 'LCOE Summary 10-90s' to match that of the desired input. If using a binary plant, you will then need to run the macro using the upper red button - this macro establishes the plant performance that minimizes LCOE for that particular input. This macro trades off the increased cost for more efficient power plants with the costs associated with the reduction in geothermal fluid flow occurring with the more efficient plant (cost reductions associated with flow include lower capital and operating cost as well as reduced geothermal pumping power). The calculated LCOE's for the P10 and P90 values will be given at the top of this sheet once the macro completes running, and a summary of the impacts on the project costs are shown on the 'Summary' and 'Summary A1' sheets. If the scenario uses a flash conversion system, and one wants to make a similar evaluation of a single input, there is no macro to run - the costs will update without running the macro.
B8: When scenarios are changed, other inputs also need to be changed that are not part of the 10-90 evaluation. These inputs are used to define the scenario. All inputs for the EGS scenarios are given on the 'other input for cases' sheet. This sheet has hyper links in column R to the corresponding input cells on the 'INPUT' sheet that must checked and sometimes changed for each scenario; the inputs for each scenario are provided on this sheet, but are not linked to the INPUT sheet.
B10: An Improved Scenario is defined by changing the multipliers on the 'INPUT' sheet. With a binary plant, once all the improvements are defined, roved Scenario that uses a binary plant, you will also need to run the macro on 'Binary A1' sheet - red button in Improved Column. Results are shown on both Summary sheets.
B12: This model incorporates a methodology being developed by EERE to determine LCOEs for renewables. This methodology is used in lieu of the Fixed Charge Rate that previously used in GETEM. The model also has a cash flow sheet ('Revised COE - DCF') that can also be used to calculate the LCOE (requires running a macro to determine LCOE). Both the EERE methodology and the cash flow sheet allow for different discount rates associated with each project phase - the Fixed Charge Rate does not. These discount rates are inputs, and are reduced for the improved scenario. For making the assessment of the P10-90's DOE uses the EERE methodology to determine the LCOE, and the cash flow sheet to check those results.
B14: The are some small differences in the LCOE's estimates using the EERE methodology and the cash flow sheet. The cash flow sheet uses GETEM's estimate of the impact of a declining resource temperature on future power output. To replicate this in the EERE methodology, a declining capacity factor is used. This difference in accounting for the effect of the resource decline produces some small differences in LCOE.
B16: The revisions to GETEM to facilitate these changes have been made by the LCOE Analysis Team lead by Jay Nathwani of the DOE Geothermal Technologies Program. Team members include:
B17: Chad Augustine - NREL
B18: Erin Camp - Sentech, Inc.
B19: Greg Mines - INL
B20: Jay Nathwani - DOE
B21: Mark Paster, Consultant
B22: Ella Thodal - SRA International
B23: Steven Hanson - SRA International

Sheet INPUT
A1: ='Input A1'!A75 -> 0 | B1: ='Input A1'!B1 -> FCR | C1: ='Input A1'!C1 -> FCR | D1: ='Input A1'!D1 -> Hydrothermal | E1: ='Input A1'!E1 -> Temperature | F1: ='Input A1'!F1 -> Greenfield | G1: ='Input A1'!G1 -> Yes | H1: ='Input A1'!H1 -> Success Rate | I1: ='Input A1'!I1 -> Lump Sum | J1: ='Input A1'!J1 -> Low | K1: ='Input A1'!K1 -> 1 | L1: ='Input A1'!L1 -> surface | M1: ='Input A1'!M1 -> Jet | T1: ='Input A1'!T1 -> 0
A2: ='Input A1'!A398 -> 1 | B2: ='Input A1'!B2 -> EERE Approach | C2: ='Input A1'!C2 -> Inputted COE | D2: ='Input A1'!D2 -> EGS | E2: ='Input A1'!E2 -> Depth | F2: ='Input A1'!F2 -> Field Expansion | G2: ='Input A1'!G2 -> No | H2: ='Input A1'!H2 -> # of Wells | I2: ='Input A1'!I2 -> By Activity | J2: ='Input A1'!J2 -> Medium | K2: ='Input A1'!K2 -> 2 | L2: ='Input A1'!L2 -> direct contact | M2: ='Input A1'!M2 -> VacPump
J3: ='Input A1'!J3 -> High | K3: ='Input A1'!K3 -> 3 | L3: ='Input A1'!L3 -> 0 | M3: ='Input A1'!M3 -> Hybrid
B5: ='Input A1'!B5 -> Well Count | C5: ='Input A1'!C5 -> Lump Sum | D5: ='Input A1'!D5 -> Cost Curves | E5: ='Input A1'!E5 -> Smaller Diameter | F5: ='Input A1'!F5 -> Perforated / Slotted Liner | G5: ='Input A1'!G5 -> Lump Sum | H5: ='Input A1'!H5 -> k*A | I5: ='Input A1'!I5 -> Annual Decline Rate | J5: ='Input A1'!J5 -> Input Value | K5: ='Input A1'!K5 -> Yes | L5: ='Input A1'!L5 -> Input | M5: ='Input A1'!M5 -> Core Hole
B6: ='Input A1'!B6 -> Confirmed Capacity | C6: ='Input A1'!C6 -> % Confirmation Drilling Cost | D6: ='Input A1'!D6 -> GETEM Estimate | E6: ='Input A1'!E6 -> Larger Diameter | F6: ='Input A1'!F6 -> Open Hole | G6: ='Input A1'!G6 -> Calculated | H6: ='Input A1'!H6 -> k*A | I6: ='Input A1'!I6 -> Annual Decline Rate | J6: ='Input A1'!J6 -> Input Value | K6: ='Input A1'!K6 -> No | L6: ='Input A1'!L6 -> Calculate | M6: ='Input A1'!M6 -> Slim Hole
M7: ='Input A1'!M7 -> Production Size
B8: ='Input A1'!B8 -> Yes | C8: ='Input A1'!C8 -> Submersible | D8: ='Input A1'!D8 -> Power Sales | E8: ='Input A1'!E8 -> Binary | F8: ='Input A1'!F8 -> Power | G8: ='Input A1'!G8 -> Fixed | H8: ='Input A1'!H8 -> Performance | I8: ='Input A1'!I8 -> Fixed Cost | J8: ='Input A1'!J8 -> Input | K8: ='Input A1'!K8 -> ≤115kV | L8: ='Input A1'!L8 -> Flat | M8: ='Input A1'!M8 -> Rural
B9: ='Input A1'!B9 -> Yes | C9: ='Input A1'!C9 -> Lineshaft | D9: ='Input A1'!D9 -> Production Wells | E9: ='Input A1'!E9 -> Flash | F9: ='Input A1'!F9 -> Flow | G9: ='Input A1'!G9 -> Percent | H9: ='Input A1'!H9 -> Reference | I9: ='Input A1'!I9 -> Calculated | J9: ='Input A1'!J9 -> Calculate | K9: ='Input A1'!K9 -> 230kV | L9: ='Input A1'!L9 -> Hilly | M9: ='Input A1'!M9 -> Suburban
K10: ='Input A1'!K10 -> 500kV | L10: ='Input A1'!L10 -> Mountainous | M10: ='Input A1'!M10 -> Urban
L11: ='Input A1'!L11 -> Forested
C12: ='Input A1'!C12 -> C | D12: ='Input A1'!D12 -> meter | E12: ='Input A1'!E12 -> C/km | F12: ='Input A1'!F12 -> kg/s | G12: ='Input A1'!G12 -> km | H12: ='Input A1'!H12 -> psi-h/1000lb | I12: ='Input A1'!I12 -> ΔC | J12: ='Input A1'!J12 -> meter | K12: ='Input A1'!K12 -> KJ/h-m^2-C
C13: ='Input A1'!C13 -> F | D13: ='Input A1'!D13 -> ft | E13: ='Input A1'!E13 -> F/1000 ft | F13: ='Input A1'!F13 -> lb/hr | G13: ='Input A1'!G13 -> ft | H13: ='Input A1'!H13 -> kPa-s/kg | I13: ='Input A1'!I13 -> ΔF | J13: ='Input A1'!J13 -> inch | K13: ='Input A1'!K13 -> btu/h-sqft-F
F14: ='Input A1'!F14 -> gpm
C16: ='Input A1'!C16 -> $/m^3 | D16: ='Input A1'!D16 -> bar | E16: ='Input A1'!E16 -> cm | F16: ='Input A1'!F16 -> w-h/lb | G16: ='Input A1'!G16 -> kPa | H16: ='Input A1'!H16 -> mm-Hg
C17: ='Input A1'!C17 -> $/acre-ft | D17: ='Input A1'!D17 -> psi | E17: ='Input A1'!E17 -> inch | F17: ='Input A1'!F17 -> kW-s/kg | G17: ='Input A1'!G17 -> psi | H17: ='Input A1'!H17 -> inch-Hg
N20: GETEM - INPUT WORKSHEET | V20: ='LCOE Summary 10-90s'!B2 -> 58 | Y20: ='Input A1'!T1 -> 0
N21: HIGH-LEVEL SUMMARY | R21: Reference Scenario | T21: Improvement Change | U21: Improved Scenario | W21: 10% Scenario | X21: 90% Scenario
N22: TECHNOLOGY YEAR | R22: =R35 -> 2012
N23: COST OF ELECTRICITY | P23: ¢ /kW-h | R23: ='Summary A1'!H24 -> 32.47768522 | T23: =(U23-R23)/R23 -> -0.5739206438 | U23: ='Summary A1'!J24 -> 13.83807121 | W23: ='Summary A1'!L24 -> 32.47964072 | X23: ='Summary A1'!M24 -> 35.91772467
N24: RESOURCE TYPE | R24: =IF(A1=0,"HYDROTHERMAL","EGS") -> HYDROTHERMAL
N25: CASE | R25: =R36 -> Hydro E
N26: RESOURCE TEMPERATURE | P26: =P77 -> C | R26: =R77 -> 140
N27: RESOURCE DEPTH | P27: =P78 -> meter | R27: =R78 -> 2500
N28: CONVERSION SYSTEM | R28: =IF(A2=1,"BINARY","FLASH-STEAM") -> BINARY
N29: POWER SALES | P29: kW | R29: ='Summary A1'!H27 -> 15000 | U29: ='Summary A1'!J27 -> 25000 | W29: ='Summary A1'!L27 -> 15000 | X29: ='Summary A1'!M27 -> 15000 | AA29: Values
Q30: Number of Errors/Messages | R30: ='Error-Warnings'!$E$2 -> 0 | S30: note | Z30: 0.1 | AA30: likely | AB30: 0.9 | AE30: don't change
N31: The following scheme is used for the inputs in the DOE LCOE assessment. The cells with 'green backgrounds are those using the P10-90 inputs - the Reference scenario value being the 'most likely'. The cells with the Yellow background and Black font are those that are not changed in the DOE calculations. Those cells with the Red background and White font are those whose values may change with the change in the resource scenario/category
P32: =SUM(Q35:Q544) -> 0
N33: The sidebar to the left allows one to expand or collapse each section of the Input. Use the ' + ' to expand; the ' - ' to collapse. | AF33: =SUM(AF39:AF597) -> 0 | AG33: =SUM(AG39:AG597) -> 1 | AH33: =SUM(AH39:AH597) -> 1
N34: PROJECT PHASE
N35: TECHNOLOGY YEAR | R35: 2012 | S35: note | T35: ='master Improvements'!E15 -> 2020
N36: Case Being Evaluated | R36: ='master list of 10-90s'!E5 -> Hydro E
E37: =MIN(E38:M73) -> 0 | N37: ECONOMIC PARAMETERS
E38: =MIN(E39:E47) -> 0 | N38: General Project Variables :
N39: Reference Year $ | R39: 2011 | S39: note
E40: =IF(T40=1,1,0) -> 1 | N40: Utilization Factor | Q40: =IF(R40=AA40," ",1) ->  | R40: =AA40 -> 0.95 | S40: note | T40: ='master Improvements'!E19 -> 1 | U40: ='Input A1'!W40 -> 0.95 | W40: =IF($V$20=AD40,$Z40,R40) -> 0.95 | X40: =IF($V$20=AD40,$AB40,R40) -> 0.95 | Z40: ='master list of 10-90s'!D9 -> 0.96 | AA40: ='master list of 10-90s'!E9 -> 0.95 | AB40: ='master list of 10-90s'!F9 -> 0.88 | AC40: =Z40 -> 0.96 | AD40: =AE40 -> 1 | AE40: ='LCOE Summary 10-90s'!B6 -> 1 | AF40: =AD40-AE40 -> 0 | AG40: =IF(W40=$R40,0,1) -> 0 | AH40: =IF(X40=$R40,0,1) -> 0
E41: =IF(T41=1,1,0) -> 0 | N41: Contingency | P41: % | Q41: =IF(R41=AA41," ",1) ->  | R41: =AA41 -> 0.15 | S41: note | T41: ='master Improvements'!E20 -> 0.6666666667 | U41: ='Input A1'!W41 -> 0.1 | W41: =IF($V$20=AD41,$Z41,R41) -> 0.15 | X41: =IF($V$20=AD41,$AB41,R41) -> 0.15 | Z41: ='master list of 10-90s'!D10 -> 0.05 | AA41: ='master list of 10-90s'!E10 -> 0.15 | AB41: ='master list of 10-90s'!F10 -> 0.25 | AC41: 0.05 | AD41: =AE41 -> 2 | AE41: ='LCOE Summary 10-90s'!B7 -> 2 | AF41: =AD41-AE41 -> 0 | AG41: =IF(W41=$R41,0,1) -> 0 | AH41: =IF(X41=$R41,0,1) -> 0
E42: 1 | N42: Royalty (thru Yr 10) | P42: % | R42: 0.0175 | S42: note | T42: ='master Improvements'!E21 -> 1 | U42: ='Input A1'!W42 -> 0.0175
E43: 1 | N43: Royalty (after Yr 10) | R43: 0.035 | T43: ='master Improvements'!E22 -> 1 | U43: ='Input A1'!W43 -> 0.035
E44: 1 | N44: Discount Rate | P44: % | Q44: =IF(R44=AA44," ",1) ->  | R44: =AA44 -> 0.07 | S44: note | T44: ='master Improvements'!E23 -> 1 | U44: ='Input A1'!W44 -> 0.07 | W44: =IF($V$20=AD44,$Z44,R44) -> 0.07 | X44: =IF($V$20=AD44,$AB44,R44) -> 0.07 | Z44: ='master list of 10-90s'!D11 -> 0.06 | AA44: ='master list of 10-90s'!E11 -> 0.07 | AB44: ='master list of 10-90s'!F11 -> 0.09 | AC44: 0.06 | AD44: =AE44 -> 3 | AE44: ='LCOE Summary 10-90s'!B8 -> 3 | AF44: =AD44-AE44 -> 0 | AG44: =IF(W44=$R44,0,1) -> 0 | AH44: 0
E45: 1 | N45: Effective Tax Rate | P45: % | R45: 0.392 | T45: ='master Improvements'!E24 -> 1 | U45: ='Input A1'!W45 -> 0.392
E46: 1 | N46: Project Life (Period of Operation) | P46: yr(s) | Q46: =IF(R46=AA46," ",1) ->  | R46: =AA46 -> 30 | T46: ='master Improvements'!E25 -> 1 | U46: ='Input A1'!W46 -> 30 | W46: =IF($V$20=AD46,$Z46,R46) -> 30 | X46: =IF($V$20=AD46,$AB46,R46) -> 30 | Z46: ='master list of 10-90s'!D12 -> 30 | AA46: ='master list of 10-90s'!E12 -> 30 | AB46: ='master list of 10-90s'!F12 -> 30 | AD46: =AE46 -> 4 | AE46: ='LCOE Summary 10-90s'!B9 -> 4 | AF46: =AD46-AE46 -> 0
E47: 1 | N47: Calculations based on Fixed Charge Rate (FCR) of | Q47: =IF(R47=AA47," ",1) ->  | R47: =AA47 -> 0.108 | S47: note | T47: ='master Improvements'!E26 -> 1 | U47: ='Input A1'!W47 -> 0.108 | W47: =IF($V$20=AD47,$Z47,R47) -> 0.108 | X47: =IF($V$20=AD47,$AB47,R47) -> 0.108 | Z47: ='master list of 10-90s'!D13 -> 0.09 | AA47: ='master list of 10-90s'!E13 -> 0.108 | AB47: ='master list of 10-90s'!F13 -> 0.13 | AC47: 0.09 | AD47: =AE47 -> 5 | AE47: ='LCOE Summary 10-90s'!B10 -> 5 | AF47: 0 | AG47: 0 | AH47: 0
A48: ='Input A1'!A48 -> 0 | N48: Method used to Calculate Cost of Electricity | R48: EERE Approach | T48: =IF(A48=1,"Go To Resource Definition"," ") -> 
A49: ='Input A1'!A49 -> 1 | E49: =MIN(E50:M59) -> 0 | N49: Project Schedule & Durations :
G50: =SUM(R51:R53)+MAX(R55:R56) -> 6.5 | H50: =SUM(U52:U53)+MAX(U55:U56)+$R51 -> 4.5 | I50: =SUM(W52:W53)+MAX(W55:W56)+$R51 -> 6.5 | J50: =SUM(X52:X53)+MAX(X55:X56)+$R51 -> 6.5 | K50: =MAX(G50:J50) -> 6.5 | N50: Year of Project Initiation | R50: 2009 | S50: note | U50: ='Input A1'!W50 -> 2009
N51: Duration of Permitting for Exploration/Confirmation | P51: yr(s) | R51: 1 | T51: =IF(K50<15," ","Total pre-startup duration exceeds 15 yrs in DCF") -> 
E52: =IF(U52=R52,1,0) -> 0 | N52: Duration of Exploration Phase | P52: yr(s) | Q52: =IF(R52=AA52," ",1) ->  | R52: =AA52 -> 2 | U52: ='master Improvements'!E28 -> 1 | W52: =IF($V$20=AD52,$Z52,R52) -> 2 | X52: =IF($V$20=AD52,$AB52,R52) -> 2 | Z52: ='master list of 10-90s'!D14 -> 1.5 | AA52: ='master list of 10-90s'!E14 -> 2 | AB52: ='master list of 10-90s'!F14 -> 4 | AD52: =AE52 -> 6 | AE52: ='LCOE Summary 10-90s'!B11 -> 6 | AF52: =AD52-AE52 -> 0 | AG52: =IF(W52=$R52,0,1) -> 0 | AH52: =IF(X52=$R52,0,1) -> 0
E53: =IF(U53=R53,1,0) -> 0 | N53: Duration of Confirmation Phase | P53: yr(s) | Q53: =IF(R53=AA53," ",1) ->  | R53: =AA53 -> 1.5 | S53: note | U53: ='master Improvements'!E29 -> 1 | W53: =IF($V$20=AD53,$Z53,R53) -> 1.5 | X53: 1.5 | Z53: ='master list of 10-90s'!D15 -> 1 | AA53: ='master list of 10-90s'!E15 -> 1.5 | AB53: ='master list of 10-90s'!F15 -> 2 | AD53: =AE53 -> 7 | AE53: ='LCOE Summary 10-90s'!B12 -> 7 | AF53: 0 | AG53: 0 | AH53: 0
N54: Duration of Permitting for Plant/Field (Utilization Permit) | P54: yr(s) | R54: 1
E55: 0 | N55: Duration of Well Field Development Phase | P55: yr(s) | Q55: =IF(R55=AA55," ",1) ->  | R55: =AA55 -> 1.5 | S55: note | U55: ='master Improvements'!E30 -> 1.25 | W55: 1.5 | X55: 1.5 | Z55: ='master list of 10-90s'!D16 -> 1 | AA55: ='master list of 10-90s'!E16 -> 1.5 | AB55: ='master list of 10-90s'!F16 -> 2 | AD55: 8 | AE55: ='LCOE Summary 10-90s'!B13 -> 8 | AF55: 0 | AG55: 0 | AH55: 0
E56: 0 | N56: Duration of Plant Design and Construction | P56: yr(s) | Q56: =IF(R56=AA56," ",1) ->  | R56: =AA56 -> 2 | U56: ='master Improvements'!E31 -> 1.5 | W56: 2 | X56: 2 | Z56: ='master list of 10-90s'!D17 -> 1.25 | AA56: ='master list of 10-90s'!E17 -> 2 | AB56: ='master list of 10-90s'!F17 -> 2.5 | AD56: 9 | AE56: ='LCOE Summary 10-90s'!B14 -> 9 | AF56: 0 | AG56: 0 | AH56: 0
N57: Year to Begin Operations | R57: ='Input A1'!T57 -> 2014 | S57: note | U57: ='Input A1'!W57 -> 2014
N58: Year to Cease Operations / Commence Decommissioning | R58: ='Input A1'!T58 -> 2044 | U58: ='Input A1'!W58 -> 2044
E59: 1 | N59: Duration of Decommissioning, Dismantlement, & Demolition | P59: yr(s) | R59: 0 | S59: note | U59: ='master Improvements'!E32 -> 0
N60: Year of Plant Closure | R60: ='Input A1'!T60 -> 2044 | U60: ='Input A1'!W60 -> 2044
A61: ='Input A1'!A49 -> 1 | N61: Pre-Operation Discount Rates
N62: Exploration | R62: 0.3 | U62: ='master Improvements'!E34 -> 0.07
N63: Confirmation | R63: 0.3 | U63: ='master Improvements'!E35 -> 0.07
N64: Well Field Development (including Stimulation) | R64: 0.15 | U64: ='master Improvements'!E36 -> 0.07
N65: Plant Construction & Startup | R65: 0.07 | U65: ='master Improvements'!E37 -> 0.07
A66: ='Input A1'!A49 -> 1 | E66: =MIN(E67:E73) -> 0 | N66: Inflation | R66: 0 | S66: note
N67: Depreciation Schedule
N68: Year 1 | R68: 0.2
N69: Year 2 | R69: 0.32
N70: Year 3 | R70: 0.192
N71: Year 4 | R71: 0.1152
N72: Year 5 | R72: 0.1152
E73: =IF(T73=1,1,0) -> 0 | N73: Year 6 | R73: 0.0576
N74: RESOURCE DEFINITION
A75: ='Input A1'!A75 -> 0 | N75: Geothermal Resource Type | R75: =IF('master list of 10-90s'!D3=D2,D2,D1) -> Hydrothermal
N76: Resource Temperature & Depth : | P76: =IF('Input A1'!E77>705,"The value entered is above water's critical temperature"," ") -> 
N77: Resource Temperature | P77: C | R77: ='master list of 10-90s'!E6 -> 140
N78: Resource Depth | P78: meter | R78: ='master list of 10-90s'!E7 -> 2500
E79: =MIN(E80:E157) -> 0 | N79: RESOURCE EXPLORATION
E80: =MIN(E81:E83) -> 1 | N80: Exploration Parameters: | P80: =IF(R82<'Input A1'!A151,"Stop - The Potential Resource Found is less than Net Plant Power"," ") -> 
N81: Resource status before development | R81: Greenfield | S81: note
E82: =IF(T82=1,1,0) -> 1 | N82: Potential Resource found by Exploration & Confirmation activities | P82: MW | R82: 300 | S82: note | T82: ='master Improvements'!E40 -> 1 | U82: ='Input A1'!W82 -> 300
N83: Are Exploration costs to be proportioned based on Potential Resource? | R83: No | S83: note | T83: =IF(AND('Input A1'!A75=1,'Input A1'!A83=0),"Recommend not Proportioning EGS Exploration Costs"," ") -> 
E84: =MIN(E88:E150) -> 0 | N84: Exploration - Pre-Drilling Costs :
N85: Number of Locations Evaluated Before Exploration Drilling Begins | P85: per project | Q85: =IF(R85=AA85," ",1) ->  | R85: =AA85 -> 6 | S85: note | T85: ='master Improvements'!E42 -> 0.8333333333 | U85: ='Input A1'!W85 -> 5 | W85: =IF($V$20=AD85,$Z85,R85) -> 6 | X85: =IF($V$20=AD85,$AB85,R85) -> 6 | Z85: ='master list of 10-90s'!D18 -> 1 | AA85: ='master list of 10-90s'!E18 -> 6 | AB85: ='master list of 10-90s'!F18 -> 10 | AC85: =Z85 -> 1 | AD85: =AE85 -> 10 | AE85: ='LCOE Summary 10-90s'!B15 -> 10 | AF85: =AD85-AE85 -> 0 | AG85: =IF(W85=$R85,0,1) -> 0 | AH85: =IF(X85=$R85,0,1) -> 0
N86: Permitting Process Costs for Pre-Drilling Activities | P86: per location | R86: 60000 | S86: note | T86: ='master Improvements'!E43 -> 1 | U86: ='Input A1'!W86 -> 60000
A88: ='Input A1'!A88 -> 0 | N88: How are Exploration, Pre-Drilling Costs Determined for Each Site? | R88: Lump Sum | S88: note
E89: =IF(T89=1,1,0) -> 0 | N89: Lump Sum Cost for Pre-Drilling Exploration Activities at each site | P89: per site | Q89: =IF(R89=AA89," ",1) ->  | R89: =AA89 -> 500000 | S89: note | T89: ='master Improvements'!E44 -> 0.7 | U89: ='Input A1'!W89 -> 350000 | W89: =IF($V$20=AD89,$Z89,R89) -> 500000 | X89: =IF($V$20=AD89,$AB89,R89) -> 500000 | Z89: ='master list of 10-90s'!D19 -> 100000 | AA89: ='master list of 10-90s'!E19 -> 500000 | AB89: ='master list of 10-90s'!F19 -> 1000000 | AC89: =Z89 -> 100000 | AD89: =AE89 -> 11 | AE89: ='LCOE Summary 10-90s'!B16 -> 11 | AF89: =AD89-AE89 -> 0 | AG89: =IF(W89=$R89,0,1) -> 0 | AH89: =IF(X89=$R89,0,1) -> 0
E90: =MIN(E91:E150) -> 1 | N90: By Activity : | P90: per site
N91: Survey of Existing Information | R91: ='Input A1'!T91 -> 32000 | U91: ='Input A1'!W91 -> 32000
E92: =IF(T92=1,1,0) -> 1 | N92: Surveying existing information on the area's geology and hydrology | P92: default value | R92: ='Input A1'!T92 -> 32000 | T92: ='master Improvements'!E46 -> 1 | U92: ='Input A1'!W92 -> 32000
Q93: enter new cost | S93: note
E94: =MIN(E95:E104) -> 1 | N94: Field Work | R94: ='Input A1'!F95 -> 52000 | U94: ='Input A1'!H95 -> 52000
E95: =IF(T95=1,1,0) -> 1 | N95: Field Reconnaissance and Sampling | P95: default value | R95: ='Input A1'!T95 -> 48000 | T95: ='master Improvements'!E47 -> 1 | U95: ='Input A1'!W95 -> 48000
Q96: enter new cost | S96: note
E97: =IF(T97=1,1,0) -> 1 | N97: Water & Gas Sample Analysis, including geothermometry | O97: Yes | P97: default value | R97: ='Input A1'!T97 -> 4000 | S97: note | T97: ='master Improvements'!E48 -> 1 | U97: ='Input A1'!W97 -> 4000
Q98: enter new cost
E99: =IF(T99=1,1,0) -> 1 | N99: Rock & Soil Sample Analysis | O99: No | P99: default value | R99: ='Input A1'!T99 -> 0 | T99: ='master Improvements'!E49 -> 1 | U99: ='Input A1'!W99 -> 0
Q100: enter new cost
E101: =IF(T101=1,1,0) -> 1 | N101: Soil Gas Flux Analysis | O101: No | P101: default value | R101: ='Input A1'!T101 -> 0 | T101: ='master Improvements'!E50 -> 1 | U101: ='Input A1'!W101 -> 0
Q102: enter new cost
E103: =IF(T103=1,1,0) -> 1 | N103: Fluid Inclusion Stratigraphy | O103: No | P103: default value | R103: ='Input A1'!T103 -> 0 | T103: ='master Improvements'!E51 -> 1 | U103: ='Input A1'!W103 -> 0
Q104: enter new cost
N105: Structural Analysis | R105: ='Input A1'!T105 -> 80000 | U105: ='Input A1'!H106 -> 80000
E106: =IF(T106=1,1,0) -> 1 | N106: Analysis of Field Structural (including modeling) | O106: Yes | P106: default value | R106: ='Input A1'!T106 -> 80000 | S106: note | T106: ='master Improvements'!E52 -> 1 | U106: ='Input A1'!W106 -> 80000
Q107: enter new cost | S107: note
E108: =MIN(E109:E118) -> 1 | N108: Remote Sensing | R108: ='Input A1'!T108 -> 140388.8889 | U108: ='Input A1'!W108 -> 140388.8889
E109: =IF(T109=1,1,0) -> 1 | N109: Multispectral imaging | O109: Yes | P109: default value | R109: ='Input A1'!T109 -> 138888.8889 | S109: note | T109: ='master Improvements'!E53 -> 1 | U109: ='Input A1'!W109 -> 138888.8889
Q110: enter new cost | S110: note
E111: =IF(T111=1,1,0) -> 1 | N111: Hyperspectral imaging | O111: No | P111: default value | R111: ='Input A1'!T111 -> 0 | T111: ='master Improvements'!E54 -> 1 | U111: ='Input A1'!W111 -> 0
Q112: enter new cost
E113: =IF(T113=1,1,0) -> 1 | N113: LiDAR | O113: No | P113: default value | R113: ='Input A1'!T113 -> 0 | T113: ='master Improvements'!E55 -> 1 | U113: ='Input A1'!W113 -> 0
Q114: enter new cost
E115: =IF(T115=1,1,0) -> 1 | N115: Aerial Photography | O115: Yes | P115: default value | R115: ='Input A1'!T115 -> 1500 | T115: ='master Improvements'!E56 -> 1 | U115: ='Input A1'!W115 -> 1500
Q116: enter new cost
E117: =IF(T117=1,1,0) -> 1 | N117: FLIR | O117: No | P117: default value | R117: ='Input A1'!T117 -> 0 | T117: ='master Improvements'!E57 -> 1 | U117: ='Input A1'!W117 -> 0
Q118: enter new cost
E119: =MIN(E120:E139) -> 1 | N119: Geophysics | R119: ='Input A1'!T119 -> 195000 | U119: ='Input A1'!W119 -> 195000
E120: =IF(T120=1,1,0) -> 1 | N120: Gravity | O120: Yes | P120: default value | R120: ='Input A1'!T120 -> 40000 | S120: note | T120: ='master Improvements'!E59 -> 1 | U120: ='Input A1'!W120 -> 40000
Q121: enter new cost | S121: note
E122: =IF(T122=1,1,0) -> 1 | N122: Aeromagnetic | O122: Yes | P122: default value | R122: ='Input A1'!T122 -> 115000 | T122: ='master Improvements'!E60 -> 1 | U122: ='Input A1'!W122 -> 115000
Q123: enter new cost
E124: =IF(T124=1,1,0) -> 1 | N124: 2D Seismic Reflection / Refraction | O124: No | P124: default value | R124: ='Input A1'!T124 -> 0 | T124: ='master Improvements'!E61 -> 1 | U124: ='Input A1'!W124 -> 0
Q125: enter new cost
E126: =IF(T126=1,1,0) -> 1 | N126: 3D Seismic Reflection / Refraction | O126: No | P126: default value | R126: ='Input A1'!T126 -> 0 | T126: ='master Improvements'!E62 -> 1 | U126: ='Input A1'!W126 -> 0
Q127: enter new cost
E128: =IF(T128=1,1,0) -> 1 | N128: Vertical Seismic Profiling (in well) | O128: No | P128: default value | R128: ='Input A1'!T128 -> 0 | T128: ='master Improvements'!E63 -> 1 | U128: ='Input A1'!W128 -> 0
Q129: enter new cost
E130: =IF(T130=1,1,0) -> 1 | N130: Single Borehole and cross well seismic | O130: No | P130: default value | R130: ='Input A1'!T130 -> 0 | T130: ='master Improvements'!E64 -> 1 | U130: ='Input A1'!W130 -> 0
Q131: enter new cost
E132: =IF(T132=1,1,0) -> 1 | N132: Direct Current / Resistivity | O132: Yes | P132: default value | R132: ='Input A1'!T132 -> 40000 | T132: ='master Improvements'!E65 -> 1 | U132: ='Input A1'!W132 -> 40000
Q133: enter new cost
E134: =IF(T134=1,1,0) -> 1 | N134: Self-Potential | O134: No | P134: default value | R134: ='Input A1'!T134 -> 0 | T134: ='master Improvements'!E66 -> 1 | U134: ='Input A1'!W134 -> 0
Q135: enter new cost
E136: =IF(T136=1,1,0) -> 1 | N136: Electromagnetic | O136: No | P136: default value | R136: ='Input A1'!T136 -> 0 | T136: ='master Improvements'!E67 -> 1 | U136: ='Input A1'!W136 -> 0
Q137: enter new cost
E138: =IF(T138=1,1,0) -> 1 | N138: Magnetotelluric | O138: No | P138: default value | R138: ='Input A1'!T138 -> 0 | T138: ='master Improvements'!E68 -> 1 | U138: ='Input A1'!W138 -> 0
Q139: enter new cost
E140: =MIN(E141:M144) -> 1 | N140: Temperature Gradient Measurements | R140: ='Input A1'!T140 -> 109500 | U140: ='Input A1'!W140 -> 109500
E141: =IF(T141=1,1,0) -> 1 | N141: Drill Temperature Gradient holes | O141: Yes | P141: default value | R141: ='Input A1'!T141 -> 75000 | S141: note | T141: ='master Improvements'!E70 -> 1 | U141: ='Input A1'!W141 -> 75000
Q142: enter new cost | S142: note
E143: =IF(T143=1,1,0) -> 1 | N143: 2-meter probes | O143: Yes | P143: default value | R143: ='Input A1'!T143 -> 34500 | T143: ='master Improvements'!E71 -> 1 | U143: ='Input A1'!W143 -> 34500
Q144: enter new cost
N145: Interpretation and Reporting | R145: ='Input A1'!F146 -> 96000 | U145: ='Input A1'!H146 -> 96000
E146: =IF(T146=1,1,0) -> 1 | P146: default value | R146: =(1-'Input A1'!A146)*'Input A1'!B146 -> 96000 | S146: note | T146: ='master Improvements'!E73 -> 1 | U146: =T146*'Input A1'!F146 -> 96000
Q147: enter new cost
N148: Other Costs | R148: ='Input A1'!T148 -> 0.12 | U148: ='Input A1'!W148 -> 0.12
E149: =IF(T149=1,1,0) -> 1 | N149: Technical & Office Support (% of Exploration Costs ) | P149: default value | R149: =(1-'Input A1'!A149)*'Input A1'!B149 -> 0.12 | S149: note | T149: ='master Improvements'!E75 -> 1 | U149: =T149*'Input A1'!F149 -> 0.12
Q150: or enter new %
E151: =MIN(E152:E154) -> 0 | N151: Exploration - Drilling Costs : | P151: =IF('Input A1'!A81+'Input A1'!A82+'Input A1'!A152=3,"Stop - No Exploration Wells for Hydrothermal Greenfield Project?"," ") ->  | S151: note
A152: ='Input A1'!A152 -> 0 | N152: Will the Project have Exploration Drilling? | R152: Yes | S152: note
N153: Number of Sites where Exploration Drilling Occurs | P153: per project | Q153: =IF(R153=AA153," ",1) ->  | R153: =AA153 -> 5 | S153: note | T153: ='master Improvements'!E77 -> 0.6 | U153: ='Input A1'!W153 -> 3 | W153: =IF($V$20=AD153,$Z153,R153) -> 5 | X153: =IF($V$20=AD153,$AB153,R153) -> 5 | Z153: ='master list of 10-90s'!D20 -> 1 | AA153: ='master list of 10-90s'!E20 -> 5 | AB153: ='master list of 10-90s'!F20 -> 10 | AC153: =Z153 -> 1 | AD153: =AE153 -> 12 | AE153: ='LCOE Summary 10-90s'!B17 -> 12 | AF153: =AD153-AE153 -> 0 | AG153: =IF(W153=$R153,0,1) -> 0 | AH153: =IF(X153=$R153,0,1) -> 0
N154: Site Exploration Drilling Cost (includes all temperature gradient, slimhole, corehole, and full-sized wells drilled) | P154: per site | R154: =AA154 -> 3000000 | T154: ='master Improvements'!E78 -> 0.6 | U154: ='Input A1'!W154 -> 1800000 | W154: =IF($V$20=AD154,$Z154,R154) -> 3000000 | X154: =IF($V$20=AD154,$AB154,R154) -> 3000000 | Z154: ='master list of 10-90s'!D21 -> 1000000 | AA154: ='master list of 10-90s'!E21 -> 3000000 | AB154: ='master list of 10-90s'!F21 -> 7000000 | AC154: =Z154 -> 1000000 | AD154: =AE154 -> 13 | AE154: ='LCOE Summary 10-90s'!B18 -> 13 | AF154: =AD154-AE154 -> 0 | AG154: =IF(W154=$R154,0,1) -> 0 | AH154: =IF(X154=$R154,0,1) -> 0
N155: Permitting Process Costs for Drilling - Exploration/Confirmation Phases | P155: per site | R155: =IF('Input A1'!A75=1,250000,125000) -> 125000 | T155: ='master Improvements'!E81 -> 1 | U155: ='Input A1'!W155 -> 125000
N156: Leasing Cost | P156: $ per acre | R156: =AA156 -> 30 | T156: ='master Improvements'!E82 -> 1 | U156: ='Input A1'!W156 -> 30 | W156: =IF($V$20=AD156,$Z156,R156) -> 30 | X156: =IF($V$20=AD156,$AB156,R156) -> 30 | Z156: ='master list of 10-90s'!D22 -> 2 | AA156: ='master list of 10-90s'!E22 -> 30 | AB156: ='master list of 10-90s'!F22 -> 1000 | AD156: =AE156 -> 14 | AE156: ='LCOE Summary 10-90s'!B19 -> 14 | AF156: =AD156-AE156 -> 0 | AG156: =IF(W156=$R156,0,1) -> 0 | AH156: =IF(X156=$R156,0,1) -> 0
N157: Costs Incurred not Associated with Exploration Drilling | P157: per site | R157: 0 | S157: note | T157: ='master Improvements'!E83 -> 1 | U157: ='Input A1'!W157 -> 0
E158: =MIN(E160:E186) -> 0 | N158: RESOURCE CONFIRMATION
N159: Number of Confirmation Drilling Sites Needed per Successful Project | Q159: =IF(R159=AA159," ",1) ->  | R159: =AA159 -> 2 | T159: ='master Improvements'!E85 -> 0.75 | U159: ='Input A1'!W159 -> 1.5 | W159: =IF($V$20=AD159,$Z159,R159) -> 2 | X159: =IF($V$20=AD159,$AB159,R159) -> 2 | Z159: ='master list of 10-90s'!D23 -> 1 | AA159: ='master list of 10-90s'!E23 -> 2 | AB159: ='master list of 10-90s'!F23 -> 4 | AC159: =Z159 -> 1 | AD159: =AE159 -> 15 | AE159: ='LCOE Summary 10-90s'!B20 -> 15 | AF159: =AD159-AE159 -> 0 | AG159: =IF(W159=$R159,0,1) -> 0 | AH159: =IF(X159=$R159,0,1) -> 0
E160: =MIN(E162:E172) -> 0 | N160: Confirmation Well - Drilling Costs : | T160: =IF(OR(R162>1,R162*T162>1),"Success rate should be 100% or less",IF(OR(R162<=0,T162*R162<=0),"Success rate should exceed 0%","")) -> 
N161: Number of wells at Each Unsuccessful Site | R161: =IF('Input A1'!A75=1,1.5,2) -> 2 | S161: note | T161: ='master Improvements'!E87 -> 1 | U161: ='Input A1'!W161 -> 2
E162: =IF(T162=1,1,0) -> 0 | N162: Confirmation Well Success Ratio at Successful Site | Q162: =IF(R162=AA162," ",1) ->  | R162: =AA162 -> 0.6 | S162: note | T162: ='master Improvements'!E88 -> 1.25 | U162: ='Input A1'!W162 -> 0.75 | W162: =IF($V$20=AD162,$Z162,R162) -> 0.6 | X162: =IF($V$20=AD162,$AB162,R162) -> 0.6 | Z162: ='master list of 10-90s'!D24 -> 0.8 | AA162: ='master list of 10-90s'!E24 -> 0.6 | AB162: ='master list of 10-90s'!F24 -> 0.4 | AC162: =Z162 -> 0.8 | AD162: =AE162 -> 16 | AE162: ='LCOE Summary 10-90s'!B21 -> 16 | AF162: =AD162-AE162 -> 0 | AG162: =IF(W162=$R162,0,1) -> 0 | AH162: =IF(X162=$R162,0,1) -> 0
A163: ='Input A1'!A163 -> 0 | N163: Are number of wells drilled determined by well count or confirmed production capacity ? | R163: Well Count | S163: note
A164: ='Input A1'!B164 -> 1.229617749 | E164: =IF(T164=1,1,0) -> 0 | N164: =IF('Input A1'!B164<0,"Stop, # Successful Wells Exceed # Production wells Required","Number of Successful Confirmation Wells Required") -> Number of Successful Confirmation Wells Required | P164: count | Q164: =IF(R164=AA164," ",1) ->  | R164: =AA164 -> 3 | T164: ='master Improvements'!E89 -> 0.6666666667 | U164: ='Input A1'!W164 -> 2 | W164: =IF($V$20=AD164,$Z164,R164) -> 3 | X164: =IF($V$20=AD164,$AB164,R164) -> 3 | Z164: ='master list of 10-90s'!D25 -> 1 | AA164: ='master list of 10-90s'!E25 -> 3 | AB164: ='master list of 10-90s'!F25 -> 6 | AC164: =Z164 -> 1 | AD164: =AE164 -> 17 | AE164: ='LCOE Summary 10-90s'!B22 -> 17 | AF164: =AD164-AE164 -> 0 | AG164: =IF(W164=$R164,0,1) -> 0 | AH164: =IF(X164=$R164,0,1) -> 0
N165: Production Capacity to be Confirmed | P165: % | R165: 0.5 | T165: ='master Improvements'!E90 -> 1 | U165: ='Input A1'!W165 -> 0.5
N166: calculated Production Capacity per well | P166: MW / Well | R166: ='Input A1'!T166 -> 3.546419769 | U166: ='Input A1'!W166 -> 3.259039495
N167: #Successful Wells Required to Confirm Production Capacity | P167: count | R167: ='Input A1'!T167 -> 2.114808874
N168: # of Confirmation Wells Drilled (all sites) | P168: count | R168: ='Input A1'!T168 -> 7 | U168: ='Input A1'!W168 -> 3.666666667
A169: ='Input A1'!A75 -> 0 | N169: =IF(AND('Input A1'!A75=1,R169<2),"Stop - 2 successful confirmation wells required for EGS"," # of Successful Confirmation Wells") -> # of Successful Confirmation Wells | P169: count | R169: ='Input A1'!T169 -> 3 | S169: note | U169: ='Input A1'!W169 -> 2
N170: Multiplier for Confirmation Well Costs (>= 1) | Q170: =IF(R170=AA170," ",1) ->  | R170: =AA170 -> 1.2 | S170: note | T170: =IF(OR(R170<1,R170*T172<1),"Confirmation well cost is < reference production well cost"," ") -> Confirmation well cost is < reference production well cost | W170: =IF($V$20=AD170,$Z170,R170) -> 1.2 | X170: =IF($V$20=AD170,$AB170,R170) -> 1.2 | Z170: ='master list of 10-90s'!D26 -> 1 | AA170: ='master list of 10-90s'!E26 -> 1.2 | AB170: ='master list of 10-90s'!F26 -> 1.5 | AC170: =Z170 -> 1 | AD170: =AE170 -> 18 | AE170: ='LCOE Summary 10-90s'!B23 -> 18 | AF170: =AD170-AE170 -> 0 | AG170: =IF(W170=$R170,0,1) -> 0 | AH170: =IF(X170=$R170,0,1) -> 0
N171: Production Well Cost Used | P171: $ / well | R171: ='Input A1'!T171 -> 6056549.191 | S171: note
E172: =IF(T172=1,1,0) -> 0 | N172: Confirmation Well Cost Used | P172: $ / well | R172: ='Input A1'!T172 -> 7267859.029 | T172: ='master Improvements'!E91 -> 0.6 | U172: ='Input A1'!W172 -> 4360715.417
E173: =MIN(E175:E186) -> 1 | N173: Confirmation Well - Non-Drilling Costs :
N174: Permitting Process Cost during Confirmation Phase | P174: per site | R174: 0 | S174: note | T174: ='master Improvements'!E93 -> 1 | U174: ='Input A1'!W174 -> 0
A175: ='Input A1'!A175 -> 1 | N175: How are non-drilling confirmation costs to be determined ? | R175: % Confirmation Drilling Cost | S175: note
N176: Lump Sum or Fixed Value
E177: =IF(T177=1,1,0) -> 1 | N177: Lump Sum for Non-Drilling Confirmation Costs (exclusive of stimulation) | P177: per project | R177: =2500000 -> 2500000 | T177: ='master Improvements'!E94 -> 1 | U177: ='Input A1'!W177 -> 2500000
N178: Percentage of Confirmation costs
E179: =IF(T179=1,1,0) -> 1 | N179: % of total confirmation costs attributed to non-drilling activities (exclusive of stimulation & permitting) | R179: 0.05 | S179: note | T179: ='master Improvements'!E96 -> 1 | U179: ='Input A1'!W179 -> 0.05
N180: =IF(AND('Input A1'!A75=0,'Input A1'!A181=1),"Are you sure wells will stimulated for hydrothermal resource?",IF(AND('Input A1'!A75=1,'Input A1'!A181=0),"No stimulation Cost for EGS Resource?","Stimulation Costs During Confirmation")) -> Stimulation Costs During Confirmation
A181: ='Input A1'!A181 -> 0 | N181: Are Confirmation Wells to Be Stimulated ? | R181: =IF('Input A1'!A$75=1,G$1,G$2) -> No | S181: note | T181: =IF('Input A1'!A181=1,IF(R183<R182,"Stop, the confirmation stimulation cost is less than value used for resevoir creation"," ")," ") -> 
N182: Stimulation Cost used in well field development | P182: $ / well | R182: ='Input A1'!T182 -> 0
E183: =IF(T183=1,1,0) -> 1 | N183: enter Stimulation Cost | P183: $ / injection well | Q183: =IF(R183=AA183," ",1) ->  | R183: =AA183 -> 0 | T183: ='master Improvements'!E98 -> 1 | U183: ='Input A1'!W183 -> 0 | W183: =IF($V$20=AD183,$Z183,R183) -> 0 | X183: =IF($V$20=AD183,$AB183,R183) -> 0 | Z183: ='master list of 10-90s'!D27 -> 0 | AA183: ='master list of 10-90s'!E27 -> 0 | AB183: ='master list of 10-90s'!F27 -> 0 | AC183: =Z183 -> 0 | AD183: =AE183 -> 19 | AE183: ='LCOE Summary 10-90s'!B24 -> 19 | AF183: =AD183-AE183 -> 0 | AG183: =IF(W183=$R183,0,1) -> 0 | AH183: =IF(X183=$R183,0,1) -> 0
E184: =MIN(E185:E186) -> 1 | N184: Well Testing
E185: =IF(T185=1,1,0) -> 1 | N185: Well Testing Cost at each site | P185: $/site | R185: =IF('Input A1'!A75=1,500000,150000) -> 150000 | S185: note | T185: ='master Improvements'!E100 -> 1 | U185: ='Input A1'!W185 -> 150000
N186: Total Well Testing Cost | P186: $/project | R186: ='Input A1'!T186 -> 300000 | S186: note | U186: ='Input A1'!W186 -> 225000
E187: =MIN(E188:E237) -> 0 | N187: WELL FIELD DEVELOPMENT
E188: =MIN(E189:E194) -> 0 | N188: Well Field Details: | T188: =IF(OR(R189>1,R189*T189>1),"Success rate should be 100% or less","") -> 
E189: =IF(T189=1,1,0) -> 0 | N189: Drilling Success Rate during the final phase of well field development | Q189: =IF(R189=AA189," ",1) ->  | R189: =AA189 -> 0.8 | S189: note | T189: ='master Improvements'!E103 -> 1.0625 | U189: ='Input A1'!W189 -> 0.85 | W189: =IF($V$20=AD189,$Z189,R189) -> 0.8 | X189: =IF($V$20=AD189,$AB189,R189) -> 0.8 | Z189: ='master list of 10-90s'!D28 -> 0.9 | AA189: ='master list of 10-90s'!E28 -> 0.8 | AB189: ='master list of 10-90s'!F28 -> 0.6 | AC189: =Z189 -> 0.9 | AD189: =AE189 -> 20 | AE189: ='LCOE Summary 10-90s'!B25 -> 20 | AF189: =AD189-AE189 -> 0 | AG189: =IF(W189=$R189,0,1) -> 0 | AH189: =IF(X189=$R189,0,1) -> 0
E190: =IF(T190=1,1,0) -> 1 | N190: Number of Spare Production Wells | R190: 0 | S190: note | T190: ='master Improvements'!E104 -> 1 | U190: ='Input A1'!W190 -> 0
N191: Number of Dry Wells (Unusable as Injectors) - calculated | R191: ='Input A1'!T191 -> 0.8803662121 | S191: note | U191: ='Input A1'!W191 -> 1.713630092
N192: Ratio Production Well Depth to Resource Depth (> 1) | R192: NA | S192: note
N193: Ratio Injection Well to Production Well Depth | R193: 1 | S193: note
E194: =IF(T194=1,1,0) -> 1 | N194: Ratio of Injection Wells to Production Wells | Q194: =IF(R194=AA194," ",1) ->  | R194: =AA194 -> 0.75 | S194: note | T194: ='master Improvements'!E105 -> 1 | U194: ='Input A1'!W194 -> 0.75 | W194: =IF($V$20=AD194,$Z194,R194) -> 0.75 | X194: =IF($V$20=AD194,$AB194,R194) -> 0.75 | Z194: ='master list of 10-90s'!D29 -> 0.75 | AA194: ='master list of 10-90s'!E29 -> 0.75 | AB194: ='master list of 10-90s'!F29 -> 2 | AC194: =Z194 -> 0.75 | AD194: =AE194 -> 21 | AE194: ='LCOE Summary 10-90s'!B26 -> 21 | AF194: =AD194-AE194 -> 0 | AG194: =IF(W194=$R194,0,1) -> 0 | AH194: =IF(X194=$R194,0,1) -> 0
E195: =MIN(E203:E228) -> 0 | N195: Well Drilling Costs :
N196: Drilling costs are estimated for 'full-diameter' wells using either simple cost correlations based on well depth, or an estimate made by the model based on User provided input. The simpler cost correlations are for either a smaller diameter well or a larger diameter well. If this option is used, the User defines which correlation is used for the production well. If the ratio of injection to production wells is 1 or larger, the model uses same correlation for the injection well; if the ratio is less than 1, the cost correlation for the larger diameter well is used.
A197: ='Input A1'!A197 -> 1 | N197: How are costs for drilling wells determined ? | R197: Cost Curves
N198: Cost Curves
A199: ='Input A1'!A198 -> 0 | N199: Production Well Size | O199: =IF(AND(A199=1,A398=1),"Stop - Use Larger Diameter well for Binary"," ") ->  | R199: =IF(AND('Input A1'!A75=1,'Input A1'!A398=0),E5,E6) -> Larger Diameter | T199: ='Input A1'!V199 -> 12.25 inch well bore in production interval
N200: Injection Well Size | R200: ='Input A1'!T200 -> Larger Diameter | T200: ='Input A1'!V200 -> 12.25 inch well bore in injection interval
N201: Production Well Cost - Cost Curve | R201: ='Input A1'!T201 -> 6056549.191
N202: Injection Well Cost - Cost Curve | R202: ='Input A1'!T202 -> 6056549.191
N203: GETEM Estimates | O203: This method of estimating costs has been added to provide a means of evaluating a different configuration for the injection well allowing trade offs between well cost and injection pumping power to be evaluated. This method for estimating costs has not been thoroughly checked.
R204: Production Well | U204: Injection Well
N205: What is the Well Configuration in Production / Injection Zone ? | R205: Open Hole | S205: note | U205: Open Hole
... 319 more rows

Sheet SUMMARY
A1: ='Input A1'!A75 -> 0
A2: ='Input A1'!A398 -> 1
A3: ='Input A1'!A48 -> 0
F21: GETEM - SUMMARY WORKSHEET
F22: HIGH-LEVEL SUMMARY | H22: Reference Case | J22: Improved Scenario
F23: TECHNOLOGY YEAR | H23: ='Summary A1'!H23 -> 2012
F24: COST OF ELECTRICITY | G24: cent / kWh | H24: ='Summary A1'!H24 -> 32.47768522 | J24: ='Summary A1'!J24 -> 13.83807121
F25: RESOURCE TYPE | H25: ='Summary A1'!H25 -> HYDROTHERMAL
F26: CONVERSION SYSTEM | H26: ='Summary A1'!H26 -> BINARY
F27: POWER SALES | G27: kW | H27: ='Summary A1'!H27 -> 15000 | J27: ='Summary A1'!J27 -> 25000
G28: Number of Errors/Messages | H28: ='Summary A1'!H28 -> 0 | I28: note
F30: The sidebar to the left allows one to expand or collapse each section of the Input. Use the ' + ' to expand; the ' - ' to collapse.
F31: SUMMARY of PROJECT PHASES & SCENARIOS
F32: ECONOMIC PARAMETERS
F33: Year of Scenario Estimate Dollars | H33: ='Summary A1'!H33 -> 2011
F34: Method Used to Determine Generation Costs | H34: ='Summary A1'!H34 -> EERE Approach
F35: Discount Rate by Project Phase
F36: Exploration | H36: ='Summary A1'!H36 -> 0.3 | J36: ='Summary A1'!J36 -> 0.07
F37: Confirmation | H37: ='Summary A1'!H37 -> 0.3 | J37: ='Summary A1'!J37 -> 0.07
F38: Well Field Development (&Stimulation) | H38: ='Summary A1'!H38 -> 0.15 | J38: ='Summary A1'!J38 -> 0.07
F39: Power Plant Construction | H39: ='Summary A1'!H39 -> 0.07 | J39: ='Summary A1'!J39 -> 0.07
F40: Plant Operation | H40: ='Summary A1'!H40 -> 0.07 | J40: ='Summary A1'!J40 -> 0.07
F41: Project Phase Duration
F42: Exploration | G42: yr | H42: ='Summary A1'!H42 -> 2 | J42: ='Summary A1'!J42 -> 1
F43: Confirmation | G43: yr | H43: ='Summary A1'!H43 -> 1.5 | J43: ='Summary A1'!J43 -> 1
F44: Well Field Development (&Stimulation) | G44: yr | H44: ='Summary A1'!H44 -> 1.5 | J44: ='Summary A1'!J44 -> 1.25
F45: Power Plant | G45: yr | H45: ='Summary A1'!H45 -> 2 | J45: ='Summary A1'!J45 -> 1.5
F46: Project/Plant Life | G46: yr | H46: ='Summary A1'!H46 -> 30 | J46: ='Summary A1'!J46 -> 30
F47: Plant Utilization Factor | H47: ='Summary A1'!H47 -> 0.95 | J47: ='Summary A1'!J47 -> 0.95
D48: + | E48: B | F48: RESOURCE DEFINITION
F49: Resource Type | H49: ='Summary A1'!H49 -> Hydrothermal
F50: Resource Temperature Used | G50: C | H50: ='Summary A1'!H50 -> 140 | J50: ='Summary A1'!J50 -> 140
G51: F | H51: ='Summary A1'!H51 -> 284 | J51: ='Summary A1'!J51 -> 284
F52: Resource Depth Used | G52: m | H52: ='Summary A1'!H52 -> 2500 | J52: ='Summary A1'!J52 -> 2500
G53: ft | H53: ='Summary A1'!H53 -> 8202.075 | J53: ='Summary A1'!J53 -> 8202.075
F54: Earth Temperature Gradient | G54: C/m | H54: ='Summary A1'!H54 -> 0.05136 | J54: ='Summary A1'!J54 -> 0.05136
G55: F/ ft | H55: ='Summary A1'!H55 -> 0.02817823539 | J55: ='Summary A1'!J55 -> 0.02817823539
F56: Geofluid Temperature Loss in Well | G56: C | H56: ='Summary A1'!H56 -> 1.038596522 | J56: ='Summary A1'!J56 -> 1.038596522
G57: F | H57: ='Summary A1'!H57 -> 1.869473739 | J57: ='Summary A1'!J57 -> 1.869473739
D58: + | E58: C | F58: RESOURCE EXPLORATION | H58: ='Summary A1'!H58 -> 19067904.83 | J58: ='Summary A1'!J58 -> 7893058.214
F59: Project Scenario
F60: Project Type | H60: ='Summary A1'!H60 -> Greenfield
F61: Resource Potential Discovered | G61: MW | H61: ='Summary A1'!H61 -> 300 | J61: ='Summary A1'!J61 -> 300
A62: ='Input A1'!A83 -> 1 | F62: Exploration Costs Proportioned with Resource Potential | H62: ='Summary A1'!H62 -> No | J62: ='Summary A1'!J62 -> No
F63: Plant Power Output | G63: MW | H63: ='Summary A1'!H63 -> 18.59380692 | J63: ='Summary A1'!J63 -> 30.896517
F64: Number of Exploration Sites Evaluated | H64: ='Summary A1'!H64 -> 6 | J64: ='Summary A1'!J64 -> 5
F65: Cost of non-drilling activities per site | H65: ='Summary A1'!H65 -> 500000 | J65: ='Summary A1'!J65 -> 350000
F66: Permitting cost for non-drilling activities per site | H66: ='Summary A1'!H66 -> 60000 | J66: ='Summary A1'!J66 -> 60000
F67: Estimated Lease Size | G67: acre | H67: ='Summary A1'!H67 -> 552.6988773 | J67: ='Summary A1'!J67 -> 756.2023818
F68: Leasing Costs per site | H68: ='Summary A1'!H68 -> 16580.96632 | J68: ='Summary A1'!J68 -> 22686.07146
F69: Number of sites where Exploration Drilling is Done | G69: per project | H69: ='Summary A1'!H69 -> 5 | J69: ='Summary A1'!J69 -> 3
F70: Site Exploration Drilling Costs (if drilled) | H70: ='Summary A1'!H70 -> 3000000 | J70: ='Summary A1'!J70 -> 1800000
A71: ='Input A1'!#REF! ->  | F71: Permitting cost for Exploration/Confirmation Drilling per site | H71: ='Summary A1'!H71 -> 125000 | J71: ='Summary A1'!J71 -> 125000
F72: Other Costs incurred during drilling | H72: ='Summary A1'!H72 -> 0 | J72: ='Summary A1'!J72 -> 0
F73: # Successful Exploration Wells Supporting Fluid Production to Plant | H73: ='Summary A1'!H73 -> 0 | J73: ='Summary A1'!J73 -> 0
F74: Exploration Well Depth | G74: ft | H74: ='Summary A1'!H74 -> 8202.075 | J74: ='Summary A1'!J74 -> 8202.075
F75: Estimated Exploration Costs
F76: Total Exploration Drilling Costs | H76: ='Summary A1'!H76 -> 15000000 | J76: ='Summary A1'!J76 -> 5400000
F77: Total Exploration Non-Drilling Costs Used | H77: ='Summary A1'!H77 -> 3000000 | J77: ='Summary A1'!J77 -> 1750000
F78: Permitting Costs for all Exploration Activities | H78: ='Summary A1'!H78 -> 985000 | J78: ='Summary A1'!J78 -> 675000
F79: Leasing Costs | H79: ='Summary A1'!H79 -> 82904.83159 | J79: ='Summary A1'!J79 -> 68058.21437
F80: Total Lease Acreage for Successful Project | G80: acre | H80: ='Summary A1'!H80 -> 2763.494386 | J80: ='Summary A1'!J80 -> 2268.607146
F81: Ratio of Exploration Costs if Proportioned (else 1) | H81: ='Summary A1'!H81 -> 1 | J81: ='Summary A1'!J81 -> 1
F82: Total Exploration Costs | H82: ='Summary A1'!H82 -> 19067904.83 | J82: ='Summary A1'!J82 -> 7893058.214
D83: + | E83: D | F83: RESOURCE CONFIRMATION | H83: ='Summary A1'!H83 -> 53718763.86 | J83: ='Summary A1'!J83 -> 17013754.36
F84: Confirmation Scenario
F85: Number of Confirmation Sites | H85: ='Summary A1'!H85 -> 2 | J85: ='Summary A1'!J85 -> 1.5
F86: Number of Wells Drilled at each 'Unsuccessful Site' | H86: ='Summary A1'!H86 -> 2 | J86: ='Summary A1'!J86 -> 2
F87: Number of Stimulations at Unsuccessful Sites | H87: ='Summary A1'!H87 -> 1 | J87: ='Summary A1'!J87 -> 0.5
F88: Number of Confirmation Well is Based on | H88: ='Summary A1'!H88 -> Well Count
F89: Production Capacity to be Confirmed | H89: ='Summary A1'!H89 -> NA | J89: ='Summary A1'!J89 -> NA
F90: Production Capacity per Well | H90: ='Summary A1'!H90 -> 3.546419769 | J90: ='Summary A1'!J90 -> 3.259039495
F91: Confirmation Drilling Success Rate at Successful Site | H91: ='Summary A1'!H91 -> 0.6 | J91: ='Summary A1'!J91 -> 0.75
F92: Cost per Confirmation Well | H92: ='Summary A1'!H92 -> 7267859.029 | J92: ='Summary A1'!J92 -> 4360715.417
A93: ='Input A1'!A181 -> 0 | F93: # of Confirmation Wells Drilled | H93: ='Summary A1'!H93 -> 7 | J93: ='Summary A1'!J93 -> 3.666666667
F94: Are successful confirmation wells stimulated? | H94: ='Summary A1'!H94 -> No | J94: ='Summary A1'!J94 -> No
F95: Stimulation Cost per Injection Well | H95: ='Summary A1'!H95 -> 0 | J95: ='Summary A1'!J95 -> 0
F96: # of Successful Confirmation Wells | H96: ='Summary A1'!H96 -> 3 | J96: ='Summary A1'!J96 -> 2
F97: Production Capacity Confirmed | G97: MW | H97: ='Summary A1'!H97 -> 10.63925931 | J97: ='Summary A1'!J97 -> 6.518078991
G98: % of total | H98: ='Summary A1'!H98 -> 0.7092839538 | J98: ='Summary A1'!J98 -> 0.2607231596
F99: Estimated Confirmation Costs
F100: Confirmation Drilling Costs | H100: ='Summary A1'!H100 -> 50875013.2 | J100: ='Summary A1'!J100 -> 15989289.86
F101: Stimulation Cost | H101: ='Summary A1'!H101 -> 0 | J101: ='Summary A1'!J101 -> 0
A102: ='Input A1'!A175 -> 1 | F102: Other Confirmation Non-Drilling Costs | H102: ='Summary A1'!H102 -> 2543750.66 | J102: ='Summary A1'!J102 -> 799464.4932
F103: Permitting Costs for Confirmation Activities | H103: ='Summary A1'!H103 -> 0 | J103: ='Summary A1'!J103 -> 0
F104: Well Testing | H104: ='Summary A1'!H104 -> 300000 | J104: ='Summary A1'!J104 -> 225000
F105: Total Cost | H105: ='Summary A1'!H105 -> 53718763.86 | J105: ='Summary A1'!J105 -> 17013754.36
D106: + | E106: E | F106: WELL FIELD DEVELOPMENT (w/o STIMULATION) | H106: ='Summary A1'!H106 -> 39224971.18 | J106: ='Summary A1'!J106 -> 58595519.9
F107: Well Field Development Scenario
F108: Well Cost Based on | H108: ='Summary A1'!H108 -> Cost Curves
F109: Cost per Production Well | H109: ='Summary A1'!H109 -> 6056549.191 | J109: ='Summary A1'!J109 -> 3633929.515
F110: Cost per Injection Well | H110: ='Summary A1'!H110 -> 6056549.191 | J110: ='Summary A1'!J110 -> 3633929.515
F111: Ratio of Injection to Production Wells | H111: ='Summary A1'!H111 -> 0.75 | J111: ='Summary A1'!J111 -> 0.75
F112: # of Production Wells Required | H112: ='Summary A1'!H112 -> 4.229617749 | J112: ='Summary A1'!J112 -> 7.67097178
F113: Number of Successful Exploration & Confirmation Wells Used | H113: ='Summary A1'!H113 -> 3 | J113: ='Summary A1'!J113 -> 2
F114: # of Injection Wells Drilled | H114: ='Summary A1'!H114 -> 3.172213312 | J114: ='Summary A1'!J114 -> 5.753228835
F115: # of Production Wells Drilled (including spares and dry holes) | H115: ='Summary A1'!H115 -> 2.109983961 | J115: ='Summary A1'!J115 -> 7.384601872
F116: # of Spare Production Wells | H116: ='Summary A1'!H116 -> 0 | J116: ='Summary A1'!J116 -> 0
F117: # of Dry Holes (Unusable) | H117: ='Summary A1'!H117 -> 0.8803662121 | J117: ='Summary A1'!J117 -> 1.713630092
F118: # of Production Successful Wells Drilled in This Phase | H118: ='Summary A1'!H118 -> 1.229617749 | J118: ='Summary A1'!J118 -> 5.67097178
F119: Production Well Depth | G119: km | H119: ='Summary A1'!H119 -> 2.5 | J119: ='Summary A1'!J119 -> 2.5
F120: Injection Well Depth | G120: km | H120: ='Summary A1'!H120 -> 2.5 | J120: ='Summary A1'!J120 -> 2.5
F121: Estimated Well Field Development Costs
F122: Surface Equipment Costs | G122: $/well | H122: ='Summary A1'!H122 -> 200000 | J122: ='Summary A1'!J122 -> 200000
F123: Total Surface Equipment Costs (production, injection & spare wells) | H123: ='Summary A1'!H123 -> 1480366.212 | J123: ='Summary A1'!J123 -> 2684840.123
F124: Production Pump Cost (total) | H124: ='Summary A1'!H124 -> 1735513.798 | J124: ='Summary A1'!J124 -> 3006454.972
F125: Injection Pump Cost | H125: ='Summary A1'!H125 -> 1149347.779 | J125: ='Summary A1'!J125 -> 1372011.188
F126: Permitting Cost During Well Field Development | H126: ='Summary A1'!H126 -> 1000000 | J126: ='Summary A1'!J126 -> 1000000
F127: Other Well Field Development Costs (non-drilling) | H127: ='Summary A1'!H127 -> 1867855.77 | J127: ='Summary A1'!J127 -> 2790262.852
F128: Subtotal - Well Field Development Costs (exclusive of Drilling or Stimulation) | H128: ='Summary A1'!H128 -> 7233083.559 | J128: ='Summary A1'!J128 -> 10853569.14
F129: Subtotal - Production Well Drilling Cost | H129: ='Summary A1'!H129 -> 12779221.65 | J129: ='Summary A1'!J129 -> 26835122.7
F130: Subtotal - Injection Well Drilling Cost | H130: ='Summary A1'!H130 -> 19212665.97 | J130: ='Summary A1'!J130 -> 20906828.07
F131: Total Well Field Development Costs (exclusive of Stimulation) | H131: ='Summary A1'!H131 -> 39224971.18 | J131: ='Summary A1'!J131 -> 58595519.9
D132: + | E132: F | F132: RESERVOIR DEFINITION
F133: Well Flow Rate
F134: Production Well Flow Rate | G134: kg/s | H134: ='Summary A1'!H134 -> 100 | J134: ='Summary A1'!J134 -> 100
G135: lb/hr | H135: ='Summary A1'!H135 -> 793663.2 | J135: ='Summary A1'!J135 -> 793663.2
G136: gpm | H136: ='Summary A1'!H136 -> 1711.474922 | J136: ='Summary A1'!J136 -> 1711.474922
A137: ='Input A1'!A75 -> 0 | B137: =IF(A137=1,H137*H143,0) -> 0 | C137: =IF(A137=1,J137*J143,0) -> 0 | F137: Subsurface Water Loss | H137: ='Summary A1'!H137 -> 0 | J137: ='Summary A1'!J137 -> 0
A138: ='Input A1'!A398 -> 1 | B138: =IF(AND($A139=1,$A138=0),H138*H143,0) -> 0 | C138: =IF(AND($A139=1,$A138=0),J138*J143,0) -> 0 | F138: Flash Steam Cycle Water Losses | H138: ='Summary A1'!H138 -> 0 | J138: ='Summary A1'!J138 -> 0
A139: ='Input A1'!A283 -> 0 | B139: =IF($A137=1,H137,0) -> 0 | C139: =IF($A137=1,J137,0) -> 0 | F139: Injection Well Flow Rate | G139: kg/s | H139: ='Summary A1'!H139 -> 133.3333333 | J139: ='Summary A1'!J139 -> 133.3333333
B140: =IF(AND($A137=1,$A138=0),0,IF(AND($A137=0,$A138=0,$A139=1),0,-H138)) -> 0 | C140: =IF(AND($A137=1,$A138=0),0,IF(AND($A137=0,$A138=0,$A139=1),0,-J138)) -> 0 | G140: lb/hr | H140: ='Summary A1'!H140 -> 1058217.6 | J140: ='Summary A1'!J140 -> 1058217.6
G141: gpm | H141: ='Summary A1'!H141 -> 2281.966563 | J141: ='Summary A1'!J141 -> 2281.966563
F142: Total Production Flow | G142: kg/s | H142: ='Summary A1'!H142 -> 422.9617749 | J142: ='Summary A1'!J142 -> 767.097178
G143: lb/hr | H143: ='Summary A1'!H143 -> 3356891.957 | J143: ='Summary A1'!J143 -> 6088168.01
F144: Total Injection Flow | G144: kg/s | H144: ='Summary A1'!H144 -> 422.9617749 | J144: ='Summary A1'!J144 -> 767.097178
G145: lb/hr | H145: ='Summary A1'!H145 -> 3356891.957 | J145: ='Summary A1'!J145 -> 6088168.01
A146: note | F146: Reservoir Stimulation (Well Field Development Phase) | H146: ='Summary A1'!H146 -> 0 | J146: ='Summary A1'!J146 -> 0
A147: ='Input A1'!A243 -> 0 | F147: Are Wells Stimulated? | H147: ='Summary A1'!H147 -> No
A148: ='Input A1'!A244 -> 0 | F148: Stimulation Cost an Inputted or Calculated Value? | H148: ='Summary A1'!H148 -> Input Value
F149: Surface Area Calculated | G149: meter^2 | H149: ='Summary A1'!H149 ->  | J149: ='Summary A1'!J149 -> 
G150: ft^2 | H150: ='Summary A1'!H150 ->  | J150: ='Summary A1'!J150 -> 
F151: Stimulation Set Up-cost | H151: ='Summary A1'!H151 -> 200000 | J151: ='Summary A1'!J151 -> 200000
F152: Unit cost - stimulation | G152: $/ft^2 | H152: ='Summary A1'!H152 -> 0.1 | J152: ='Summary A1'!J152 -> 0.1
F153: # of Wells Stimulated During Well Field Development | H153: ='Summary A1'!H153 -> 1.886499026 | J153: ='Summary A1'!J153 -> 4.896085978
F154: Well Stimulation Cost | G154: $/well | H154: ='Summary A1'!H154 -> 0 | J154: ='Summary A1'!J154 -> 0
F155: Estimated Stimulation Costs
F156: Total Well Stimulation Cost | H156: ='Summary A1'!H156 -> 0 | J156: ='Summary A1'!J156 -> 0
F157: Other Cost | H157: ='Summary A1'!H157 -> 0 | J157: ='Summary A1'!J157 -> 0
F158: Total Stimulation Cost (Well Field Development Phase) | H158: ='Summary A1'!H158 -> 0 | J158: ='Summary A1'!J158 -> 0
F159: Hydraulic Drawdown
A160: ='Input A1'!A254 -> 0 | F160: Hydraulic Drawdown an Input or Calculated Value? | H160: ='Summary A1'!H160 -> Input Value
F161: Inputted Pressure Decline | G161: psi-h/ 1000lb | H161: ='Summary A1'!H161 -> 0.5 | J161: ='Summary A1'!J161 -> 0.5
G162: kPa-s/kg | H162: ='Summary A1'!H162 -> 27.36057452 | J162: ='Summary A1'!J162 -> 27.36057452
F163: Ratio of Injection to Production Well Drawdown | H163: ='Summary A1'!H163 -> 1 | J163: ='Summary A1'!J163 -> 1
A164: ='Input A1'!A258 -> 0 | F164: Drawdown Calculated as kA (product of permeability and area) or Flow in Fracture | H164: ='Summary A1'!H164 -> NA
F165: Permeability | G165: darcy | H165: ='Summary A1'!H165 -> 0 | J165: ='Summary A1'!J165 -> 0
F166: Flow Area | G166: sq ft | H166: ='Summary A1'!H166 -> 0 | J166: ='Summary A1'!J166 -> 0
F167: k*A | G167: darcy-ft^2 | H167: ='Summary A1'!H167 -> 0 | J167: ='Summary A1'!J167 -> 0
F168: Distance Between Wells | G168: m | H168: ='Summary A1'!H168 -> 1000 | J168: ='Summary A1'!J168 -> 1000
G169: ft | H169: ='Summary A1'!H169 -> 3280.83 | J169: ='Summary A1'!J169 -> 3280.83
F170: # Fractures | H170: ='Summary A1'!H170 ->  | J170: ='Summary A1'!J170 -> 
F171: Fracture Width | G171: m | H171: ='Summary A1'!H171 ->  | J171: ='Summary A1'!J171 -> 
D172: + | F172: Aperture | G172: m | H172: ='Summary A1'!H172 ->  | J172: ='Summary A1'!J172 -> 
D173: + | F173: Effective Fracture length | G173: m | H173: ='Summary A1'!H173 ->  | J173: ='Summary A1'!J173 -> 
D174: + | F174: Reservoir Pressure Drop | G174: psi | H174: ='Summary A1'!H174 -> 396.8316 | I174: note | J174: ='Summary A1'!J174 -> 396.8316
G175: bar | H175: ='Summary A1'!H175 -> 27.3605828 | J175: ='Summary A1'!J175 -> 27.3605828
F176: Thermal Drawdown
A177: ='Input A1'!A264 -> 0 | F177: Input Maximum Temperature Decline Allowed? | H177: ='Summary A1'!H177 -> No
F178: Calculated Maximum Temperature Decline (Entingh - NGGPP) | G178: ∆C | H178: ='Summary A1'!H178 -> 17.2 | I178: note
A179: ='Input A1'!A264 -> 0 | F179: Maximum Temperature Decline Allowed | G179: ∆C | H179: ='Summary A1'!H179 -> 17.2 | J179: ='Summary A1'!J179 -> 17.2
A180: ='Input A1'!A267 -> 0 | F180: Temperature Decline Based on | H180: ='Summary A1'!H180 -> Annual Decline Rate
F181: Annual Decline Rate | G181: %/yr | H181: ='Summary A1'!H181 -> 0.004 | J181: ='Summary A1'!J181 -> 0.004
F182: Fracture Length | G182: m | H182: ='Summary A1'!H182 ->  | J182: ='Summary A1'!J182 -> 
F183: # Fractures | H183: ='Summary A1'!H183 ->  | J183: ='Summary A1'!J183 -> 
F184: Aperture | G184: m | H184: ='Summary A1'!H184 ->  | J184: ='Summary A1'!J184 -> 
F185: Fracture Width | G185: m | H185: ='Summary A1'!H185 ->  | J185: ='Summary A1'!J185 -> 
F186: Fracture Area | G186: meter^2 | H186: ='Summary A1'!H186 ->  | J186: ='Summary A1'!J186 -> 
A187: =3.28083^2 -> 10.76384549 | G187: ft^2 | H187: ='Summary A1'!H187 ->  | J187: ='Summary A1'!J187 -> 
F188: Discount Rate for Used for Makeup calculations | H188: ='Summary A1'!H188 -> 0.07 | J188: ='Summary A1'!J188 -> 0.07
A189: ='Input A1'!A398 -> 1 | F189: Relative Revenue | H189: ='Summary A1'!H189 -> 0.8710122693 | J189: ='Summary A1'!J189 -> 0.8714000323
A190: ='Input A1'!A75 -> 0 | F190: 1st Replacement | G190: yr | H190: ='Summary A1'!H190 -> NA | J190: ='Summary A1'!J190 -> NA
A191: ='Input A1'!A267 -> 0 | D191: + | F191: # Reservoirs used | H191: ='Summary A1'!H191 -> 1 | J191: ='Summary A1'!J191 -> 1
F192: Σ of discounted reservoirs | H192: ='Summary A1'!H192 -> 0 | J192: ='Summary A1'!J192 -> 0
F193: Σ of 1 discounted | H193: ='Summary A1'!H193 -> 12.6084807 | J193: ='Summary A1'!J193 -> 12.6084807
A194: ='Input A1'!A398 -> 1 | F194: Water Makeup - Subsurface and Evaporative Cooling | H194: ='Summary A1'!H194 -> 0 | I194: $/yr | J194: ='Summary A1'!J194 -> 0
D195: + | F195: Loss Rate (% of Injected Flow) | G195: % | H195: ='Summary A1'!H195 -> 0 | J195: ='Summary A1'!J195 -> 0
D196: + | F196: Makeup water cost Used | G196: $/acre-ft | H196: ='Summary A1'!H196 -> 0 | J196: ='Summary A1'!J196 -> 0
G197: $/m^3 | H197: ='Summary A1'!H197 -> 0 | J197: ='Summary A1'!J197 -> 0
F198: Annual Water Loss | G198: acre-ft | H198: ='Summary A1'!H198 -> 0 | J198: ='Summary A1'!J198 -> 0
D199: + | F199: Annual Cost | G199: $/yr | H199: ='Summary A1'!H199 -> 0 | J199: ='Summary A1'!J199 -> 0
D200: + | E200: G | F200: GEOTHERMAL FLUID PUMPING
D201: + | F201: Production Pumping | H201: ='Summary A1'!H201 -> 1735513.798 | J201: ='Summary A1'!J201 -> 3006454.972
F202: Production Well Flow Rate | G202: kg/s | H202: ='Summary A1'!H202 -> 100 | J202: ='Summary A1'!J202 -> 100
G203: lb/hr | H203: ='Summary A1'!H203 -> 793663.2 | J203: ='Summary A1'!J203 -> 793663.2
A204: ='Input A1'!A288 -> 1 | F204: Are Production Pumps Used? | H204: ='Summary A1'!H204 -> Yes | J204: ='Summary A1'!J204 -> Yes
F205: How is Pump Depth Determined? | H205: ='Summary A1'!H205 -> Calculate
A206: =IF(H206>0,1,0) -> 1 | F206: Pump Depth Setting | G206: ft | H206: ='Summary A1'!H206 -> 836.1796954 | J206: ='Summary A1'!J206 -> 836.1796954
A207: =IF(J206>0,1,0) -> 1 | G207: m | H207: ='Summary A1'!H207 -> 254.9387636 | J207: ='Summary A1'!J207 -> 254.9387636
F208: Is Flashing Occurring in Production Well? | H208: ='Summary A1'!H208 -> No | J208: ='Summary A1'!J208 -> No
F209: Estimated Production Well Head Pressure | G209: psi | H209: ='Summary A1'!H209 -> 100.8991879 | J209: ='Summary A1'!J209 -> 100.8991879
F210: Required Pump Suction Pressure/Production Well Head Pressure | G210: psi | H210: ='Summary A1'!H210 -> 100.8991879 | J210: ='Summary A1'!J210 -> 100.8991879
D211: + | G211: bar | H211: ='Summary A1'!H211 -> 6.956755924 | J211: ='Summary A1'!J211 -> 6.956755924
D212: + | F212: Friction Loss in Well Below Pump | G212: psid | H212: ='Summary A1'!H212 -> 12.33885499 | J212: ='Summary A1'!J212 -> 12.33885499
F213: Friction Loss in Production Casing | G213: psid | H213: ='Summary A1'!H213 -> 8.279521083 | J213: ='Summary A1'!J213 -> 8.279521083
D214: + | F214: Pumping Power | G214: hp/well | H214: ='Summary A1'!H214 -> 508.7350729 | J214: ='Summary A1'!J214 -> 457.8615656
G215: kW/well | H215: ='Summary A1'!H215 -> 379.3637439 | J215: ='Summary A1'!J215 -> 341.4273695
F216: Pump Type | H216: ='Summary A1'!H216 -> Lineshaft
A217: ='Input A1'!A304 -> 1 | F217: Pump Cost Inputted or Calculated | H217: ='Summary A1'!H217 -> Calculate
F218: Pump Cost | G218: $/pump | H218: ='Summary A1'!H218 -> 410324.0295 | I218: note | J218: ='Summary A1'!J218 -> 391926.2198
... 102 more rows

Sheet Error-Warnings
B1: This sheet displays error and/or warning messages that occur when there is question regarding the user input. Check these messages to see if input needs to be revised. If the macro was used to minimize the binary plant LCOE by varying plant performance, run it again after any input changes.
C2: Number of Errors/Messages | E2: =SUM(D5:D171) -> 0
B3: Location | C3: Message
A5: ='Input A1'!N1 -> 0 | B5: Input - Cells C1 thru M17 | C5: =IF(A5>0," Logic on Input Sheet has been compromised"," ") ->  | D5: =IF(A5>1,1,0) -> 0
A6: =INPUT!P32 -> 0 | B6: Reference Scenario Input | C6: =IF(A6=0," ","Reference Scenario values differ from defined most likely values") ->  | D6: =IF(A6>0,1,0) -> 0
A7: ='Input A1'!A75 -> 0 | B7: Input: | C7: =IF(AND(A7=1,OR(A8=1,A9=1)),"Plant design temperature is less than fluid temperature at well field replacement"," ") ->  | D7: =IF(AND(A7=1,OR(A8=1,A9=1)),1,0) -> 0 | F7: =IF(D7=0," ","Need to inrease the allowable resource ΔT before well replacement, and/or possibly inrease flow per well") -> 
B8: =INPUT!$N$239 -> RESERVOIR DEFINITION
A9: ='Input A1'!E76 -> 0
A10: ='Resource A1'!D32 -> 284 | B10: Input: | C10: =IF(A10<705," ","The input for Resource Definition is giving a Resource Temperature that exceeds the Critical Temperature of Water") ->  | D10: =IF(A10<705,0,1) -> 0
B11: =INPUT!N$74 -> RESOURCE DEFINITION
A12: ='Input A1'!T82 -> 300 | B12: Input: | C12: =IF(A13<A12," ","The plant net plant output exceeds the potential resource found") ->  | D12: =IF(A13<A12,0,1) -> 0
A13: ='Input A1'!A151 -> 18.59380692 | B13: =INPUT!N$79 -> RESOURCE EXPLORATION
A14: 0 | B14: Input: | C14: =IF(AND(A14=1,A15<=1),"Full sized exploration well cost should exceed production well cost"," ") -> 
A15: ='Input A1'!#REF! ->  | B15: =INPUT!N$79 -> RESOURCE EXPLORATION
A16: ='Input A1'!A75 -> 0 | B16: Input: | C16: =IF(AND(A16=1,A17=0),"Recommend not Proportioning EGS Exploration Costs with Resource Potential Found"," ") ->  | D16: =IF(AND(A16=1,A17=0),1,0) -> 0
A17: ='Input A1'!A83 -> 1 | B17: =INPUT!N$79 -> RESOURCE EXPLORATION
A18: ='Input A1'!T85 -> 6 | B18: Input: | C18: =IF(A20>A18,"Exploration wells are being drilled at more stites than were examined during pre-drilling evaluation"," ") ->  | D18: =IF(A20>A18,1,0) -> 0
B19: =INPUT!N$79 -> RESOURCE EXPLORATION
A20: ='Input A1'!T153 -> 5
A21: ='Input A1'!A81 -> 1 | B21: Input: | C21: =IF(A21+A22+A23=3,"No Explration Wells are being drilled for Hydrothermal Greenfield Project"," ") ->  | D21: =IF(A21+A22+A23=3,1,0) -> 0
A22: ='Input A1'!A82 -> 1 | B22: =INPUT!N$79 -> RESOURCE EXPLORATION
A23: ='Input A1'!A152 -> 0 | B23: =INPUT!N$74 -> RESOURCE DEFINITION
A24: ='Input A1'!T162 -> 0.6 | B24: Input: | C24: =IF(OR(A24<=0,A25<=0,A24>1,A25>1),"Confirmation Drilling Success Rate should be >0% and <=100%"," ") ->  | D24: =IF(OR(AND(A24=0,A25=1),AND(A24=1,A25=0)),1,0) -> 0
A25: ='Input A1'!W162 -> 0.75 | B25: =INPUT!N$158 -> RESOURCE CONFIRMATION
A26: ='Input A1'!B164 -> 1.229617749 | B26: Input: | C26: =IF(A26<0,"# of Successful Confirmation Wells exceeds # of Production Wells Required for Specified Power Sales, or # of Production Wells Specified"," ") ->  | D26: =IF(A26<0,1,0) -> 0
B27: =INPUT!N$158 -> RESOURCE CONFIRMATION
A28: ='Input A1'!A75 -> 0 | B28: Input: | C28: =IF(AND(A28=1,A29<2),"A minimum of two successful confirmation wells are required for EGS resource"," ") ->  | D28: =IF(AND(A28=1,A29<2),1,0) -> 0
A29: ='Input A1'!T169 -> 3 | B29: =INPUT!N$158 -> RESOURCE CONFIRMATION
A30: ='Input A1'!A75 -> 0 | B30: Input: | C30: =IF(AND(A30=0,A31=1),"Confirmation Wells are being stimulated for Hydrothermal Resource"," ") ->  | D30: =IF(OR(AND(A30=0,A31=1),AND(A30=1,A31=0)),1,0) -> 0
A31: ='Input A1'!A181 -> 0 | B31: =INPUT!N$158 -> RESOURCE CONFIRMATION | C31: =IF(AND(A30=1,A31=0),"Stop - Confirmation Wells are not being stimulated for EGS Resource"," ") -> 
A32: ='Input A1'!T170 -> 1.2 | B32: Input: | C32: =IF(OR(A32<1,A33<1),"Confirmaiton well cost is less than production well cost"," ") ->  | D32: =IF(OR(A32<1,A33<1),1,0) -> 0
A33: =IF('Input A1'!T170*'Input A1'!V172<'Input A1'!V225,0,1) -> 1 | B33: =INPUT!N$158 -> RESOURCE CONFIRMATION
A34: ='Input A1'!A181 -> 0 | B34: Input: | C34: =IF(AND(A34=1,A35>A36),"Confirmation Simulation Cost is less than that used in Well Field Development Phase"," ") ->  | D34: =IF(AND(A34=1,A35>A36),1,0) -> 0
A35: ='Input A1'!T182 -> 0 | B35: RESOURCE CONFIRMATION
A36: ='Input A1'!T183 -> 0
B37: Input: | D37: =IF(OR(A38=0,A39=30),0,1) -> 0
A38: ='Input A1'!A48 -> 0 | C38: =IF(OR(A39=30,A38=0)," ","When using Fixed Charge Rate Method, project life for all cases = 30 yr") -> 
A39: =MIN('EERE COE'!D7,'EERE COE'!D151,'EERE COE 10-90'!D7,'EERE COE 10-90'!D151) -> 30 | B39: =INPUT!N37 -> ECONOMIC PARAMETERS
A40: =MAX('Revised COE - DCF'!F21,'Revised COE - DCF'!F149,'Revised COE 10-90 - DCF'!F149,'Revised COE 10-90 - DCF'!F21) -> 7 | B40: Input: | C40: =IF(A40<14," ","The duration of pre-startup activities exceeds Discounted Cash Flow allowable") ->  | D40: =IF(AND(A40<14,A41<=40),0,1) -> 0 | F40: The Discounted Cash Flow Sheet allows for up to 15 yrs for pre-startup activities
A41: =MAX('EERE COE'!D7,'EERE COE'!D151,'EERE COE 10-90'!D7,'EERE COE 10-90'!D151) -> 30 | B41: =INPUT!N37 -> ECONOMIC PARAMETERS | C41: =IF(A41>40,"Model can not evaluate projects operating longer than 40 years"," ") -> 
A42: ='Input A1'!T189 -> 0.8 | B42: Input: | C42: =IF(OR(A42<=0,A43<=0,A42>1,A43>1),"Drilling success rate during final well field development phase should be >0% and <=100%"," ") ->  | D42: =IF(OR(A42<=0,A43<=0,A42>1,A43>1),1,0) -> 0
A43: ='Input A1'!T189*'Input A1'!V189 -> 0.85 | B43: =INPUT!N$187 -> WELL FIELD DEVELOPMENT
A44: ='Input A1'!A197 -> 1 | B44: Input: | C44: =IF(A44=1," ",IF(OR(A45>7171,A46>7171),"The resource depth exceeds the maximum for using the GETEM methodology for well cost"," ")) ->  | D44: =IF(A44=1,0,IF(OR(A45>7171,A46>7171),1,0)) -> 0
A45: ='Input A1'!T78*'Input A1'!T193 -> 2500 | B45: =INPUT!N$74 -> RESOURCE DEFINITION
A46: =MAX('Resource A1'!D33:H33) -> 2500 | B46: =INPUT!N$187 -> WELL FIELD DEVELOPMENT
A47: ='Input A1'!B220 -> 0 | B47: Input: | C47: =IF(A47=10000,"Production Interval Diameter specified is too large"," ") ->  | D47: =IF(OR(A47=10000,A48=10000),1,0) -> 0
A48: ='Input A1'!B221 -> 0 | B48: =INPUT!N$187 -> WELL FIELD DEVELOPMENT | C48: =IF(A48=10000,"Injection Interval Diameter specified is too large"," ") -> 
B49: Input: | D49: =IF(OR(AND(A51=0,A50=1),AND(A51=1,A50=0)),1,0) -> 0
A50: ='Input A1'!A243 -> 0 | B50: =INPUT!N$239 -> RESERVOIR DEFINITION | C50: =IF(AND(A51=0,A50=1),"Stimulation has been specified with a Hydrothermal Resouce scenario"," ") -> 
A51: ='Input A1'!A75 -> 0 | B51: =INPUT!N$74 -> RESOURCE DEFINITION | C51: =IF(AND(A51=1,A50=0),"STOP - Must simulate wells with EGS Resource"," ") -> 
A52: ='Input A1'!A243 -> 0 | B52: Input: | C52: =IF(AND(A52=1,A53=1,A54=0),"If the model is to calculate well stimulaiton cost, Carslaw Jaeger solution must be used for thermal decline"," ") ->  | D52: =IF(AND(A52=1,A53=1,A54=0),1,0) -> 0
A53: ='Input A1'!A244 -> 0 | B53: =INPUT!N$239 -> RESERVOIR DEFINITION
A54: ='Input A1'!A267 -> 0
A55: ='Input A1'!A290 -> 1 | B55: Input: | C55: =IF(AND(A55=1,A56=1),"The calculated pump depth exceeds the depth of the resource/production well. The well flow rate and/or the hdyraulic drawdown need to be reduced.", " ") ->  | D55: =IF(AND(A55=1,A56=1),1,0) -> 0
A56: ='Input A1'!A257 -> 0 | B56: =INPUT!N$239 -> RESERVOIR DEFINITION
A57: ='Input A1'!A75 -> 0 | B57: Input: | C57: =IF(AND(A57=1,A58=1,A59=1,A60=0),"When characterizing the hydraulic drawdown with a fracture system, the Carslaw Jaeger solution for temperature decline must be used to define he fracture system - if not a circular reference is created"," ") ->  | D57: =IF(AND(A57=1,A58=1,A59=1,A60=0),1,0) -> 0
A58: ='Input A1'!A254 -> 0 | B58: =INPUT!N$239 -> RESERVOIR DEFINITION
A59: ='Input A1'!A258 -> 0 | B59: =INPUT!N$74 -> RESOURCE DEFINITION
A60: ='Input A1'!A267 -> 0
A61: ='Input A1'!A75 -> 0 | B61: Input: | C61: =IF(AND(A61=0,A62=1),"Must use Annual Decline Rate to determine Thermal Drawdown for Hydrothermal Resource"," ") ->  | D61: =IF(AND(A61=0,A62=1),1,0) -> 0
A62: ='Input A1'!A267 -> 0 | B62: =INPUT!N$239 -> RESERVOIR DEFINITION
B63: =INPUT!N$74 -> RESOURCE DEFINITION
A64: ='Input A1'!A75 -> 0 | B64: Input: | C64: =IF(AND(A64=1,A65=1,OR(A66=1,A67=1)),"Flow in fractures is not laminar, increase number of fractures"," ") ->  | D64: =IF(AND(A64=1,A65=1,OR(A66=1,A67=1)),1,0) -> 0
A65: ='Input A1'!A267 -> 0 | B65: =INPUT!N$239 -> RESERVOIR DEFINITION
A66: ='Input A1'!A272 -> 0 | B66: =INPUT!N$74 -> RESOURCE DEFINITION
A67: ='Input A1'!A273 -> 0
A68: ='Input A1'!T282 -> 0 | B68: Input: | C68: =IF(OR(A68>1,A68*A69>1),"Subsurface water loss is >100% of produced flow"," ") ->  | D68: =IF(OR(A68>1,A68*A69>1),1,0) -> 0
A69: ='Input A1'!V282 -> 1 | B69: =INPUT!N$239 -> RESERVOIR DEFINITION
A70: ='Input A1'!B220 -> 0 | B70: Input: | C70: =IF(A70>48,"Specified bottom hole dimension for Production Well is too large - using Well Cost Curves go to GF Pumping Input; if using GETEM Well Cost estimates fo to Well Filed Development Input "," ") ->  | D70: =IF(A70>48,1,0) -> 0
A71: ='Input A1'!A288 -> 1 | B71: =INPUT!N$285 -> GEOTHERMAL FLUID PUMPING
B72: =INPUT!N$187 -> WELL FIELD DEVELOPMENT
A73: ='Input A1'!T286 -> 0.675 | B73: Input: | C73: =IF(OR(A73>=1,A74>=1,A73<=0,A74<=0),"Pump efficiency should be >0% & 100%"," ") ->  | D73: =IF(OR(A73>=1,A74>=1,A73<=0,A74<=0),1,0) -> 0
A74: ='Input A1'!T286*'Input A1'!V286 -> 0.75 | B74: =INPUT!N$285 -> GEOTHERMAL FLUID PUMPING
A75: ='Input A1'!B303 -> 0 | B75: Input: | C75: =IF(AND(A71=1,OR(A75=1,A76=1)),"Pump depth exceeds 2,000 ft limit for specified Lineshaft Pump"," ") ->  | D75: =IF(AND(A71=1,OR(A75=1,A76=1)),1,0) -> 0
A76: ='Input A1'!K303 -> 0 | B76: =INPUT!N$285 -> GEOTHERMAL FLUID PUMPING
A77: ='Input A1'!C291 -> 0 | B77: Input: | C77: =IF(AND(A78=0,A77=1),"Inputted Pump Depth exceeds resource depth"," ") ->  | D77: =IF(AND(A78=0,A77=1),1,0) -> 0
A78: ='Input A1'!A290 -> 1 | B78: =INPUT!N$285 -> GEOTHERMAL FLUID PUMPING
A79: ='GF Pumping A2'!A238 -> 0 | B79: Input: | C79: =IF(A79=1,"Flashing is occuring in Production Well"," ") ->  | D79: =IF(A79=1,1,0) -> 0 | F79: If the flash plant is used, scenarios can be defined that allow flashing in the wells - binary plants should have pumped wells
B80: =INPUT!N$285 -> GEOTHERMAL FLUID PUMPING
A81: ='GF Pumping A2'!A238 -> 0 | B81: Input: | C81: =IF(AND(A81=1,A83=1,A82=1),"Flashing is occuring in Production Well for a Binary Plant"," ") ->  | D81: =IF(AND(A81=1,A83=1,A82=1),1,0) -> 0
A82: ='Input A1'!A290 -> 1 | B82: GEOTHERMAL FLUID PUMPING
A83: ='Input A1'!A398 -> 1
B84: Input: | C84: =IF(A85>48,"Specified bottom hole dimension for Injection Well is too large - using Well Cost Curves go to GF Pumping Input; if using GETEM Well Cost estimates fo to Well Filed Development Input "," ") ->  | D84: =IF(A85>48,1,0) -> 0
A85: ='Input A1'!B221 -> 0 | B85: =INPUT!N$285 -> GEOTHERMAL FLUID PUMPING
B86: =INPUT!N$187 -> WELL FIELD DEVELOPMENT
B87: Input: | C87: =IF(AND(A88=1,A89=0),"Must use Annual Decline Rate to characterize thermal drawdown when specifying Flash plant"," ") ->  | D87: =IF(AND(A88=1,A89=0),1,0) -> 0
A88: ='Input A1'!A267 -> 0 | B88: =INPUT!N$239 -> RESERVOIR DEFINITION
A89: ='Input A1'!A398 -> 1 | B89: =INPUT!N$381 -> POWER PLANT
A90: ='Input A1'!A392 -> 0 | B90: Input: | C90: =IF(AND(A90=1,A91=0),"When using fixed number of production wells to define reference scenario, need assess impact of improved plant performance by varying power output (for fixed flow rate)"," ") ->  | D90: =IF(AND(A90=1,A91=0),1,0) -> 0
A91: ='Input A1'!A396 -> 1 | B91: =INPUT!N$381 -> POWER PLANT
A92: ='Input A1'!T401 -> 5.572611947 | B92: Input: | C92: =IF(AND(A89=1,A93>A92),"Reference Binary Plant Performance exceeds that allowed in GETEM's Cost Correlations"," ") ->  | D92: =IF(AND(A89=1,OR(A93>A92,A94>A92)),1,0) -> 0
A93: ='Input A1'!T408 -> 5.538994747 | B93: =INPUT!N$381 -> POWER PLANT | C93: =IF(AND(A89=1,A94>A92),"Improved Binary Plant Performance exceeds that allowed in GETEM's Cost Correlations"," ") -> 
A94: ='Input A1'!W408 -> 5.074846316
A95: ='Input A1'!A398 -> 1 | B95: Input: | C95: =IF(AND(A95=0,OR(A98>A96,A98<A101,A97>0)),"The HP Flash pressure is out of range - it exceeds the estimated well head pressure or is less than 1 atmosphere; production well needs to be pumped."," ") ->  | D95: =IF(AND(A95=0,OR(A98>A96,A98<A101)),1,0) -> 0 | F95: If the flash pressure is out of range, the estimated well head pressure is either less than the calculated value or is less than 1 atm. Recommend that the production wells be pumped.
A96: ='GF Pumping A2'!G245 -> 100.8991879 | B96: =INPUT!N$381 -> POWER PLANT
A97: ='Flash Plant F1-P90%'!A58+'Flash Plant F1-P10%'!A58+'Flash Plant F1- Improved'!A58+'Flash Plant F1- Reference'!A58 -> 0 | B97: =INPUT!N$285 -> GEOTHERMAL FLUID PUMPING
A98: ='Input A1'!T487 -> 17.04612167
A99: ='Input A1'!A464 -> 2 | B99: Input: | C99: =IF(AND(A95=0,A99>1,A100<A101),"The LP Flash pressure is less than 1 atmosphere"," ") ->  | D99: =IF(AND(A95=0,A99>1,A100<A101),1,0) -> 0
A100: ='Input A1'!T489 -> 15.7
A101: ='Input A1'!E457 -> 14.7 | B101: =INPUT!N$381 -> POWER PLANT
B102: Input: | C102: =IF(A103>A104," ","The geothermal pumping power exceeds the plant output - define more efficient plant, change well diameter, or decrease flow and/or hydraulic drawdown") ->  | D102: =IF(A103<A104,1,0) -> 0
A103: ='Summary A1'!H280*1000000/'Summary A1'!H233 -> 5.538994747 | B103: =INPUT!N$381 -> POWER PLANT
A104: ='Summary A1'!H237 -> 1.070575689 | B104: =INPUT!N$285 -> GEOTHERMAL FLUID PUMPING
B106: =INPUT!N$239 -> RESERVOIR DEFINITION
B138: Input: | C138: =IF(AND(A139>5,A140>5,A141>5,A142>5)," ","For the scenario defined, the plant output will go to 0 before the end of project life; decrease the production well flow, number of injection wells, hydraulic drawdown, thermal drawdown, and/or increase resource potential found") ->  | D138: =IF(AND(A139>5,A140>5,A141>5,A142>5),0,1) -> 0
A139: ='EERE COE'!D38 -> 30 | B139: =INPUT!N79 -> RESOURCE EXPLORATION
A140: ='EERE COE'!D182 -> 30 | B140: =INPUT!N187 -> WELL FIELD DEVELOPMENT
A141: ='EERE COE 10-90'!D38 -> 30
A142: ='EERE COE 10-90'!D182 -> 30 | B142: =INPUT!N$239 -> RESERVOIR DEFINITION

Sheet TornadoChart
A1: The tab “TornadoChart” helps organize and visualize 10-90 runs made in tab “LCOE Summary 10-90s.” The chart will update based on the data in “LCOE Summary 10-90s” in the range A5 through I23. Work Breakdown Structure (WBS) numbers corresponding to the inputs in columns M and N are also included. WBS number precede the LCOE input titles on the chart. | AA1: ='Input A1'!T1 -> 0
A3: The tab “TornadoInput” can be used to organize and filter the inputs you choose to display in the chart. The default is by reference number (No in column A) which corresponds to column B in the tab “LCOE Summary 10-90s.” To order the chart with the greatest LCOE input on top, order column “N” titled Range LCOE in tab “TornadoInput” from largest to smallest (Z to A).
A5: You may also choose to filter out some values from being displayed in the chart. If the P10 LCOE is greater than the Most Likely LCOE, and/or the P90 LCOE is less than the Most Likely LCOE, the “TornadoInput” tab column N will have an error (#VALUE) and no colored bar will show on the Tornado chart for that input. You can filter these categories from being displayed in the chart altogether by de-selecting #VALUE from column N on “TornadoInput.” You may also chose to filter or sort by WBS.
A7: The P10 value will display to the left of the green bar, the most likely value will display in the middle, and the P90 value will display to the right of the orange bar. The greater the LCOE impact, the less jumbled the labels will appear.

Sheet TornadoInput
A1: In order to sort the results this sheet in not protected. Do not change any values on this sheet other than performing the sorting accordingper the dropdown menus
A2: Exclude | B2: No | C2: WBS 1 | D2: WBS2 | E2: Category | F2: Blank | G2: P10-z | H2: P10 Values | I2: P10 | J2: ML Values | K2: Most Likely | L2: P90 Values | M2: P90 | N2: P90-z | O2: Range LCOE
A3: =IF(OR(AND(ISBLANK('LCOE Summary 10-90s'!R47),ISBLANK('LCOE Summary 10-90s'!S47)),OR('LCOE Summary 10-90s'!R47='LCOE Summary 10-90s'!$R$3,'LCOE Summary 10-90s'!S47='LCOE Summary 10-90s'!$S$3)),0,"x") -> 0 | B3: ='LCOE Summary 10-90s'!B47 -> 42 | C3: ='LCOE Summary 10-90s'!N47 -> 6b | D3: =IF(ISBLANK('LCOE Summary 10-90s'!O47),"",'LCOE Summary 10-90s'!O47) ->  | E3: =IF(A3=0,IF(ISBLANK('LCOE Summary 10-90s'!O47),C3&":"&'LCOE Summary 10-90s'!A47,C3&","&D3&":"&'LCOE Summary 10-90s'!A47),"") -> 6b:Power Sales | F3: =IF(A3=0,IF('LCOE Summary 10-90s'!G47<'LCOE Summary 10-90s'!H47,'LCOE Summary 10-90s'!G47,'LCOE Summary 10-90s'!H47),"") -> 26.7357657 | G3: 0 | H3: =IF(A3=0,'LCOE Summary 10-90s'!D47,"") -> 25 | I3: =IF(A3=0,ABS('LCOE Summary 10-90s'!G47-'LCOE Summary 10-90s'!H47),"") -> 5.741919517 | J3: =IF(A3=0,'LCOE Summary 10-90s'!C47,"") -> 15 | K3: 0 | L3: =IF(A3=0,'LCOE Summary 10-90s'!E47,"") -> 5 | M3: =IF(A3=0,'LCOE Summary 10-90s'!I47-'LCOE Summary 10-90s'!G47,"") -> 29.11128878 | N3: 0 | O3: =IF(A3=0,IF('LCOE Summary 10-90s'!G47-'LCOE Summary 10-90s'!H47<0,MAX(ABS(I3),ABS(M3)),I3+M3),-0.00001) -> 34.8532083 | Q3: 1 | R3: =B3-Q3 -> 41
A4: =IF(OR(AND(ISBLANK('LCOE Summary 10-90s'!R33),ISBLANK('LCOE Summary 10-90s'!S33)),OR('LCOE Summary 10-90s'!R33='LCOE Summary 10-90s'!$R$3,'LCOE Summary 10-90s'!S33='LCOE Summary 10-90s'!$S$3)),0,"x") -> 0 | B4: ='LCOE Summary 10-90s'!B33 -> 28 | C4: ='LCOE Summary 10-90s'!N33 -> 2a | D4: =IF(ISBLANK('LCOE Summary 10-90s'!O33),"",'LCOE Summary 10-90s'!O33) ->  | E4: =IF(A4=0,IF(ISBLANK('LCOE Summary 10-90s'!O33),C4&":"&'LCOE Summary 10-90s'!A33,C4&","&D4&":"&'LCOE Summary 10-90s'!A33),"") -> 2a:Reservoir Hydraulic Drawdown | F4: =IF(A4=0,IF('LCOE Summary 10-90s'!G33<'LCOE Summary 10-90s'!H33,'LCOE Summary 10-90s'!G33,'LCOE Summary 10-90s'!H33),"") -> 28.53985662 | G4: 0 | H4: =IF(A4=0,'LCOE Summary 10-90s'!D33,"") -> 0.2 | I4: =IF(A4=0,ABS('LCOE Summary 10-90s'!G33-'LCOE Summary 10-90s'!H33),"") -> 3.937828602 | J4: =IF(A4=0,'LCOE Summary 10-90s'!C33,"") -> 0.5 | K4: 0 | L4: =IF(A4=0,'LCOE Summary 10-90s'!E33,"") -> 1.2 | M4: =IF(A4=0,'LCOE Summary 10-90s'!I33-'LCOE Summary 10-90s'!G33,"") -> 19.49470878 | N4: 0 | O4: =IF(A4=0,IF('LCOE Summary 10-90s'!G33-'LCOE Summary 10-90s'!H33<0,MAX(ABS(I4),ABS(M4)),I4+M4),-0.00001) -> 23.43253738 | Q4: 2 | R4: =B4-Q4 -> 26
A5: =IF(OR(AND(ISBLANK('LCOE Summary 10-90s'!R27),ISBLANK('LCOE Summary 10-90s'!S27)),OR('LCOE Summary 10-90s'!R27='LCOE Summary 10-90s'!$R$3,'LCOE Summary 10-90s'!S27='LCOE Summary 10-90s'!$S$3)),0,"x") -> 0 | B5: ='LCOE Summary 10-90s'!B27 -> 22 | C5: ='LCOE Summary 10-90s'!N27 -> 2b | D5: =IF(ISBLANK('LCOE Summary 10-90s'!O27),"",'LCOE Summary 10-90s'!O27) ->  | E5: =IF(A5=0,IF(ISBLANK('LCOE Summary 10-90s'!O27),C5&":"&'LCOE Summary 10-90s'!A27,C5&","&D5&":"&'LCOE Summary 10-90s'!A27),"") -> 2b: Production Well Cost | F5: =IF(A5=0,IF('LCOE Summary 10-90s'!G27<'LCOE Summary 10-90s'!H27,'LCOE Summary 10-90s'!G27,'LCOE Summary 10-90s'!H27),"") -> 26.15166279 | G5: 0 | H5: =IF(A5=0,'LCOE Summary 10-90s'!D27,"") -> 3000000 | I5: =IF(A5=0,ABS('LCOE Summary 10-90s'!G27-'LCOE Summary 10-90s'!H27),"") -> 6.326022426 | J5: =IF(A5=0,'LCOE Summary 10-90s'!C27,"") -> curve | K5: 0 | L5: =IF(A5=0,'LCOE Summary 10-90s'!E27,"") -> 9000000 | M5: =IF(A5=0,'LCOE Summary 10-90s'!I27-'LCOE Summary 10-90s'!G27,"") -> 5.979910527 | N5: 0 | O5: =IF(A5=0,IF('LCOE Summary 10-90s'!G27-'LCOE Summary 10-90s'!H27<0,MAX(ABS(I5),ABS(M5)),I5+M5),-0.00001) -> 12.30593295 | Q5: 3 | R5: 19
A6: =IF(OR(AND(ISBLANK('LCOE Summary 10-90s'!R20),ISBLANK('LCOE Summary 10-90s'!S20)),OR('LCOE Summary 10-90s'!R20='LCOE Summary 10-90s'!$R$3,'LCOE Summary 10-90s'!S20='LCOE Summary 10-90s'!$S$3)),0,"x") -> 0 | B6: ='LCOE Summary 10-90s'!B20 -> 15 | C6: ='LCOE Summary 10-90s'!N20 -> 1b | D6: =IF(ISBLANK('LCOE Summary 10-90s'!O20),"",'LCOE Summary 10-90s'!O20) ->  | E6: =IF(A6=0,IF(ISBLANK('LCOE Summary 10-90s'!O20),C6&":"&'LCOE Summary 10-90s'!A20,C6&","&D6&":"&'LCOE Summary 10-90s'!A20),"") -> 1b:Number of Confirmation Sites Needed per Successful Project | F6: =IF(A6=0,IF('LCOE Summary 10-90s'!G20<'LCOE Summary 10-90s'!H20,'LCOE Summary 10-90s'!G20,'LCOE Summary 10-90s'!H20),"") -> 29.54975523 | G6: 0 | H6: =IF(A6=0,'LCOE Summary 10-90s'!D20,"") -> 1 | I6: =IF(A6=0,ABS('LCOE Summary 10-90s'!G20-'LCOE Summary 10-90s'!H20),"") -> 2.927929989 | J6: =IF(A6=0,'LCOE Summary 10-90s'!C20,"") -> 2 | K6: 0 | L6: =IF(A6=0,'LCOE Summary 10-90s'!E20,"") -> 4 | M6: =IF(A6=0,'LCOE Summary 10-90s'!I20-'LCOE Summary 10-90s'!G20,"") -> 5.854375906 | N6: 0 | O6: =IF(A6=0,IF('LCOE Summary 10-90s'!G20-'LCOE Summary 10-90s'!H20<0,MAX(ABS(I6),ABS(M6)),I6+M6),-0.00001) -> 8.782305895 | Q6: 4 | R6: 11
A7: =IF(OR(AND(ISBLANK('LCOE Summary 10-90s'!R18),ISBLANK('LCOE Summary 10-90s'!S18)),OR('LCOE Summary 10-90s'!R18='LCOE Summary 10-90s'!$R$3,'LCOE Summary 10-90s'!S18='LCOE Summary 10-90s'!$S$3)),0,"x") -> 0 | B7: ='LCOE Summary 10-90s'!B18 -> 13 | C7: ='LCOE Summary 10-90s'!N18 -> 1b | D7: =IF(ISBLANK('LCOE Summary 10-90s'!O18),"",'LCOE Summary 10-90s'!O18) ->  | E7: =IF(A7=0,IF(ISBLANK('LCOE Summary 10-90s'!O18),C7&":"&'LCOE Summary 10-90s'!A18,C7&","&D7&":"&'LCOE Summary 10-90s'!A18),"") -> 1b:Site Exploration Drilling Cost | F7: =IF(A7=0,IF('LCOE Summary 10-90s'!G18<'LCOE Summary 10-90s'!H18,'LCOE Summary 10-90s'!G18,'LCOE Summary 10-90s'!H18),"") -> 29.59727139 | G7: 0 | H7: =IF(A7=0,'LCOE Summary 10-90s'!D18,"") -> 1000000 | I7: =IF(A7=0,ABS('LCOE Summary 10-90s'!G18-'LCOE Summary 10-90s'!H18),"") -> 2.880413823 | J7: =IF(A7=0,'LCOE Summary 10-90s'!C18,"") -> 3000000 | K7: 0 | L7: =IF(A7=0,'LCOE Summary 10-90s'!E18,"") -> 7000000 | M7: =IF(A7=0,'LCOE Summary 10-90s'!I18-'LCOE Summary 10-90s'!G18,"") -> 5.7593753 | N7: 0 | O7: =IF(A7=0,IF('LCOE Summary 10-90s'!G18-'LCOE Summary 10-90s'!H18<0,MAX(ABS(I7),ABS(M7)),I7+M7),-0.00001) -> 8.639789123 | Q7: 5 | R7: 8
A8: =IF(OR(AND(ISBLANK('LCOE Summary 10-90s'!R8),ISBLANK('LCOE Summary 10-90s'!S8)),OR('LCOE Summary 10-90s'!R8='LCOE Summary 10-90s'!$R$3,'LCOE Summary 10-90s'!S8='LCOE Summary 10-90s'!$S$3)),0,"x") -> 0 | B8: ='LCOE Summary 10-90s'!B8 -> 3 | C8: ='LCOE Summary 10-90s'!N8 -> 6a | D8: =IF(ISBLANK('LCOE Summary 10-90s'!O8),"",'LCOE Summary 10-90s'!O8) ->  | E8: =IF(A8=0,IF(ISBLANK('LCOE Summary 10-90s'!O8),C8&":"&'LCOE Summary 10-90s'!A8,C8&","&D8&":"&'LCOE Summary 10-90s'!A8),"") -> 6a:Discount Rate During Operation | F8: =IF(A8=0,IF('LCOE Summary 10-90s'!G8<'LCOE Summary 10-90s'!H8,'LCOE Summary 10-90s'!G8,'LCOE Summary 10-90s'!H8),"") -> 29.71758214 | G8: 0 | H8: =IF(A8=0,'LCOE Summary 10-90s'!D8,"") -> 0.06 | I8: =IF(A8=0,ABS('LCOE Summary 10-90s'!G8-'LCOE Summary 10-90s'!H8),"") -> 2.760103076 | J8: =IF(A8=0,'LCOE Summary 10-90s'!C8,"") -> 0.07 | K8: 0 | L8: =IF(A8=0,'LCOE Summary 10-90s'!E8,"") -> 0.09 | M8: =IF(A8=0,'LCOE Summary 10-90s'!I8-'LCOE Summary 10-90s'!G8,"") -> 5.87081191 | N8: 0 | O8: =IF(A8=0,IF('LCOE Summary 10-90s'!G8-'LCOE Summary 10-90s'!H8<0,MAX(ABS(I8),ABS(M8)),I8+M8),-0.00001) -> 8.630914986 | Q8: 6 | R8: -3
A9: =IF(OR(AND(ISBLANK('LCOE Summary 10-90s'!R17),ISBLANK('LCOE Summary 10-90s'!S17)),OR('LCOE Summary 10-90s'!R17='LCOE Summary 10-90s'!$R$3,'LCOE Summary 10-90s'!S17='LCOE Summary 10-90s'!$S$3)),0,"x") -> 0 | B9: ='LCOE Summary 10-90s'!B17 -> 12 | C9: ='LCOE Summary 10-90s'!N17 -> 1b | D9: =IF(ISBLANK('LCOE Summary 10-90s'!O17),"",'LCOE Summary 10-90s'!O17) ->  | E9: =IF(A9=0,IF(ISBLANK('LCOE Summary 10-90s'!O17),C9&":"&'LCOE Summary 10-90s'!A17,C9&","&D9&":"&'LCOE Summary 10-90s'!A17),"") -> 1b:Number of Sites where Exploration Drilling Occurs | F9: =IF(A9=0,IF('LCOE Summary 10-90s'!G17<'LCOE Summary 10-90s'!H17,'LCOE Summary 10-90s'!G17,'LCOE Summary 10-90s'!H17),"") -> 28.84893952 | G9: 0 | H9: =IF(A9=0,'LCOE Summary 10-90s'!D17,"") -> 1 | I9: =IF(A9=0,ABS('LCOE Summary 10-90s'!G17-'LCOE Summary 10-90s'!H17),"") -> 3.628745699 | J9: =IF(A9=0,'LCOE Summary 10-90s'!C17,"") -> 5 | K9: 0 | L9: =IF(A9=0,'LCOE Summary 10-90s'!E17,"") -> 10 | M9: =IF(A9=0,'LCOE Summary 10-90s'!I17-'LCOE Summary 10-90s'!G17,"") -> 4.606442321 | N9: 0 | O9: =IF(A9=0,IF('LCOE Summary 10-90s'!G17-'LCOE Summary 10-90s'!H17<0,MAX(ABS(I9),ABS(M9)),I9+M9),-0.00001) -> 8.23518802 | Q9: 7 | R9: 5
A10: =IF(OR(AND(ISBLANK('LCOE Summary 10-90s'!R22),ISBLANK('LCOE Summary 10-90s'!S22)),OR('LCOE Summary 10-90s'!R22='LCOE Summary 10-90s'!$R$3,'LCOE Summary 10-90s'!S22='LCOE Summary 10-90s'!$S$3)),0,"x") -> 0 | B10: ='LCOE Summary 10-90s'!B22 -> 17 | C10: ='LCOE Summary 10-90s'!N22 -> 1b | D10: =IF(ISBLANK('LCOE Summary 10-90s'!O22),"",'LCOE Summary 10-90s'!O22) ->  | E10: =IF(A10=0,IF(ISBLANK('LCOE Summary 10-90s'!O22),C10&":"&'LCOE Summary 10-90s'!A22,C10&","&D10&":"&'LCOE Summary 10-90s'!A22),"") -> 1b:Number of Confirmation Wells Required | F10: =IF(A10=0,IF('LCOE Summary 10-90s'!G22<'LCOE Summary 10-90s'!H22,'LCOE Summary 10-90s'!G22,'LCOE Summary 10-90s'!H22),"") -> 29.17437027 | G10: 0 | H10: =IF(A10=0,'LCOE Summary 10-90s'!D22,"") -> 1 | I10: =IF(A10=0,ABS('LCOE Summary 10-90s'!G22-'LCOE Summary 10-90s'!H22),"") -> 3.303314949 | J10: =IF(A10=0,'LCOE Summary 10-90s'!C22,"") -> 3 | K10: 0 | L10: =IF(A10=0,'LCOE Summary 10-90s'!E22,"") -> 6 | M10: =IF(A10=0,'LCOE Summary 10-90s'!I22-'LCOE Summary 10-90s'!G22,"") -> 4.852226313 | N10: 0 | O10: =IF(A10=0,IF('LCOE Summary 10-90s'!G22-'LCOE Summary 10-90s'!H22<0,MAX(ABS(I10),ABS(M10)),I10+M10),-0.00001) -> 8.155541262 | Q10: 8 | R10: 9
A11: =IF(OR(AND(ISBLANK('LCOE Summary 10-90s'!R55),ISBLANK('LCOE Summary 10-90s'!S55)),OR('LCOE Summary 10-90s'!R55='LCOE Summary 10-90s'!$R$3,'LCOE Summary 10-90s'!S55='LCOE Summary 10-90s'!$S$3)),0,"x") -> 0 | B11: ='LCOE Summary 10-90s'!B55 -> 50 | C11: ='LCOE Summary 10-90s'!N55 -> 3b | D11: =IF(ISBLANK('LCOE Summary 10-90s'!O55),"",'LCOE Summary 10-90s'!O55) ->  | E11: =IF(A11=0,IF(ISBLANK('LCOE Summary 10-90s'!O55),C11&":"&'LCOE Summary 10-90s'!A55,C11&","&D11&":"&'LCOE Summary 10-90s'!A55),"") -> 3b:Heat Rejection Equipment Cost | F11: =IF(A11=0,IF('LCOE Summary 10-90s'!G55<'LCOE Summary 10-90s'!H55,'LCOE Summary 10-90s'!G55,'LCOE Summary 10-90s'!H55),"") -> 29.82598617 | G11: 0 | H11: =IF(A11=0,'LCOE Summary 10-90s'!D55,"") -> 0.5 | I11: =IF(A11=0,ABS('LCOE Summary 10-90s'!G55-'LCOE Summary 10-90s'!H55),"") -> 2.651699046 | J11: =IF(A11=0,'LCOE Summary 10-90s'!C55,"") -> 1 | K11: 0 | L11: =IF(A11=0,'LCOE Summary 10-90s'!E55,"") -> 2 | M11: =IF(A11=0,'LCOE Summary 10-90s'!I55-'LCOE Summary 10-90s'!G55,"") -> 4.644409817 | N11: 0 | O11: =IF(A11=0,IF('LCOE Summary 10-90s'!G55-'LCOE Summary 10-90s'!H55<0,MAX(ABS(I11),ABS(M11)),I11+M11),-0.00001) -> 7.296108862 | Q11: 9 | R11: 41
A12: =IF(OR(AND(ISBLANK('LCOE Summary 10-90s'!R62),ISBLANK('LCOE Summary 10-90s'!S62)),OR('LCOE Summary 10-90s'!R62='LCOE Summary 10-90s'!$R$3,'LCOE Summary 10-90s'!S62='LCOE Summary 10-90s'!$S$3)),0,"x") -> 0 | B12: ='LCOE Summary 10-90s'!B62 -> 57 | C12: ='LCOE Summary 10-90s'!N62 -> 3a | D12: =IF(ISBLANK('LCOE Summary 10-90s'!O62),"",'LCOE Summary 10-90s'!O62) ->  | E12: =IF(A12=0,IF(ISBLANK('LCOE Summary 10-90s'!O62),C12&":"&'LCOE Summary 10-90s'!A62,C12&","&D12&":"&'LCOE Summary 10-90s'!A62),"") -> 3a:Plant Capital Cost | F12: =IF(A12=0,IF('LCOE Summary 10-90s'!G62<'LCOE Summary 10-90s'!H62,'LCOE Summary 10-90s'!G62,'LCOE Summary 10-90s'!H62),"") -> 30.52092846 | G12: 0 | H12: =IF(A12=0,'LCOE Summary 10-90s'!D62,"") -> 0.8 | I12: =IF(A12=0,ABS('LCOE Summary 10-90s'!G62-'LCOE Summary 10-90s'!H62),"") -> 1.956756762 | J12: =IF(A12=0,'LCOE Summary 10-90s'!C62,"") -> 1 | K12: 0 | L12: =IF(A12=0,'LCOE Summary 10-90s'!E62,"") -> 1.5 | M12: =IF(A12=0,'LCOE Summary 10-90s'!I62-'LCOE Summary 10-90s'!G62,"") -> 4.891891906 | N12: 0 | O12: =IF(A12=0,IF('LCOE Summary 10-90s'!G62-'LCOE Summary 10-90s'!H62<0,MAX(ABS(I12),ABS(M12)),I12+M12),-0.00001) -> 6.848648668 | Q12: 10 | R12: 47
A13: =IF(OR(AND(ISBLANK('LCOE Summary 10-90s'!R21),ISBLANK('LCOE Summary 10-90s'!S21)),OR('LCOE Summary 10-90s'!R21='LCOE Summary 10-90s'!$R$3,'LCOE Summary 10-90s'!S21='LCOE Summary 10-90s'!$S$3)),0,"x") -> 0 | B13: ='LCOE Summary 10-90s'!B21 -> 16 | C13: ='LCOE Summary 10-90s'!N21 -> 1b | D13: =IF(ISBLANK('LCOE Summary 10-90s'!O21),"",'LCOE Summary 10-90s'!O21) ->  | E13: =IF(A13=0,IF(ISBLANK('LCOE Summary 10-90s'!O21),C13&":"&'LCOE Summary 10-90s'!A21,C13&","&D13&":"&'LCOE Summary 10-90s'!A21),"") -> 1b:Drilling Success Rate at Successful Confirmation Site | F13: =IF(A13=0,IF('LCOE Summary 10-90s'!G21<'LCOE Summary 10-90s'!H21,'LCOE Summary 10-90s'!G21,'LCOE Summary 10-90s'!H21),"") -> 30.64770614 | G13: 0 | H13: =IF(A13=0,'LCOE Summary 10-90s'!D21,"") -> 0.8 | I13: =IF(A13=0,ABS('LCOE Summary 10-90s'!G21-'LCOE Summary 10-90s'!H21),"") -> 1.82997908 | J13: =IF(A13=0,'LCOE Summary 10-90s'!C21,"") -> 0.6 | K13: 0 | L13: =IF(A13=0,'LCOE Summary 10-90s'!E21,"") -> 0.4 | M13: =IF(A13=0,'LCOE Summary 10-90s'!I21-'LCOE Summary 10-90s'!G21,"") -> 3.659075376 | N13: 0 | O13: =IF(A13=0,IF('LCOE Summary 10-90s'!G21-'LCOE Summary 10-90s'!H21<0,MAX(ABS(I13),ABS(M13)),I13+M13),-0.00001) -> 5.489054456 | Q13: 11 | R13: 5
A14: =IF(OR(AND(ISBLANK('LCOE Summary 10-90s'!R46),ISBLANK('LCOE Summary 10-90s'!S46)),OR('LCOE Summary 10-90s'!R46='LCOE Summary 10-90s'!$R$3,'LCOE Summary 10-90s'!S46='LCOE Summary 10-90s'!$S$3)),0,"x") -> 0 | B14: ='LCOE Summary 10-90s'!B46 -> 41 | C14: ='LCOE Summary 10-90s'!N46 -> n/a | D14: =IF(ISBLANK('LCOE Summary 10-90s'!O46),"",'LCOE Summary 10-90s'!O46) ->  | E14: =IF(A14=0,IF(ISBLANK('LCOE Summary 10-90s'!O46),C14&":"&'LCOE Summary 10-90s'!A46,C14&","&D14&":"&'LCOE Summary 10-90s'!A46),"") -> n/a:Transmission cost - miles of line | F14: =IF(A14=0,IF('LCOE Summary 10-90s'!G46<'LCOE Summary 10-90s'!H46,'LCOE Summary 10-90s'!G46,'LCOE Summary 10-90s'!H46),"") -> 32.47751987 | G14: 0 | H14: =IF(A14=0,'LCOE Summary 10-90s'!D46,"") -> 0 | I14: =IF(A14=0,ABS('LCOE Summary 10-90s'!G46-'LCOE Summary 10-90s'!H46),"") -> 0.0001653481039 | J14: =IF(A14=0,'LCOE Summary 10-90s'!C46,"") -> 0 | K14: 0 | L14: =IF(A14=0,'LCOE Summary 10-90s'!E46,"") -> 50 | M14: =IF(A14=0,'LCOE Summary 10-90s'!I46-'LCOE Summary 10-90s'!G46,"") -> 5.182933824 | N14: 0 | O14: =IF(A14=0,IF('LCOE Summary 10-90s'!G46-'LCOE Summary 10-90s'!H46<0,MAX(ABS(I14),ABS(M14)),I14+M14),-0.00001) -> 5.183099172 | Q14: 12 | R14: 29
A15: =IF(OR(AND(ISBLANK('LCOE Summary 10-90s'!R7),ISBLANK('LCOE Summary 10-90s'!S7)),OR('LCOE Summary 10-90s'!R7='LCOE Summary 10-90s'!$R$3,'LCOE Summary 10-90s'!S7='LCOE Summary 10-90s'!$S$3)),0,"x") -> 0 | B15: ='LCOE Summary 10-90s'!B7 -> 2 | C15: ='LCOE Summary 10-90s'!N7 -> 6a | D15: =IF(ISBLANK('LCOE Summary 10-90s'!O7),"",'LCOE Summary 10-90s'!O7) ->  | E15: =IF(A15=0,IF(ISBLANK('LCOE Summary 10-90s'!O7),C15&":"&'LCOE Summary 10-90s'!A7,C15&","&D15&":"&'LCOE Summary 10-90s'!A7),"") -> 6a:Contingency | F15: =IF(A15=0,IF('LCOE Summary 10-90s'!G7<'LCOE Summary 10-90s'!H7,'LCOE Summary 10-90s'!G7,'LCOE Summary 10-90s'!H7),"") -> 29.95501027 | G15: 0 | H15: =IF(A15=0,'LCOE Summary 10-90s'!D7,"") -> 0.05 | I15: =IF(A15=0,ABS('LCOE Summary 10-90s'!G7-'LCOE Summary 10-90s'!H7),"") -> 2.52267495 | J15: =IF(A15=0,'LCOE Summary 10-90s'!C7,"") -> 0.15 | K15: 0 | L15: =IF(A15=0,'LCOE Summary 10-90s'!E7,"") -> 0.25 | M15: =IF(A15=0,'LCOE Summary 10-90s'!I7-'LCOE Summary 10-90s'!G7,"") -> 2.522335646 | N15: 0 | O15: =IF(A15=0,IF('LCOE Summary 10-90s'!G7-'LCOE Summary 10-90s'!H7<0,MAX(ABS(I15),ABS(M15)),I15+M15),-0.00001) -> 5.045010596 | Q15: 13 | R15: -11
A16: =IF(OR(AND(ISBLANK('LCOE Summary 10-90s'!R54),ISBLANK('LCOE Summary 10-90s'!S54)),OR('LCOE Summary 10-90s'!R54='LCOE Summary 10-90s'!$R$3,'LCOE Summary 10-90s'!S54='LCOE Summary 10-90s'!$S$3)),0,"x") -> 0 | B16: ='LCOE Summary 10-90s'!B54 -> 49 | C16: ='LCOE Summary 10-90s'!N54 -> 3a | D16: =IF(ISBLANK('LCOE Summary 10-90s'!O54),"",'LCOE Summary 10-90s'!O54) ->  | E16: =IF(A16=0,IF(ISBLANK('LCOE Summary 10-90s'!O54),C16&":"&'LCOE Summary 10-90s'!A54,C16&","&D16&":"&'LCOE Summary 10-90s'!A54),"") -> 3a:Turbine-Generator Cost | F16: =IF(A16=0,IF('LCOE Summary 10-90s'!G54<'LCOE Summary 10-90s'!H54,'LCOE Summary 10-90s'!G54,'LCOE Summary 10-90s'!H54),"") -> 30.86398133 | G16: 0 | H16: =IF(A16=0,'LCOE Summary 10-90s'!D54,"") -> 0.5 | I16: =IF(A16=0,ABS('LCOE Summary 10-90s'!G54-'LCOE Summary 10-90s'!H54),"") -> 1.613703886 | J16: =IF(A16=0,'LCOE Summary 10-90s'!C54,"") -> 1 | K16: 0 | L16: =IF(A16=0,'LCOE Summary 10-90s'!E54,"") -> 2 | M16: =IF(A16=0,'LCOE Summary 10-90s'!I54-'LCOE Summary 10-90s'!G54,"") -> 3.225856485 | N16: 0 | O16: =IF(A16=0,IF('LCOE Summary 10-90s'!G54-'LCOE Summary 10-90s'!H54<0,MAX(ABS(I16),ABS(M16)),I16+M16),-0.00001) -> 4.839560371 | Q16: 14 | R16: 35
A17: =IF(OR(AND(ISBLANK('LCOE Summary 10-90s'!R23),ISBLANK('LCOE Summary 10-90s'!S23)),OR('LCOE Summary 10-90s'!R23='LCOE Summary 10-90s'!$R$3,'LCOE Summary 10-90s'!S23='LCOE Summary 10-90s'!$S$3)),0,"x") -> 0 | B17: ='LCOE Summary 10-90s'!B23 -> 18 | C17: ='LCOE Summary 10-90s'!N23 -> 1b | D17: =IF(ISBLANK('LCOE Summary 10-90s'!O23),"",'LCOE Summary 10-90s'!O23) ->  | E17: =IF(A17=0,IF(ISBLANK('LCOE Summary 10-90s'!O23),C17&":"&'LCOE Summary 10-90s'!A23,C17&","&D17&":"&'LCOE Summary 10-90s'!A23),"") -> 1b:Multiplier for Confirmation Well Costs (>= 1) | F17: =IF(A17=0,IF('LCOE Summary 10-90s'!G23<'LCOE Summary 10-90s'!H23,'LCOE Summary 10-90s'!G23,'LCOE Summary 10-90s'!H23),"") -> 30.68809329 | G17: 0 | H17: =IF(A17=0,'LCOE Summary 10-90s'!D23,"") -> 1 | I17: =IF(A17=0,ABS('LCOE Summary 10-90s'!G23-'LCOE Summary 10-90s'!H23),"") -> 1.789591927 | J17: =IF(A17=0,'LCOE Summary 10-90s'!C23,"") -> 1.2 | K17: 0 | L17: =IF(A17=0,'LCOE Summary 10-90s'!E23,"") -> 1.5 | M17: =IF(A17=0,'LCOE Summary 10-90s'!I23-'LCOE Summary 10-90s'!G23,"") -> 2.683742946 | N17: 0 | O17: =IF(A17=0,IF('LCOE Summary 10-90s'!G23-'LCOE Summary 10-90s'!H23<0,MAX(ABS(I17),ABS(M17)),I17+M17),-0.00001) -> 4.473334873 | Q17: 15 | R17: 3
A18: =IF(OR(AND(ISBLANK('LCOE Summary 10-90s'!R34),ISBLANK('LCOE Summary 10-90s'!S34)),OR('LCOE Summary 10-90s'!R34='LCOE Summary 10-90s'!$R$3,'LCOE Summary 10-90s'!S34='LCOE Summary 10-90s'!$S$3)),0,"x") -> 0 | B18: ='LCOE Summary 10-90s'!B34 -> 29 | C18: ='LCOE Summary 10-90s'!N34 -> 2a | D18: =IF(ISBLANK('LCOE Summary 10-90s'!O34),"",'LCOE Summary 10-90s'!O34) ->  | E18: =IF(A18=0,IF(ISBLANK('LCOE Summary 10-90s'!O34),C18&":"&'LCOE Summary 10-90s'!A34,C18&","&D18&":"&'LCOE Summary 10-90s'!A34),"") -> 2a:Annual Rate of Temperature Decline | F18: =IF(A18=0,IF('LCOE Summary 10-90s'!G34<'LCOE Summary 10-90s'!H34,'LCOE Summary 10-90s'!G34,'LCOE Summary 10-90s'!H34),"") -> 29.71530515 | G18: 0 | H18: =IF(A18=0,'LCOE Summary 10-90s'!D34,"") -> 0.002 | I18: =IF(A18=0,ABS('LCOE Summary 10-90s'!G34-'LCOE Summary 10-90s'!H34),"") -> 2.762380067 | J18: =IF(A18=0,'LCOE Summary 10-90s'!C34,"") -> 0.004 | K18: 0 | L18: =IF(A18=0,'LCOE Summary 10-90s'!E34,"") -> 0.01 | M18: =IF(A18=0,'LCOE Summary 10-90s'!I34-'LCOE Summary 10-90s'!G34,"") -> 1.438255172 | N18: 0 | O18: =IF(A18=0,IF('LCOE Summary 10-90s'!G34-'LCOE Summary 10-90s'!H34<0,MAX(ABS(I18),ABS(M18)),I18+M18),-0.00001) -> 4.200635239 | Q18: 16 | R18: 13
A19: =IF(OR(AND(ISBLANK('LCOE Summary 10-90s'!R14),ISBLANK('LCOE Summary 10-90s'!S14)),OR('LCOE Summary 10-90s'!R14='LCOE Summary 10-90s'!$R$3,'LCOE Summary 10-90s'!S14='LCOE Summary 10-90s'!$S$3)),0,"x") -> 0 | B19: ='LCOE Summary 10-90s'!B14 -> 9 | C19: ='LCOE Summary 10-90s'!N14 -> 3d | D19: =IF(ISBLANK('LCOE Summary 10-90s'!O14),"",'LCOE Summary 10-90s'!O14) ->  | E19: =IF(A19=0,IF(ISBLANK('LCOE Summary 10-90s'!O14),C19&":"&'LCOE Summary 10-90s'!A14,C19&","&D19&":"&'LCOE Summary 10-90s'!A14),"") -> 3d:Duration of Plant Design and Construction | F19: =IF(A19=0,IF('LCOE Summary 10-90s'!G14<'LCOE Summary 10-90s'!H14,'LCOE Summary 10-90s'!G14,'LCOE Summary 10-90s'!H14),"") -> 29.33517401 | G19: 0 | H19: =IF(A19=0,'LCOE Summary 10-90s'!D14,"") -> 1.25 | I19: =IF(A19=0,ABS('LCOE Summary 10-90s'!G14-'LCOE Summary 10-90s'!H14),"") -> 3.142511212 | J19: =IF(A19=0,'LCOE Summary 10-90s'!C14,"") -> 2 | K19: 0 | L19: =IF(A19=0,'LCOE Summary 10-90s'!E14,"") -> 2.5 | M19: =IF(A19=0,'LCOE Summary 10-90s'!I14-'LCOE Summary 10-90s'!G14,"") -> 0.9853171157 | N19: 0 | O19: =IF(A19=0,IF('LCOE Summary 10-90s'!G14-'LCOE Summary 10-90s'!H14<0,MAX(ABS(I19),ABS(M19)),I19+M19),-0.00001) -> 4.127828327 | Q19: 17 | R19: -8
A20: =IF(OR(AND(ISBLANK('LCOE Summary 10-90s'!R63),ISBLANK('LCOE Summary 10-90s'!S63)),OR('LCOE Summary 10-90s'!R63='LCOE Summary 10-90s'!$R$3,'LCOE Summary 10-90s'!S63='LCOE Summary 10-90s'!$S$3)),0,"x") -> 0 | B20: ='LCOE Summary 10-90s'!B63 -> 58 | C20: ='LCOE Summary 10-90s'!N63 -> 6a | D20: =IF(ISBLANK('LCOE Summary 10-90s'!O63),"",'LCOE Summary 10-90s'!O63) ->  | E20: =IF(A20=0,IF(ISBLANK('LCOE Summary 10-90s'!O63),C20&":"&'LCOE Summary 10-90s'!A63,C20&","&D20&":"&'LCOE Summary 10-90s'!A63),"") -> 6a:Binary Plant Performance | F20: =IF(A20=0,IF('LCOE Summary 10-90s'!G63<'LCOE Summary 10-90s'!H63,'LCOE Summary 10-90s'!G63,'LCOE Summary 10-90s'!H63),"") -> 32.47768522 | G20: 0 | H20: =IF(A20=0,'LCOE Summary 10-90s'!D63,"") -> 5.572611947 | I20: =IF(A20=0,ABS('LCOE Summary 10-90s'!G63-'LCOE Summary 10-90s'!H63),"") -> 0.00195550457 | J20: =IF(A20=0,'LCOE Summary 10-90s'!C63,"") -> 5.538994747 | K20: 0 | L20: =IF(A20=0,'LCOE Summary 10-90s'!E63,"") -> 3.877296323 | M20: =IF(A20=0,'LCOE Summary 10-90s'!I63-'LCOE Summary 10-90s'!G63,"") -> 3.440039451 | N20: 0 | O20: =IF(A20=0,IF('LCOE Summary 10-90s'!G63-'LCOE Summary 10-90s'!H63<0,MAX(ABS(I20),ABS(M20)),I20+M20),-0.00001) -> 3.440039451 | Q20: 18 | R20: 40
A21: =IF(OR(AND(ISBLANK('LCOE Summary 10-90s'!R6),ISBLANK('LCOE Summary 10-90s'!S6)),OR('LCOE Summary 10-90s'!R6='LCOE Summary 10-90s'!$R$3,'LCOE Summary 10-90s'!S6='LCOE Summary 10-90s'!$S$3)),0,"x") -> 0 | B21: ='LCOE Summary 10-90s'!B6 -> 1 | C21: ='LCOE Summary 10-90s'!N6 -> 6b | D21: =IF(ISBLANK('LCOE Summary 10-90s'!O6),"",'LCOE Summary 10-90s'!O6) ->  | E21: =IF(A21=0,IF(ISBLANK('LCOE Summary 10-90s'!O6),C21&":"&'LCOE Summary 10-90s'!A6,C21&","&D21&":"&'LCOE Summary 10-90s'!A6),"") -> 6b:Utilization Factor | F21: =IF(A21=0,IF('LCOE Summary 10-90s'!G6<'LCOE Summary 10-90s'!H6,'LCOE Summary 10-90s'!G6,'LCOE Summary 10-90s'!H6),"") -> 32.13935728 | G21: 0 | H21: =IF(A21=0,'LCOE Summary 10-90s'!D6,"") -> 0.96 | I21: =IF(A21=0,ABS('LCOE Summary 10-90s'!G6-'LCOE Summary 10-90s'!H6),"") -> 0.3383279357 | J21: =IF(A21=0,'LCOE Summary 10-90s'!C6,"") -> 0.95 | K21: 0 | L21: =IF(A21=0,'LCOE Summary 10-90s'!E6,"") -> 0.88 | M21: =IF(A21=0,'LCOE Summary 10-90s'!I6-'LCOE Summary 10-90s'!G6,"") -> 2.582167121 | N21: 0 | O21: =IF(A21=0,IF('LCOE Summary 10-90s'!G6-'LCOE Summary 10-90s'!H6<0,MAX(ABS(I21),ABS(M21)),I21+M21),-0.00001) -> 2.920495057 | Q21: 19 | R21: -18
A22: =IF(OR(AND(ISBLANK('LCOE Summary 10-90s'!R11),ISBLANK('LCOE Summary 10-90s'!S11)),OR('LCOE Summary 10-90s'!R11='LCOE Summary 10-90s'!$R$3,'LCOE Summary 10-90s'!S11='LCOE Summary 10-90s'!$S$3)),0,"x") -> 0 | B22: ='LCOE Summary 10-90s'!B11 -> 6 | C22: ='LCOE Summary 10-90s'!N11 -> 1a | D22: =IF(ISBLANK('LCOE Summary 10-90s'!O11),"",'LCOE Summary 10-90s'!O11) ->  | E22: =IF(A22=0,IF(ISBLANK('LCOE Summary 10-90s'!O11),C22&":"&'LCOE Summary 10-90s'!A11,C22&","&D22&":"&'LCOE Summary 10-90s'!A11),"") -> 1a:Duration of Exploration Phase | F22: =IF(A22=0,IF('LCOE Summary 10-90s'!G11<'LCOE Summary 10-90s'!H11,'LCOE Summary 10-90s'!G11,'LCOE Summary 10-90s'!H11),"") -> 31.71858174 | G22: 0 | H22: =IF(A22=0,'LCOE Summary 10-90s'!D11,"") -> 1.5 | I22: =IF(A22=0,ABS('LCOE Summary 10-90s'!G11-'LCOE Summary 10-90s'!H11),"") -> 0.7591034819 | J22: =IF(A22=0,'LCOE Summary 10-90s'!C11,"") -> 2 | K22: 0 | L22: =IF(A22=0,'LCOE Summary 10-90s'!E11,"") -> 4 | M22: =IF(A22=0,'LCOE Summary 10-90s'!I11-'LCOE Summary 10-90s'!G11,"") -> 2.159974868 | N22: 0 | O22: =IF(A22=0,IF('LCOE Summary 10-90s'!G11-'LCOE Summary 10-90s'!H11<0,MAX(ABS(I22),ABS(M22)),I22+M22),-0.00001) -> 2.91907835 | Q22: 20 | R22: -14
A23: =IF(OR(AND(ISBLANK('LCOE Summary 10-90s'!R12),ISBLANK('LCOE Summary 10-90s'!S12)),OR('LCOE Summary 10-90s'!R12='LCOE Summary 10-90s'!$R$3,'LCOE Summary 10-90s'!S12='LCOE Summary 10-90s'!$S$3)),0,"x") -> 0 | B23: ='LCOE Summary 10-90s'!B12 -> 7 | C23: ='LCOE Summary 10-90s'!N12 -> 1b | D23: =IF(ISBLANK('LCOE Summary 10-90s'!O12),"",'LCOE Summary 10-90s'!O12) ->  | E23: =IF(A23=0,IF(ISBLANK('LCOE Summary 10-90s'!O12),C23&":"&'LCOE Summary 10-90s'!A12,C23&","&D23&":"&'LCOE Summary 10-90s'!A12),"") -> 1b:Duration of Confirmation Phase | F23: =IF(A23=0,IF('LCOE Summary 10-90s'!G12<'LCOE Summary 10-90s'!H12,'LCOE Summary 10-90s'!G12,'LCOE Summary 10-90s'!H12),"") -> 30.37627099 | G23: 0 | H23: =IF(A23=0,'LCOE Summary 10-90s'!D12,"") -> 1 | I23: =IF(A23=0,ABS('LCOE Summary 10-90s'!G12-'LCOE Summary 10-90s'!H12),"") -> 2.101414229 | J23: =IF(A23=0,'LCOE Summary 10-90s'!C12,"") -> 1.5 | K23: 0 | L23: =IF(A23=0,'LCOE Summary 10-90s'!E12,"") -> 2 | M23: =IF(A23=0,'LCOE Summary 10-90s'!I12-'LCOE Summary 10-90s'!G12,"") -> 0.7000109449 | N23: 0 | O23: =IF(A23=0,IF('LCOE Summary 10-90s'!G12-'LCOE Summary 10-90s'!H12<0,MAX(ABS(I23),ABS(M23)),I23+M23),-0.00001) -> 2.801425174 | Q23: 21 | R23: -14
A24: =IF(OR(AND(ISBLANK('LCOE Summary 10-90s'!R60),ISBLANK('LCOE Summary 10-90s'!S60)),OR('LCOE Summary 10-90s'!R60='LCOE Summary 10-90s'!$R$3,'LCOE Summary 10-90s'!S60='LCOE Summary 10-90s'!$S$3)),0,"x") -> 0 | B24: ='LCOE Summary 10-90s'!B60 -> 55 | C24: ='LCOE Summary 10-90s'!N60 -> 3d | D24: =IF(ISBLANK('LCOE Summary 10-90s'!O60),"",'LCOE Summary 10-90s'!O60) ->  | E24: =IF(A24=0,IF(ISBLANK('LCOE Summary 10-90s'!O60),C24&":"&'LCOE Summary 10-90s'!A60,C24&","&D24&":"&'LCOE Summary 10-90s'!A60),"") -> 3d:Plant Direct Construction Cost Multiplier | F24: =IF(A24=0,IF('LCOE Summary 10-90s'!G60<'LCOE Summary 10-90s'!H60,'LCOE Summary 10-90s'!G60,'LCOE Summary 10-90s'!H60),"") -> 30.9676032 | G24: 0 | H24: =IF(A24=0,'LCOE Summary 10-90s'!D60,"") -> 2.25 | I24: =IF(A24=0,ABS('LCOE Summary 10-90s'!G60-'LCOE Summary 10-90s'!H60),"") -> 1.510082014 | J24: =IF(A24=0,'LCOE Summary 10-90s'!C60,"") -> 2.657824316 | K24: 0 | L24: =IF(A24=0,'LCOE Summary 10-90s'!E60,"") -> 3 | M24: =IF(A24=0,'LCOE Summary 10-90s'!I60-'LCOE Summary 10-90s'!G60,"") -> 1.239287725 | N24: 0 | O24: =IF(A24=0,IF('LCOE Summary 10-90s'!G60-'LCOE Summary 10-90s'!H60<0,MAX(ABS(I24),ABS(M24)),I24+M24),-0.00001) -> 2.74936974 | Q24: 22 | R24: 33
A25: =IF(OR(AND(ISBLANK('LCOE Summary 10-90s'!R28),ISBLANK('LCOE Summary 10-90s'!S28)),OR('LCOE Summary 10-90s'!R28='LCOE Summary 10-90s'!$R$3,'LCOE Summary 10-90s'!S28='LCOE Summary 10-90s'!$S$3)),0,"x") -> 0 | B25: ='LCOE Summary 10-90s'!B28 -> 23 | C25: ='LCOE Summary 10-90s'!N28 -> 2b | D25: =IF(ISBLANK('LCOE Summary 10-90s'!O28),"",'LCOE Summary 10-90s'!O28) ->  | E25: =IF(A25=0,IF(ISBLANK('LCOE Summary 10-90s'!O28),C25&":"&'LCOE Summary 10-90s'!A28,C25&","&D25&":"&'LCOE Summary 10-90s'!A28),"") -> 2b:Injection Well Cost | F25: =IF(A25=0,IF('LCOE Summary 10-90s'!G28<'LCOE Summary 10-90s'!H28,'LCOE Summary 10-90s'!G28,'LCOE Summary 10-90s'!H28),"") -> 31.13829599 | G25: 0 | H25: =IF(A25=0,'LCOE Summary 10-90s'!D28,"") -> 3000000 | I25: =IF(A25=0,ABS('LCOE Summary 10-90s'!G28-'LCOE Summary 10-90s'!H28),"") -> 1.339389226 | J25: =IF(A25=0,'LCOE Summary 10-90s'!C28,"") -> curve | K25: 0 | L25: =IF(A25=0,'LCOE Summary 10-90s'!E28,"") -> 9000000 | M25: =IF(A25=0,'LCOE Summary 10-90s'!I28-'LCOE Summary 10-90s'!G28,"") -> 1.252985957 | N25: 0 | O25: =IF(A25=0,IF('LCOE Summary 10-90s'!G28-'LCOE Summary 10-90s'!H28<0,MAX(ABS(I25),ABS(M25)),I25+M25),-0.00001) -> 2.592375183 | Q25: 23 | R25: 0
A26: =IF(OR(AND(ISBLANK('LCOE Summary 10-90s'!R31),ISBLANK('LCOE Summary 10-90s'!S31)),OR('LCOE Summary 10-90s'!R31='LCOE Summary 10-90s'!$R$3,'LCOE Summary 10-90s'!S31='LCOE Summary 10-90s'!$S$3)),0,"x") -> 0 | B26: ='LCOE Summary 10-90s'!B31 -> 26 | C26: ='LCOE Summary 10-90s'!N31 -> 2a | D26: =IF(ISBLANK('LCOE Summary 10-90s'!O31),"",'LCOE Summary 10-90s'!O31) ->  | E26: =IF(A26=0,IF(ISBLANK('LCOE Summary 10-90s'!O31),C26&":"&'LCOE Summary 10-90s'!A31,C26&","&D26&":"&'LCOE Summary 10-90s'!A31),"") -> 2a:Production Well Flow Rate (kg/s) | F26: =IF(A26=0,IF('LCOE Summary 10-90s'!G31<'LCOE Summary 10-90s'!H31,'LCOE Summary 10-90s'!G31,'LCOE Summary 10-90s'!H31),"") -> 32.47768522 | G26: 0 | H26: =IF(A26=0,'LCOE Summary 10-90s'!D31,"") -> 160 | I26: =IF(A26=0,ABS('LCOE Summary 10-90s'!G31-'LCOE Summary 10-90s'!H31),"") -> 2.415300674 | J26: =IF(A26=0,'LCOE Summary 10-90s'!C31,"") -> 100 | K26: 0 | L26: =IF(A26=0,'LCOE Summary 10-90s'!E31,"") -> 70 | M26: =IF(A26=0,'LCOE Summary 10-90s'!I31-'LCOE Summary 10-90s'!G31,"") -> 0.9394777765 | N26: 0 | O26: =IF(A26=0,IF('LCOE Summary 10-90s'!G31-'LCOE Summary 10-90s'!H31<0,MAX(ABS(I26),ABS(M26)),I26+M26),-0.00001) -> 2.415300674 | Q26: 24 | R26: 2
A27: =IF(OR(AND(ISBLANK('LCOE Summary 10-90s'!R26),ISBLANK('LCOE Summary 10-90s'!S26)),OR('LCOE Summary 10-90s'!R26='LCOE Summary 10-90s'!$R$3,'LCOE Summary 10-90s'!S26='LCOE Summary 10-90s'!$S$3)),0,"x") -> 0 | B27: ='LCOE Summary 10-90s'!B26 -> 21 | C27: ='LCOE Summary 10-90s'!N26 -> 2a | D27: =IF(ISBLANK('LCOE Summary 10-90s'!O26),"",'LCOE Summary 10-90s'!O26) ->  | E27: =IF(A27=0,IF(ISBLANK('LCOE Summary 10-90s'!O26),C27&":"&'LCOE Summary 10-90s'!A26,C27&","&D27&":"&'LCOE Summary 10-90s'!A26),"") -> 2a:Ratio of Injection Wells to Production Wells | F27: =IF(A27=0,IF('LCOE Summary 10-90s'!G26<'LCOE Summary 10-90s'!H26,'LCOE Summary 10-90s'!G26,'LCOE Summary 10-90s'!H26),"") -> 32.47751987 | G27: 0 | H27: =IF(A27=0,'LCOE Summary 10-90s'!D26,"") -> 0.75 | I27: =IF(A27=0,ABS('LCOE Summary 10-90s'!G26-'LCOE Summary 10-90s'!H26),"") -> 0.0001653481039 | J27: =IF(A27=0,'LCOE Summary 10-90s'!C26,"") -> 0.75 | K27: 0 | L27: =IF(A27=0,'LCOE Summary 10-90s'!E26,"") -> 2 | M27: =IF(A27=0,'LCOE Summary 10-90s'!I26-'LCOE Summary 10-90s'!G26,"") -> 2.334623191 | N27: 0 | O27: =IF(A27=0,IF('LCOE Summary 10-90s'!G26-'LCOE Summary 10-90s'!H26<0,MAX(ABS(I27),ABS(M27)),I27+M27),-0.00001) -> 2.334788539 | Q27: 25 | R27: -4
A28: =IF(OR(AND(ISBLANK('LCOE Summary 10-90s'!R43),ISBLANK('LCOE Summary 10-90s'!S43)),OR('LCOE Summary 10-90s'!R43='LCOE Summary 10-90s'!$R$3,'LCOE Summary 10-90s'!S43='LCOE Summary 10-90s'!$S$3)),0,"x") -> 0 | B28: ='LCOE Summary 10-90s'!B43 -> 38 | C28: ='LCOE Summary 10-90s'!N43 -> 4b | D28: =IF(ISBLANK('LCOE Summary 10-90s'!O43),"",'LCOE Summary 10-90s'!O43) ->  | E28: =IF(A28=0,IF(ISBLANK('LCOE Summary 10-90s'!O43),C28&":"&'LCOE Summary 10-90s'!A43,C28&","&D28&":"&'LCOE Summary 10-90s'!A43),"") -> 4b:Field Annual Maintenance (non-labor) | F28: =IF(A28=0,IF('LCOE Summary 10-90s'!G43<'LCOE Summary 10-90s'!H43,'LCOE Summary 10-90s'!G43,'LCOE Summary 10-90s'!H43),"") -> 31.96469438 | G28: 0 | H28: =IF(A28=0,'LCOE Summary 10-90s'!D43,"") -> 0.005 | I28: =IF(A28=0,ABS('LCOE Summary 10-90s'!G43-'LCOE Summary 10-90s'!H43),"") -> 0.5129908349 | J28: =IF(A28=0,'LCOE Summary 10-90s'!C43,"") -> 0.015 | K28: 0 | L28: =IF(A28=0,'LCOE Summary 10-90s'!E43,"") -> 0.04 | M28: =IF(A28=0,'LCOE Summary 10-90s'!I43-'LCOE Summary 10-90s'!G43,"") -> 1.262682602 | N28: 0 | O28: =IF(A28=0,IF('LCOE Summary 10-90s'!G43-'LCOE Summary 10-90s'!H43<0,MAX(ABS(I28),ABS(M28)),I28+M28),-0.00001) -> 1.775673437 | Q28: 26 | R28: 12
A29: =IF(OR(AND(ISBLANK('LCOE Summary 10-90s'!R37),ISBLANK('LCOE Summary 10-90s'!S37)),OR('LCOE Summary 10-90s'!R37='LCOE Summary 10-90s'!$R$3,'LCOE Summary 10-90s'!S37='LCOE Summary 10-90s'!$S$3)),0,"x") -> 0 | B29: ='LCOE Summary 10-90s'!B37 -> 32 | C29: ='LCOE Summary 10-90s'!N37 -> 4b | D29: =IF(ISBLANK('LCOE Summary 10-90s'!O37),"",'LCOE Summary 10-90s'!O37) ->  | E29: =IF(A29=0,IF(ISBLANK('LCOE Summary 10-90s'!O37),C29&":"&'LCOE Summary 10-90s'!A37,C29&","&D29&":"&'LCOE Summary 10-90s'!A37),"") -> 4b:Production and Injection Pump & Driver Efficiency | F29: =IF(A29=0,IF('LCOE Summary 10-90s'!G37<'LCOE Summary 10-90s'!H37,'LCOE Summary 10-90s'!G37,'LCOE Summary 10-90s'!H37),"") -> 31.52246373 | G29: 0 | H29: =IF(A29=0,'LCOE Summary 10-90s'!D37,"") -> 0.8 | I29: =IF(A29=0,ABS('LCOE Summary 10-90s'!G37-'LCOE Summary 10-90s'!H37),"") -> 0.9552214929 | J29: =IF(A29=0,'LCOE Summary 10-90s'!C37,"") -> 0.675 | K29: 0 | L29: =IF(A29=0,'LCOE Summary 10-90s'!E37,"") -> 0.6 | M29: =IF(A29=0,'LCOE Summary 10-90s'!I37-'LCOE Summary 10-90s'!G37,"") -> 0.8058865624 | N29: 0 | O29: =IF(A29=0,IF('LCOE Summary 10-90s'!G37-'LCOE Summary 10-90s'!H37<0,MAX(ABS(I29),ABS(M29)),I29+M29),-0.00001) -> 1.761108055 | Q29: 27 | R29: 5
A30: =IF(OR(AND(ISBLANK('LCOE Summary 10-90s'!R16),ISBLANK('LCOE Summary 10-90s'!S16)),OR('LCOE Summary 10-90s'!R16='LCOE Summary 10-90s'!$R$3,'LCOE Summary 10-90s'!S16='LCOE Summary 10-90s'!$S$3)),0,"x") -> 0 | B30: ='LCOE Summary 10-90s'!B16 -> 11 | C30: ='LCOE Summary 10-90s'!N16 -> 1a | D30: =IF(ISBLANK('LCOE Summary 10-90s'!O16),"",'LCOE Summary 10-90s'!O16) ->  | E30: =IF(A30=0,IF(ISBLANK('LCOE Summary 10-90s'!O16),C30&":"&'LCOE Summary 10-90s'!A16,C30&","&D30&":"&'LCOE Summary 10-90s'!A16),"") -> 1a:Pre-Drilling Exploration Costs | F30: =IF(A30=0,IF('LCOE Summary 10-90s'!G16<'LCOE Summary 10-90s'!H16,'LCOE Summary 10-90s'!G16,'LCOE Summary 10-90s'!H16),"") -> 31.78628967 | G30: 0 | H30: =IF(A30=0,'LCOE Summary 10-90s'!D16,"") -> 100000 | I30: =IF(A30=0,ABS('LCOE Summary 10-90s'!G16-'LCOE Summary 10-90s'!H16),"") -> 0.691395549 | J30: =IF(A30=0,'LCOE Summary 10-90s'!C16,"") -> 500000 | K30: 0 | L30: =IF(A30=0,'LCOE Summary 10-90s'!E16,"") -> 1000000 | M30: =IF(A30=0,'LCOE Summary 10-90s'!I16-'LCOE Summary 10-90s'!G16,"") -> 0.8638464504 | N30: 0 | O30: =IF(A30=0,IF('LCOE Summary 10-90s'!G16-'LCOE Summary 10-90s'!H16<0,MAX(ABS(I30),ABS(M30)),I30+M30),-0.00001) -> 1.555241999 | Q30: 28 | R30: -17
A31: =IF(OR(AND(ISBLANK('LCOE Summary 10-90s'!R40),ISBLANK('LCOE Summary 10-90s'!S40)),OR('LCOE Summary 10-90s'!R40='LCOE Summary 10-90s'!$R$3,'LCOE Summary 10-90s'!S40='LCOE Summary 10-90s'!$S$3)),0,"x") -> 0 | B31: ='LCOE Summary 10-90s'!B40 -> 35 | C31: ='LCOE Summary 10-90s'!N40 -> 2b | D31: =IF(ISBLANK('LCOE Summary 10-90s'!O40),"",'LCOE Summary 10-90s'!O40) ->  | E31: =IF(A31=0,IF(ISBLANK('LCOE Summary 10-90s'!O40),C31&":"&'LCOE Summary 10-90s'!A40,C31&","&D31&":"&'LCOE Summary 10-90s'!A40),"") -> 2b:Hole or Casing Diameter in Injection Interval | F31: =IF(A31=0,IF('LCOE Summary 10-90s'!G40<'LCOE Summary 10-90s'!H40,'LCOE Summary 10-90s'!G40,'LCOE Summary 10-90s'!H40),"") -> 32.42273982 | G31: 0 | H31: =IF(A31=0,'LCOE Summary 10-90s'!D40,"") -> 14.5 | I31: =IF(A31=0,ABS('LCOE Summary 10-90s'!G40-'LCOE Summary 10-90s'!H40),"") -> 0.05494539811 | J31: =IF(A31=0,'LCOE Summary 10-90s'!C40,"") -> default | K31: 0 | L31: =IF(A31=0,'LCOE Summary 10-90s'!E40,"") -> 8.25 | M31: =IF(A31=0,'LCOE Summary 10-90s'!I40-'LCOE Summary 10-90s'!G40,"") -> 1.490001168 | N31: 0 | O31: =IF(A31=0,IF('LCOE Summary 10-90s'!G40-'LCOE Summary 10-90s'!H40<0,MAX(ABS(I31),ABS(M31)),I31+M31),-0.00001) -> 1.544946566 | Q31: 29 | R31: 6
A32: =IF(OR(AND(ISBLANK('LCOE Summary 10-90s'!R15),ISBLANK('LCOE Summary 10-90s'!S15)),OR('LCOE Summary 10-90s'!R15='LCOE Summary 10-90s'!$R$3,'LCOE Summary 10-90s'!S15='LCOE Summary 10-90s'!$S$3)),0,"x") -> 0 | B32: ='LCOE Summary 10-90s'!B15 -> 10 | C32: ='LCOE Summary 10-90s'!N15 -> 1a | D32: =IF(ISBLANK('LCOE Summary 10-90s'!O15),"",'LCOE Summary 10-90s'!O15) ->  | E32: =IF(A32=0,IF(ISBLANK('LCOE Summary 10-90s'!O15),C32&":"&'LCOE Summary 10-90s'!A15,C32&","&D32&":"&'LCOE Summary 10-90s'!A15),"") -> 1a:Number of Pre-Drilling Exploration Sites Evaluated | F32: =IF(A32=0,IF('LCOE Summary 10-90s'!G15<'LCOE Summary 10-90s'!H15,'LCOE Summary 10-90s'!G15,'LCOE Summary 10-90s'!H15),"") -> 31.63122592 | G32: 0 | H32: =IF(A32=0,'LCOE Summary 10-90s'!D15,"") -> 1 | I32: =IF(A32=0,ABS('LCOE Summary 10-90s'!G15-'LCOE Summary 10-90s'!H15),"") -> 0.8464593027 | J32: =IF(A32=0,'LCOE Summary 10-90s'!C15,"") -> 6 | K32: 0 | L32: =IF(A32=0,'LCOE Summary 10-90s'!E15,"") -> 10 | M32: =IF(A32=0,'LCOE Summary 10-90s'!I15-'LCOE Summary 10-90s'!G15,"") -> 0.6768498844 | N32: 0 | O32: =IF(A32=0,IF('LCOE Summary 10-90s'!G15-'LCOE Summary 10-90s'!H15<0,MAX(ABS(I32),ABS(M32)),I32+M32),-0.00001) -> 1.523309187 | Q32: 30 | R32: -20
A33: =IF(OR(AND(ISBLANK('LCOE Summary 10-90s'!R56),ISBLANK('LCOE Summary 10-90s'!S56)),OR('LCOE Summary 10-90s'!R56='LCOE Summary 10-90s'!$R$3,'LCOE Summary 10-90s'!S56='LCOE Summary 10-90s'!$S$3)),0,"x") -> 0 | B33: ='LCOE Summary 10-90s'!B56 -> 51 | C33: ='LCOE Summary 10-90s'!N56 -> 3a | D33: =IF(ISBLANK('LCOE Summary 10-90s'!O56),"",'LCOE Summary 10-90s'!O56) ->  | E33: =IF(A33=0,IF(ISBLANK('LCOE Summary 10-90s'!O56),C33&":"&'LCOE Summary 10-90s'!A56,C33&","&D33&":"&'LCOE Summary 10-90s'!A56),"") -> 3a:Geofluid Heat Exchanger Cost | F33: =IF(A33=0,IF('LCOE Summary 10-90s'!G56<'LCOE Summary 10-90s'!H56,'LCOE Summary 10-90s'!G56,'LCOE Summary 10-90s'!H56),"") -> 32.02434364 | G33: 0 | H33: =IF(A33=0,'LCOE Summary 10-90s'!D56,"") -> 0.5 | I33: =IF(A33=0,ABS('LCOE Summary 10-90s'!G56-'LCOE Summary 10-90s'!H56),"") -> 0.4533415752 | J33: =IF(A33=0,'LCOE Summary 10-90s'!C56,"") -> 1 | K33: 0 | L33: =IF(A33=0,'LCOE Summary 10-90s'!E56,"") -> 2 | M33: =IF(A33=0,'LCOE Summary 10-90s'!I56-'LCOE Summary 10-90s'!G56,"") -> 0.89224957 | N33: 0 | O33: =IF(A33=0,IF('LCOE Summary 10-90s'!G56-'LCOE Summary 10-90s'!H56<0,MAX(ABS(I33),ABS(M33)),I33+M33),-0.00001) -> 1.345591145 | Q33: 31 | R33: 20
A34: =IF(OR(AND(ISBLANK('LCOE Summary 10-90s'!R45),ISBLANK('LCOE Summary 10-90s'!S45)),OR('LCOE Summary 10-90s'!R45='LCOE Summary 10-90s'!$R$3,'LCOE Summary 10-90s'!S45='LCOE Summary 10-90s'!$S$3)),0,"x") -> 0 | B34: ='LCOE Summary 10-90s'!B45 -> 40 | C34: ='LCOE Summary 10-90s'!N45 -> 4b | D34: =IF(ISBLANK('LCOE Summary 10-90s'!O45),"",'LCOE Summary 10-90s'!O45) ->  | E34: =IF(A34=0,IF(ISBLANK('LCOE Summary 10-90s'!O45),C34&":"&'LCOE Summary 10-90s'!A45,C34&","&D34&":"&'LCOE Summary 10-90s'!A45),"") -> 4b:Geothermal Production Pump Life | F34: =IF(A34=0,IF('LCOE Summary 10-90s'!G45<'LCOE Summary 10-90s'!H45,'LCOE Summary 10-90s'!G45,'LCOE Summary 10-90s'!H45),"") -> 32.26696193 | G34: 0 | H34: =IF(A34=0,'LCOE Summary 10-90s'!D45,"") -> 5 | I34: =IF(A34=0,ABS('LCOE Summary 10-90s'!G45-'LCOE Summary 10-90s'!H45),"") -> 0.2107232917 | J34: =IF(A34=0,'LCOE Summary 10-90s'!C45,"") -> 3 | K34: 0 | L34: =IF(A34=0,'LCOE Summary 10-90s'!E45,"") -> 1 | M34: =IF(A34=0,'LCOE Summary 10-90s'!I45-'LCOE Summary 10-90s'!G45,"") -> 1.04022645 | N34: 0 | O34: =IF(A34=0,IF('LCOE Summary 10-90s'!G45-'LCOE Summary 10-90s'!H45<0,MAX(ABS(I34),ABS(M34)),I34+M34),-0.00001) -> 1.250949742 | Q34: 32 | R34: 8
A35: =IF(OR(AND(ISBLANK('LCOE Summary 10-90s'!R39),ISBLANK('LCOE Summary 10-90s'!S39)),OR('LCOE Summary 10-90s'!R39='LCOE Summary 10-90s'!$R$3,'LCOE Summary 10-90s'!S39='LCOE Summary 10-90s'!$S$3)),0,"x") -> 0 | B35: ='LCOE Summary 10-90s'!B39 -> 34 | C35: ='LCOE Summary 10-90s'!N39 -> 4b | D35: =IF(ISBLANK('LCOE Summary 10-90s'!O39),"",'LCOE Summary 10-90s'!O39) ->  | E35: =IF(A35=0,IF(ISBLANK('LCOE Summary 10-90s'!O39),C35&":"&'LCOE Summary 10-90s'!A39,C35&","&D35&":"&'LCOE Summary 10-90s'!A39),"") -> 4b:Production Pump Cost | F35: =IF(A35=0,IF('LCOE Summary 10-90s'!G39<'LCOE Summary 10-90s'!H39,'LCOE Summary 10-90s'!G39,'LCOE Summary 10-90s'!H39),"") -> 32.24676704 | G35: 0 | H35: =IF(A35=0,'LCOE Summary 10-90s'!D39,"") -> 0.7 | I35: =IF(A35=0,ABS('LCOE Summary 10-90s'!G39-'LCOE Summary 10-90s'!H39),"") -> 0.2309181756 | J35: =IF(A35=0,'LCOE Summary 10-90s'!C39,"") -> 1 | K35: 0 | L35: =IF(A35=0,'LCOE Summary 10-90s'!E39,"") -> 2 | M35: =IF(A35=0,'LCOE Summary 10-90s'!I39-'LCOE Summary 10-90s'!G39,"") -> 0.7603057691 | N35: 0 | O35: =IF(A35=0,IF('LCOE Summary 10-90s'!G39-'LCOE Summary 10-90s'!H39<0,MAX(ABS(I35),ABS(M35)),I35+M35),-0.00001) -> 0.9912239447 | Q35: 33 | R35: 1
A36: =IF(OR(AND(ISBLANK('LCOE Summary 10-90s'!R25),ISBLANK('LCOE Summary 10-90s'!S25)),OR('LCOE Summary 10-90s'!R25='LCOE Summary 10-90s'!$R$3,'LCOE Summary 10-90s'!S25='LCOE Summary 10-90s'!$S$3)),0,"x") -> 0 | B36: ='LCOE Summary 10-90s'!B25 -> 20 | C36: ='LCOE Summary 10-90s'!N25 -> 2b | D36: =IF(ISBLANK('LCOE Summary 10-90s'!O25),"",'LCOE Summary 10-90s'!O25) ->  | E36: =IF(A36=0,IF(ISBLANK('LCOE Summary 10-90s'!O25),C36&":"&'LCOE Summary 10-90s'!A25,C36&","&D36&":"&'LCOE Summary 10-90s'!A25),"") -> 2b:Drilling Success Rate During Final Well Field Development | F36: =IF(A36=0,IF('LCOE Summary 10-90s'!G25<'LCOE Summary 10-90s'!H25,'LCOE Summary 10-90s'!G25,'LCOE Summary 10-90s'!H25),"") -> 32.17308958 | G36: 0 | H36: =IF(A36=0,'LCOE Summary 10-90s'!D25,"") -> 0.9 | I36: =IF(A36=0,ABS('LCOE Summary 10-90s'!G25-'LCOE Summary 10-90s'!H25),"") -> 0.3045956373 | J36: =IF(A36=0,'LCOE Summary 10-90s'!C25,"") -> 0.8 | K36: 0 | L36: =IF(A36=0,'LCOE Summary 10-90s'!E25,"") -> 0.6 | M36: =IF(A36=0,'LCOE Summary 10-90s'!I25-'LCOE Summary 10-90s'!G25,"") -> 0.5928932398 | N36: 0 | O36: =IF(A36=0,IF('LCOE Summary 10-90s'!G25-'LCOE Summary 10-90s'!H25<0,MAX(ABS(I36),ABS(M36)),I36+M36),-0.00001) -> 0.8974888771 | Q36: 34 | R36: -14
A37: =IF(OR(AND(ISBLANK('LCOE Summary 10-90s'!R19),ISBLANK('LCOE Summary 10-90s'!S19)),OR('LCOE Summary 10-90s'!R19='LCOE Summary 10-90s'!$R$3,'LCOE Summary 10-90s'!S19='LCOE Summary 10-90s'!$S$3)),0,"x") -> 0 | B37: ='LCOE Summary 10-90s'!B19 -> 14 | C37: ='LCOE Summary 10-90s'!N19 -> 5b | D37: =IF(ISBLANK('LCOE Summary 10-90s'!O19),"",'LCOE Summary 10-90s'!O19) ->  | E37: =IF(A37=0,IF(ISBLANK('LCOE Summary 10-90s'!O19),C37&":"&'LCOE Summary 10-90s'!A19,C37&","&D37&":"&'LCOE Summary 10-90s'!A19),"") -> 5b:Leasing Cost | F37: =IF(A37=0,IF('LCOE Summary 10-90s'!G19<'LCOE Summary 10-90s'!H19,'LCOE Summary 10-90s'!G19,'LCOE Summary 10-90s'!H19),"") -> 32.45518315 | G37: 0 | H37: =IF(A37=0,'LCOE Summary 10-90s'!D19,"") -> 2 | I37: =IF(A37=0,ABS('LCOE Summary 10-90s'!G19-'LCOE Summary 10-90s'!H19),"") -> 0.02250206348 | J37: =IF(A37=0,'LCOE Summary 10-90s'!C19,"") -> 30 | K37: 0 | L37: =IF(A37=0,'LCOE Summary 10-90s'!E19,"") -> 1000 | M37: =IF(A37=0,'LCOE Summary 10-90s'!I19-'LCOE Summary 10-90s'!G19,"") -> 0.7694744096 | N37: 0 | O37: =IF(A37=0,IF('LCOE Summary 10-90s'!G19-'LCOE Summary 10-90s'!H19<0,MAX(ABS(I37),ABS(M37)),I37+M37),-0.00001) -> 0.7919764731 | Q37: 35 | R37: -21
A38: =IF(OR(AND(ISBLANK('LCOE Summary 10-90s'!R61),ISBLANK('LCOE Summary 10-90s'!S61)),OR('LCOE Summary 10-90s'!R61='LCOE Summary 10-90s'!$R$3,'LCOE Summary 10-90s'!S61='LCOE Summary 10-90s'!$S$3)),0,"x") -> 0 | B38: ='LCOE Summary 10-90s'!B61 -> 56 | C38: ='LCOE Summary 10-90s'!N61 -> 3d | D38: =IF(ISBLANK('LCOE Summary 10-90s'!O61),"",'LCOE Summary 10-90s'!O61) ->  | E38: =IF(A38=0,IF(ISBLANK('LCOE Summary 10-90s'!O61),C38&":"&'LCOE Summary 10-90s'!A61,C38&","&D38&":"&'LCOE Summary 10-90s'!A61),"") -> 3d:Indirect Plant Construction Cost % | F38: =IF(A38=0,IF('LCOE Summary 10-90s'!G61<'LCOE Summary 10-90s'!H61,'LCOE Summary 10-90s'!G61,'LCOE Summary 10-90s'!H61),"") -> 31.95174402 | G38: 0 | H38: =IF(A38=0,'LCOE Summary 10-90s'!D61,"") -> 0.06 | I38: =IF(A38=0,ABS('LCOE Summary 10-90s'!G61-'LCOE Summary 10-90s'!H61),"") -> 0.5259411984 | J38: =IF(A38=0,'LCOE Summary 10-90s'!C61,"") -> 0.12 | K38: 0 | L38: =IF(A38=0,'LCOE Summary 10-90s'!E61,"") -> 0.15 | M38: =IF(A38=0,'LCOE Summary 10-90s'!I61-'LCOE Summary 10-90s'!G61,"") -> 0.2604154474 | N38: 0 | O38: =IF(A38=0,IF('LCOE Summary 10-90s'!G61-'LCOE Summary 10-90s'!H61<0,MAX(ABS(I38),ABS(M38)),I38+M38),-0.00001) -> 0.7863566458 | Q38: 36 | R38: 20
A39: =IF(OR(AND(ISBLANK('LCOE Summary 10-90s'!R44),ISBLANK('LCOE Summary 10-90s'!S44)),OR('LCOE Summary 10-90s'!R44='LCOE Summary 10-90s'!$R$3,'LCOE Summary 10-90s'!S44='LCOE Summary 10-90s'!$S$3)),0,"x") -> 0 | B39: ='LCOE Summary 10-90s'!B44 -> 39 | C39: ='LCOE Summary 10-90s'!N44 -> 4a | D39: =IF(ISBLANK('LCOE Summary 10-90s'!O44),"",'LCOE Summary 10-90s'!O44) ->  | E39: =IF(A39=0,IF(ISBLANK('LCOE Summary 10-90s'!O44),C39&":"&'LCOE Summary 10-90s'!A44,C39&","&D39&":"&'LCOE Summary 10-90s'!A44),"") -> 4a:Plant Annual Maintenance (non-labor) | F39: =IF(A39=0,IF('LCOE Summary 10-90s'!G44<'LCOE Summary 10-90s'!H44,'LCOE Summary 10-90s'!G44,'LCOE Summary 10-90s'!H44),"") -> 32.0349635 | G39: 0 | H39: =IF(A39=0,'LCOE Summary 10-90s'!D44,"") -> 0.012 | I39: =IF(A39=0,ABS('LCOE Summary 10-90s'!G44-'LCOE Summary 10-90s'!H44),"") -> 0.4427217226 | J39: =IF(A39=0,'LCOE Summary 10-90s'!C44,"") -> 0.018 | K39: 0 | L39: =IF(A39=0,'LCOE Summary 10-90s'!E44,"") -> 0.022 | M39: =IF(A39=0,'LCOE Summary 10-90s'!I44-'LCOE Summary 10-90s'!G44,"") -> 0.2923999488 | N39: 0 | O39: =IF(A39=0,IF('LCOE Summary 10-90s'!G44-'LCOE Summary 10-90s'!H44<0,MAX(ABS(I39),ABS(M39)),I39+M39),-0.00001) -> 0.7351216714 | Q39: 37 | R39: 2
A40: =IF(OR(AND(ISBLANK('LCOE Summary 10-90s'!R42),ISBLANK('LCOE Summary 10-90s'!S42)),OR('LCOE Summary 10-90s'!R42='LCOE Summary 10-90s'!$R$3,'LCOE Summary 10-90s'!S42='LCOE Summary 10-90s'!$S$3)),0,"x") -> 0 | B40: ='LCOE Summary 10-90s'!B42 -> 37 | C40: ='LCOE Summary 10-90s'!N42 -> 4a | D40: =IF(ISBLANK('LCOE Summary 10-90s'!O42),"",'LCOE Summary 10-90s'!O42) -> 4b | E40: =IF(A40=0,IF(ISBLANK('LCOE Summary 10-90s'!O42),C40&":"&'LCOE Summary 10-90s'!A42,C40&","&D40&":"&'LCOE Summary 10-90s'!A42),"") -> 4a,4b:Adjustment to Staff | F40: =IF(A40=0,IF('LCOE Summary 10-90s'!G42<'LCOE Summary 10-90s'!H42,'LCOE Summary 10-90s'!G42,'LCOE Summary 10-90s'!H42),"") -> 32.26629362 | G40: 0 | H40: =IF(A40=0,'LCOE Summary 10-90s'!D42,"") -> 0.75 | I40: =IF(A40=0,ABS('LCOE Summary 10-90s'!G42-'LCOE Summary 10-90s'!H42),"") -> 0.2113915967 | J40: =IF(A40=0,'LCOE Summary 10-90s'!C42,"") -> 1 | K40: 0 | L40: =IF(A40=0,'LCOE Summary 10-90s'!E42,"") -> 1.5 | M40: =IF(A40=0,'LCOE Summary 10-90s'!I42-'LCOE Summary 10-90s'!G42,"") -> 0.4222009916 | N40: 0 | O40: =IF(A40=0,IF('LCOE Summary 10-90s'!G42-'LCOE Summary 10-90s'!H42<0,MAX(ABS(I40),ABS(M40)),I40+M40),-0.00001) -> 0.6335925883 | Q40: 38 | R40: -1
A41: =IF(OR(AND(ISBLANK('LCOE Summary 10-90s'!R38),ISBLANK('LCOE Summary 10-90s'!S38)),OR('LCOE Summary 10-90s'!R38='LCOE Summary 10-90s'!$R$3,'LCOE Summary 10-90s'!S38='LCOE Summary 10-90s'!$S$3)),0,"x") -> 0 | B41: ='LCOE Summary 10-90s'!B38 -> 33 | C41: ='LCOE Summary 10-90s'!N38 -> 2b | D41: =IF(ISBLANK('LCOE Summary 10-90s'!O38),"",'LCOE Summary 10-90s'!O38) ->  | E41: =IF(A41=0,IF(ISBLANK('LCOE Summary 10-90s'!O38),C41&":"&'LCOE Summary 10-90s'!A38,C41&","&D41&":"&'LCOE Summary 10-90s'!A38),"") -> 2b:Hole or Casing Diameter in Production Interval | F41: =IF(A41=0,IF('LCOE Summary 10-90s'!G38<'LCOE Summary 10-90s'!H38,'LCOE Summary 10-90s'!G38,'LCOE Summary 10-90s'!H38),"") -> 32.43893206 | G41: 0 | H41: =IF(A41=0,'LCOE Summary 10-90s'!D38,"") -> 14.5 | I41: =IF(A41=0,ABS('LCOE Summary 10-90s'!G38-'LCOE Summary 10-90s'!H38),"") -> 0.03875316021 | J41: =IF(A41=0,'LCOE Summary 10-90s'!C38,"") -> default | K41: 0 | L41: =IF(A41=0,'LCOE Summary 10-90s'!E38,"") -> 8.25 | M41: =IF(A41=0,'LCOE Summary 10-90s'!I38-'LCOE Summary 10-90s'!G38,"") -> 0.459996556 | N41: 0 | O41: =IF(A41=0,IF('LCOE Summary 10-90s'!G38-'LCOE Summary 10-90s'!H38<0,MAX(ABS(I41),ABS(M41)),I41+M41),-0.00001) -> 0.4987497162 | Q41: 39 | R41: -6
A42: =IF(OR(AND(ISBLANK('LCOE Summary 10-90s'!R41),ISBLANK('LCOE Summary 10-90s'!S41)),OR('LCOE Summary 10-90s'!R41='LCOE Summary 10-90s'!$R$3,'LCOE Summary 10-90s'!S41='LCOE Summary 10-90s'!$S$3)),0,"x") -> 0 | B42: ='LCOE Summary 10-90s'!B41 -> 36 | C42: ='LCOE Summary 10-90s'!N41 -> 4a | D42: =IF(ISBLANK('LCOE Summary 10-90s'!O41),"",'LCOE Summary 10-90s'!O41) -> 4b | E42: =IF(A42=0,IF(ISBLANK('LCOE Summary 10-90s'!O41),C42&":"&'LCOE Summary 10-90s'!A41,C42&","&D42&":"&'LCOE Summary 10-90s'!A41),"") -> 4a,4b:Labor Rate Multiplier (for Benefits, Overhead,, G&A) | F42: =IF(A42=0,IF('LCOE Summary 10-90s'!G41<'LCOE Summary 10-90s'!H41,'LCOE Summary 10-90s'!G41,'LCOE Summary 10-90s'!H41),"") -> 32.19587846 | G42: 0 | H42: =IF(A42=0,'LCOE Summary 10-90s'!D41,"") -> 1.2 | I42: =IF(A42=0,ABS('LCOE Summary 10-90s'!G41-'LCOE Summary 10-90s'!H41),"") -> 0.2818067617 | J42: =IF(A42=0,'LCOE Summary 10-90s'!C41,"") -> 1.8 | K42: 0 | L42: =IF(A42=0,'LCOE Summary 10-90s'!E41,"") -> 2.2 | M42: =IF(A42=0,'LCOE Summary 10-90s'!I41-'LCOE Summary 10-90s'!G41,"") -> 0.1875671655 | N42: 0 | O42: =IF(A42=0,IF('LCOE Summary 10-90s'!G41-'LCOE Summary 10-90s'!H41<0,MAX(ABS(I42),ABS(M42)),I42+M42),-0.00001) -> 0.4693739272 | Q42: 40 | R42: -4
A43: =IF(OR(AND(ISBLANK('LCOE Summary 10-90s'!R29),ISBLANK('LCOE Summary 10-90s'!S29)),OR('LCOE Summary 10-90s'!R29='LCOE Summary 10-90s'!$R$3,'LCOE Summary 10-90s'!S29='LCOE Summary 10-90s'!$S$3)),0,"x") -> 0 | B43: ='LCOE Summary 10-90s'!B29 -> 24 | C43: ='LCOE Summary 10-90s'!N29 -> 2b | D43: =IF(ISBLANK('LCOE Summary 10-90s'!O29),"",'LCOE Summary 10-90s'!O29) ->  | E43: =IF(A43=0,IF(ISBLANK('LCOE Summary 10-90s'!O29),C43&":"&'LCOE Summary 10-90s'!A29,C43&","&D43&":"&'LCOE Summary 10-90s'!A29),"") -> 2b:Surface Equipment Cost per Well | F43: =IF(A43=0,IF('LCOE Summary 10-90s'!G29<'LCOE Summary 10-90s'!H29,'LCOE Summary 10-90s'!G29,'LCOE Summary 10-90s'!H29),"") -> 32.37711862 | G43: 0 | H43: =IF(A43=0,'LCOE Summary 10-90s'!D29,"") -> 100000 | I43: =IF(A43=0,ABS('LCOE Summary 10-90s'!G29-'LCOE Summary 10-90s'!H29),"") -> 0.100566596 | J43: =IF(A43=0,'LCOE Summary 10-90s'!C29,"") -> 200000 | K43: 0 | L43: =IF(A43=0,'LCOE Summary 10-90s'!E29,"") -> 400000 | M43: =IF(A43=0,'LCOE Summary 10-90s'!I29-'LCOE Summary 10-90s'!G29,"") -> 0.1997903702 | N43: 0 | O43: =IF(A43=0,IF('LCOE Summary 10-90s'!G29-'LCOE Summary 10-90s'!H29<0,MAX(ABS(I43),ABS(M43)),I43+M43),-0.00001) -> 0.3003569662 | Q43: 41 | R43: -17
A44: =IF(OR(AND(ISBLANK('LCOE Summary 10-90s'!R13),ISBLANK('LCOE Summary 10-90s'!S13)),OR('LCOE Summary 10-90s'!R13='LCOE Summary 10-90s'!$R$3,'LCOE Summary 10-90s'!S13='LCOE Summary 10-90s'!$S$3)),0,"x") -> 0 | B44: ='LCOE Summary 10-90s'!B13 -> 8 | C44: ='LCOE Summary 10-90s'!N13 -> 2b | D44: =IF(ISBLANK('LCOE Summary 10-90s'!O13),"",'LCOE Summary 10-90s'!O13) ->  | E44: =IF(A44=0,IF(ISBLANK('LCOE Summary 10-90s'!O13),C44&":"&'LCOE Summary 10-90s'!A13,C44&","&D44&":"&'LCOE Summary 10-90s'!A13),"") -> 2b:Duration of Well Field Development Phase | F44: =IF(A44=0,IF('LCOE Summary 10-90s'!G13<'LCOE Summary 10-90s'!H13,'LCOE Summary 10-90s'!G13,'LCOE Summary 10-90s'!H13),"") -> 32.19081169 | G44: 0 | H44: =IF(A44=0,'LCOE Summary 10-90s'!D13,"") -> 1 | I44: =IF(A44=0,ABS('LCOE Summary 10-90s'!G13-'LCOE Summary 10-90s'!H13),"") -> 0.2868735258 | J44: =IF(A44=0,'LCOE Summary 10-90s'!C13,"") -> 1.5 | K44: 0 | L44: =IF(A44=0,'LCOE Summary 10-90s'!E13,"") -> 2 | M44: =IF(A44=0,'LCOE Summary 10-90s'!I13-'LCOE Summary 10-90s'!G13,"") -> -0.0001653481039 | N44: 0 | O44: =IF(A44=0,IF('LCOE Summary 10-90s'!G13-'LCOE Summary 10-90s'!H13<0,MAX(ABS(I44),ABS(M44)),I44+M44),-0.00001) -> 0.2867081777 | Q44: 42 | R44: -34
A45: =IF(OR(AND(ISBLANK('LCOE Summary 10-90s'!R30),ISBLANK('LCOE Summary 10-90s'!S30)),OR('LCOE Summary 10-90s'!R30='LCOE Summary 10-90s'!$R$3,'LCOE Summary 10-90s'!S30='LCOE Summary 10-90s'!$S$3)),0,"x") -> 0 | B45: ='LCOE Summary 10-90s'!B30 -> 25 | C45: ='LCOE Summary 10-90s'!N30 -> 5b | D45: =IF(ISBLANK('LCOE Summary 10-90s'!O30),"",'LCOE Summary 10-90s'!O30) ->  | E45: =IF(A45=0,IF(ISBLANK('LCOE Summary 10-90s'!O30),C45&":"&'LCOE Summary 10-90s'!A30,C45&","&D45&":"&'LCOE Summary 10-90s'!A30),"") -> 5b:Permitting (Utilization Plan) for Field and Plant | F45: =IF(A45=0,IF('LCOE Summary 10-90s'!G30<'LCOE Summary 10-90s'!H30,'LCOE Summary 10-90s'!G30,'LCOE Summary 10-90s'!H30),"") -> 32.40933478 | G45: 0 | H45: =IF(A45=0,'LCOE Summary 10-90s'!D30,"") -> 500000 | I45: =IF(A45=0,ABS('LCOE Summary 10-90s'!G30-'LCOE Summary 10-90s'!H30),"") -> 0.06835043516 | J45: =IF(A45=0,'LCOE Summary 10-90s'!C30,"") -> 1000000 | K45: 0 | L45: =IF(A45=0,'LCOE Summary 10-90s'!E30,"") -> 2000000 | M45: =IF(A45=0,'LCOE Summary 10-90s'!I30-'LCOE Summary 10-90s'!G30,"") -> 0.1362042872 | N45: 0 | O45: =IF(A45=0,IF('LCOE Summary 10-90s'!G30-'LCOE Summary 10-90s'!H30<0,MAX(ABS(I45),ABS(M45)),I45+M45),-0.00001) -> 0.2045547223 | Q45: 43 | R45: -18
A46: =IF(OR(AND(ISBLANK('LCOE Summary 10-90s'!R24),ISBLANK('LCOE Summary 10-90s'!S24)),OR('LCOE Summary 10-90s'!R24='LCOE Summary 10-90s'!$R$3,'LCOE Summary 10-90s'!S24='LCOE Summary 10-90s'!$S$3)),0,"x") -> 0 | B46: ='LCOE Summary 10-90s'!B24 -> 19 | C46: ='LCOE Summary 10-90s'!N24 -> 2a | D46: =IF(ISBLANK('LCOE Summary 10-90s'!O24),"",'LCOE Summary 10-90s'!O24) ->  | E46: =IF(A46=0,IF(ISBLANK('LCOE Summary 10-90s'!O24),C46&":"&'LCOE Summary 10-90s'!A24,C46&","&D46&":"&'LCOE Summary 10-90s'!A24),"") -> 2a:Confirmation Well Simulation Cost | F46: =IF(A46=0,IF('LCOE Summary 10-90s'!G24<'LCOE Summary 10-90s'!H24,'LCOE Summary 10-90s'!G24,'LCOE Summary 10-90s'!H24),"") -> 32.47751987 | G46: 0 | H46: =IF(A46=0,'LCOE Summary 10-90s'!D24,"") -> 0 | I46: =IF(A46=0,ABS('LCOE Summary 10-90s'!G24-'LCOE Summary 10-90s'!H24),"") -> 0.0001653481039 | J46: =IF(A46=0,'LCOE Summary 10-90s'!C24,"") -> 0 | K46: 0 | L46: =IF(A46=0,'LCOE Summary 10-90s'!E24,"") -> 0 | M46: =IF(A46=0,'LCOE Summary 10-90s'!I24-'LCOE Summary 10-90s'!G24,"") -> -0.0001653481039 | N46: 0 | O46: =IF(A46=0,IF('LCOE Summary 10-90s'!G24-'LCOE Summary 10-90s'!H24<0,MAX(ABS(I46),ABS(M46)),I46+M46),-0.00001) -> 7.105427358e-15 | Q46: 44 | R46: -25
A47: =IF(OR(AND(ISBLANK('LCOE Summary 10-90s'!R9),ISBLANK('LCOE Summary 10-90s'!S9)),OR('LCOE Summary 10-90s'!R9='LCOE Summary 10-90s'!$R$3,'LCOE Summary 10-90s'!S9='LCOE Summary 10-90s'!$S$3)),0,"x") -> 0 | B47: ='LCOE Summary 10-90s'!B9 -> 4 | C47: ='LCOE Summary 10-90s'!N9 -> 6a | D47: =IF(ISBLANK('LCOE Summary 10-90s'!O9),"",'LCOE Summary 10-90s'!O9) ->  | E47: =IF(A47=0,IF(ISBLANK('LCOE Summary 10-90s'!O9),C47&":"&'LCOE Summary 10-90s'!A9,C47&","&D47&":"&'LCOE Summary 10-90s'!A9),"") -> 6a:Project Life | F47: =IF(A47=0,IF('LCOE Summary 10-90s'!G9<'LCOE Summary 10-90s'!H9,'LCOE Summary 10-90s'!G9,'LCOE Summary 10-90s'!H9),"") -> 32.47751987 | G47: 0 | H47: =IF(A47=0,'LCOE Summary 10-90s'!D9,"") -> 30 | I47: =IF(A47=0,ABS('LCOE Summary 10-90s'!G9-'LCOE Summary 10-90s'!H9),"") -> 0.0001653481039 | J47: =IF(A47=0,'LCOE Summary 10-90s'!C9,"") -> 30 | K47: 0 | L47: =IF(A47=0,'LCOE Summary 10-90s'!E9,"") -> 30 | M47: =IF(A47=0,'LCOE Summary 10-90s'!I9-'LCOE Summary 10-90s'!G9,"") -> -0.0001653481039 | N47: 0 | O47: =IF(A47=0,IF('LCOE Summary 10-90s'!G9-'LCOE Summary 10-90s'!H9<0,MAX(ABS(I47),ABS(M47)),I47+M47),-0.00001) -> 7.105427358e-15 | Q47: 45 | R47: -41
A48: =IF(OR(AND(ISBLANK('LCOE Summary 10-90s'!R10),ISBLANK('LCOE Summary 10-90s'!S10)),OR('LCOE Summary 10-90s'!R10='LCOE Summary 10-90s'!$R$3,'LCOE Summary 10-90s'!S10='LCOE Summary 10-90s'!$S$3)),0,"x") -> 0 | B48: ='LCOE Summary 10-90s'!B10 -> 5 | C48: ='LCOE Summary 10-90s'!N10 -> 6a | D48: =IF(ISBLANK('LCOE Summary 10-90s'!O10),"",'LCOE Summary 10-90s'!O10) ->  | E48: =IF(A48=0,IF(ISBLANK('LCOE Summary 10-90s'!O10),C48&":"&'LCOE Summary 10-90s'!A10,C48&","&D48&":"&'LCOE Summary 10-90s'!A10),"") -> 6a:Fixed Charge Rate | F48: =IF(A48=0,IF('LCOE Summary 10-90s'!G10<'LCOE Summary 10-90s'!H10,'LCOE Summary 10-90s'!G10,'LCOE Summary 10-90s'!H10),"") -> 32.47751987 | G48: 0 | H48: =IF(A48=0,'LCOE Summary 10-90s'!D10,"") -> 0.09 | I48: =IF(A48=0,ABS('LCOE Summary 10-90s'!G10-'LCOE Summary 10-90s'!H10),"") -> 0.0001653481039 | J48: =IF(A48=0,'LCOE Summary 10-90s'!C10,"") -> 0.108 | K48: 0 | L48: =IF(A48=0,'LCOE Summary 10-90s'!E10,"") -> 0.13 | M48: =IF(A48=0,'LCOE Summary 10-90s'!I10-'LCOE Summary 10-90s'!G10,"") -> -0.0001653481039 | N48: 0 | O48: =IF(A48=0,IF('LCOE Summary 10-90s'!G10-'LCOE Summary 10-90s'!H10<0,MAX(ABS(I48),ABS(M48)),I48+M48),-0.00001) -> 7.105427358e-15 | Q48: 46 | R48: -41
A49: =IF(OR(AND(ISBLANK('LCOE Summary 10-90s'!R36),ISBLANK('LCOE Summary 10-90s'!S36)),OR('LCOE Summary 10-90s'!R36='LCOE Summary 10-90s'!$R$3,'LCOE Summary 10-90s'!S36='LCOE Summary 10-90s'!$S$3)),0,"x") -> 0 | B49: ='LCOE Summary 10-90s'!B36 -> 31 | C49: ='LCOE Summary 10-90s'!N36 -> 4b | D49: =IF(ISBLANK('LCOE Summary 10-90s'!O36),"",'LCOE Summary 10-90s'!O36) ->  | E49: =IF(A49=0,IF(ISBLANK('LCOE Summary 10-90s'!O36),C49&":"&'LCOE Summary 10-90s'!A36,C49&","&D49&":"&'LCOE Summary 10-90s'!A36),"") -> 4b:Make-up Water Cost ($/acre-ft) | F49: =IF(A49=0,IF('LCOE Summary 10-90s'!G36<'LCOE Summary 10-90s'!H36,'LCOE Summary 10-90s'!G36,'LCOE Summary 10-90s'!H36),"") -> 32.47751987 | G49: 0 | H49: =IF(A49=0,'LCOE Summary 10-90s'!D36,"") -> 0 | I49: =IF(A49=0,ABS('LCOE Summary 10-90s'!G36-'LCOE Summary 10-90s'!H36),"") -> 0.0001653481039 | J49: =IF(A49=0,'LCOE Summary 10-90s'!C36,"") -> 0 | K49: 0 | L49: =IF(A49=0,'LCOE Summary 10-90s'!E36,"") -> 0 | M49: =IF(A49=0,'LCOE Summary 10-90s'!I36-'LCOE Summary 10-90s'!G36,"") -> -0.0001653481039 | N49: 0 | O49: =IF(A49=0,IF('LCOE Summary 10-90s'!G36-'LCOE Summary 10-90s'!H36<0,MAX(ABS(I49),ABS(M49)),I49+M49),-0.00001) -> 0 | Q49: 47 | R49: -16
A50: =IF(OR(AND(ISBLANK('LCOE Summary 10-90s'!R32),ISBLANK('LCOE Summary 10-90s'!S32)),OR('LCOE Summary 10-90s'!R32='LCOE Summary 10-90s'!$R$3,'LCOE Summary 10-90s'!S32='LCOE Summary 10-90s'!$S$3)),0,"x") -> 0 | B50: ='LCOE Summary 10-90s'!B32 -> 27 | C50: ='LCOE Summary 10-90s'!N32 -> 2a | D50: =IF(ISBLANK('LCOE Summary 10-90s'!O32),"",'LCOE Summary 10-90s'!O32) ->  | E50: =IF(A50=0,IF(ISBLANK('LCOE Summary 10-90s'!O32),C50&":"&'LCOE Summary 10-90s'!A32,C50&","&D50&":"&'LCOE Summary 10-90s'!A32),"") -> 2a:Production/Injection Well Stimulation Cost | F50: =IF(A50=0,IF('LCOE Summary 10-90s'!G32<'LCOE Summary 10-90s'!H32,'LCOE Summary 10-90s'!G32,'LCOE Summary 10-90s'!H32),"") -> 32.47751987 | G50: 0 | H50: =IF(A50=0,'LCOE Summary 10-90s'!D32,"") -> 0 | I50: =IF(A50=0,ABS('LCOE Summary 10-90s'!G32-'LCOE Summary 10-90s'!H32),"") -> 0.0001653481039 | J50: =IF(A50=0,'LCOE Summary 10-90s'!C32,"") -> 0 | K50: 0 | L50: =IF(A50=0,'LCOE Summary 10-90s'!E32,"") -> 0 | M50: =IF(A50=0,'LCOE Summary 10-90s'!I32-'LCOE Summary 10-90s'!G32,"") -> -0.0001653481039 | N50: 0 | O50: =IF(A50=0,IF('LCOE Summary 10-90s'!G32-'LCOE Summary 10-90s'!H32<0,MAX(ABS(I50),ABS(M50)),I50+M50),-0.00001) -> 0 | Q50: 48 | R50: -21
A51: =IF(OR(AND(ISBLANK('LCOE Summary 10-90s'!R35),ISBLANK('LCOE Summary 10-90s'!S35)),OR('LCOE Summary 10-90s'!R35='LCOE Summary 10-90s'!$R$3,'LCOE Summary 10-90s'!S35='LCOE Summary 10-90s'!$S$3)),0,"x") -> x | B51: ='LCOE Summary 10-90s'!B35 -> 30 | C51: ='LCOE Summary 10-90s'!N35 -> 2a | D51: =IF(ISBLANK('LCOE Summary 10-90s'!O35),"",'LCOE Summary 10-90s'!O35) ->  | E51: =IF(A51=0,IF(ISBLANK('LCOE Summary 10-90s'!O35),C51&":"&'LCOE Summary 10-90s'!A35,C51&","&D51&":"&'LCOE Summary 10-90s'!A35),"") ->  | F51: =IF(A51=0,IF('LCOE Summary 10-90s'!G35<'LCOE Summary 10-90s'!H35,'LCOE Summary 10-90s'!G35,'LCOE Summary 10-90s'!H35),"") ->  | G51: 0 | H51: =IF(A51=0,'LCOE Summary 10-90s'!D35,"") ->  | I51: =IF(A51=0,ABS('LCOE Summary 10-90s'!G35-'LCOE Summary 10-90s'!H35),"") ->  | J51: =IF(A51=0,'LCOE Summary 10-90s'!C35,"") ->  | K51: 0 | L51: =IF(A51=0,'LCOE Summary 10-90s'!E35,"") ->  | M51: =IF(A51=0,'LCOE Summary 10-90s'!I35-'LCOE Summary 10-90s'!G35,"") ->  | N51: 0 | O51: =IF(A51=0,IF('LCOE Summary 10-90s'!G35-'LCOE Summary 10-90s'!H35<0,MAX(ABS(I51),ABS(M51)),I51+M51),-0.00001) -> -1e-05 | Q51: 49 | R51: -19
A52: =IF(OR(AND(ISBLANK('LCOE Summary 10-90s'!R48),ISBLANK('LCOE Summary 10-90s'!S48)),OR('LCOE Summary 10-90s'!R48='LCOE Summary 10-90s'!$R$3,'LCOE Summary 10-90s'!S48='LCOE Summary 10-90s'!$S$3)),0,"x") -> x | B52: ='LCOE Summary 10-90s'!B48 -> 43 | C52: ='LCOE Summary 10-90s'!N48 -> 3a | D52: =IF(ISBLANK('LCOE Summary 10-90s'!O48),"",'LCOE Summary 10-90s'!O48) ->  | E52: =IF(A52=0,IF(ISBLANK('LCOE Summary 10-90s'!O48),C52&":"&'LCOE Summary 10-90s'!A48,C52&","&D52&":"&'LCOE Summary 10-90s'!A48),"") ->  | F52: =IF(A52=0,IF('LCOE Summary 10-90s'!G48<'LCOE Summary 10-90s'!H48,'LCOE Summary 10-90s'!G48,'LCOE Summary 10-90s'!H48),"") ->  | G52: 0 | H52: =IF(A52=0,'LCOE Summary 10-90s'!D48,"") ->  | I52: =IF(A52=0,ABS('LCOE Summary 10-90s'!G48-'LCOE Summary 10-90s'!H48),"") ->  | J52: =IF(A52=0,'LCOE Summary 10-90s'!C48,"") ->  | K52: 0 | L52: =IF(A52=0,'LCOE Summary 10-90s'!E48,"") ->  | M52: =IF(A52=0,'LCOE Summary 10-90s'!I48-'LCOE Summary 10-90s'!G48,"") ->  | N52: 0 | O52: =IF(A52=0,IF('LCOE Summary 10-90s'!G48-'LCOE Summary 10-90s'!H48<0,MAX(ABS(I52),ABS(M52)),I52+M52),-0.00001) -> -1e-05 | Q52: 50 | R52: -7
A53: =IF(OR(AND(ISBLANK('LCOE Summary 10-90s'!R49),ISBLANK('LCOE Summary 10-90s'!S49)),OR('LCOE Summary 10-90s'!R49='LCOE Summary 10-90s'!$R$3,'LCOE Summary 10-90s'!S49='LCOE Summary 10-90s'!$S$3)),0,"x") -> x | B53: ='LCOE Summary 10-90s'!B49 -> 44 | C53: ='LCOE Summary 10-90s'!N49 -> 3a | D53: =IF(ISBLANK('LCOE Summary 10-90s'!O49),"",'LCOE Summary 10-90s'!O49) ->  | E53: =IF(A53=0,IF(ISBLANK('LCOE Summary 10-90s'!O49),C53&":"&'LCOE Summary 10-90s'!A49,C53&","&D53&":"&'LCOE Summary 10-90s'!A49),"") ->  | F53: =IF(A53=0,IF('LCOE Summary 10-90s'!G49<'LCOE Summary 10-90s'!H49,'LCOE Summary 10-90s'!G49,'LCOE Summary 10-90s'!H49),"") ->  | G53: 0 | H53: =IF(A53=0,'LCOE Summary 10-90s'!D49,"") ->  | I53: =IF(A53=0,ABS('LCOE Summary 10-90s'!G49-'LCOE Summary 10-90s'!H49),"") ->  | J53: =IF(A53=0,'LCOE Summary 10-90s'!C49,"") ->  | K53: 0 | L53: =IF(A53=0,'LCOE Summary 10-90s'!E49,"") ->  | M53: =IF(A53=0,'LCOE Summary 10-90s'!I49-'LCOE Summary 10-90s'!G49,"") ->  | N53: 0 | O53: =IF(A53=0,IF('LCOE Summary 10-90s'!G49-'LCOE Summary 10-90s'!H49<0,MAX(ABS(I53),ABS(M53)),I53+M53),-0.00001) -> -1e-05 | Q53: 51 | R53: -7
A54: =IF(OR(AND(ISBLANK('LCOE Summary 10-90s'!R50),ISBLANK('LCOE Summary 10-90s'!S50)),OR('LCOE Summary 10-90s'!R50='LCOE Summary 10-90s'!$R$3,'LCOE Summary 10-90s'!S50='LCOE Summary 10-90s'!$S$3)),0,"x") -> x | B54: ='LCOE Summary 10-90s'!B50 -> 45 | C54: ='LCOE Summary 10-90s'!N50 -> 3a | D54: =IF(ISBLANK('LCOE Summary 10-90s'!O50),"",'LCOE Summary 10-90s'!O50) ->  | E54: =IF(A54=0,IF(ISBLANK('LCOE Summary 10-90s'!O50),C54&":"&'LCOE Summary 10-90s'!A50,C54&","&D54&":"&'LCOE Summary 10-90s'!A50),"") ->  | F54: =IF(A54=0,IF('LCOE Summary 10-90s'!G50<'LCOE Summary 10-90s'!H50,'LCOE Summary 10-90s'!G50,'LCOE Summary 10-90s'!H50),"") ->  | G54: 0 | H54: =IF(A54=0,'LCOE Summary 10-90s'!D50,"") ->  | I54: =IF(A54=0,ABS('LCOE Summary 10-90s'!G50-'LCOE Summary 10-90s'!H50),"") ->  | J54: =IF(A54=0,'LCOE Summary 10-90s'!C50,"") ->  | K54: 0 | L54: =IF(A54=0,'LCOE Summary 10-90s'!E50,"") ->  | M54: =IF(A54=0,'LCOE Summary 10-90s'!I50-'LCOE Summary 10-90s'!G50,"") ->  | N54: 0 | O54: =IF(A54=0,IF('LCOE Summary 10-90s'!G50-'LCOE Summary 10-90s'!H50<0,MAX(ABS(I54),ABS(M54)),I54+M54),-0.00001) -> -1e-05 | Q54: 52 | R54: -7
A55: =IF(OR(AND(ISBLANK('LCOE Summary 10-90s'!R51),ISBLANK('LCOE Summary 10-90s'!S51)),OR('LCOE Summary 10-90s'!R51='LCOE Summary 10-90s'!$R$3,'LCOE Summary 10-90s'!S51='LCOE Summary 10-90s'!$S$3)),0,"x") -> x | B55: ='LCOE Summary 10-90s'!B51 -> 46 | C55: ='LCOE Summary 10-90s'!N51 -> 3a | D55: =IF(ISBLANK('LCOE Summary 10-90s'!O51),"",'LCOE Summary 10-90s'!O51) ->  | E55: =IF(A55=0,IF(ISBLANK('LCOE Summary 10-90s'!O51),C55&":"&'LCOE Summary 10-90s'!A51,C55&","&D55&":"&'LCOE Summary 10-90s'!A51),"") ->  | F55: =IF(A55=0,IF('LCOE Summary 10-90s'!G51<'LCOE Summary 10-90s'!H51,'LCOE Summary 10-90s'!G51,'LCOE Summary 10-90s'!H51),"") ->  | G55: 0 | H55: =IF(A55=0,'LCOE Summary 10-90s'!D51,"") ->  | I55: =IF(A55=0,ABS('LCOE Summary 10-90s'!G51-'LCOE Summary 10-90s'!H51),"") ->  | J55: =IF(A55=0,'LCOE Summary 10-90s'!C51,"") ->  | K55: 0 | L55: =IF(A55=0,'LCOE Summary 10-90s'!E51,"") ->  | M55: =IF(A55=0,'LCOE Summary 10-90s'!I51-'LCOE Summary 10-90s'!G51,"") ->  | N55: 0 | O55: =IF(A55=0,IF('LCOE Summary 10-90s'!G51-'LCOE Summary 10-90s'!H51<0,MAX(ABS(I55),ABS(M55)),I55+M55),-0.00001) -> -1e-05 | Q55: 53 | R55: -7
A56: =IF(OR(AND(ISBLANK('LCOE Summary 10-90s'!R52),ISBLANK('LCOE Summary 10-90s'!S52)),OR('LCOE Summary 10-90s'!R52='LCOE Summary 10-90s'!$R$3,'LCOE Summary 10-90s'!S52='LCOE Summary 10-90s'!$S$3)),0,"x") -> x | B56: ='LCOE Summary 10-90s'!B52 -> 47 | C56: ='LCOE Summary 10-90s'!N52 -> 3a | D56: =IF(ISBLANK('LCOE Summary 10-90s'!O52),"",'LCOE Summary 10-90s'!O52) ->  | E56: =IF(A56=0,IF(ISBLANK('LCOE Summary 10-90s'!O52),C56&":"&'LCOE Summary 10-90s'!A52,C56&","&D56&":"&'LCOE Summary 10-90s'!A52),"") ->  | F56: =IF(A56=0,IF('LCOE Summary 10-90s'!G52<'LCOE Summary 10-90s'!H52,'LCOE Summary 10-90s'!G52,'LCOE Summary 10-90s'!H52),"") ->  | G56: 0 | H56: =IF(A56=0,'LCOE Summary 10-90s'!D52,"") ->  | I56: =IF(A56=0,ABS('LCOE Summary 10-90s'!G52-'LCOE Summary 10-90s'!H52),"") ->  | J56: =IF(A56=0,'LCOE Summary 10-90s'!C52,"") ->  | K56: 0 | L56: =IF(A56=0,'LCOE Summary 10-90s'!E52,"") ->  | M56: =IF(A56=0,'LCOE Summary 10-90s'!I52-'LCOE Summary 10-90s'!G52,"") ->  | N56: 0 | O56: =IF(A56=0,IF('LCOE Summary 10-90s'!G52-'LCOE Summary 10-90s'!H52<0,MAX(ABS(I56),ABS(M56)),I56+M56),-0.00001) -> -1e-05 | Q56: 54 | R56: -7
A57: =IF(OR(AND(ISBLANK('LCOE Summary 10-90s'!R53),ISBLANK('LCOE Summary 10-90s'!S53)),OR('LCOE Summary 10-90s'!R53='LCOE Summary 10-90s'!$R$3,'LCOE Summary 10-90s'!S53='LCOE Summary 10-90s'!$S$3)),0,"x") -> x | B57: ='LCOE Summary 10-90s'!B53 -> 48 | C57: ='LCOE Summary 10-90s'!N53 -> 3a | D57: =IF(ISBLANK('LCOE Summary 10-90s'!O53),"",'LCOE Summary 10-90s'!O53) ->  | E57: =IF(A57=0,IF(ISBLANK('LCOE Summary 10-90s'!O53),C57&":"&'LCOE Summary 10-90s'!A53,C57&","&D57&":"&'LCOE Summary 10-90s'!A53),"") ->  | F57: =IF(A57=0,IF('LCOE Summary 10-90s'!G53<'LCOE Summary 10-90s'!H53,'LCOE Summary 10-90s'!G53,'LCOE Summary 10-90s'!H53),"") ->  | G57: 0 | H57: =IF(A57=0,'LCOE Summary 10-90s'!D53,"") ->  | I57: =IF(A57=0,ABS('LCOE Summary 10-90s'!G53-'LCOE Summary 10-90s'!H53),"") ->  | J57: =IF(A57=0,'LCOE Summary 10-90s'!C53,"") ->  | K57: 0 | L57: =IF(A57=0,'LCOE Summary 10-90s'!E53,"") ->  | M57: =IF(A57=0,'LCOE Summary 10-90s'!I53-'LCOE Summary 10-90s'!G53,"") ->  | N57: 0 | O57: =IF(A57=0,IF('LCOE Summary 10-90s'!G53-'LCOE Summary 10-90s'!H53<0,MAX(ABS(I57),ABS(M57)),I57+M57),-0.00001) -> -1e-05 | Q57: 55 | R57: -7
A58: =IF(OR(AND(ISBLANK('LCOE Summary 10-90s'!R57),ISBLANK('LCOE Summary 10-90s'!S57)),OR('LCOE Summary 10-90s'!R57='LCOE Summary 10-90s'!$R$3,'LCOE Summary 10-90s'!S57='LCOE Summary 10-90s'!$S$3)),0,"x") -> x | B58: ='LCOE Summary 10-90s'!B57 -> 52 | C58: ='LCOE Summary 10-90s'!N57 -> 3a | D58: =IF(ISBLANK('LCOE Summary 10-90s'!O57),"",'LCOE Summary 10-90s'!O57) ->  | E58: =IF(A58=0,IF(ISBLANK('LCOE Summary 10-90s'!O57),C58&":"&'LCOE Summary 10-90s'!A57,C58&","&D58&":"&'LCOE Summary 10-90s'!A57),"") ->  | F58: =IF(A58=0,IF('LCOE Summary 10-90s'!G57<'LCOE Summary 10-90s'!H57,'LCOE Summary 10-90s'!G57,'LCOE Summary 10-90s'!H57),"") ->  | G58: 0 | H58: =IF(A58=0,'LCOE Summary 10-90s'!D57,"") ->  | I58: =IF(A58=0,ABS('LCOE Summary 10-90s'!G57-'LCOE Summary 10-90s'!H57),"") ->  | J58: =IF(A58=0,'LCOE Summary 10-90s'!C57,"") ->  | K58: 0 | L58: =IF(A58=0,'LCOE Summary 10-90s'!E57,"") ->  | M58: =IF(A58=0,'LCOE Summary 10-90s'!I57-'LCOE Summary 10-90s'!G57,"") ->  | N58: 0 | O58: =IF(A58=0,IF('LCOE Summary 10-90s'!G57-'LCOE Summary 10-90s'!H57<0,MAX(ABS(I58),ABS(M58)),I58+M58),-0.00001) -> -1e-05 | Q58: 56 | R58: -4
A59: =IF(OR(AND(ISBLANK('LCOE Summary 10-90s'!R58),ISBLANK('LCOE Summary 10-90s'!S58)),OR('LCOE Summary 10-90s'!R58='LCOE Summary 10-90s'!$R$3,'LCOE Summary 10-90s'!S58='LCOE Summary 10-90s'!$S$3)),0,"x") -> x | B59: ='LCOE Summary 10-90s'!B58 -> 53 | C59: ='LCOE Summary 10-90s'!N58 -> 3a | D59: =IF(ISBLANK('LCOE Summary 10-90s'!O58),"",'LCOE Summary 10-90s'!O58) ->  | E59: =IF(A59=0,IF(ISBLANK('LCOE Summary 10-90s'!O58),C59&":"&'LCOE Summary 10-90s'!A58,C59&","&D59&":"&'LCOE Summary 10-90s'!A58),"") ->  | F59: =IF(A59=0,IF('LCOE Summary 10-90s'!G58<'LCOE Summary 10-90s'!H58,'LCOE Summary 10-90s'!G58,'LCOE Summary 10-90s'!H58),"") ->  | G59: 0 | H59: =IF(A59=0,'LCOE Summary 10-90s'!D58,"") ->  | I59: =IF(A59=0,ABS('LCOE Summary 10-90s'!G58-'LCOE Summary 10-90s'!H58),"") ->  | J59: =IF(A59=0,'LCOE Summary 10-90s'!C58,"") ->  | K59: 0 | L59: =IF(A59=0,'LCOE Summary 10-90s'!E58,"") ->  | M59: =IF(A59=0,'LCOE Summary 10-90s'!I58-'LCOE Summary 10-90s'!G58,"") ->  | N59: 0 | O59: =IF(A59=0,IF('LCOE Summary 10-90s'!G58-'LCOE Summary 10-90s'!H58<0,MAX(ABS(I59),ABS(M59)),I59+M59),-0.00001) -> -1e-05 | Q59: 57 | R59: -4
A60: =IF(OR(AND(ISBLANK('LCOE Summary 10-90s'!R59),ISBLANK('LCOE Summary 10-90s'!S59)),OR('LCOE Summary 10-90s'!R59='LCOE Summary 10-90s'!$R$3,'LCOE Summary 10-90s'!S59='LCOE Summary 10-90s'!$S$3)),0,"x") -> x | B60: ='LCOE Summary 10-90s'!B59 -> 54 | C60: ='LCOE Summary 10-90s'!N59 -> 3a | D60: =IF(ISBLANK('LCOE Summary 10-90s'!O59),"",'LCOE Summary 10-90s'!O59) ->  | E60: =IF(A60=0,IF(ISBLANK('LCOE Summary 10-90s'!O59),C60&":"&'LCOE Summary 10-90s'!A59,C60&","&D60&":"&'LCOE Summary 10-90s'!A59),"") ->  | F60: =IF(A60=0,IF('LCOE Summary 10-90s'!G59<'LCOE Summary 10-90s'!H59,'LCOE Summary 10-90s'!G59,'LCOE Summary 10-90s'!H59),"") ->  | G60: 0 | H60: =IF(A60=0,'LCOE Summary 10-90s'!D59,"") ->  | I60: =IF(A60=0,ABS('LCOE Summary 10-90s'!G59-'LCOE Summary 10-90s'!H59),"") ->  | J60: =IF(A60=0,'LCOE Summary 10-90s'!C59,"") ->  | K60: 0 | L60: =IF(A60=0,'LCOE Summary 10-90s'!E59,"") ->  | M60: =IF(A60=0,'LCOE Summary 10-90s'!I59-'LCOE Summary 10-90s'!G59,"") ->  | N60: 0 | O60: =IF(A60=0,IF('LCOE Summary 10-90s'!G59-'LCOE Summary 10-90s'!H59<0,MAX(ABS(I60),ABS(M60)),I60+M60),-0.00001) -> -1e-05 | Q60: 58 | R60: -4
D61: =IF(ISBLANK('LCOE Summary 10-90s'!O64),"",'LCOE Summary 10-90s'!O64) ->  | Q61: 59
D62: =IF(ISBLANK('LCOE Summary 10-90s'!O65),"",'LCOE Summary 10-90s'!O65) ->  | Q62: 60
D63: =IF(ISBLANK('LCOE Summary 10-90s'!O66),"",'LCOE Summary 10-90s'!O66) ->  | Q63: 61
D64: =IF(ISBLANK('LCOE Summary 10-90s'!O67),"",'LCOE Summary 10-90s'!O67) ->  | Q64: 62
D65: =IF(ISBLANK('LCOE Summary 10-90s'!O68),"",'LCOE Summary 10-90s'!O68) ->  | Q65: 63
D66: =IF(ISBLANK('LCOE Summary 10-90s'!O69),"",'LCOE Summary 10-90s'!O69) ->  | Q66: 64
Q67: 65

Sheet LCOE Summary 10-90s
A1: In order to run the macros this sheet in not protected. Do not change any values on this sheet other than Cell B2 | S1: ='Input A1'!A48 -> 0
B2: 58 | C2: =LOOKUP($B2,$B$5:$B$75,C$5:C$78) -> 5.538994747 | D2: =LOOKUP($B2,$B$5:$B$75,D$5:D$78) -> 5.572611947 | E2: =LOOKUP($B2,$B$5:$B$75,E$5:E$75) -> 3.877296323 | G2: ='Summary A1'!H24 -> 32.47768522 | H2: ='Summary A1'!L24 -> 32.47964072 | I2: ='Summary A1'!M24 -> 35.91772467 | K2: =IF(S2=1,'Summary A1'!L280*(1+'Binary B2 10-90s'!Y42/'Binary B2 10-90s'!Y43),('Flash Plant F1-P10%'!J23+'Flash Plant F1-P10%'!J24)/1000) -> 24.35302504 | L2: =IF(S2=1,'Summary A1'!M280*(1+'Binary B2 10-90s'!Y99/'Binary B2 10-90s'!Y100),('Flash Plant F1-P90%'!J23+'Flash Plant F1-P90%'!J24)/1000) -> 25.7263867 | S2: ='Input A1'!$A$398 -> 1
A3: Input Parameter | C3: Input Value | G3: LCOE's | K3: Gross Plant Output | R3: =IF('Input A1'!$A$75=0,"Hydro","EGS") -> Hydro | S3: =IF('Input A1'!$A$398=0,"Flash","Binary") -> Binary
C4: likely | D4: 0.1 | E4: 0.9 | G4: likely | H4: 0.1 | I4: 0.9 | K4: 0.1 | L4: 0.9 | N4: WBS 1 | O4: WBS 2 | P4: Water Fall | Q4: Cost Summary | R4: EGS/Hydro Only | S4: Binary/Flash Only
B5: 0 | C5: 0 | D5: 0 | E5: 0
A6: Utilization Factor | B6: 1 | C6: =INPUT!AA40 -> 0.95 | D6: =INPUT!Z40 -> 0.96 | E6: =INPUT!AB40 -> 0.88 | G6: 32.47768522 | H6: 32.13935728 | I6: 35.05985234 | K6: 24.35628091 | L6: 24.35629287 | N6: 6b | P6: 5
A7: Contingency | B7: 2 | C7: =INPUT!AA41 -> 0.15 | D7: =INPUT!Z41 -> 0.05 | E7: =INPUT!AB41 -> 0.25 | G7: 32.47768522 | H7: 29.95501027 | I7: 35.00002086 | K7: 24.35609203 | L7: 24.35644906 | N7: 6a | P7: 5
A8: Discount Rate During Operation | B8: 3 | C8: =INPUT!AA44 -> 0.07 | D8: =INPUT!Z44 -> 0.06 | E8: =INPUT!AB44 -> 0.09 | G8: 32.47768522 | H8: 29.71758214 | I8: 38.34849713 | K8: 24.35549391 | L8: 24.35788985 | N8: 6a | P8: 5
A9: Project Life | B9: 4 | C9: =INPUT!AA46 -> 30 | D9: =INPUT!Z46 -> 30 | E9: =INPUT!AB46 -> 30 | G9: 32.47768522 | H9: 32.47751987 | I9: 32.47751987 | K9: 24.35628241 | L9: 24.35628241 | N9: 6a | P9: 5
A10: Fixed Charge Rate | B10: 5 | C10: =INPUT!AA47 -> 0.108 | D10: =INPUT!Z47 -> 0.09 | E10: =INPUT!AB47 -> 0.13 | G10: 32.47768522 | H10: 32.47751987 | I10: 32.47751987 | K10: 24.35628241 | L10: 24.35628241 | N10: 6a | P10: 5
A11: Duration of Exploration Phase | B11: 6 | C11: =INPUT!AA52 -> 2 | D11: =INPUT!Z52 -> 1.5 | E11: =INPUT!AB52 -> 4 | G11: 32.47768522 | H11: 31.71858174 | I11: 34.63766009 | K11: 24.35659683 | L11: 24.35544335 | N11: 1a | P11: 1
A12: Duration of Confirmation Phase | B12: 7 | C12: =INPUT!AA53 -> 1.5 | D12: =INPUT!Z53 -> 1 | E12: =INPUT!AB53 -> 2 | G12: 32.47768522 | H12: 30.37627099 | I12: 33.17769616 | K12: 24.35713244 | L12: 24.35600092 | N12: 1b | P12: 1
A13: Duration of Well Field Development Phase | B13: 8 | C13: =INPUT!AA55 -> 1.5 | D13: =INPUT!Z55 -> 1 | E13: =INPUT!AB55 -> 2 | G13: 32.47768522 | H13: 32.19081169 | I13: 32.47751987 | K13: 24.36184192 | L13: 24.35628241 | N13: 2b | P13: 1
A14: Duration of Plant Design and Construction | B14: 9 | C14: =INPUT!AA56 -> 2 | D14: =INPUT!Z56 -> 1.25 | E14: =INPUT!AB56 -> 2.5 | G14: 32.47768522 | H14: 29.33517401 | I14: 33.46300233 | K14: 24.35756591 | L14: 24.35870139 | N14: 3d | P14: 2
A15: Number of Pre-Drilling Exploration Sites Evaluated | B15: 10 | C15: =INPUT!AA85 -> 6 | D15: =INPUT!Z85 -> 1 | E15: =INPUT!AB85 -> 10 | G15: 32.47768522 | H15: 31.63122592 | I15: 33.1545351 | K15: 24.35660711 | L15: 24.35602999 | N15: 1a | P15: 1
A16: Pre-Drilling Exploration Costs | B16: 11 | C16: =INPUT!AA89 -> 500000 | D16: =INPUT!Z89 -> 100000 | E16: =INPUT!AB89 -> 1000000 | G16: 32.47768522 | H16: 31.78628967 | I16: 33.34153167 | K16: 24.35654685 | L16: 24.3559614 | N16: 1a | P16: 1
A17: Number of Sites where Exploration Drilling Occurs | B17: 12 | C17: =INPUT!AA153 -> 5 | D17: =INPUT!Z153 -> 1 | E17: =INPUT!AB153 -> 10 | G17: 32.47768522 | H17: 28.84893952 | I17: 37.08412754 | K17: 24.35786434 | L17: 24.3545506 | N17: 1b | P17: 1
A18: Site Exploration Drilling Cost | B18: 13 | C18: =INPUT!AA154 -> 3000000 | D18: =INPUT!Z154 -> 1000000 | E18: =INPUT!AB154 -> 7000000 | G18: 32.47768522 | H18: 29.59727139 | I18: 38.23706052 | K18: 24.35742971 | L18: 24.35433787 | N18: 1b
A19: Leasing Cost | B19: 14 | C19: =INPUT!AA156 -> 30 | D19: =INPUT!Z156 -> 2 | E19: =INPUT!AB156 -> 1000 | G19: 32.47768522 | H19: 32.45518315 | I19: 33.24715963 | K19: 24.35645104 | L19: 24.35302504 | N19: 5b | P19: 1
A20: Number of Confirmation Sites Needed per Successful Project | B20: 15 | C20: =INPUT!AA159 -> 2 | D20: =INPUT!Z159 -> 1 | E20: =INPUT!AB159 -> 4 | G20: 32.47768522 | H20: 29.54975523 | I20: 38.33206112 | K20: 24.35744965 | L20: 24.35430958 | N20: 1b | P20: 1
A21: Drilling Success Rate at Successful Confirmation Site | B21: 16 | C21: =INPUT!AA162 -> 0.6 | D21: =INPUT!Z162 -> 0.8 | E21: =INPUT!AB162 -> 0.4 | G21: 32.47768522 | H21: 30.64770614 | I21: 36.13676059 | K21: 24.35699738 | L21: 24.35499431 | N21: 1b | P21: 1
A22: Number of Confirmation Wells Required | B22: 17 | C22: =INPUT!AA164 -> 3 | D22: =INPUT!Z164 -> 1 | E22: =INPUT!AB164 -> 6 | G22: 32.47768522 | H22: 29.17437027 | I22: 37.32991153 | K22: 24.35760834 | L22: 24.35302504 | N22: 1b | P22: 1
A23: Multiplier for Confirmation Well Costs (>= 1) | B23: 18 | C23: =INPUT!AA170 -> 1.2 | D23: =INPUT!Z170 -> 1 | E23: =INPUT!AB170 -> 1.5 | G23: 32.47768522 | H23: 30.68809329 | I23: 35.16142816 | K23: 24.35698108 | L23: 24.3553195 | N23: 1b | P23: 1
A24: Confirmation Well Simulation Cost | B24: 19 | C24: =INPUT!AA183 -> 0 | D24: =INPUT!Z183 -> 0 | E24: =INPUT!AB183 -> 0 | G24: 32.47768522 | H24: 32.47751987 | I24: 32.47751987 | K24: 24.3562824 | L24: 24.35628241 | N24: 2a | P24: 1
A25: Drilling Success Rate During Final Well Field Development | B25: 20 | C25: =INPUT!AA189 -> 0.8 | D25: =INPUT!Z189 -> 0.9 | E25: =INPUT!AB189 -> 0.6 | G25: 32.47768522 | H25: 32.17308958 | I25: 33.07057846 | K25: 24.3626835 | L25: 24.35302504 | N25: 2b | P25: 1
A26: Ratio of Injection Wells to Production Wells | B26: 21 | C26: =INPUT!AA194 -> 0.75 | D26: =INPUT!Z194 -> 0.75 | E26: =INPUT!AB194 -> 2 | G26: 32.47768522 | H26: 32.47751987 | I26: 34.81230841 | K26: 24.3562824 | L26: 22.11819876 | N26: 2a | P26: 1
A27: Production Well Cost | B27: 22 | C27: =INPUT!AA225 -> curve | D27: =INPUT!Z225 -> 3000000 | E27: =INPUT!AB225 -> 9000000 | G27: 32.47768522 | H27: 26.15166279 | I27: 38.45759575 | K27: 24.41902141 | L27: 24.35302504 | N27: 2b | P27: 1
A28: Injection Well Cost | B28: 23 | C28: =INPUT!AA228 -> curve | D28: =INPUT!Z228 -> 3000000 | E28: =INPUT!AB228 -> 9000000 | G28: 32.47768522 | H28: 31.13829599 | I28: 33.73067118 | K28: 24.37972724 | L28: 24.35302504 | N28: 2b | P28: 1
A29: Surface Equipment Cost per Well | B29: 24 | C29: =INPUT!AA232 -> 200000 | D29: =INPUT!Z232 -> 100000 | E29: =INPUT!AB232 -> 400000 | G29: 32.47768522 | H29: 32.37711862 | I29: 32.67747559 | K29: 24.35735729 | L29: 24.35443856 | N29: 2b | P29: 1
A30: Permitting (Utilization Plan) for Field and Plant | B30: 25 | C30: =INPUT!AA238 -> 1000000 | D30: =INPUT!Z238 -> 500000 | E30: =INPUT!AB238 -> 2000000 | G30: 32.47768522 | H30: 32.40933478 | I30: 32.61388951 | K30: 24.35630819 | L30: 24.35623104 | N30: 5b | P30: 4
A31: Production Well Flow Rate (kg/s) | B31: 26 | C31: =INPUT!AA241 -> 100 | D31: =INPUT!Z241 -> 160 | E31: =INPUT!AB241 -> 70 | G31: 32.47768522 | H31: 34.89298589 | I31: 33.41716299 | K31: 29.93597103 | L31: 22.4244967 | N31: 2a | P31: 1
A32: Production/Injection Well Stimulation Cost | B32: 27 | C32: =INPUT!AA246 -> 0 | D32: =INPUT!Z246 -> 0 | E32: =INPUT!AB246 -> 0 | G32: 32.47768522 | H32: 32.47751987 | I32: 32.47751987 | K32: 24.3562824 | L32: 24.3562824 | N32: 2a | P32: 1
A33: Reservoir Hydraulic Drawdown | B33: 28 | C33: =INPUT!AA255 -> 0.5 | D33: =INPUT!Z255 -> 0.2 | E33: =INPUT!AB255 -> 1.2 | G33: 32.47768522 | H33: 28.53985662 | I33: 51.972394 | K33: 20.57126594 | L33: 39.78400083 | N33: 2a | P33: 1
A34: Annual Rate of Temperature Decline | B34: 29 | C34: =INPUT!AA268 -> 0.004 | D34: =INPUT!Z268 -> 0.002 | E34: =INPUT!AB268 -> 0.01 | G34: 32.47768522 | H34: 29.71530515 | I34: 33.91594039 | K34: 24.36707644 | L34: 24.35302504 | N34: 2a | P34: 1
A35: EGS Water Loss | B35: 30 | C35: =INPUT!AA282 -> 0 | D35: =INPUT!Z282 -> 0 | E35: =INPUT!AB282 -> 0 | G35: 32.47768522 | H35: 32.47751987 | I35: 32.47751987 | K35: 24.3562824 | L35: 24.3562824 | N35: 2a | P35: 1 | R35: EGS
A36: Make-up Water Cost ($/acre-ft) | B36: 31 | C36: =INPUT!AA284 -> 0 | D36: =INPUT!Z284 -> 0 | E36: =INPUT!AB284 -> 0 | G36: 32.47768522 | H36: 32.47751987 | I36: 32.47751987 | K36: 24.3562824 | L36: 24.3562824 | N36: 4b | P36: 1
A37: Production and Injection Pump & Driver Efficiency | B37: 32 | C37: =INPUT!AA286 -> 0.675 | D37: =INPUT!Z286 -> 0.8 | E37: =INPUT!AB286 -> 0.6 | G37: 32.47768522 | H37: 31.52246373 | I37: 33.28357178 | K37: 23.46438535 | L37: 25.09881826 | N37: 4b | P37: 1
A38: Hole or Casing Diameter in Production Interval | B38: 33 | C38: =INPUT!AA300 -> default | D38: =INPUT!Z300 -> 14.5 | E38: =INPUT!AB300 -> 8.25 | G38: 32.47768522 | H38: 32.43893206 | I38: 32.93768177 | K38: 24.32276532 | L38: 24.76474303 | N38: 2b | Q38: 1
A39: Production Pump Cost | B39: 34 | C39: =INPUT!R312 -> 1 | D39: =INPUT!Z312 -> 0.7 | E39: =INPUT!AB312 -> 2 | G39: 32.47768522 | H39: 32.24676704 | I39: 33.23799099 | K39: 24.35890576 | L39: 24.35302504 | N39: 4b | P39: 1
A40: Hole or Casing Diameter in Injection Interval | B40: 35 | C40: =INPUT!AA317 -> default | D40: =INPUT!Z317 -> 14.5 | E40: =INPUT!AB317 -> 8.25 | G40: 32.47768522 | H40: 32.42273982 | I40: 33.96768639 | K40: 24.30345116 | L40: 25.78734107 | N40: 2b | Q40: 1
A41: Labor Rate Multiplier (for Benefits, Overhead,, G&A) | B41: 36 | C41: =INPUT!AA353 -> 1.8 | D41: =INPUT!Z353 -> 1.2 | E41: =INPUT!AB353 -> 2.2 | G41: 32.47768522 | H41: 32.19587846 | I41: 32.66525238 | K41: 24.35672624 | L41: 24.35599693 | N41: 4a | O41: 4b | P41: 3
A42: Adjustment to Staff | B42: 37 | C42: =INPUT!AA355 -> 1 | D42: =INPUT!Z355 -> 0.75 | E42: =INPUT!AB355 -> 1.5 | G42: 32.47768522 | H42: 32.26629362 | I42: 32.89988621 | K42: 24.35661352 | L42: 24.35565166 | N42: 4a | O42: 4b | P42: 3
A43: Field Annual Maintenance (non-labor) | B43: 38 | C43: =INPUT!AA358 -> 0.015 | D43: =INPUT!Z358 -> 0.005 | E43: =INPUT!AB358 -> 0.04 | G43: 32.47768522 | H43: 31.96469438 | I43: 33.74036782 | K43: 24.36241908 | L43: 24.35302504 | N43: 4b | P43: 3
A44: Plant Annual Maintenance (non-labor) | B44: 39 | C44: =INPUT!AA362 -> 0.018 | D44: =INPUT!Z362 -> 0.012 | E44: =INPUT!AB362 -> 0.022 | G44: 32.47768522 | H44: 32.0349635 | I44: 32.77008517 | K44: 24.35302504 | L44: 24.35923835 | N44: 4a | P44: 3
A45: Geothermal Production Pump Life | B45: 40 | C45: =INPUT!AA374 -> 3 | D45: =INPUT!Z374 -> 5 | E45: =INPUT!AB374 -> 1 | G45: 32.47768522 | H45: 32.26696193 | I45: 33.51791167 | K45: 24.35865439 | L45: 24.35302504 | N45: 4b | P45: 3
A46: Transmission cost - miles of line | B46: 41 | C46: =INPUT!AA387 -> 0 | D46: =INPUT!Z387 -> 0 | E46: =INPUT!AB387 -> 50 | G46: 32.47768522 | H46: 32.47751987 | I46: 37.66061904 | K46: 24.3562824 | L46: 24.35451214 | N46: n/a | Q46: 2
A47: Power Sales | B47: 42 | C47: =INPUT!AA393 -> 15 | D47: =INPUT!Z393 -> 25 | E47: =INPUT!AB393 -> 5 | G47: 32.47768522 | H47: 26.7357657 | I47: 61.588974 | K47: 40.59689472 | L47: 8.215132657 | N47: 6b | P47: 5
A48: Flash Plant Wet Bulb Temperature | B48: 43 | C48: =INPUT!R456 -> 50 | D48: =INPUT!Z456 -> 40 | E48: =INPUT!AB456 -> 80 | G48: 32.47768522 | H48: 32.47751987 | I48: 32.47751987 | K48: 24.35628242 | L48: 24.3562824 | N48: 3a | Q48: 2 | S48: Flash
A49: Steam Turbine Efficiency | B49: 44 | C49: =INPUT!R459 -> 0.8 | D49: =INPUT!Z459 -> 0.85 | E49: =INPUT!AB459 -> 0.75 | G49: 32.47768522 | H49: 32.47751987 | I49: 32.47751987 | K49: 24.35628242 | L49: 24.3562824 | N49: 3a | P49: 2 | S49: Flash
A50: Flash Plant Pump Efficiency | B50: 45 | C50: =INPUT!R461 -> 0.75 | D50: =INPUT!Z461 -> 0.8 | E50: =INPUT!AB461 -> 0.7 | G50: 32.47768522 | H50: 32.47751987 | I50: 32.47751987 | K50: 24.35628242 | L50: 24.3562824 | N50: 3a | P50: 2 | S50: Flash
A51: Flash Plant Cooling Water Temperature Rise | B51: 46 | C51: =INPUT!R476 -> 22.5 | D51: =INPUT!Z476 -> 15 | E51: =INPUT!AB476 -> 30 | G51: 32.47768522 | H51: 32.47751987 | I51: 32.47751987 | K51: 24.35628242 | L51: 24.3562824 | N51: 3a | Q51: 2 | S51: Flash
A52: Flash Plant NCG level | B52: 47 | C52: =INPUT!R481 -> 2000 | D52: =INPUT!Z481 -> 200 | E52: =INPUT!AB481 -> 20000 | G52: 32.47768522 | H52: 32.47751987 | I52: 32.47751987 | K52: 24.35628242 | L52: 24.3562824 | N52: 3a | Q52: 2 | S52: Flash
A53: Flash Plant H2S level | B53: 48 | C53: =INPUT!R483 -> 20 | D53: =INPUT!Z483 -> 0 | E53: =INPUT!AB483 -> 200 | G53: 32.47768522 | H53: 32.47751987 | I53: 32.47751987 | K53: 24.35628242 | L53: 24.3562824 | N53: 3a | Q53: 2 | S53: Flash
A54: Turbine-Generator Cost | B54: 49 | C54: =IF($S$2=0,INPUT!AA498,INPUT!AA416) -> 1 | D54: =IF($S$2=0,INPUT!Z498,INPUT!Z416) -> 0.5 | E54: =IF($S$2=0,INPUT!AB498,INPUT!AB416) -> 2 | G54: 32.47768522 | H54: 30.86398133 | I54: 35.7035417 | K54: 24.35752616 | L54: 24.35430016 | N54: 3a | P54: 2
A55: Heat Rejection Equipment Cost | B55: 50 | C55: =IF($S$2=0,INPUT!AA504,INPUT!AA418) -> 1 | D55: =IF($S$2=0,INPUT!Z504,INPUT!Z418) -> 0.5 | E55: =IF($S$2=0,INPUT!AB504,INPUT!AB418) -> 2 | G55: 32.47768522 | H55: 29.82598617 | I55: 37.12209503 | K55: 24.35302504 | L55: 24.5480025 | N55: 3b | P55: 2
A56: Geofluid Heat Exchanger Cost | B56: 51 | C56: =INPUT!AA420 -> 1 | D56: =INPUT!Z420 -> 0.5 | E56: =INPUT!AB420 -> 2 | G56: 32.47768522 | H56: 32.02434364 | I56: 33.36993479 | K56: 24.35302504 | L56: 24.36721195 | N56: 3a | P56: 2 | S56: Binary
A57: Plant Pump Cost | B57: 52 | C57: =INPUT!AA506 -> 1 | D57: =INPUT!Z506 -> 0.5 | E57: =INPUT!AB506 -> 2 | G57: 32.47768522 | H57: 32.47751987 | I57: 32.47751987 | K57: 24.3562824 | L57: 24.3562824 | N57: 3a | P57: 2 | S57: Flash
A58: Flash Plant NCG Removal System Cost | B58: 53 | C58: =INPUT!AA508 -> 1 | D58: =INPUT!Z508 -> 0.5 | E58: =INPUT!AB508 -> 3 | G58: 32.47768522 | H58: 32.47751987 | I58: 32.47751987 | K58: 24.3562824 | L58: 24.3562824 | N58: 3a | P58: 2 | S58: Flash
A59: Flash Plant H2S Abatement System Cost | B59: 54 | C59: =INPUT!AA510 -> 1 | D59: =INPUT!Z510 -> 0.5 | E59: =INPUT!AB510 -> 4 | G59: 32.47768522 | H59: 32.47751987 | I59: 32.47751987 | K59: 24.3562824 | L59: 24.3562824 | N59: 3a | P59: 2 | S59: Flash
A60: Plant Direct Construction Cost Multiplier | B60: 55 | C60: =IF($S$2=0,INPUT!AA517,INPUT!AA429) -> 2.657824316 | D60: =IF($S$2=0,INPUT!Z517,INPUT!Z429) -> 2.25 | E60: =IF($S$2=0,INPUT!AB517,INPUT!AB429) -> 3 | G60: 32.47768522 | H60: 30.9676032 | I60: 33.71697294 | K60: 24.35302504 | L60: 24.37212887 | N60: 3d | P60: 2
A61: Indirect Plant Construction Cost % | B61: 56 | C61: =IF($S$2=0,INPUT!AA521,INPUT!AA433) -> 0.12 | D61: =IF($S$2=0,INPUT!Z521,INPUT!Z433) -> 0.06 | E61: =IF($S$2=0,INPUT!AB521,INPUT!AB433) -> 0.15 | G61: 32.47768522 | H61: 31.95174402 | I61: 32.73810067 | K61: 24.35302504 | L61: 24.35888919 | N61: 3d | P61: 2
A62: Plant Capital Cost | B62: 57 | C62: =IF($S$2=0,INPUT!AA527,INPUT!AA439) -> 1 | D62: =IF($S$2=0,INPUT!Z527,INPUT!Z439) -> 0.8 | E62: =IF($S$2=0,INPUT!AB527,INPUT!AB439) -> 1.5 | G62: 32.47768522 | H62: 30.52092846 | I62: 37.36957712 | K62: 24.35523222 | L62: 24.35523222 | N62: 3a | P62: 2
A63: Binary Plant Performance | B63: 58 | C63: =INPUT!R406 -> 5.538994747 | D63: =INPUT!R401 -> 5.572611947 | E63: =C63*0.7 -> 3.877296323 | G63: 32.47768522 | H63: 32.47964072 | I63: 35.91772467 | K63: 24.35302504 | L63: 25.7263867 | N63: 6a | P63: 2 | S63: Binary
C71: 57 | H71: 20.4257047 | I71: 19.47528781 | J71: 21.37612159 | L71: 24.58956978 | N71: 24.58956978
B72: Stimulation Cost per Well | D72: =INPUT!AA183 -> 0 | E72: =INPUT!Z183 -> 0 | F72: =INPUT!AB183 -> 0 | H72: 20.4257047 | I72: 21.22484101 | J72: 24.01344945 | L72: 24.90829635 | N72: 24.31188247
A76: Labor Rate Multiplier (for Benefits, Overhead,, G&A) | B76: 36 | G76: 14.56034075 | H76: 14.37228641 | I76: 14.68553793 | N76: =H42-G42 -> -0.2113915967 | O76: =H76-G76 -> -0.1880543401 | S76: =I41-G41 -> 0.1875671655 | T76: =I76-G76 -> 0.1251971738 | V76: =N76-O76 -> -0.02333725656
A77: Adjustment to Staff | B77: 37 | G77: 14.56034075 | H77: 14.41804321 | I77: 14.83968527 | N77: =H43-G43 -> -0.5129908349 | O77: =H77-G77 -> -0.14229754 | S77: =I42-G42 -> 0.4222009916 | T77: =I77-G77 -> 0.2793445207 | V77: =N77-O77 -> -0.3706932949
A78: Field Annual Maintenance (non-labor) | B78: 38 | G78: 14.56034075 | H78: 14.32126152 | I78: 15.14927792 | N78: =H44-G44 -> -0.4427217226 | O78: -0.2390792325 | S78: =I43-G43 -> 1.262682602 | T78: 0.5889371715 | V78: -0.2036424901
A79: Plant Annual Maintenance (non-labor) | B79: 39 | G79: 14.56034075 | H79: 14.35514417 | I79: 14.69626865 | N79: =H45-G45 -> -0.2107232917 | O79: -0.2051965772 | S79: =I44-G44 -> 0.2923999488 | T79: 0.1359278945 | V79: -0.005526714441
N80: =SUM(N76:N79) -> -1.377827446 | O80: =SUM(O76:O79) -> -0.7746276899 | S80: =SUM(S76:S79) -> 2.164850708 | T80: =SUM(T76:T79) -> 1.129406761 | V80: =SUM(V76:V79) -> -0.603199756
A90: Well Testing Cost (per site) | B90: 15 | C90: =INPUT!Z185 -> 0 | D90: =INPUT!#REF! ->  | E90: =INPUT!#REF! ->  | G90: 20.4257047 | H90: 20.38469724 | I90: 20.4935566 | K90: 24.58491894 | L90: 24.58492899 | N90: 1b
A91: Adjustment to calculated production pump cost | B91: 29 | C91: =INPUT!AA312 -> 1 | D91: =INPUT!Z312 -> 0.7 | E91: =INPUT!AB312 -> 2 | G91: 20.4257047 | H91: 20.35865372 | I91: 20.64796948 | K91: 24.58304097 | L91: 24.59114934 | N91: 2b
A92: Adjustment to calculated injection pump cost | B92: 31 | C92: =INPUT!AA326 -> 0 | D92: =INPUT!Z326 -> 0 | E92: =INPUT!AB326 -> 0 | G92: 20.4257047 | H92: 20.40881479 | I92: 20.48119498 | K92: 24.58468717 | L92: 24.58570735 | N92: 2b
A93: Annual O&M cost | B93: 32 | C93: =INPUT!AA328 -> 0 | D93: =INPUT!Z328 -> 0 | E93: =INPUT!AB328 -> 0 | G93: 20.4257047 | H93: 20.4255195 | I93: 20.4255195 | K93: 24.58492266 | L93: 24.58492264 | N93: 4a | O93: 4b
C120: 0.1 | D120: 0.9
B121: =B6 -> 1 | C121: =H6-G6 -> -0.3383279357 | D121: =I6-G6 -> 2.582167121
B122: 2 | C122: -2.52267495 | D122: 2.522335646
B123: 3 | C123: -2.760103076 | D123: 5.87081191
B124: 4 | C124: -0.0001653481039 | D124: -0.0001653481039
B125: 5 | C125: -0.0001653481039 | D125: -0.0001653481039
B126: 6 | C126: -0.7591034819 | D126: 2.159974868
B127: 7 | C127: -2.101414229 | D127: 0.7000109449
B128: 8 | C128: -0.2868735258 | D128: -0.0001653481039
B129: 9 | C129: -3.142511212 | D129: 0.9853171157
B130: 10 | C130: -0.8464593027 | D130: 0.6768498844
B131: 11 | C131: -0.691395549 | D131: 0.8638464504
B132: 12 | C132: -3.628745699 | D132: 4.606442321
B133: =#REF! ->  | C133: =#REF!-#REF! ->  | D133: =#REF!-#REF! -> 
B134: =#REF! ->  | C134: =#REF!-#REF! ->  | D134: =#REF!-#REF! -> 
B135: =B19 -> 14 | C135: =H19-G19 -> -0.02250206348 | D135: =I19-G19 -> 0.7694744096
B136: 15 | C136: -2.927929989 | D136: 5.854375906
B137: 16 | C137: -1.82997908 | D137: 3.659075376
B138: 17 | C138: -3.303314949 | D138: 4.852226313
B139: 18 | C139: -1.789591927 | D139: 2.683742946
B140: 19 | C140: -0.0001653481039 | D140: -0.0001653481039
B141: 20 | C141: -0.3045956373 | D141: 0.5928932398
B142: 21 | C142: -0.0001653481039 | D142: 2.334623191
B143: 22 | C143: -6.326022426 | D143: 5.979910527
B144: 23 | C144: -1.339389226 | D144: 1.252985957
B145: 24 | C145: -0.100566596 | D145: 0.1997903702
B146: 25 | C146: =H30-G30 -> -0.06835043516 | D146: =I30-G30 -> 0.1362042872
B147: 26 | C147: 2.415300674 | D147: 0.9394777765
B148: 27 | C148: -0.0001653481039 | D148: -0.0001653481039
B149: 28 | C149: -3.937828602 | D149: 19.49470878
B150: 29 | C150: -2.762380067 | D150: 1.438255172
B151: 30 | C151: -0.0001653481039 | D151: -0.0001653481039
B152: 31 | C152: -0.0001653481039 | D152: -0.0001653481039
B153: 32 | C153: -0.9552214929 | D153: 0.8058865624
B154: 33 | C154: -0.03875316021 | D154: 0.459996556
B155: =B40 -> 35 | C155: =H40-G40 -> -0.05494539811 | D155: =I40-G40 -> 1.490001168
B156: 36 | C156: =H41-G41 -> -0.2818067617 | D156: =I41-G41 -> 0.1875671655
B157: 37 | C157: -0.2113915967 | D157: 0.4222009916
B158: 38 | C158: -0.5129908349 | D158: 1.262682602
B159: 39 | C159: -0.4427217226 | D159: 0.2923999488
B160: 40 | C160: -0.2107232917 | D160: 1.04022645
B161: 41 | C161: =H46-G46 -> -0.0001653481039 | D161: =I46-G46 -> 5.182933824
B162: 42 | C162: -5.741919517 | D162: 29.11128878
B163: 43 | C163: -0.0001653481039 | D163: -0.0001653481039
B164: 44 | C164: -0.0001653481039 | D164: -0.0001653481039
B165: 45 | C165: -0.0001653481039 | D165: -0.0001653481039
B166: 46 | C166: -0.0001653481039 | D166: -0.0001653481039
B167: 47 | C167: -0.0001653481039 | D167: -0.0001653481039
B168: =B54 -> 49 | C168: =H54-G54 -> -1.613703886 | D168: =I54-G54 -> 3.225856485
B169: 50 | C169: -2.651699046 | D169: 4.644409817
B170: 51 | C170: -0.4533415752 | D170: 0.89224957
B171: 52 | C171: -0.0001653481039 | D171: -0.0001653481039
B172: 53 | C172: -0.0001653481039 | D172: -0.0001653481039
B173: 54 | C173: -0.0001653481039 | D173: -0.0001653481039
B174: 55 | C174: -1.510082014 | D174: 1.239287725
B175: 56 | C175: -0.5259411984 | D175: 0.2604154474
B176: 57 | C176: -1.956756762 | D176: 4.891891906
B177: 58 | C177: 0.00195550457 | D177: 3.440039451

Sheet master list of 10-90s
D1: MASTER LIST - COPY CASE INTO THE CELLS BELOW
D2: =INPUT!W23 -> 32.47964072 | E2: =INPUT!R23 -> 32.47768522 | F2: =INPUT!X23 -> 35.91772467
B3: Resource | D3: HYDROTHERMAL | H3: HYDROTHERMAL | K3: HYDROTHERMAL | N3: HYDROTHERMAL | Q3: HYDROTHERMAL | T3: HYDROTHERMAL | X3: HYDROTHERMAL | AA3: EGS | AD3: EGS | AG3: EGS | AJ3: EGS | AM3: EGS | AQ3: HYDROTHERMAL | AV3: EGS
B4: Conversion System | D4: BINARY | H4: BINARY | K4: FLASH | N4: BINARY | Q4: FLASH | T4: BINARY | X4: BINARY | AA4: BINARY | AD4: BINARY | AG4: BINARY | AJ4: FLASH | AM4: FLASH | AQ4: BINARY | AV4: BINARY
B5: Case | E5: Hydro E | I5: Hydro A | L5: Hydro B | O5: Hydro C | R5: Hydro D | U5: Hydro E | X5: Hydro C | AB5: EGS A | AE5: EGS B | AH5: EGS C | AK5: EGS D | AN5: EGS E | AQ5: C- Dec 2011 | AV5: C- Dec 2011
B6: Resource Temperature | C6: °C | E6: 140 | I6: 140 | L6: 175 | O6: 175 | R6: 225 | U6: 140 | X6: 175 | AB6: 100 | AE6: 150 | AH6: 175 | AK6: 250 | AN6: 325 | AQ6: 175 | AV6: 175
B7: Resource Depth | C7: m | E7: 2500 | I7: 1500 | L7: 1500 | O7: 1500 | R7: 2500 | U7: 2500 | X7: 1500 | AB7: 2000 | AE7: 2500 | AH7: 3000 | AK7: 3500 | AN7: 4000 | AQ7: 1500 | AV7: 3000
D8: 0.1 | E8: Most Likely | F8: 0.9 | H8: 0.1 | I8: Most Likely | J8: 0.9 | K8: 0.1 | L8: Most Likely | M8: 0.9 | N8: 0.1 | O8: Most Likely | P8: 0.9 | Q8: 0.1 | R8: Most Likely | S8: 0.9 | T8: 0.1 | U8: Most Likely | V8: 0.9 | X8: 0.1 | Y8: Most Likely | Z8: 0.9 | AA8: 0.1 | AB8: Most Likely | AC8: 0.9 | AD8: 0.1 | AE8: Most Likely | AF8: 0.9 | AG8: 0.1 | AH8: Most Likely | AI8: 0.9 | AJ8: 0.1 | AK8: Most Likely | AL8: 0.9 | AM8: 0.1 | AN8: Most Likely | AO8: 0.9 | AQ8: 0.1 | AR8: Most Likely | AS8: 0.9 | AV8: 0.1 | AW8: Most Likely | AX8: 0.9 | BL8: b | BO8: c | BR8: d | BU8: e
B9: Utilization Factor | D9: 0.96 | E9: 0.95 | F9: 0.88 | H9: 0.96 | I9: 0.95 | J9: 0.88 | K9: 0.96 | L9: 0.95 | M9: 0.88 | N9: 0.96 | O9: 0.95 | P9: 0.88 | Q9: 0.96 | R9: 0.95 | S9: 0.88 | T9: 0.96 | U9: 0.95 | V9: 0.88 | X9: 0.96 | Y9: 0.95 | Z9: 0.88 | AA9: 0.96 | AB9: 0.95 | AC9: 0.88 | AD9: 0.96 | AE9: 0.95 | AF9: 0.88 | AG9: 0.96 | AH9: 0.95 | AI9: 0.88 | AJ9: 0.96 | AK9: 0.95 | AL9: 0.88 | AM9: 0.96 | AN9: 0.95 | AO9: 0.88 | AQ9: 0.96 | AR9: 0.95 | AS9: 0.88 | AV9: 0.96 | AW9: 0.95 | AX9: 0.88 | BK9: =H9-K9 -> 0 | BL9: =I9-L9 -> 0 | BM9: 0 | BN9: =H9-N9 -> 0 | BO9: =I9-O9 -> 0 | BP9: 0 | BQ9: =H9-Q9 -> 0 | BR9: =I9-R9 -> 0 | BS9: 0 | BT9: =H9-T9 -> 0 | BU9: =I9-U9 -> 0 | BV9: 0
B10: Contingency | D10: 0.05 | E10: 0.15 | F10: 0.25 | H10: 0.05 | I10: 0.15 | J10: 0.25 | K10: 0.05 | L10: 0.15 | M10: 0.25 | N10: 0.05 | O10: 0.15 | P10: 0.25 | Q10: 0.05 | R10: 0.15 | S10: 0.25 | T10: 0.05 | U10: 0.15 | V10: 0.25 | X10: 0.05 | Y10: 0.15 | Z10: 0.25 | AA10: 0.05 | AB10: 0.15 | AC10: 0.25 | AD10: 0.05 | AE10: 0.15 | AF10: 0.25 | AG10: 0.05 | AH10: 0.15 | AI10: 0.25 | AJ10: 0.05 | AK10: 0.15 | AL10: 0.25 | AM10: 0.05 | AN10: 0.15 | AO10: 0.25 | AQ10: 0.05 | AR10: 0.15 | AS10: 0.25 | AV10: 0.05 | AW10: 0.15 | AX10: 0.25 | BK10: =H10-K10 -> 0 | BL10: =I10-L10 -> 0 | BM10: =J10-M10 -> 0 | BN10: =H10-N10 -> 0 | BO10: =I10-O10 -> 0 | BP10: =J10-P10 -> 0 | BQ10: =H10-Q10 -> 0 | BR10: =I10-R10 -> 0 | BS10: =J10-S10 -> 0 | BT10: =H10-T10 -> 0 | BU10: =I10-U10 -> 0 | BV10: =J10-V10 -> 0
B11: Discount Rate During Operation | D11: 0.06 | E11: 0.07 | F11: 0.09 | H11: 0.06 | I11: 0.07 | J11: 0.09 | K11: 0.06 | L11: 0.07 | M11: 0.09 | N11: 0.06 | O11: 0.07 | P11: 0.09 | Q11: 0.06 | R11: 0.07 | S11: 0.09 | T11: 0.06 | U11: 0.07 | V11: 0.09 | X11: 0.06 | Y11: 0.07 | Z11: 0.09 | AA11: 0.06 | AB11: 0.07 | AC11: 0.09 | AD11: 0.06 | AE11: 0.07 | AF11: 0.09 | AG11: 0.06 | AH11: 0.07 | AI11: 0.09 | AJ11: 0.06 | AK11: 0.07 | AL11: 0.09 | AM11: 0.06 | AN11: 0.07 | AO11: 0.09 | AQ11: 0.06 | AR11: 0.07 | AS11: 0.09 | AV11: 0.06 | AW11: 0.07 | AX11: 0.09 | BK11: 0 | BL11: 0 | BM11: 0 | BN11: 0 | BO11: 0 | BP11: 0 | BQ11: 0 | BR11: 0 | BS11: 0 | BT11: 0 | BU11: 0 | BV11: 0
B12: Project Life | C12: yr | D12: 30 | E12: 30 | F12: 30 | H12: 30 | I12: 30 | J12: 30 | K12: 30 | L12: 30 | M12: 30 | N12: 30 | O12: 30 | P12: 30 | Q12: 30 | R12: 30 | S12: 30 | T12: 30 | U12: 30 | V12: 30 | X12: 30 | Y12: 30 | Z12: 30 | AA12: 30 | AB12: 20 | AC12: 10 | AD12: 30 | AE12: 20 | AF12: 10 | AG12: 30 | AH12: 20 | AI12: 10 | AJ12: 30 | AK12: 20 | AL12: 10 | AM12: 30 | AN12: 20 | AO12: 10 | AQ12: 30 | AR12: 30 | AS12: 30 | AV12: 30 | AW12: 20 | AX12: 10 | BK12: 0 | BL12: 0 | BM12: 0 | BN12: 0 | BO12: 0 | BP12: 0 | BQ12: 0 | BR12: 0 | BS12: 0 | BT12: 0 | BU12: 0 | BV12: 0
B13: Fixed Charge Rate | D13: 0.09 | E13: 0.108 | F13: 0.13 | H13: 0.09 | I13: 0.108 | J13: 0.13 | K13: 0.09 | L13: 0.108 | M13: 0.13 | N13: 0.09 | O13: 0.108 | P13: 0.13 | Q13: 0.09 | R13: 0.108 | S13: 0.13 | T13: 0.09 | U13: 0.108 | V13: 0.13 | X13: 0.09 | Y13: 0.108 | Z13: 0.13 | AA13: 0.09 | AB13: 0.108 | AC13: 0.13 | AD13: 0.09 | AE13: 0.108 | AF13: 0.13 | AG13: 0.09 | AH13: 0.108 | AI13: 0.13 | AJ13: 0.09 | AK13: 0.108 | AL13: 0.13 | AM13: 0.09 | AN13: 0.108 | AO13: 0.13 | AQ13: 0.09 | AR13: 0.108 | AS13: 0.13 | AV13: 0.09 | AW13: 0.108 | AX13: 0.13 | BK13: 0 | BL13: 0 | BM13: 0 | BN13: 0 | BO13: 0 | BP13: 0 | BQ13: 0 | BR13: 0 | BS13: 0 | BT13: 0 | BU13: 0 | BV13: 0
B14: Duration of Exploration Phase | C14: yr | D14: 1.5 | E14: 2 | F14: 4 | H14: 1.5 | I14: 2 | J14: 4 | K14: 1.5 | L14: 2 | M14: 4 | N14: 1.5 | O14: 2 | P14: 4 | Q14: 1.5 | R14: 2 | S14: 4 | T14: 1.5 | U14: 2 | V14: 4 | X14: 1.5 | Y14: 2 | Z14: 4 | AA14: =0.5 -> 0.5 | AB14: 1 | AC14: 3 | AD14: =0.5 -> 0.5 | AE14: 1 | AF14: 3 | AG14: 0.5 | AH14: 1 | AI14: 3 | AJ14: =0.5 -> 0.5 | AK14: 1 | AL14: 3 | AM14: =0.5 -> 0.5 | AN14: 1 | AO14: 3 | AQ14: 1.5 | AR14: 2 | AS14: 4 | AV14: 0.5 | AW14: 1 | AX14: 4 | BK14: 0 | BL14: 0 | BM14: 0 | BN14: 0 | BO14: 0 | BP14: 0 | BQ14: 0 | BR14: 0 | BS14: 0 | BT14: 0 | BU14: 0 | BV14: 0
B15: Duration of Confirmation Phase | C15: yr | D15: 1 | E15: 1.5 | F15: 2 | H15: 1 | I15: 1.5 | J15: 2 | K15: 1 | L15: 1.5 | M15: 2 | N15: 1 | O15: 1.5 | P15: 2 | Q15: 1 | R15: 1.5 | S15: 2 | T15: 1 | U15: 1.5 | V15: 2 | X15: 1 | Y15: 1.5 | Z15: 2 | AA15: 1 | AB15: 1.5 | AC15: 2 | AD15: 1 | AE15: 1.5 | AF15: 2 | AG15: 1 | AH15: 1.5 | AI15: 2 | AJ15: 1 | AK15: 1.5 | AL15: 2 | AM15: 1 | AN15: 1.5 | AO15: 2 | AQ15: 1 | AR15: 1.5 | AS15: 2 | AV15: 1 | AW15: 1.5 | AX15: 2 | BK15: 0 | BL15: 0 | BM15: 0 | BN15: 0 | BO15: 0 | BP15: 0 | BQ15: 0 | BR15: 0 | BS15: 0 | BT15: 0 | BU15: 0 | BV15: 0
B16: Duration of Well Field Development Phase | C16: yr | D16: 1 | E16: 1.5 | F16: 2 | H16: 1 | I16: 1.5 | J16: 2 | K16: 1 | L16: 1.5 | M16: 2 | N16: 1 | O16: 1.5 | P16: 2 | Q16: 1 | R16: 1.5 | S16: 2 | T16: 1 | U16: 1.5 | V16: 2 | X16: 1 | Y16: 1.5 | Z16: 2 | AA16: 2 | AB16: 2 | AC16: 3 | AD16: 2 | AE16: 2 | AF16: 3 | AG16: 2 | AH16: 2 | AI16: 3 | AJ16: 2 | AK16: 2 | AL16: 3 | AM16: 2 | AN16: 2 | AO16: 3 | AQ16: 1 | AR16: 1.5 | AS16: 2 | AV16: 2 | AW16: 2 | AX16: 3 | BK16: 0 | BL16: 0 | BM16: 0 | BN16: 0 | BO16: 0 | BP16: 0 | BQ16: 0 | BR16: 0 | BS16: 0 | BT16: 0 | BU16: 0 | BV16: 0
B17: Duration of Plant Design and Construction | C17: yr | D17: 1.25 | E17: 2 | F17: 2.5 | H17: 1.25 | I17: 2 | J17: 2.5 | K17: 1.25 | L17: 1.5 | M17: 2.5 | N17: 1.25 | O17: 2 | P17: 2.5 | Q17: 1.25 | R17: 1.5 | S17: 2.5 | T17: 1.25 | U17: 2 | V17: 2.5 | X17: 1.25 | Y17: 2 | Z17: 2.5 | AA17: 1.25 | AB17: 2 | AC17: 2.5 | AD17: 1.25 | AE17: 2 | AF17: 2.5 | AG17: 1.25 | AH17: 2 | AI17: 2.5 | AJ17: 1.25 | AK17: 1.5 | AL17: 2.5 | AM17: 1.25 | AN17: 1.5 | AO17: 2.5 | AQ17: 1.25 | AR17: 2 | AS17: 2.5 | AV17: 1.25 | AW17: 2 | AX17: 2.5 | BK17: 0 | BL17: 0.5 | BM17: 0 | BN17: 0 | BO17: 0 | BP17: 0 | BQ17: 0 | BR17: 0.5 | BS17: 0 | BT17: 0 | BU17: 0 | BV17: 0
B18: Number of Locations Evaluated Before Exploration Drilling Begins | D18: 1 | E18: 6 | F18: 10 | H18: 1 | I18: 6 | J18: 10 | K18: 1 | L18: 6 | M18: 10 | N18: 1 | O18: 6 | P18: 10 | Q18: 1 | R18: 6 | S18: 10 | T18: 1 | U18: 6 | V18: 10 | X18: 1 | Y18: 6 | Z18: 10 | AA18: 1 | AB18: 3 | AC18: 5 | AD18: 1 | AE18: 3 | AF18: 5 | AG18: 1 | AH18: 3 | AI18: 5 | AJ18: 1 | AK18: 3 | AL18: 5 | AM18: 1 | AN18: 3 | AO18: 5 | AQ18: 1 | AR18: 7 | AS18: 10 | AV18: 1 | AW18: 1 | AX18: 4 | BK18: 0 | BL18: 0 | BM18: 0 | BN18: 0 | BO18: 0 | BP18: 0 | BQ18: 0 | BR18: 0 | BS18: 0 | BT18: 0 | BU18: 0 | BV18: 0
B19: Pre-Drilling Exploration Costs | C19: per site | D19: 100000 | E19: 500000 | F19: 1000000 | H19: 100000 | I19: 500000 | J19: 1000000 | K19: 100000 | L19: 500000 | M19: 1000000 | N19: 100000 | O19: 500000 | P19: 1000000 | Q19: 100000 | R19: 500000 | S19: 1000000 | T19: 100000 | U19: 500000 | V19: 1000000 | X19: 100000 | Y19: 500000 | Z19: 1000000 | AA19: 150000 | AB19: 250000 | AC19: 500000 | AD19: 150000 | AE19: 250000 | AF19: 500000 | AG19: 150000 | AH19: 250000 | AI19: 500000 | AJ19: 150000 | AK19: 250000 | AL19: 500000 | AM19: 150000 | AN19: 250000 | AO19: 500000 | AQ19: 100000 | AR19: 500000 | AS19: 1000000 | AV19: 100000 | AW19: 500000 | AX19: 1000000 | BK19: 0 | BL19: 0 | BM19: 0 | BN19: 0 | BO19: 0 | BP19: 0 | BQ19: 0 | BR19: 0 | BS19: 0 | BT19: 0 | BU19: 0 | BV19: 0
B20: Number of Sites where Exploration Drilling Occurs | D20: 1 | E20: 5 | F20: 10 | H20: 1 | I20: 5 | J20: 10 | K20: 1 | L20: 5 | M20: 10 | N20: 1 | O20: 5 | P20: 10 | Q20: 1 | R20: 5 | S20: 10 | T20: 1 | U20: 5 | V20: 10 | X20: 1 | Y20: 5 | Z20: 10 | AA20: 1 | AB20: 2 | AC20: 3 | AD20: 1 | AE20: 2 | AF20: 3 | AG20: 1 | AH20: 2 | AI20: 3 | AJ20: 1 | AK20: 2 | AL20: 3 | AM20: 1 | AN20: 2 | AO20: 3 | AQ20: 1 | AR20: 5 | AS20: 10 | AV20: 1 | AW20: 1 | AX20: 4 | BK20: 0 | BL20: 0 | BM20: 0 | BN20: 0 | BO20: 0 | BP20: 0 | BQ20: 0 | BR20: 0 | BS20: 0 | BT20: 0 | BU20: 0 | BV20: 0
B21: Site Exploration Drilling Cost | C21: per site | D21: 1000000 | E21: 3000000 | F21: 7000000 | H21: 1000000 | I21: 3000000 | J21: 7000000 | K21: 1000000 | L21: 3000000 | M21: 7000000 | N21: 1000000 | O21: 3000000 | P21: 7000000 | Q21: 1000000 | R21: 3000000 | S21: 7000000 | T21: 1000000 | U21: 3000000 | V21: 7000000 | AA21: 1000000 | AB21: 1500000 | AC21: 2000000 | AD21: 1000000 | AE21: 1500000 | AF21: 2000000 | AG21: 1000000 | AH21: 1500000 | AI21: 2000000 | AJ21: 1000000 | AK21: 1500000 | AL21: 2000000 | AM21: 1000000 | AN21: 1500000 | AO21: 2000000
B22: Leasing Cost | C22: $/acre | D22: 2 | E22: 30 | F22: 1000 | H22: 2 | I22: 30 | J22: 1000 | K22: 2 | L22: 30 | M22: 1000 | N22: 2 | O22: 30 | P22: 1000 | Q22: 2 | R22: 30 | S22: 1000 | T22: 2 | U22: 30 | V22: 1000 | X22: 2 | Y22: 30 | Z22: 1000 | AA22: 2 | AB22: 30 | AC22: 1000 | AD22: 2 | AE22: 30 | AF22: 1000 | AG22: 2 | AH22: 30 | AI22: 1000 | AJ22: 2 | AK22: 30 | AL22: 1000 | AM22: 2 | AN22: 30 | AO22: 1000 | AQ22: 2 | AR22: 30 | AS22: 1000 | AV22: 2 | AW22: 30 | AX22: 1000 | BK22: 0 | BL22: 0 | BM22: 0 | BN22: 0 | BO22: 0 | BP22: 0 | BQ22: 0 | BR22: 0 | BS22: 0 | BT22: 0 | BU22: 0 | BV22: 0
B23: Number of Confirmation Drilling Sites Needed per Successful Project | D23: 1 | E23: 2 | F23: 4 | H23: 1 | I23: 2 | J23: 4 | K23: 1 | L23: 2 | M23: 4 | N23: 1 | O23: 2 | P23: 4 | Q23: 1 | R23: 2 | S23: 4 | T23: 1 | U23: 2 | V23: 4 | X23: 1 | Y23: 2 | Z23: 4 | AA23: 1 | AB23: 1.5 | AC23: 3 | AD23: 1 | AE23: 1.5 | AF23: 3 | AG23: 1 | AH23: 1.5 | AI23: 3 | AJ23: 1 | AK23: 1.5 | AL23: 3 | AM23: 1 | AN23: 1.5 | AO23: 3 | AQ23: 1 | AR23: 2 | AS23: 4 | AV23: 1 | AW23: 1.333333333 | AX23: 2 | BK23: 0 | BL23: 0 | BM23: 0 | BN23: 0 | BO23: 0 | BP23: 0 | BQ23: 0 | BR23: 0 | BS23: 0 | BT23: 0 | BU23: 0 | BV23: 0
B24: Confirmation Well Success Ratio at Successful Site | D24: 0.8 | E24: 0.6 | F24: 0.4 | H24: 0.8 | I24: 0.6 | J24: 0.4 | K24: 0.8 | L24: 0.6 | M24: 0.4 | N24: 0.8 | O24: 0.6 | P24: 0.4 | Q24: 0.8 | R24: 0.6 | S24: 0.4 | T24: 0.8 | U24: 0.6 | V24: 0.4 | X24: 0.8 | Y24: 0.6 | Z24: 0.4 | AA24: 1 | AB24: 1 | AC24: 0.8 | AD24: 1 | AE24: 1 | AF24: 0.8 | AG24: 1 | AH24: 1 | AI24: 0.8 | AJ24: 1 | AK24: 1 | AL24: 0.8 | AM24: 1 | AN24: 1 | AO24: 0.8 | AQ24: 0.8 | AR24: 0.6 | AS24: 0.4 | AV24: 1 | AW24: 1 | AX24: 0.8 | BK24: 0 | BL24: 0 | BM24: 0 | BN24: 0 | BO24: 0 | BP24: 0 | BQ24: 0 | BR24: 0 | BS24: 0 | BT24: 0 | BU24: 0 | BV24: 0
B25: Number of Confirmation Wells Required | D25: 1 | E25: 3 | F25: 6 | H25: 1 | I25: 3 | J25: 6 | K25: 1 | L25: 3 | M25: 6 | N25: 1 | O25: 3 | P25: 6 | Q25: 1 | R25: 3 | S25: 6 | T25: 1 | U25: 3 | V25: 6 | X25: 1 | Y25: 3 | Z25: 6 | AA25: 2 | AB25: 3 | AC25: 6 | AD25: 2 | AE25: 3 | AF25: 6 | AG25: 2 | AH25: 3 | AI25: 6 | AJ25: 2 | AK25: 3 | AL25: 6 | AM25: 2 | AN25: 3 | AO25: 6 | AQ25: 1 | AR25: 3 | AS25: 6 | AV25: 2 | AW25: 3 | AX25: 6 | BK25: 0 | BL25: 0 | BM25: 0 | BN25: 0 | BO25: 0 | BP25: 0 | BQ25: 0 | BR25: 0 | BS25: 0 | BT25: 0 | BU25: 0 | BV25: 0
B26: Multiplier for Confirmation Well Costs (>= 1) | D26: 1 | E26: 1.2 | F26: 1.5 | H26: 1 | I26: 1.2 | J26: 1.5 | K26: 1 | L26: 1.2 | M26: 1.5 | N26: 1 | O26: 1.2 | P26: 1.5 | Q26: 1 | R26: 1.2 | S26: 1.5 | T26: 1 | U26: 1.2 | V26: 1.5 | X26: 1 | Y26: 1.2 | Z26: 1.5 | AA26: 1 | AB26: 1.2 | AC26: 1.5 | AD26: 1 | AE26: 1.2 | AF26: 1.5 | AG26: 1 | AH26: 1.2 | AI26: 1.5 | AJ26: 1 | AK26: 1.2 | AL26: 1.5 | AM26: 1 | AN26: 1.2 | AO26: 1.5 | AQ26: 1 | AR26: 1.2 | AS26: 1.5 | AV26: 1 | AW26: 1.2 | AX26: 1.5 | BK26: 0 | BL26: 0 | BM26: 0 | BN26: 0 | BO26: 0 | BP26: 0 | BQ26: 0 | BR26: 0 | BS26: 0 | BT26: 0 | BU26: 0 | BV26: 0
B27: Confirmation Well Simulation Cost | C27: per injection well | D27: 0 | E27: 0 | F27: 0 | H27: 0 | I27: 0 | J27: 0 | K27: 0 | L27: 0 | M27: 0 | N27: 0 | O27: 0 | P27: 0 | Q27: 0 | R27: 0 | S27: 0 | T27: 0 | U27: 0 | V27: 0 | AA27: 1000000 | AB27: 2500000 | AC27: 5000000 | AD27: 1000000 | AE27: 2500000 | AF27: 5000000 | AG27: 1000000 | AH27: 2500000 | AI27: 5000000 | AJ27: 1000000 | AK27: 2500000 | AL27: 5000000 | AM27: 1000000 | AN27: 2500000 | AO27: 5000000 | AV27: 1000000 | AW27: 2500000 | AX27: 5000000 | BK27: 0 | BL27: 0 | BM27: 0 | BN27: 0 | BO27: 0 | BP27: 0 | BQ27: 0 | BR27: 0 | BS27: 0 | BT27: 0 | BU27: 0 | BV27: 0
B28: Drilling Success Rate during the final phase of well field development | D28: 0.9 | E28: 0.8 | F28: 0.6 | H28: 0.9 | I28: 0.8 | J28: 0.6 | K28: 0.9 | L28: 0.8 | M28: 0.6 | N28: 0.9 | O28: 0.8 | P28: 0.6 | Q28: 0.9 | R28: 0.8 | S28: 0.6 | T28: 0.9 | U28: 0.8 | V28: 0.6 | X28: 0.9 | Y28: 0.8 | Z28: 0.6 | AA28: 1 | AB28: 1 | AC28: 0.8 | AD28: 1 | AE28: 1 | AF28: 0.8 | AG28: 1 | AH28: 1 | AI28: 0.8 | AJ28: 1 | AK28: 1 | AL28: 0.8 | AM28: 1 | AN28: 1 | AO28: 0.8 | AQ28: 0.9 | AR28: 0.8 | AS28: 0.6 | AV28: 1 | AW28: 1 | AX28: 0.8 | BK28: 0 | BL28: 0 | BM28: 0 | BN28: 0 | BO28: 0 | BP28: 0 | BQ28: 0 | BR28: 0 | BS28: 0 | BT28: 0 | BU28: 0 | BV28: 0
B29: Ratio of Injection Wells to Production Wells | D29: 0.75 | E29: =3/4 -> 0.75 | F29: 2 | H29: 0.75 | I29: =3/4 -> 0.75 | J29: 2 | K29: 0.4 | L29: =3/4 -> 0.75 | M29: 2 | N29: 0.6 | O29: =3/4 -> 0.75 | P29: 2 | Q29: 0.3 | R29: =3/4 -> 0.75 | S29: 2 | T29: 0.75 | U29: =3/4 -> 0.75 | V29: 2 | X29: =1/3 -> 0.3333333333 | Y29: =2/3 -> 0.6666666667 | Z29: 2 | AA29: =1/2 -> 0.5 | AB29: =1/2 -> 0.5 | AC29: 1 | AD29: 0.5 | AE29: 0.5 | AF29: 1 | AG29: 0.5 | AH29: 0.5 | AI29: 1 | AJ29: 0.5 | AK29: 0.5 | AL29: 1 | AM29: 0.5 | AN29: 0.5 | AO29: 1 | AQ29: =1/3 -> 0.3333333333 | AR29: =2/3 -> 0.6666666667 | AS29: 2 | AV29: 0.3333333333 | AW29: 0.5 | AX29: 1 | BK29: 0.35 | BL29: 0 | BM29: 0 | BN29: 0.15 | BO29: 0 | BP29: 0 | BQ29: 0.45 | BR29: 0 | BS29: 0 | BT29: 0 | BU29: 0 | BV29: 0
B30: Production Well Cost Used | C30: per well | D30: 3000000 | E30: curve | F30: 9000000 | H30: 1500000 | I30: curve | J30: 7000000 | K30: 1500000 | L30: curve | M30: 7000000 | N30: 1500000 | O30: curve | P30: 7000000 | Q30: 3000000 | R30: curve | S30: 9000000 | T30: 3000000 | U30: curve | V30: 9000000 | X30: 2000000 | Y30: 4500000 | Z30: 7000000 | AA30: 3250000 | AB30: curve | AC30: 7250000 | AD30: 3500000 | AE30: curve | AF30: 9000000 | AG30: 6000000 | AH30: curve | AI30: 10000000 | AJ30: 6000000 | AK30: curve | AL30: 15000000 | AM30: 7500000 | AN30: curve | AO30: 17500000 | AQ30: 2000000 | AR30: 4500000 | AS30: 7000000 | AV30: 6000000 | AW30: 8000000 | AX30: 10000000 | BK30: 0 | BM30: 0 | BN30: 0 | BP30: 0 | BQ30: -1500000 | BS30: -2000000 | BT30: -1500000 | BV30: -2000000
B31: Injection Well Cost Used | C31: per well | D31: 3000000 | E31: curve | F31: 9000000 | H31: 1500000 | I31: curve | J31: 7000000 | K31: 1500000 | L31: curve | M31: 7000000 | N31: 1500000 | O31: curve | P31: 7000000 | Q31: 3000000 | R31: curve | S31: 9000000 | T31: 3000000 | U31: curve | V31: 9000000 | X31: 2000000 | Y31: 4500000 | Z31: 7000000 | AA31: 3250000 | AB31: curve | AC31: 7250000 | AD31: 3500000 | AE31: curve | AF31: 9000000 | AG31: 6000000 | AH31: curve | AI31: 10000000 | AJ31: 6000000 | AK31: curve | AL31: 15000000 | AM31: 7500000 | AN31: curve | AO31: 17500000 | AQ31: 2000000 | AR31: 4500000 | AS31: 7000000 | AV31: 6000000 | AW31: 8000000 | AX31: 10000000 | BK31: 0 | BM31: 0 | BN31: 0 | BP31: 0 | BQ31: -1500000 | BS31: -2000000 | BT31: -1500000 | BV31: -2000000
B32: Surface Equipment Cost per Well | D32: 100000 | E32: 200000 | F32: 400000 | H32: 100000 | I32: 200000 | J32: 400000 | K32: 150000 | L32: 250000 | M32: 450000 | N32: 100000 | O32: 200000 | P32: 400000 | Q32: 150000 | R32: 250000 | S32: 450000 | T32: 100000 | U32: 200000 | V32: 400000 | X32: 100000 | Y32: 200000 | Z32: 400000 | AA32: 100000 | AB32: 200000 | AC32: 400000 | AD32: 100000 | AE32: 200000 | AF32: 400000 | AG32: 100000 | AH32: 200000 | AI32: 400000 | AJ32: 150000 | AK32: 225000 | AL32: 400000 | AM32: 150000 | AN32: 225000 | AO32: 400000 | AQ32: 100000 | AR32: 200000 | AS32: 400000 | AV32: 100000 | AW32: 200000 | AX32: 400000 | BK32: -50000 | BL32: -50000 | BM32: -50000 | BN32: 0 | BO32: 0 | BP32: 0 | BQ32: -50000 | BR32: -50000 | BS32: -50000 | BT32: 0 | BU32: 0 | BV32: 0
B33: Permitting (Utilization Plan) for Field and Plant | D33: 500000 | E33: 1000000 | F33: 2000000 | H33: 500000 | I33: 1000000 | J33: 2000000 | K33: 500000 | L33: 1000000 | M33: 2000000 | N33: 500000 | O33: 1000000 | P33: 2000000 | Q33: 500000 | R33: 1000000 | S33: 2000000 | T33: 500000 | U33: 1000000 | V33: 2000000 | X33: 500000 | Y33: 1000000 | Z33: 2000000 | AA33: 500000 | AB33: 1000000 | AC33: 2000000 | AD33: 500000 | AE33: 1000000 | AF33: 2000000 | AG33: 500000 | AH33: 1000000 | AI33: 2000000 | AJ33: 500000 | AK33: 1000000 | AL33: 2000000 | AM33: 500000 | AN33: 1000000 | AO33: 2000000 | AQ33: 500000 | AR33: 1000000 | AS33: 2000000 | AV33: 500000 | AW33: 1000000 | AX33: 2000000 | BK33: 0 | BL33: 0 | BM33: 0 | BN33: 0 | BO33: 0 | BP33: 0 | BQ33: 0 | BR33: 0 | BS33: 0 | BT33: 0 | BU33: 0 | BV33: 0
B34: Production Well Flow Rate | C34: kg/s | D34: 160 | E34: 100 | F34: 70 | H34: 160 | I34: 100 | J34: 70 | K34: 110 | L34: 80 | M34: 50 | N34: 160 | O34: 100 | P34: 70 | Q34: 110 | R34: 80 | S34: 50 | T34: 160 | U34: 100 | V34: 70 | X34: 180 | Y34: 100 | Z34: 70 | AA34: 60 | AB34: 40 | AC34: 30 | AD34: 60 | AE34: 40 | AF34: 30 | AG34: 60 | AH34: 40 | AI34: 30 | AJ34: 60 | AK34: 40 | AL34: 30 | AM34: 60 | AN34: 40 | AO34: 30 | AQ34: 180 | AR34: 100 | AS34: 70 | AV34: 60 | AW34: 40 | AX34: 30 | BK34: 50 | BL34: 20 | BM34: 20 | BN34: 0 | BO34: 0 | BP34: 0 | BQ34: 50 | BR34: 20 | BS34: 20 | BT34: 0 | BU34: 0 | BV34: 0
B35: Production/Injection Well Stimulation Cost | D35: 0 | E35: 0 | F35: 0 | H35: 0 | I35: 0 | J35: 0 | K35: 0 | L35: 0 | M35: 0 | N35: 0 | O35: 0 | P35: 0 | Q35: 0 | R35: 0 | S35: 0 | T35: 0 | U35: 0 | V35: 0 | AA35: 1000000 | AB35: 2500000 | AC35: 5000000 | AD35: 1000000 | AE35: 2500000 | AF35: 5000000 | AG35: 1000000 | AH35: 2500000 | AI35: 5000000 | AJ35: 1000000 | AK35: 2500000 | AL35: 5000000 | AM35: 1000000 | AN35: 2500000 | AO35: 5000000 | AV35: 1000000 | AW35: 2500000 | AX35: 5000000 | BK35: 0 | BL35: 0 | BM35: 0 | BN35: 0 | BO35: 0 | BP35: 0 | BQ35: 0 | BR35: 0 | BS35: 0 | BT35: 0 | BU35: 0 | BV35: 0
B36: Reservoir Hydraulic Drawdown | D36: 0.2 | E36: 0.5 | F36: 1.2 | H36: 0.2 | I36: 0.4 | J36: 1.2 | K36: 0.2 | L36: 0.4 | M36: 1.2 | N36: 0.2 | O36: 0.4 | P36: 1.2 | Q36: 0.2 | R36: 0.5 | S36: 1.2 | T36: 0.2 | U36: 0.5 | V36: 1.2 | X36: 0.2 | Y36: 0.4 | Z36: 1.2 | AA36: 0.2 | AB36: 0.4 | AC36: 1 | AD36: 0.2 | AE36: 0.4 | AF36: 1.2 | AG36: 0.2 | AH36: 0.4 | AI36: 1.2 | AJ36: 0.2 | AK36: 0.5 | AL36: 1.2 | AM36: 0.2 | AN36: 0.5 | AO36: 1.2 | AQ36: 0.2 | AR36: 0.4 | AS36: 1.2 | AV36: 0.2 | AW36: 0.4 | AX36: 1.2 | BK36: 0 | BL36: 0 | BM36: 0 | BN36: 0 | BO36: 0 | BP36: 0 | BQ36: 0 | BR36: -0.1 | BS36: 0 | BT36: 0 | BU36: -0.1 | BV36: 0
B37: Annual Rate of Temperature Decline | D37: 0.002 | E37: 0.004 | F37: 0.01 | H37: 0.002 | I37: 0.004 | J37: 0.01 | K37: 0.003 | L37: 0.005 | M37: 0.0075 | N37: 0.002 | O37: 0.004 | P37: 0.01 | Q37: 0.003 | R37: 0.005 | S37: 0.0075 | T37: 0.002 | U37: 0.004 | V37: 0.01 | X37: 0.002 | Y37: 0.003 | Z37: 0.01 | AA37: 0.002 | AB37: 0.005 | AC37: 0.01 | AD37: 0.002 | AE37: 0.005 | AF37: 0.01 | AG37: 0.002 | AH37: 0.005 | AI37: 0.01 | AJ37: 0.002 | AK37: 0.005 | AL37: 0.01 | AM37: 0.002 | AN37: 0.005 | AO37: 0.01 | AQ37: 0.002 | AR37: 0.003 | AS37: 0.01 | AV37: 0.002 | AW37: 0.005 | AX37: 0.01 | BK37: -0.001 | BL37: -0.001 | BM37: 0.0025 | BN37: 0 | BO37: 0 | BP37: 0 | BQ37: -0.001 | BR37: -0.001 | BS37: 0.0025 | BT37: 0 | BU37: 0 | BV37: 0
B38: EGS Water Loss | D38: 0 | E38: 0 | F38: 0 | H38: 0 | I38: 0 | J38: 0 | K38: 0 | L38: 0 | M38: 0 | N38: 0 | O38: 0 | P38: 0 | Q38: 0 | R38: 0 | S38: 0 | T38: 0 | U38: 0 | V38: 0 | X38: 0 | Y38: 0 | Z38: 0 | AA38: 0.02 | AB38: 0.05 | AC38: 0.1 | AD38: 0.02 | AE38: 0.05 | AF38: 0.1 | AG38: 0.02 | AH38: 0.05 | AI38: 0.1 | AJ38: 0.02 | AK38: 0.05 | AL38: 0.1 | AM38: 0.02 | AN38: 0.05 | AO38: 0.1 | AQ38: 0 | AR38: 0 | AS38: 0 | AV38: 0.02 | AW38: 0.05 | AX38: 0.1 | BK38: 0 | BL38: 0 | BM38: 0 | BN38: 0 | BO38: 0 | BP38: 0 | BQ38: 0 | BR38: 0 | BS38: 0 | BT38: 0 | BU38: 0 | BV38: 0
B39: Make-up Water Cost | C39: per acre-ft | D39: 0 | E39: 0 | F39: 0 | H39: 0 | I39: 0 | J39: 0 | K39: 0 | L39: 0 | M39: 0 | N39: 0 | O39: 0 | P39: 0 | Q39: 0 | R39: 0 | S39: 0 | T39: 0 | U39: 0 | V39: 0 | X39: 0 | Y39: 0 | Z39: 0 | AA39: 800 | AB39: 2000 | AC39: 3000 | AD39: 800 | AE39: 2000 | AF39: 3000 | AG39: 800 | AH39: 2000 | AI39: 3000 | AJ39: 800 | AK39: 2000 | AL39: 3000 | AM39: 800 | AN39: 2000 | AO39: 3000 | AQ39: 0 | AR39: 0 | AS39: 0 | AV39: 800 | AW39: 2000 | AX39: 3000 | BK39: 0 | BL39: 0 | BM39: 0 | BN39: 0 | BO39: 0 | BP39: 0 | BQ39: 0 | BR39: 0 | BS39: 0 | BT39: 0 | BU39: 0 | BV39: 0
B40: Pump & Driver Efficiency for Production and Injection Pump | D40: 0.8 | E40: =0.75*0.9 -> 0.675 | F40: 0.6 | H40: 0.8 | I40: =0.75*0.9 -> 0.675 | J40: 0.6 | K40: 0.8 | L40: =0.75*0.9 -> 0.675 | M40: 0.6 | N40: 0.8 | O40: =0.75*0.9 -> 0.675 | P40: 0.6 | Q40: 0.8 | R40: =0.75*0.9 -> 0.675 | S40: 0.6 | T40: 0.8 | U40: =0.75*0.9 -> 0.675 | V40: 0.6 | X40: 0.8 | Y40: =0.75*0.9 -> 0.675 | Z40: 0.6 | AA40: 0.8 | AB40: 0.675 | AC40: 0.6 | AD40: 0.8 | AE40: 0.675 | AF40: 0.6 | AG40: 0.8 | AH40: 0.675 | AI40: 0.6 | AJ40: 0.8 | AK40: 0.675 | AL40: 0.6 | AM40: 0.8 | AN40: 0.675 | AO40: 0.6 | AQ40: 0.8 | AR40: =0.75*0.9 -> 0.675 | AS40: 0.6 | AV40: 0.8 | AW40: 0.675 | AX40: 0.6 | BK40: 0 | BL40: 0 | BM40: 0 | BN40: 0 | BO40: 0 | BP40: 0 | BQ40: 0 | BR40: 0 | BS40: 0 | BT40: 0 | BU40: 0 | BV40: 0
B41: Hole or Casing Diameter in Production Interval | C41: inch | D41: 14.5 | E41: default | F41: 8.25 | H41: 14.5 | I41: default | J41: 8.25 | K41: 14.5 | L41: default | M41: 8.25 | N41: 14.5 | O41: default | P41: 8.25 | Q41: 14.5 | R41: default | S41: 8.25 | T41: 14.5 | U41: default | V41: 8.25 | X41: 14.5 | Y41: 13.5 | Z41: 8.25 | AA41: 11.75 | AB41: default | AC41: 8.625 | AD41: 11.75 | AE41: default | AF41: 8.625 | AG41: 11.75 | AH41: default | AI41: 6.625 | AJ41: 8.625 | AK41: default | AL41: 6.625 | AM41: 8.625 | AN41: default | AO41: 6.625 | AQ41: 14.5 | AR41: 13.5 | AS41: 8.25 | AV41: 8.625 | AW41: 7.625 | AX41: 6.625 | BK41: 0 | BM41: 0 | BN41: 0 | BP41: 0 | BQ41: 0 | BS41: 0 | BT41: 0 | BV41: 0
B42: Adjustment to calculated production pump cost | D42: 0.7 | E42: 1 | F42: 2 | H42: 0.7 | I42: 1 | J42: 2 | K42: 0.7 | L42: 1 | M42: 2 | N42: 0.7 | O42: 1 | P42: 2 | Q42: 0.7 | R42: 1 | S42: 2 | T42: 0.7 | U42: 1 | V42: 2 | X42: 0.7 | Y42: 1 | Z42: 2 | AA42: 0.7 | AB42: 1 | AC42: 2 | AD42: 0.7 | AE42: 1 | AF42: 2 | AG42: 0.7 | AH42: 1 | AI42: 2 | AJ42: 0.7 | AK42: 1 | AL42: 2 | AM42: 0.7 | AN42: 1 | AO42: 2 | AQ42: 0.7 | AV42: 0.7 | AW42: 0.1 | AX42: 2 | BK42: 0 | BL42: 0 | BM42: 0 | BN42: 0 | BO42: 0 | BP42: 0 | BQ42: 0 | BR42: 0 | BS42: 0 | BT42: 0 | BU42: 0 | BV42: 0
B43: Hole or Casing Diameter in Injection Interval | C43: inch | D43: 14.5 | E43: default | F43: 8.25 | H43: 14.5 | I43: default | J43: 8.25 | K43: 14.5 | L43: default | M43: 8.25 | N43: 14.5 | O43: default | P43: 8.25 | Q43: 14.5 | R43: default | S43: 8.25 | T43: 14.5 | U43: default | V43: 8.25 | X43: 14.5 | Y43: 13.5 | Z43: 8.25 | AA43: 11.75 | AB43: default | AC43: 8.625 | AD43: 11.75 | AE43: default | AF43: 8.625 | AG43: 11.75 | AH43: default | AI43: 6.625 | AJ43: 8.625 | AK43: default | AL43: 6.625 | AM43: 8.625 | AN43: default | AO43: 6.625 | AQ43: 14.5 | AR43: 13.5 | AS43: 8.25 | AV43: 8.625 | AW43: 7.625 | AX43: 6.625 | BK43: 0 | BM43: 0 | BN43: 0 | BP43: 0 | BQ43: 0 | BS43: 0 | BT43: 0 | BV43: 0
B44: Labor Rate Multiplier (for Benefits, Overhead,, G&A) | D44: 1.2 | E44: 1.8 | F44: 2.2 | H44: 1.2 | I44: 1.8 | J44: 2.2 | K44: 1.2 | L44: 1.8 | M44: 2.2 | N44: 1.2 | O44: 1.8 | P44: 2.2 | Q44: 1.2 | R44: 1.8 | S44: 2.2 | T44: 1.2 | U44: 1.8 | V44: 2.2 | X44: 1.2 | Y44: 1.8 | Z44: 2.2 | AA44: 1.2 | AB44: 1.8 | AC44: 2.2 | AD44: 1.2 | AE44: 1.8 | AF44: 2.2 | AG44: 1.2 | AH44: 1.8 | AI44: 2.2 | AJ44: 1.2 | AK44: 1.8 | AL44: 2.2 | AM44: 1.2 | AN44: 1.8 | AO44: 2.2 | AQ44: 1.2 | AR44: 1.8 | AS44: 2.2 | AV44: 1.2 | AW44: 1.8 | AX44: 2.2 | BK44: 0 | BL44: 0 | BM44: 0 | BN44: 0 | BO44: 0 | BP44: 0 | BQ44: 0 | BR44: 0 | BS44: 0 | BT44: 0 | BU44: 0 | BV44: 0
B45: Adjustment to Staff | D45: 0.75 | E45: 1 | F45: 1.5 | H45: 0.75 | I45: 1 | J45: 1.5 | K45: 0.75 | L45: 1 | M45: 1.5 | N45: 0.75 | O45: 1 | P45: 1.5 | Q45: 0.75 | R45: 1 | S45: 1.5 | T45: 0.75 | U45: 1 | V45: 1.5 | X45: 0.75 | Y45: 1 | Z45: 1.5 | AA45: 0.75 | AB45: 1 | AC45: 1.5 | AD45: 0.75 | AE45: 1 | AF45: 1.5 | AG45: 0.75 | AH45: 1 | AI45: 1.5 | AJ45: 0.75 | AK45: 1 | AL45: 1.5 | AM45: 0.75 | AN45: 1 | AO45: 1.5 | AQ45: 0.7478132025 | AR45: 1 | AS45: 1.495626405 | AV45: 0.7478132025 | AW45: 1 | AX45: 1.495626405 | BK45: 0 | BL45: 0 | BM45: 0 | BN45: 0 | BO45: 0 | BP45: 0 | BQ45: 0 | BR45: 0 | BS45: 0 | BT45: 0 | BU45: 0 | BV45: 0
B46: Field Annual Maintenance (non-labor) | C46: of capital | D46: 0.005 | E46: 0.015 | F46: 0.04 | H46: 0.005 | I46: 0.015 | J46: 0.04 | K46: 0.005 | L46: 0.015 | M46: 0.04 | N46: 0.005 | O46: 0.015 | P46: 0.04 | Q46: 0.005 | R46: 0.015 | S46: 0.04 | T46: 0.005 | U46: 0.015 | V46: 0.04 | X46: 0.005 | Y46: 0.015 | Z46: 0.04 | AA46: 0.005 | AB46: 0.015 | AC46: 0.04 | AD46: 0.005 | AE46: 0.015 | AF46: 0.04 | AG46: 0.005 | AH46: 0.015 | AI46: 0.04 | AJ46: 0.005 | AK46: 0.015 | AL46: 0.04 | AM46: 0.005 | AN46: 0.015 | AO46: 0.04 | AQ46: 0.005 | AR46: 0.015 | AS46: 0.04 | AV46: 0.005 | AW46: 0.015 | AX46: 0.04 | BK46: 0 | BL46: 0 | BM46: 0 | BN46: 0 | BO46: 0 | BP46: 0 | BQ46: 0 | BR46: 0 | BS46: 0 | BT46: 0 | BU46: 0 | BV46: 0
B47: Plant Annual Maintenance (non-labor) | C47: of capital | D47: 0.012 | E47: 0.018 | F47: 0.022 | H47: 0.012 | I47: 0.018 | J47: 0.022 | K47: 0.012 | L47: 0.018 | M47: 0.022 | N47: 0.012 | O47: 0.018 | P47: 0.022 | Q47: 0.012 | R47: 0.018 | S47: 0.022 | T47: 0.012 | U47: 0.018 | V47: 0.022 | X47: 0.012 | Y47: 0.018 | Z47: 0.022 | AA47: 0.012 | AB47: 0.018 | AC47: 0.022 | AD47: 0.012 | AE47: 0.018 | AF47: 0.022 | AG47: 0.012 | AH47: 0.018 | AI47: 0.022 | AJ47: 0.012 | AK47: 0.018 | AL47: 0.022 | AM47: 0.012 | AN47: 0.018 | AO47: 0.022 | AQ47: 0.012 | AR47: 0.018 | AS47: 0.022 | AV47: 0.012 | AW47: 0.018 | AX47: 0.022 | BK47: 0 | BL47: 0 | BM47: 0 | BN47: 0 | BO47: 0 | BP47: 0 | BQ47: 0 | BR47: 0 | BS47: 0 | BT47: 0 | BU47: 0 | BV47: 0
B48: Geothermal Production Pump Life | C48: yr | D48: 5 | E48: 3 | F48: 1 | H48: 5 | I48: 3 | J48: 1 | K48: 5 | L48: 3 | M48: 1 | N48: 5 | O48: 3 | P48: 1 | Q48: 5 | R48: 3 | S48: 1 | T48: 5 | U48: 3 | V48: 1 | X48: 5 | Y48: 3 | Z48: 1 | AA48: 5 | AB48: 3 | AC48: 1 | AD48: 5 | AE48: 3 | AF48: 1 | AG48: 5 | AH48: 3 | AI48: 1 | AJ48: 5 | AK48: 3 | AL48: 1 | AM48: 5 | AN48: 3 | AO48: 1 | AQ48: 5 | AR48: 3 | AS48: 1 | AV48: 5 | AW48: 3 | AX48: 1 | BK48: 0 | BL48: 0 | BM48: 0 | BN48: 0 | BO48: 0 | BP48: 0 | BQ48: 0 | BR48: 0 | BS48: 0 | BT48: 0 | BU48: 0 | BV48: 0
B49: Transmission cost - miles of line | C49: miles | D49: 0 | E49: 0 | F49: 50 | H49: 0 | I49: 0 | J49: 50 | K49: 0 | L49: 0 | M49: 50 | N49: 0 | O49: 0 | P49: 50 | Q49: 0 | R49: 0 | S49: 50 | T49: 0 | U49: 0 | V49: 50 | X49: 0 | Y49: 0 | Z49: 50 | AA49: 0 | AB49: 0 | AC49: 50 | AD49: 0 | AE49: 0 | AF49: 50 | AG49: 0 | AH49: 0 | AI49: 50 | AJ49: 0 | AK49: 0 | AL49: 50 | AM49: 0 | AN49: 0 | AO49: 50 | AQ49: 0 | AR49: 0 | AS49: 50 | AV49: 0 | AW49: 0 | AX49: 50 | BK49: 0 | BL49: 0 | BM49: 0 | BN49: 0 | BO49: 0 | BP49: 0 | BQ49: 0 | BR49: 0 | BS49: 0 | BT49: 0 | BU49: 0 | BV49: 0
B50: Power Sales | C50: MW | D50: 25 | E50: 15 | F50: 5 | H50: 25 | I50: 15 | J50: 5 | K50: 50 | L50: 30 | M50: 20 | N50: 50 | O50: 30 | P50: 10 | Q50: 50 | R50: 40 | S50: 20 | T50: 25 | U50: 15 | V50: 5 | X50: 50 | Y50: 30 | Z50: 10 | AA50: 15 | AB50: 10 | AC50: 5 | AD50: 25 | AE50: 15 | AF50: 7 | AG50: 30 | AH50: 20 | AI50: 10 | AJ50: 40 | AK50: 25 | AL50: 15 | AM50: 40 | AN50: 30 | AO50: 20 | AQ50: 50 | AR50: 30 | AS50: 10 | AV50: 30 | AW50: 20 | AX50: 10 | BK50: -25 | BL50: -15 | BM50: -15 | BN50: -25 | BO50: -15 | BP50: -5 | BQ50: -25 | BR50: -25 | BS50: -15 | BT50: 0 | BU50: 0 | BV50: 0
B51: Flash Plant Wet Bulb Temperature | C51: F | D51: 40 | E51: 60 | F51: 80 | H51: 40 | I51: 60 | J51: 80 | K51: 40 | L51: 60 | M51: 80 | N51: 40 | O51: 60 | P51: 80 | Q51: 40 | R51: 60 | S51: 80 | T51: 40 | U51: 60 | V51: 80 | X51: 40 | Y51: 60 | Z51: 80 | AA51: 40 | AB51: 60 | AC51: 80 | AD51: 40 | AE51: 60 | AF51: 80 | AG51: 40 | AH51: 60 | AI51: 80 | AJ51: 40 | AK51: 60 | AL51: 80 | AM51: 40 | AN51: 60 | AO51: 80 | BK51: 0 | BL51: 0 | BM51: 0 | BN51: 0 | BO51: 0 | BP51: 0 | BQ51: 0 | BR51: 0 | BS51: 0 | BT51: 0 | BU51: 0 | BV51: 0
B52: Steam Turbine Efficiency | D52: 0.85 | E52: 0.8 | F52: 0.75 | H52: 0.85 | I52: 0.8 | J52: 0.75 | K52: 0.85 | L52: 0.8 | M52: 0.75 | N52: 0.85 | O52: 0.8 | P52: 0.75 | Q52: 0.85 | R52: 0.8 | S52: 0.75 | T52: 0.85 | U52: 0.8 | V52: 0.75 | X52: 0.85 | Y52: 0.8 | Z52: 0.75 | AA52: 0.85 | AB52: 0.8 | AC52: 0.75 | AD52: 0.85 | AE52: 0.8 | AF52: 0.75 | AG52: 0.85 | AH52: 0.8 | AI52: 0.75 | AJ52: 0.85 | AK52: 0.8 | AL52: 0.75 | AM52: 0.85 | AN52: 0.8 | AO52: 0.75 | BK52: 0 | BL52: 0 | BM52: 0 | BN52: 0 | BO52: 0 | BP52: 0 | BQ52: 0 | BR52: 0 | BS52: 0 | BT52: 0 | BU52: 0 | BV52: 0
B53: Flash Plant Pump Efficiency | D53: 0.8 | E53: 0.75 | F53: 0.7 | H53: 0.8 | I53: 0.75 | J53: 0.7 | K53: 0.8 | L53: 0.75 | M53: 0.7 | N53: 0.8 | O53: 0.75 | P53: 0.7 | Q53: 0.8 | R53: 0.75 | S53: 0.7 | T53: 0.8 | U53: 0.75 | V53: 0.7 | X53: 0.8 | Y53: 0.75 | Z53: 0.7 | AA53: 0.8 | AB53: 0.75 | AC53: 0.7 | AD53: 0.8 | AE53: 0.75 | AF53: 0.7 | AG53: 0.8 | AH53: 0.75 | AI53: 0.7 | AJ53: 0.8 | AK53: 0.75 | AL53: 0.7 | AM53: 0.8 | AN53: 0.75 | AO53: 0.7 | BK53: 0 | BL53: 0 | BM53: 0 | BN53: 0 | BO53: 0 | BP53: 0 | BQ53: 0 | BR53: 0 | BS53: 0 | BT53: 0 | BU53: 0 | BV53: 0
B54: Flash Plant Cooling Water Temperature Rise | C54: ΔF | D54: 15 | E54: 22.5 | F54: 30 | H54: 15 | I54: 22.5 | J54: 30 | K54: 15 | L54: 20 | M54: 30 | N54: 15 | O54: 22.5 | P54: 30 | Q54: 15 | R54: 22.5 | S54: 30 | T54: 15 | U54: 22.5 | V54: 30 | X54: 15 | Y54: 22.5 | Z54: 30 | AA54: 15 | AB54: 22.5 | AC54: 30 | AD54: 15 | AE54: 22.5 | AF54: 30 | AG54: 15 | AH54: 22.5 | AI54: 30 | AJ54: 15 | AK54: 20 | AL54: 30 | AM54: 15 | AN54: 24 | AO54: 30 | BK54: 0 | BL54: 2.5 | BM54: 0 | BN54: 0 | BO54: 0 | BP54: 0 | BQ54: 0 | BR54: 0 | BS54: 0 | BT54: 0 | BU54: 0 | BV54: 0
B55: Flash Plant ncg level | C55: ppm | D55: 200 | E55: 2000 | F55: 20000 | H55: 200 | I55: 2000 | J55: 20000 | K55: 200 | L55: 2000 | M55: 20000 | N55: 200 | O55: 2000 | P55: 20000 | Q55: 200 | R55: 2000 | S55: 20000 | T55: 200 | U55: 2000 | V55: 20000 | X55: 200 | Y55: 2000 | Z55: 20000 | AA55: 200 | AB55: 2000 | AC55: 20000 | AD55: 200 | AE55: 2000 | AF55: 20000 | AG55: 200 | AH55: 2000 | AI55: 20000 | AJ55: 200 | AK55: 2000 | AL55: 20000 | AM55: 200 | AN55: 2000 | AO55: 20000 | BK55: 0 | BL55: 0 | BM55: 0 | BN55: 0 | BO55: 0 | BP55: 0 | BQ55: 0 | BR55: 0 | BS55: 0 | BT55: 0 | BU55: 0 | BV55: 0
B56: Flash Plant H2S level | C56: ppm | D56: 0 | E56: 20 | F56: 200 | H56: 0 | I56: 20 | J56: 200 | K56: 0 | L56: 20 | M56: 200 | N56: 0 | O56: 20 | P56: 200 | Q56: 0 | R56: 20 | S56: 200 | T56: 0 | U56: 20 | V56: 200 | X56: 0 | Y56: 20 | Z56: 200 | AA56: 0 | AB56: 20 | AC56: 200 | AD56: 0 | AE56: 20 | AF56: 200 | AG56: 0 | AH56: 20 | AI56: 200 | AJ56: 0 | AK56: 20 | AL56: 200 | AM56: 0 | AN56: 20 | AO56: 200 | BK56: 0 | BL56: 0 | BM56: 0 | BN56: 0 | BO56: 0 | BP56: 0 | BQ56: 0 | BR56: 0 | BS56: 0 | BT56: 0 | BU56: 0 | BV56: 0
B57: Turbine-Generator Cost | D57: 0.5 | E57: 1 | F57: 2 | H57: 0.5 | I57: 1 | J57: 2 | K57: 0.5 | L57: 1 | M57: 2 | N57: 0.5 | O57: 1 | P57: 2 | Q57: 0.5 | R57: 1 | S57: 2 | T57: 0.5 | U57: 1 | V57: 2 | X57: 0.5 | Y57: 1 | Z57: 2 | AA57: 0.5 | AB57: 1 | AC57: 2 | AD57: 0.5 | AE57: 1 | AF57: 2 | AG57: 0.5 | AH57: 1 | AI57: 2 | AJ57: 0.5 | AK57: 1 | AL57: 2 | AM57: 0.5 | AN57: 1 | AO57: 2 | AQ57: 0.5 | AR57: 1 | AS57: 2 | AV57: 0.5 | AW57: 1 | AX57: 2 | BK57: 0 | BL57: 0 | BM57: 0 | BN57: 0 | BO57: 0 | BP57: 0 | BQ57: 0 | BR57: 0 | BS57: 0 | BT57: 0 | BU57: 0 | BV57: 0
B58: Heat Rejection Equipment | D58: 0.5 | E58: 1 | F58: 2 | H58: 0.5 | I58: 1 | J58: 2 | K58: 0.5 | L58: 1 | M58: 2 | N58: 0.5 | O58: 1 | P58: 2 | Q58: 0.5 | R58: 1 | S58: 2 | T58: 0.5 | U58: 1 | V58: 2 | X58: 0.5 | Y58: 1 | Z58: 2 | AA58: 0.5 | AB58: 1 | AC58: 2 | AD58: 0.5 | AE58: 1 | AF58: 2 | AG58: 0.5 | AH58: 1 | AI58: 2 | AJ58: 0.5 | AK58: 1 | AL58: 2 | AM58: 0.5 | AN58: 1 | AO58: 2 | AQ58: 0.5 | AR58: 1 | AS58: 2 | AV58: 0.5 | AW58: 1 | AX58: 2 | BK58: 0 | BL58: 0 | BM58: 0 | BN58: 0 | BO58: 0 | BP58: 0 | BQ58: 0 | BR58: 0 | BS58: 0 | BT58: 0 | BU58: 0 | BV58: 0
B59: GF Heaters | D59: 0.5 | E59: 1 | F59: 2 | H59: 0.5 | I59: 1 | J59: 2 | K59: 0.5 | L59: 1 | M59: 2 | N59: 0.5 | O59: 1 | P59: 2 | Q59: 0.5 | R59: 1 | S59: 2 | T59: 0.5 | U59: 1 | V59: 2 | X59: 0.5 | Y59: 1 | Z59: 2 | AA59: 0.5 | AB59: 1 | AC59: 2 | AD59: 0.5 | AE59: 1 | AF59: 2 | AG59: 0.5 | AH59: 1 | AI59: 2 | AJ59: 0.5 | AK59: 1 | AL59: 2 | AM59: 0.5 | AN59: 1 | AO59: 2 | AQ59: 0.5 | AR59: 1 | AS59: 2 | AV59: 0.5 | AW59: 1 | AX59: 2 | BK59: 0 | BL59: 0 | BM59: 0 | BN59: 0 | BO59: 0 | BP59: 0 | BQ59: 0 | BR59: 0 | BS59: 0 | BT59: 0 | BU59: 0 | BV59: 0
B60: Plant Pumps | D60: 0.5 | E60: 1 | F60: 2 | H60: 0.5 | I60: 1 | J60: 2 | K60: 0.5 | L60: 1 | M60: 2 | N60: 0.5 | O60: 1 | P60: 2 | Q60: 0.5 | R60: 1 | S60: 2 | T60: 0.5 | U60: 1 | V60: 2 | X60: 0.5 | Y60: 1 | Z60: 2 | AA60: 0.5 | AB60: 1 | AC60: 2 | AD60: 0.5 | AE60: 1 | AF60: 2 | AG60: 0.5 | AH60: 1 | AI60: 2 | AJ60: 0.5 | AK60: 1 | AL60: 2 | AM60: 0.5 | AN60: 1 | AO60: 2 | AQ60: 0.5 | AR60: 1 | AS60: 2 | AV60: 0.5 | AW60: 1 | AX60: 2 | BK60: 0 | BL60: 0 | BM60: 0 | BN60: 0 | BO60: 0 | BP60: 0 | BQ60: 0 | BR60: 0 | BS60: 0 | BT60: 0 | BU60: 0 | BV60: 0
B61: NCG Removal System Cost | D61: 0.5 | E61: 1 | F61: 3 | H61: 0.5 | I61: 1 | J61: 3 | K61: 0.5 | L61: 1 | M61: 3 | N61: 0.5 | O61: 1 | P61: 3 | Q61: 0.5 | R61: 1 | S61: 3 | T61: 0.5 | U61: 1 | V61: 3 | X61: 0.5 | Y61: 1 | Z61: 3 | AA61: 0.5 | AB61: 1 | AC61: 3 | AD61: 0.5 | AE61: 1 | AF61: 3 | AG61: 0.5 | AH61: 1 | AI61: 3 | AJ61: 0.5 | AK61: 1 | AL61: 3 | AM61: 0.5 | AN61: 1 | AO61: 3 | BK61: 0 | BL61: 0 | BM61: 0 | BN61: 0 | BO61: 0 | BP61: 0 | BQ61: 0 | BR61: 0 | BS61: 0 | BT61: 0 | BU61: 0 | BV61: 0
B62: H2S Abatement System Cost | D62: 0.5 | E62: 1 | F62: 4 | H62: 0.5 | I62: 1 | J62: 4 | K62: 0.5 | L62: 1 | M62: 4 | N62: 0.5 | O62: 1 | P62: 4 | Q62: 0.5 | R62: 1 | S62: 4 | T62: 0.5 | U62: 1 | V62: 4 | X62: 0.5 | Y62: 1 | Z62: 4 | AA62: 0.5 | AB62: 1 | AC62: 4 | AD62: 0.5 | AE62: 1 | AF62: 4 | AG62: 0.5 | AH62: 1 | AI62: 4 | AJ62: 0.5 | AK62: 1 | AL62: 4 | AM62: 0.5 | AN62: 1 | AO62: 4 | BK62: 0 | BL62: 0 | BM62: 0 | BN62: 0 | BO62: 0 | BP62: 0 | BQ62: 0 | BR62: 0 | BS62: 0 | BT62: 0 | BU62: 0 | BV62: 0
B63: Direct Construction Cost Multiplier | D63: 2.25 | E63: calc | F63: 3 | H63: 2.25 | I63: calc | J63: 3 | K63: 2 | L63: calc | M63: 3 | N63: 2.25 | O63: calc | P63: 3 | Q63: 2 | R63: calc | S63: 3 | T63: 2.25 | U63: calc | V63: 3 | X63: 2.25 | Y63: calc | Z63: 3 | AA63: 2.25 | AB63: calc | AC63: 3 | AD63: 2.25 | AE63: calc | AF63: 3 | AG63: 2.25 | AH63: calc | AI63: 3 | AJ63: 2 | AK63: calc | AL63: 3 | AM63: 2 | AN63: calc | AO63: 3 | AQ63: 2.25 | AR63: calc | AS63: 3 | AV63: 2.25 | AW63: calc | AX63: 3 | BK63: 0.25 | BM63: 0 | BN63: 0 | BP63: 0 | BQ63: 0.25 | BS63: 0 | BT63: 0 | BV63: 0
B64: Indirect Plant Construction Cost % | D64: 0.06 | E64: 0.12 | F64: 0.15 | H64: 0.06 | I64: 0.12 | J64: 0.15 | K64: 0.06 | L64: 0.12 | M64: 0.15 | N64: 0.06 | O64: 0.12 | P64: 0.15 | Q64: 0.06 | R64: 0.12 | S64: 0.15 | T64: 0.06 | U64: 0.12 | V64: 0.15 | X64: =AM64 -> 0.06 | Y64: 0.08 | Z64: 0.15 | AA64: 0.06 | AB64: 0.12 | AC64: 0.15 | AD64: 0.06 | AE64: 0.12 | AF64: 0.15 | AG64: 0.06 | AH64: 0.12 | AI64: 0.15 | AJ64: 0.06 | AK64: 0.12 | AL64: 0.15 | AM64: 0.06 | AN64: 0.12 | AO64: 0.15 | AQ64: 0.06 | AR64: 0.08 | AS64: 0.15 | AV64: 0.06 | AW64: 0.08 | AX64: 0.15 | BK64: 0 | BL64: 0 | BM64: 0 | BN64: 0 | BO64: 0 | BP64: 0 | BQ64: 0 | BR64: 0 | BS64: 0 | BT64: 0 | BU64: 0 | BV64: 0
B65: Plant Capital cost | D65: 0.8 | E65: 1 | F65: 1.5 | H65: 0.8 | I65: 1 | J65: 1.5 | K65: 0.85 | L65: 1 | M65: 1.3333 | N65: 0.8 | O65: 1 | P65: 1.5 | Q65: 0.85 | R65: 1 | S65: 1.3333 | T65: 0.8 | U65: 1 | V65: 1.5 | X65: =AM65 -> 0.85 | Y65: 1 | Z65: 1.5 | AA65: 0.8 | AB65: 1 | AC65: 1.5 | AD65: 0.8 | AE65: 1 | AF65: 1.5 | AG65: 0.8 | AH65: 1 | AI65: 1.5 | AJ65: 0.85 | AK65: 1 | AL65: 1.3333 | AM65: 0.85 | AN65: 1 | AO65: 1.3333 | AQ65: 0.8 | AR65: 1 | AS65: 1.5 | AV65: 0.85 | AW65: 1 | AX65: 1.15 | BK65: -0.05 | BL65: 0 | BM65: 0.1667 | BN65: 0 | BO65: 0 | BP65: 0 | BQ65: -0.05 | BR65: 0 | BS65: 0.1667 | BT65: 0 | BU65: 0 | BV65: 0
B66: Plant Performance | C66: w-hr/lb

Sheet Waterfall
A1: This sheet prepares a 'waterfall' chart that graphically shows how technology improvements in the GTP work breakdown structure (WBS) categories impact the calculated LCOE's. Confirm that the technology years (yellow boxes) are correctly match the years shown in Cells C5 and J5 - if not modify text in Cells C6 and J6. To run the scenarios that fill results into the waterfall chart, click on the blue bar, which runs a macro that steps thru the calculations. If an error occurs, check sheet 'Binary A1' and confirm the initial estimate of the brine effectiveness is ~50% of the maximum value (Cell D28). Note if a scenario utilizes a flash plant, the model will attempt to optimize the binary plant - this is not an issue, the results using a flash plant will be displayed. | T1: ='Input A1'!A48 -> 0
B4: Technology Year | C4: =INPUT!R35 -> 2012 | D4: NEED TO CHANGE YEAR IN CELLS WITH YELLOW BACKGROUND BELOW TO MATCH TECHNOLOGY YEAR | J4: =INPUT!T35 -> 2020
C5: WBS Level
A6: Component | C6: 2011 LCOE | D6: 1. Characterize Resource & Develop Well Field | E6: 2. Power Plant | F6: 3. O&M | G6: 4. Deployment Barriers | H6: 5. System Validation | I6: 2030 LCOE | L6: Ref | M6: Imp | O6: Improved Financing | P6: Improved WBS 1-4 | Q6: Improved WBS 1-5
A7: Blank Space | D7: =C14-SUM(D9:D13) -> 25.92667183 | E7: =D7-SUM(E8:E13) -> 0 | F7: =E7-SUM(F8:F13) -> -24.2292205 | G7: =F7-SUM(G8:G13) -> -47.04416423 | H7: =G7-SUM(H8:H13) -> -64.91393726 | L7: =SUM(L8:L13) -> 0.3247768522 | M7: =SUM(M8:M13) -> 0.3247768522 | O7: =SUM(O8:O13) -> 0.3247768522 | P7: =SUM(P8:P13) -> 0.3247768522 | Q7: =SUM(Q8:Q13) -> 0.3247768522
A8: Blank Space | D8: =C14-SUM(D9:D13) -> 25.92667183 | E8: =D8-SUM(E9:E13) -> 24.2292205 | F8: =E8-SUM(F9:F13) -> 22.81494374 | G8: =F8-SUM(G9:G13) -> 17.86977303 | H8: =G8-SUM(H9:H13) -> 13.83807121 | I8: 0
A9: Financing Risk Premium | C9: =O9*100 -> 7.329192741 | G9: =2/3*O9*100 -> 4.886128494 | H9: =1/3*O9*100 -> 2.443064247 | I9: 0 | M9: =L14-M14 -> 0.1863961401 | O9: 0.07329192741 | P9: 0.1705097644 | Q9: 0.1863961401
A10: Deployment Barriers & Costs | C10: 0.2477614325 | G10: =(O10-P10)*100 -> 0.05904221332 | H10: =(P10-Q10)*100 -> 0.08041733854 | I10: =Q10*100 -> 0.1083018806 | L10: =IF(T1=0,'EERE COE'!D132,'FRC cost summary'!C27*(1+'FRC cost summary'!C5)) -> 0.005316770692 | M10: =IF(T1=0,'EERE COE'!D276,'FRC cost summary'!D27*(1+'FRC cost summary'!D5)) -> 0.001083018806 | O10: 0.002477614325 | P10: 0.001887192192 | Q10: 0.001083018806
A11: Operation & Maintenance (O&M) Costs | C11: 5.060570419 | F11: =(O11-P11)*100 -> 1.41427676 | H11: =(P11-Q11)*100 -> 0.2300494964 | I11: =Q11*100 -> 3.416244163 | L11: =IF(T1=0,'EERE COE'!D133+'EERE COE'!E135,'FRC cost summary'!C40) -> 0.05236114183 | M11: =IF(T1=0,'EERE COE'!D277+'EERE COE'!E279,'FRC cost summary'!D40) -> 0.03416244163 | O11: 0.05060570419 | P11: 0.0364629366 | Q11: 0.03416244163
A12: Power Plant Cost/Performance | C12: 7.536688452 | E12: =(O12-P12)*100 -> 1.697451336 | H12: =(P12-Q12)*100 -> 0.3252747945 | I12: =Q12*100 -> 5.513962322 | L12: =IF(T1=0,'EERE COE'!D131,'FRC cost summary'!C30*(1+'FRC cost summary'!C5)) -> 0.07635579214 | M12: =IF(T1=0,'EERE COE'!D275,'FRC cost summary'!D30*(1+'FRC cost summary'!D5)) -> 0.05513962322 | O12: 0.07536688452 | P12: 0.05839237116 | Q12: 0.05513962322
A13: Characterize Resources & Develop Well Field | C13: 12.30347217 | D13: =(O13-P13)*100 -> 6.551013386 | H13: =(P13-Q13)*100 -> 0.9528959427 | I13: =Q13*100 -> 4.799562845 | L13: =IF(T1=0,'EERE COE'!D127+'EERE COE'!D128+'EERE COE'!D129+'EERE COE'!D130,('FRC cost summary'!C25+'FRC cost summary'!C26+'FRC cost summary'!C28+'FRC cost summary'!C29)*(1+'FRC cost summary'!C5)) -> 0.1907431475 | M13: =IF(T1=0,'EERE COE'!D271+'EERE COE'!D272+'EERE COE'!D273+'EERE COE'!D274,('FRC cost summary'!D25+'FRC cost summary'!D26+'FRC cost summary'!D28+'FRC cost summary'!D29)*('FRC cost summary'!D5+1)) -> 0.04799562845 | O13: 0.1230347217 | P13: 0.05752458787 | Q13: 0.04799562845
A14: LCOE | C14: =SUM(C9:C13) -> 32.47768522 | I14: =SUM(I9:I13) -> 13.83807121 | L14: =IF(T1=0,'EERE COE'!D124,'FRC cost summary'!C42) -> 0.3247768522 | M14: =IF(T1=0,'EERE COE'!D268,'FRC cost summary'!D42) -> 0.1383807121 | O14: 0.2514849248 | P14: 0.1542670878 | Q14: 0.1383807121

Sheet master Improvements
E1: ='Input A1'!A75 -> 0
D2: Do You wish to run the improved scenario defaults enter 1 if yes, 0 if no | E2: 1 | I2: Ref LCOE | J2: Imp LCOE
D3: Run all improvements (1) or by WBS (0) | E3: 0 | I3: =INPUT!R23 -> 32.47768522 | J3: =INPUT!U23 -> 13.83807121
D4: Financing Risk Premium | E4: 1
D5: 1. Characterize, Access & Create Reseroirs, Develop Well Fields | E5: 1
D6: 2. Power Plant Cost and Performance | E6: 1
D7: 3. Operation & Maintenance (O&M) Costs | E7: 1
D8: 4. Deployment Barriers & Costs | E8: 1
D9: 5. System Validation | E9: 1
E10: 0
E12: =MATCH(E13,I13:S13,0) -> 5 | I12: 1 | J12: 2 | K12: 3 | L12: 4 | M12: 5 | N12: 6 | O12: 7 | P12: 8 | Q12: 9 | R12: 10 | S12: 11
A13: RESOURCE DEFINITION | E13: ='master list of 10-90s'!E5 -> Hydro E | G13: =LOOKUP($E12,$I$12:$S$12,I13:S13) -> Hydro E | I13: ='master list of 10-90s'!I5 -> Hydro A | J13: ='master list of 10-90s'!L5 -> Hydro B | K13: ='master list of 10-90s'!O5 -> Hydro C | L13: ='master list of 10-90s'!R5 -> Hydro D | M13: ='master list of 10-90s'!U5 -> Hydro E | O13: ='master list of 10-90s'!AB5 -> EGS A | P13: ='master list of 10-90s'!AE5 -> EGS B | Q13: ='master list of 10-90s'!AH5 -> EGS C | R13: ='master list of 10-90s'!AK5 -> EGS D | S13: ='master list of 10-90s'!AN5 -> EGS E | AC13: EGS - C | AD13: Hydrothermal -C
G14: =LOOKUP($E$12,$I$12:$S$12,I14:S14) -> E | I14: A | J14: B | K14: C | L14: D | M14: E | O14: A | P14: B | Q14: C | R14: D | S14: E | AC14: 2011-12-01 | AD14: 2011-12-01
A15: TECHNOLOGY YEAR | E15: =IF(E2=0,INPUT!R35,G15) -> 2020 | G15: =LOOKUP($E$12,$I$12:$S$12,I15:S15) -> 2020 | I15: 2020 | J15: 2020 | K15: 2020 | L15: 2020 | M15: 2020 | O15: 2030 | P15: 2030 | Q15: 2030 | R15: 2030 | S15: 2030 | AC15: 2030 | AD15: 2020
A16: Case Being Evaluated | E16: Values Used | G16: Improvements for Evaluated Case
A17: ECONOMIC PARAMETERS
A18: General Project Variables : | C18: =SUM(C19:C242) -> -1 | D18: =SUM(D19:D242) -> 0
A19: Utilization Factor | C19: =G19-K19 -> 0 | D19: =IF(E$2=0,0,IF(E19=G19,0,1)) -> 0 | E19: =IF(E$2=0,1,IF(E$3=1,G19,IF(E$9=1,G19,1))) -> 1 | G19: =LOOKUP($E$12,$I$12:$S$12,I19:S19) -> 1 | I19: 1 | J19: 1 | K19: 1 | L19: 1 | M19: 1 | O19: 1 | P19: 1 | Q19: 1 | R19: 1 | S19: 1 | AC19: 1 | AD19: 1
A20: Contingency | C20: 0 | D20: =IF(E$2=0,0,IF(E20=G20,0,1)) -> 0 | E20: =IF(E$2=0,1,IF(E$3=1,G20,IF(E$9=1,G20,1))) -> 0.6666666667 | G20: =LOOKUP($E$12,$I$12:$S$12,I20:S20) -> 0.6666666667 | I20: 0.6666666667 | J20: 0.6666666667 | K20: 0.6666666667 | L20: 0.6666666667 | M20: 0.6666666667 | O20: =2/3 -> 0.6666666667 | P20: 0.6666666667 | Q20: 0.6666666667 | R20: 0.6666666667 | S20: 0.6666666667 | AC20: 0.6666666667 | AD20: =10/15 -> 0.6666666667
A21: Royalty (thru Yr 10) | C21: 0 | D21: 0 | E21: =IF(E$2=0,1,IF(E$3=1,G21,IF(E$7=1,G21,1))) -> 1 | G21: 1 | I21: 1 | J21: 1 | K21: 1 | L21: 1 | M21: 1 | O21: 1 | P21: 1 | Q21: 1 | R21: 1 | S21: 1 | AC21: 1 | AD21: 1
A22: Royalty (after Yr 10) | C22: 0 | D22: 0 | E22: =IF(E$2=0,1,IF(E$3=1,G22,IF(E$7=1,G22,1))) -> 1 | G22: 1 | I22: 1 | J22: 1 | K22: 1 | L22: 1 | M22: 1 | O22: 1 | P22: 1 | Q22: 1 | R22: 1 | S22: 1 | AC22: 1 | AD22: 1
A23: Discount Rate | C23: 0 | D23: 0 | E23: 1 | G23: 1 | I23: 1 | J23: 1 | K23: 1 | L23: 1 | M23: 1 | O23: 1 | P23: 1 | Q23: 1 | R23: 1 | S23: 1 | AC23: 1 | AD23: 1
A24: Effective Tax Rate | C24: 0 | D24: 0 | E24: =IF(E$2=0,1,IF(E$3=1,G24,IF(E$7=1,G24,1))) -> 1 | G24: 1 | I24: 1 | J24: 1 | K24: 1 | L24: 1 | M24: 1 | O24: 1 | P24: 1 | Q24: 1 | R24: 1 | S24: 1 | AC24: 1 | AD24: 1
A25: Project Life (Period of Operation) | C25: 0 | D25: 0 | E25: 1 | G25: 1 | I25: 1 | J25: 1 | K25: 1 | L25: 1 | M25: 1 | O25: 1.5 | P25: 1.5 | Q25: 1.5 | R25: 1.5 | S25: 1.5 | AC25: 1.5 | AD25: 1
A26: Calculations based on Fixed Charge Rate (FCR) of | C26: 0 | D26: 0 | E26: =IF(E$2=0,1,IF(E$3=1,G26,IF(E$4=1,G26,1))) -> 1 | G26: 1 | I26: 1 | J26: 1 | K26: 1 | L26: 1 | M26: 1 | O26: 1 | P26: 1 | Q26: 1 | R26: 1 | S26: 1 | AC26: 1 | AD26: 1
A27: Project Schedule & Durations : | C27: 0
A28: Duration of Exploration Phase | C28: 0 | D28: 0 | E28: =IF(E$2=0,INPUT!R52,IF(E$3=1,G28,IF(E$5=1,G28,INPUT!R52))) -> 1 | G28: =LOOKUP($E$12,$I$12:$S$12,I28:S28) -> 1 | I28: 1 | J28: 1 | K28: 1 | L28: 1 | M28: 1 | O28: 1 | P28: 1 | Q28: 1 | R28: 1 | S28: 1 | AC28: 1 | AD28: 1
A29: Duration of Confirmation Phase | C29: 0 | D29: 0 | E29: =IF(E$2=0,INPUT!R53,IF(E$3=1,G29,IF(E$5=1,G29,INPUT!R53))) -> 1 | G29: 1 | I29: 1 | J29: 1 | K29: 1 | L29: 1 | M29: 1 | O29: 1 | P29: 1 | Q29: 1 | R29: 1 | S29: 1 | AC29: 1 | AD29: 1
A30: Duration of Well Field Development Phase | C30: 0 | D30: 0 | E30: =IF(E$2=0,INPUT!R55,IF(E$3=1,G30,IF(E$5=1,G30,INPUT!R55))) -> 1.25 | G30: 1.25 | I30: 1.25 | J30: 1.25 | K30: 1.25 | L30: 1.25 | M30: 1.25 | O30: 1.5 | P30: 1.5 | Q30: 1.5 | R30: 1.5 | S30: 1.5 | AC30: 1.5 | AD30: 1.5
A31: Duration of Plant Design and Construction | C31: 0 | D31: 0 | E31: =IF(E$2=0,INPUT!R56,IF(E$3=1,G31,IF(E$6=1,G31,INPUT!R56))) -> 1.5 | G31: 1.5 | I31: 1.5 | J31: 1.5 | K31: 1.5 | L31: 1.5 | M31: 1.5 | O31: 1.5 | P31: 1.5 | Q31: 1.5 | R31: 1.5 | S31: 1.5 | AC31: 1.5 | AD31: 1.5
A32: Duration of Decommissioning, Dismantlement, & Demolition | C32: 0 | D32: 0 | E32: =IF(E$2=0,INPUT!R59,G32) -> 0 | G32: 0 | I32: 0 | J32: 0 | K32: 0 | L32: 0 | M32: 0 | O32: 0 | P32: 0 | Q32: 0 | R32: 0 | S32: 0 | AC32: 0 | AD32: 0
A33: Pre-Operation Discount Rate (by Project Phase) | C33: 0
A34: Exploration | C34: 0 | D34: 0 | E34: =IF(E$2=0,INPUT!R62,IF(E$3=1,G34,IF(E$4=1,G34,INPUT!R62))) -> 0.07 | G34: =LOOKUP($E$12,$I$12:$S$12,I34:S34) -> 0.07 | I34: =7%*1+0.3*0 -> 0.07 | J34: 0.07 | K34: 0.07 | L34: 0.07 | M34: 0.07 | O34: =7%*1+0.3*0 -> 0.07 | P34: =7%*1+0.3*0 -> 0.07 | Q34: 0.07 | R34: 0.07 | S34: =7%*1+0.3*0 -> 0.07 | AC34: 0.07 | AD34: 0.07
A35: Confirmation | C35: 0 | D35: 0 | E35: =IF(E$2=0,INPUT!R63,IF(E$3=1,G35,IF(E$4=1,G35,INPUT!R63))) -> 0.07 | G35: 0.07 | I35: 0.07 | J35: 0.07 | K35: 0.07 | L35: 0.07 | M35: 0.07 | O35: =7%*1+0.3*0 -> 0.07 | P35: 0.07 | Q35: 0.07 | R35: 0.07 | S35: =7%*1+0.3*0 -> 0.07 | AC35: 0.07 | AD35: 0.07
A36: Well Field Development (including Stimulation) | C36: 0 | D36: 0 | E36: =IF(E$2=0,INPUT!R64,IF(E$3=1,G36,IF(E$4=1,G36,INPUT!R64))) -> 0.07 | G36: 0.07 | I36: =7%*1+0.15*0 -> 0.07 | J36: 0.07 | K36: 0.07 | L36: 0.07 | M36: 0.07 | O36: =7%*1+0.15*0 -> 0.07 | P36: =7%*1+0.15*0 -> 0.07 | Q36: 0.07 | R36: 0.07 | S36: =7%*1+0.15*0 -> 0.07 | AC36: 0.07 | AD36: 0.07
A37: Plant Construction & Startup | C37: 0 | D37: 0 | E37: =IF(E$2=0,INPUT!R65,IF(E$3=1,G37,IF(E$4=1,G37,INPUT!R65))) -> 0.07 | G37: 0.07 | I37: 0.07 | J37: 0.07 | K37: 0.07 | L37: 0.07 | M37: 0.07 | O37: 0.07 | P37: 0.07 | Q37: 0.07 | R37: 0.07 | S37: 0.07 | AC37: 0.07 | AD37: 0.07
A38: RESOURCE EXPLORATION | C38: 0
A39: Exploration Parameters: | C39: 0
A40: Potential Resource found by Exploration & Confirmation activities | C40: 0 | D40: =IF(E$2=0,0,IF(E40=G40,0,1)) -> 0 | E40: =IF(E$2=0,1,IF(E$3=1,G40,IF(E$5=1,G40,1))) -> 1 | G40: =LOOKUP($E$12,$I$12:$S$12,I40:S40) -> 1 | I40: 1 | J40: 1 | K40: 1 | L40: 1 | M40: 1 | O40: 1 | P40: 1 | Q40: 1 | R40: 1 | S40: 1 | AC40: 1 | AD40: 1
A41: Exploration - Pre-Drilling Costs : | C41: 0
A42: Number of Locations Evaluated Before Exploration Drilling Begins | C42: 0 | D42: =IF(E$2=0,0,IF(E42=G42,0,1)) -> 0 | E42: =IF(E$2=0,1,IF(E$3=1,G42,IF(E$5=1,G42,1))) -> 0.8333333333 | G42: =LOOKUP($E$12,$I$12:$S$12,I42:S42) -> 0.8333333333 | I42: =5/6 -> 0.8333333333 | J42: 0.8333333333 | K42: 0.8333333333 | L42: 0.8333333333 | M42: 0.8333333333 | O42: =2/3 -> 0.6666666667 | P42: =2/3 -> 0.6666666667 | Q42: =2/3 -> 0.6666666667 | R42: =2/3 -> 0.6666666667 | S42: =2/3 -> 0.6666666667 | AC42: 1 | AD42: 1
A43: Permitting Process Costs for Pre-Drilling Activities | C43: 0 | E43: =IF(E$2=0,1,IF(E$3=1,G43,IF(E$8=1,G43,1))) -> 1 | G43: 1 | I43: 1 | J43: 1 | K43: 1 | L43: 1 | M43: 1 | O43: 1 | P43: 1 | Q43: 1 | R43: 1 | S43: 1 | AC43: 1 | AD43: 1
A44: Lump Sum Cost for Pre-Drilling Exploration Activities at each site | C44: 0 | D44: =IF(E$2=0,0,IF(E44=G44,0,1)) -> 0 | E44: 0.7 | G44: 0.7 | I44: =3.5/5 -> 0.7 | J44: =3.5/5 -> 0.7 | K44: =3.5/5 -> 0.7 | L44: =3.5/5 -> 0.7 | M44: =3.5/5 -> 0.7 | O44: =150/250 -> 0.6 | P44: =150/250 -> 0.6 | Q44: 0.6 | R44: 0.6 | S44: 0.6 | AC44: 0.1 | AD44: =2/5 -> 0.4
A45: By Activity : | C45: 0
A46: Surveying existing information on the area's geology and hydrology | C46: 0 | E46: =IF(E$2=0,1,G46) -> 1 | G46: =LOOKUP($E$12,$I$12:$S$12,I46:S46) -> 1 | I46: 1 | J46: 1 | K46: 1 | L46: 1 | M46: 1 | O46: 1 | P46: 1 | Q46: 1 | R46: 1 | S46: 1 | AC46: 1 | AD46: 1
A47: Field Reconnaissance and Sampling | C47: 0 | E47: 1 | G47: 1 | I47: 1 | J47: 1 | K47: 1 | L47: 1 | M47: 1 | O47: 1 | P47: 1 | Q47: 1 | R47: 1 | S47: 1 | AC47: 1 | AD47: 1
A48: Water & Gas Sample Analysis, including geothermometry | C48: 0 | E48: 1 | G48: 1 | I48: 1 | J48: 1 | K48: 1 | L48: 1 | M48: 1 | O48: 1 | P48: 1 | Q48: 1 | R48: 1 | S48: 1 | AC48: 1 | AD48: 1
A49: Rock & Soil Sample Analysis | C49: 0 | E49: 1 | G49: 1 | I49: 1 | J49: 1 | K49: 1 | L49: 1 | M49: 1 | O49: 1 | P49: 1 | Q49: 1 | R49: 1 | S49: 1 | AC49: 1 | AD49: 1
A50: Soil Gas Flux Analysis | C50: 0 | E50: 1 | G50: 1 | I50: 1 | J50: 1 | K50: 1 | L50: 1 | M50: 1 | O50: 1 | P50: 1 | Q50: 1 | R50: 1 | S50: 1 | AC50: 1 | AD50: 1
A51: Fluid Inclusion Stratigraphy | C51: 0 | E51: 1 | G51: 1 | I51: 1 | J51: 1 | K51: 1 | L51: 1 | M51: 1 | O51: 1 | P51: 1 | Q51: 1 | R51: 1 | S51: 1 | AC51: 1 | AD51: 1
A52: Analysis of Field Structural (including modeling) | C52: 0 | E52: 1 | G52: 1 | I52: 1 | J52: 1 | K52: 1 | L52: 1 | M52: 1 | O52: 1 | P52: 1 | Q52: 1 | R52: 1 | S52: 1 | AC52: 1 | AD52: 1
A53: Multispectral imaging | C53: 0 | E53: 1 | G53: 1 | I53: 1 | J53: 1 | K53: 1 | L53: 1 | M53: 1 | O53: 1 | P53: 1 | Q53: 1 | R53: 1 | S53: 1 | AC53: 1 | AD53: 1
A54: Hyperspectral imaging | C54: 0 | E54: 1 | G54: 1 | I54: 1 | J54: 1 | K54: 1 | L54: 1 | M54: 1 | O54: 1 | P54: 1 | Q54: 1 | R54: 1 | S54: 1 | AC54: 1 | AD54: 1
A55: LiDAR | C55: 0 | E55: 1 | G55: 1 | I55: 1 | J55: 1 | K55: 1 | L55: 1 | M55: 1 | O55: 1 | P55: 1 | Q55: 1 | R55: 1 | S55: 1 | AC55: 1 | AD55: 1
A56: Aerial Photography | C56: 0 | E56: 1 | G56: 1 | I56: 1 | J56: 1 | K56: 1 | L56: 1 | M56: 1 | O56: 1 | P56: 1 | Q56: 1 | R56: 1 | S56: 1 | AC56: 1 | AD56: 1
A57: FLIR | C57: 0 | E57: 1 | G57: 1 | I57: 1 | J57: 1 | K57: 1 | L57: 1 | M57: 1 | O57: 1 | P57: 1 | Q57: 1 | R57: 1 | S57: 1 | AC57: 1 | AD57: 1
A58: Geophysics | C58: 0
A59: Gravity | C59: 0 | E59: =IF(E$2=0,1,G59) -> 1 | G59: =LOOKUP($E$12,$I$12:$S$12,I59:S59) -> 1 | I59: 1 | J59: 1 | K59: 1 | L59: 1 | M59: 1 | O59: 1 | P59: 1 | Q59: 1 | R59: 1 | S59: 1 | AC59: 1 | AD59: 1
A60: Aeromagnetic | C60: 0 | E60: 1 | G60: 1 | I60: 1 | J60: 1 | K60: 1 | L60: 1 | M60: 1 | O60: 1 | P60: 1 | Q60: 1 | R60: 1 | S60: 1 | AC60: 1 | AD60: 1
A61: 2D Seismic Reflection / Refraction | C61: 0 | E61: 1 | G61: 1 | I61: 1 | J61: 1 | K61: 1 | L61: 1 | M61: 1 | O61: 1 | P61: 1 | Q61: 1 | R61: 1 | S61: 1 | AC61: 1 | AD61: 1
A62: 3D Seismic Reflection / Refraction | C62: 0 | E62: 1 | G62: 1 | I62: 1 | J62: 1 | K62: 1 | L62: 1 | M62: 1 | O62: 1 | P62: 1 | Q62: 1 | R62: 1 | S62: 1 | AC62: 1 | AD62: 1
A63: Vertical Seismic Profiling (in well) | C63: 0 | E63: 1 | G63: 1 | I63: 1 | J63: 1 | K63: 1 | L63: 1 | M63: 1 | O63: 1 | P63: 1 | Q63: 1 | R63: 1 | S63: 1 | AC63: 1 | AD63: 1
A64: Single Borehole and cross well seismic | C64: 0 | E64: 1 | G64: 1 | I64: 1 | J64: 1 | K64: 1 | L64: 1 | M64: 1 | O64: 1 | P64: 1 | Q64: 1 | R64: 1 | S64: 1 | AC64: 1 | AD64: 1
A65: Direct Current / Resistivity | C65: 0 | E65: 1 | G65: 1 | I65: 1 | J65: 1 | K65: 1 | L65: 1 | M65: 1 | O65: 1 | P65: 1 | Q65: 1 | R65: 1 | S65: 1 | AC65: 1 | AD65: 1
A66: Self-Potential | C66: 0 | E66: 1 | G66: 1 | I66: 1 | J66: 1 | K66: 1 | L66: 1 | M66: 1 | O66: 1 | P66: 1 | Q66: 1 | R66: 1 | S66: 1 | AC66: 1 | AD66: 1
A67: Electromagnetic | C67: 0 | E67: 1 | G67: 1 | I67: 1 | J67: 1 | K67: 1 | L67: 1 | M67: 1 | O67: 1 | P67: 1 | Q67: 1 | R67: 1 | S67: 1 | AC67: 1 | AD67: 1
A68: Magnetotelluric | C68: 0 | E68: 1 | G68: =LOOKUP(G$13,O$13:T$13,O68:T68) -> 1 | I68: 1 | J68: 1 | K68: 1 | L68: 1 | M68: 1 | O68: 1 | P68: 1 | Q68: 1 | R68: 1 | S68: 1 | AC68: 1 | AD68: 1
A69: Temperature Gradient Measurements | C69: 0
A70: Drill Temperature Gradient holes | C70: 0 | E70: =IF(E$2=0,1,G70) -> 1 | G70: =LOOKUP($E$12,$I$12:$S$12,I70:S70) -> 1 | I70: 1 | J70: 1 | K70: 1 | L70: 1 | M70: 1 | O70: 1 | P70: 1 | Q70: 1 | R70: 1 | S70: 1 | AC70: 1 | AD70: 1
A71: 2-meter probes | C71: 0 | E71: 1 | G71: 1 | I71: 1 | J71: 1 | K71: 1 | L71: 1 | M71: 1 | O71: 1 | P71: 1 | Q71: 1 | R71: 1 | S71: 1 | AC71: 1 | AD71: 1
A72: Interpretation and Reporting | C72: 0
C73: 0 | E73: =IF(E$2=0,1,G73) -> 1 | G73: =LOOKUP($E$12,$I$12:$S$12,I73:S73) -> 1 | I73: 1 | J73: 1 | K73: 1 | L73: 1 | M73: 1 | O73: 1 | P73: 1 | Q73: 1 | R73: 1 | S73: 1 | AC73: 1 | AD73: 1
A74: Other Costs | C74: 0
A75: Technical & Office Support (% of Exploration Costs ) | C75: 0 | E75: =IF(E$2=0,1,G75) -> 1 | G75: =LOOKUP($E$12,$I$12:$S$12,I75:S75) -> 1 | I75: 1 | J75: 1 | K75: 1 | L75: 1 | M75: 1 | O75: 1 | P75: 1 | Q75: 1 | R75: 1 | S75: 1 | AC75: 1 | AD75: 1
A76: Exploration - Drilling Costs : | C76: 0
A77: Number of Sites where Exploration Drilling Occurs | C77: 0 | D77: =IF(E$2=0,0,IF(E77=G77,0,1)) -> 0 | E77: =IF(E$2=0,1,IF(E$3=1,G77,IF(E$5=1,G77,1))) -> 0.6 | G77: =LOOKUP($E$12,$I$12:$S$12,I77:S77) -> 0.6 | I77: =3/5 -> 0.6 | J77: 0.6 | K77: 0.6 | L77: 0.6 | M77: 0.6 | O77: =1.5/2 -> 0.75 | P77: =1.5/2 -> 0.75 | Q77: =1.5/2 -> 0.75 | R77: =1.5/2 -> 0.75 | S77: =1.5/2 -> 0.75 | AC77: 0 | AD77: =3/5 -> 0.6
A78: Site Exploration Drilling Costs | E78: 0.6 | G78: 0.6 | I78: 0.6 | J78: 0.6 | K78: 0.6 | L78: 0.6 | M78: 0.6 | O78: =1/1.5 -> 0.6666666667 | P78: =1/1.5 -> 0.6666666667 | Q78: 0.6666666667 | R78: 0.6666666667 | S78: 0.6666666667
A79: Number of Small Diameter Exploration Holes/Wells Drilled per site | C79: 0 | D79: 0 | E79: 0.6666666667 | G79: 0.6666666667 | I79: =2/3 -> 0.6666666667 | J79: 0.6666666667 | K79: 0.6666666667 | L79: 0.6666666667 | M79: 0.6666666667 | O79: 0 | P79: 0 | Q79: 0 | R79: 0 | S79: 0 | AC79: 0 | AD79: =2/3 -> 0.6666666667
A80: Exploration Well Cost Used | C80: 0 | D80: 0 | E80: 0.6 | G80: 0.6 | I80: 0.6 | J80: 0.6 | K80: 0.6 | L80: 0.6 | M80: 0.6 | O80: 0 | P80: 0 | Q80: 0 | R80: 0 | S80: 0 | AC80: 0 | AD80: =25/90 -> 0.2777777778
A81: Permitting Process Costs for Exploration/Confirmation Phases | C81: 0 | D81: 0 | E81: =IF(E$2=0,1,IF(E$3=1,G81,IF(E$8=1,G81,1))) -> 1 | G81: 1 | I81: 1 | J81: 1 | K81: 1 | L81: 1 | M81: 1 | O81: 1 | P81: 1 | Q81: 1 | R81: 1 | S81: 1 | AC81: 1 | AD81: 1
A82: Leasing Cost | C82: 0 | D82: 0 | E82: 1 | G82: 1 | I82: 1 | J82: 1 | K82: 1 | L82: 1 | M82: 1 | O82: 1 | P82: 1 | Q82: 1 | R82: 1 | S82: 1 | AC82: 1 | AD82: 1
A83: Costs Incurred not Associated with Drilling Exploration Wells | C83: =G83-K83 -> 0 | D83: 0 | E83: 1 | G83: 1 | I83: 1 | J83: 1 | K83: 1 | L83: 1 | M83: 1 | O83: 1 | P83: 1 | Q83: 1 | R83: 1 | S83: 1 | AC83: 1 | AD83: 1
A84: RESOURCE CONFIRMATION | C84: 0
A85: Number of Confirmation Drilling Sites Needed per Successful Project | C85: 0 | D85: =IF(E$2=0,0,IF(E85=G85,0,1)) -> 0 | E85: =IF(E$2=0,1,IF(E$3=1,G85,IF(E$5=1,G85,1))) -> 0.75 | G85: =LOOKUP($E$12,$I$12:$S$12,I85:S85) -> 0.75 | I85: =1.5/2 -> 0.75 | J85: 0.75 | K85: 0.75 | L85: 0.75 | M85: 0.75 | O85: =1/1.5 -> 0.6666666667 | P85: =1/1.5 -> 0.6666666667 | Q85: 0.6666666667 | R85: 0.6666666667 | S85: 0.6666666667 | AC85: 0.75 | AD85: 0.75
A86: Confirmation Well - Drilling Costs : | C86: 0
A87: Number of failed wells at Each Unsuccessful Site | C87: 0 | D87: =IF(E$2=0,0,IF(E87=G87,0,1)) -> 0 | E87: =IF(E$2=0,1,IF(E$3=1,G87,IF(E$5=1,G87,1))) -> 1 | G87: =LOOKUP($E$12,$I$12:$S$12,I87:S87) -> 1 | I87: 1 | J87: 1 | K87: 1 | L87: 1 | M87: 1 | O87: 0 | P87: 0 | Q87: 0 | R87: 0 | S87: 0 | AC87: 1 | AD87: 1
A88: Confirmation Well Success Ratio at Successful Site | C88: 0 | D88: 0 | E88: 1.25 | G88: 1.25 | I88: 1.25 | J88: 1.25 | K88: 1.25 | L88: 1.25 | M88: 1.25 | O88: 1 | P88: 1 | Q88: 1 | R88: 1 | S88: 1 | AC88: 1 | AD88: 1.25
A89: "Number of Successful Confirmation Wells Required | C89: 0 | D89: 0 | E89: 0.6666666667 | G89: 0.6666666667 | I89: =2/3 -> 0.6666666667 | J89: 0.6666666667 | K89: 0.6666666667 | L89: 0.6666666667 | M89: 0.6666666667 | O89: =2/3 -> 0.6666666667 | P89: =2/3 -> 0.6666666667 | Q89: 0.6666666667 | R89: 0.6666666667 | S89: 0.6666666667 | AC89: 0.6666666667 | AD89: 0.6666666667
A90: Production Capacity to be Confirmed | C90: 0 | D90: 0 | E90: 1 | G90: 1 | I90: 1 | J90: 1 | K90: 1 | L90: 1 | M90: 1 | O90: 1 | P90: 1 | Q90: 1 | R90: 1 | S90: 1 | AC90: 1 | AD90: 1
A91: Confirmation Well Cost Used | C91: 0 | D91: 0 | E91: 0.6 | G91: 0.6 | I91: 0.6 | J91: 0.6 | K91: 0.6 | L91: 0.6 | M91: 0.6 | O91: 0.5 | P91: 0.5 | Q91: 0.5 | R91: 0.5 | S91: 0.5 | AC91: 0.45 | AD91: 0.6
A92: Confirmation Well - Non-Drilling Costs : | C92: 0
A93: Permitting Process Cost during Confirmation Phase | C93: 0 | D93: =IF(E$2=0,0,IF(E93=G93,0,1)) -> 0 | E93: =IF(E$2=0,1,IF(E$3=1,G93,IF(E$8=1,G93,1))) -> 1 | G93: =LOOKUP($E$12,$I$12:$S$12,I93:S93) -> 1 | I93: 1 | J93: 1 | K93: 1 | L93: 1 | M93: 1 | O93: 1 | P93: 1 | Q93: 1 | R93: 1 | S93: 1 | AC93: 1 | AD93: 1
A94: Lump Sum for Non-Drilling Confirmation Costs (exclusive of stimulation) | C94: 0 | E94: =IF(E$2=0,1,G94) -> 1 | G94: 1 | I94: 1 | J94: 1 | K94: 1 | L94: 1 | M94: 1 | O94: 1 | P94: 1 | Q94: 1 | R94: 1 | S94: 1 | AC94: 1 | AD94: 1
A95: Percentage of Confirmation costs | C95: 0
A96: % of total confirmation costs attributed to non-drilling activities (exclusive of stimulation & permitting) | C96: 0 | D96: =IF(E$2=0,0,IF(E96=G96,0,1)) -> 0 | E96: =IF(E$2=0,1,IF(E$3=1,G96,IF(E$5=1,G96,1))) -> 1 | G96: =LOOKUP($E$12,$I$12:$S$12,I96:S96) -> 1 | I96: 1 | J96: 1 | K96: 1 | L96: 1 | M96: 1 | O96: 1 | P96: 1 | Q96: 1 | R96: 1 | S96: 1 | AC96: 1 | AD96: 1
C97: 0
A98: enter Stimulation Cost per well | C98: 0 | D98: =IF(E$2=0,0,IF(E98=G98,0,1)) -> 0 | E98: =IF(E$2=0,1,IF(E$3=1,G98,IF(E$5=1,G98,1))) -> 1 | G98: =LOOKUP($E$12,$I$12:$S$12,I98:S98) -> 1 | I98: 1 | J98: 1 | K98: 1 | L98: 1 | M98: 1 | O98: 0.2 | P98: 0.2 | Q98: 0.2 | R98: 0.2 | S98: 0.2 | AC98: 0.2 | AD98: 1
A99: Well Testing | C99: 0
A100: Well Testing Cost at each site | C100: 0 | D100: =IF(E$2=0,0,IF(E100=G100,0,1)) -> 0 | E100: =IF(E$2=0,1,IF(E$3=1,G100,IF(E$5=1,G100,1))) -> 1 | G100: =LOOKUP($E$12,$I$12:$S$12,I100:S100) -> 1 | I100: 1 | J100: 1 | K100: 1 | L100: 1 | M100: 1 | O100: 1 | P100: 1 | Q100: 1 | R100: 1 | S100: 1 | AC100: 1 | AD100: 1
A101: WELL FIELD DEVELOPMENT | C101: 0
A102: Well Field Details: | C102: 0
A103: Drilling Success Rate during the final phase of well field development | C103: 0 | D103: =IF(E$2=0,0,IF(E103=G103,0,1)) -> 0 | E103: =IF(E$2=0,1,IF(E$3=1,G103,IF(E$5=1,G103,1))) -> 1.0625 | G103: =LOOKUP($E$12,$I$12:$S$12,I103:S103) -> 1.0625 | I103: =85/80 -> 1.0625 | J103: 1.0625 | K103: 1.0625 | L103: 1.0625 | M103: 1.0625 | O103: 1 | P103: 1 | Q103: 1 | R103: 1 | S103: 1 | AC103: 1 | AD103: =85/80 -> 1.0625
A104: Number of Spare Production Wells | C104: 0 | D104: 0 | E104: =IF(E$2=0,1,IF(E$3=1,G104,IF(E$5=1,G104,1))) -> 1 | G104: 1 | I104: 1 | J104: 1 | K104: 1 | L104: 1 | M104: 1 | O104: 1 | P104: 1 | Q104: 1 | R104: 1 | S104: 1 | AC104: 1 | AD104: 1
A105: Ratio of Injection Wells to Production Wells | C105: 0 | D105: 0 | E105: 1 | G105: 1 | I105: 1 | J105: 1 | K105: 1 | L105: 1 | M105: 1 | O105: 1 | P105: 1 | Q105: 1 | R105: 1 | S105: 1 | AC105: 0.667 | AD105: 1
A106: Production Well Cost Used | C106: 0 | D106: 0 | E106: 0.6 | G106: 0.6 | I106: 0.6 | J106: 0.6 | K106: 0.6 | L106: 0.6 | M106: 0.6 | O106: 0.5 | P106: 0.5 | Q106: 0.5 | R106: 0.5 | S106: 0.5 | AC106: 0.45 | AD106: 0.6
A107: Injection Well Cost Used | C107: 0 | D107: 0 | E107: 0.6 | G107: 0.6 | I107: 0.6 | J107: 0.6 | K107: 0.6 | L107: 0.6 | M107: 0.6 | O107: 0.5 | P107: 0.5 | Q107: 0.5 | R107: 0.5 | S107: 0.5 | AC107: 0.45 | AD107: 0.6
A108: Other Field Costs : | C108: 0
A109: Surface Equipment Cost | C109: 0 | D109: =IF(E$2=0,0,IF(E109=G109,0,1)) -> 0 | E109: =IF(E$2=0,1,IF(E$3=1,G109,IF(E$5=1,G109,1))) -> 1 | G109: 1 | I109: 1 | J109: 1 | K109: 1 | L109: 1 | M109: 1 | O109: 1 | P109: 1 | Q109: 1 | R109: 1 | S109: 1 | AC109: 1 | AD109: 1
A110: Other Well Field Development Costs, ( % of total cost ) | C110: 0 | D110: 0 | E110: =IF(E$2=0,1,IF(E$3=1,G110,IF(E$5=1,G110,1))) -> 1 | G110: 1 | I110: 1 | J110: 1 | K110: 1 | L110: 1 | M110: 1 | O110: 1 | P110: 1 | Q110: 1 | R110: 1 | S110: 1 | AC110: 1 | AD110: 1
A111: Permitting (Utilization Plant) Cost for Well Field & Power Plant | C111: 0 | D111: 0 | E111: =IF(E$2=0,1,IF(E$3=1,G111,IF(E$8=1,G111,1))) -> 1 | G111: 1 | I111: 1 | J111: 1 | K111: 1 | L111: 1 | M111: 1 | O111: 1 | P111: 1 | Q111: 1 | R111: 1 | S111: 1 | AC111: 1 | AD111: 1
A112: RESERVOIR DEFINITION | C112: 0
A113: Production Well Flow Rate | C113: 0 | D113: =IF(E$2=0,0,IF(E113=G113,0,1)) -> 0 | E113: =IF(E$2=0,1,IF(E$3=1,G113,IF(E$5=1,G113,1))) -> 1 | G113: 1 | I113: 1 | J113: 1 | K113: 1 | L113: 1 | M113: 1 | O113: 2.5 | P113: 2.5 | Q113: 2.5 | R113: 2 | S113: 2 | AC113: 3.6 | AD113: 1
A114: Input Fixed Stimulation Cost per well | C114: 0 | D114: 0 | E114: =IF(E$2=0,1,IF(E$3=1,G114,IF(E$5=1,G114,1))) -> 1 | G114: 1 | I114: 1 | J114: 1 | K114: 1 | L114: 1 | M114: 1 | O114: 0.2 | P114: 0.2 | Q114: 0.2 | R114: 0.2 | S114: 0.2 | AC114: 0.2 | AD114: 1
A115: "Calculated :" | C115: 0
A116: What is distance between Production and Injection wells | C116: 0 | E116: =IF(E$2=0,1,G116) -> 1 | G116: 1 | I116: 1 | J116: 1 | K116: 1 | L116: 1 | M116: 1 | O116: 1 | P116: 1 | Q116: 1 | R116: 1 | S116: 1 | AC116: 1 | AD116: 1
A117: Stimulation Set Up-cost | C117: 0 | E117: 1 | G117: 1 | I117: 1 | J117: 1 | K117: 1 | L117: 1 | M117: 1 | O117: 1 | P117: 1 | Q117: 1 | R117: 1 | S117: 1 | AC117: 1 | AD117: 1
A118: Unit Cost for Surface Area Created by Stimulation | C118: 0 | E118: 1 | G118: 1 | I118: 1 | J118: 1 | K118: 1 | L118: 1 | M118: 1 | O118: 1 | P118: 1 | Q118: 1 | R118: 1 | S118: 1 | AC118: 1 | AD118: 1
A119: Number of Wells Stimulated | C119: 0 | E119: 2 | G119: 2 | I119: 2 | J119: 2 | K119: 2 | L119: 2 | M119: 2 | O119: 2 | P119: 2 | Q119: 2 | R119: 2 | S119: 2 | AC119: 2 | AD119: 2
A120: Hydraulic Drawdown | C120: 0
A121: Input Production Well Drawdown | C121: 0 | D121: =IF(E$2=0,0,IF(E121=G121,0,1)) -> 0 | E121: =IF(E$2=0,1,IF(E$3=1,G121,IF(E$5=1,G121,1))) -> 1 | G121: 1 | I121: 1 | J121: 1 | K121: 1 | L121: 1 | M121: 1 | O121: 0.5 | P121: 0.5 | Q121: 0.5 | R121: 0.5 | S121: 0.5 | AC121: 0.5 | AD121: 1
A122: Ratio of Injection Well Buildup to Production Well Drawdown | C122: 0 | D122: 0 | E122: =IF(E$2=0,1,IF(E$3=1,G122,IF(E$5=1,G122,1))) -> 1 | G122: 1 | I122: 1 | J122: 1 | K122: 1 | L122: 1 | M122: 1 | O122: 1 | P122: 1 | Q122: 1 | R122: 1 | S122: 1 | AC122: 1 | AD122: 1
A123: Calculated: (A circular reference will occur if drawdown is based on fracture flow and thermal drawdown is based on decline rate) | C123: 0
A124: Is reservoir drawdown to be based on k*A (permeability* Area) or simple fracture flow? | C124: 0
A125: Reservoir Permeability (k) | C125: 0 | E125: =IF(E$2=0,1,G125) -> 1 | G125: =LOOKUP($E$12,$I$12:$S$12,I125:S125) -> 1 | I125: 1 | J125: 1 | K125: 1 | L125: 1 | M125: 1 | O125: 1 | P125: 1 | Q125: 1 | R125: 1 | S125: 1 | AC125: 1 | AD125: 1
A126: Reservoir Height | C126: 0 | E126: 1 | G126: 1 | I126: 1 | J126: 1 | K126: 1 | L126: 1 | M126: 1 | O126: 1 | P126: 1 | Q126: 1 | R126: 1 | S126: 1 | AC126: 1 | AD126: 1
A127: Reservoir Width | C127: 0 | E127: 1 | G127: 1 | I127: 1 | J127: 1 | K127: 1 | L127: 1 | M127: 1 | O127: 1 | P127: 1 | Q127: 1 | R127: 1 | S127: 1 | AC127: 1 | AD127: 1
A128: Thermal Drawdown | C128: 0
A129: enter - Maximum production temperature decline allowed | C129: 0 | D129: =IF(E$2=0,0,IF(E129=G129,0,1)) -> 0 | E129: =IF(E$2=0,1,IF(E$3=1,G129,IF(E$5=1,G129,1))) -> 1 | G129: =LOOKUP($E$12,$I$12:$S$12,I129:S129) -> 1 | I129: 1 | J129: 1 | K129: 1 | L129: 1 | M129: 1 | O129: 1 | P129: 1 | Q129: 1 | R129: 1 | S129: 1 | AC129: 1 | AD129: 1
C130: 0
A131: Annual Rate of Decline | C131: 0 | D131: =IF(E$2=0,0,IF(E131=G131,0,1)) -> 0 | E131: =IF(E$2=0,1,IF(E$3=1,G131,IF(E$5=1,G131,1))) -> 1 | G131: =LOOKUP($E$12,$I$12:$S$12,I131:S131) -> 1 | I131: 1 | J131: 1 | K131: 1 | L131: 1 | M131: 1 | O131: 0.5 | P131: 0.5 | Q131: 0.5 | R131: 0.5 | S131: 0.5 | AC131: 0.4 | AD131: 1
A132: Carslaw-Jaeger Solution for transient conduction | C132: 0
A133: Fracture aperture | C133: 0 | E133: =IF(E$2=0,1,G133) -> 1 | G133: =LOOKUP($E$12,$I$12:$S$12,I133:S133) -> 1 | I133: 1 | J133: 1 | K133: 1 | L133: 1 | M133: 1 | O133: 1 | P133: 1 | Q133: 1 | R133: 1 | S133: 1 | AC133: 1 | AD133: 1
A134: Fracture width | C134: 0 | E134: 1 | G134: 1 | I134: 1 | J134: 1 | K134: 1 | L134: 1 | M134: 1 | O134: 1 | P134: 1 | Q134: 1 | R134: 1 | S134: 1 | AC134: 1 | AD134: 1
A135: Number of fractures | C135: 0 | E135: 1 | G135: 1 | I135: 1 | J135: 1 | K135: 1 | L135: 1 | M135: 1 | O135: 1 | P135: 1 | Q135: 1 | R135: 1 | S135: 1 | AC135: 1 | AD135: 1
A136: Fracture angle (off horizontal) | C136: 0 | E136: 1 | G136: 1 | I136: 1 | J136: 1 | K136: 1 | L136: 1 | M136: 1 | O136: 1 | P136: 1 | Q136: 1 | R136: 1 | S136: 1 | AC136: 1 | AD136: 1
A137: Adjustment to fracture length (>= 1) | C137: 0 | E137: 1 | G137: 1 | I137: 1 | J137: 1 | K137: 1 | L137: 1 | M137: 1 | O137: 1 | P137: 1 | Q137: 1 | R137: 1 | S137: 1 | AC137: 1 | AD137: 1
A138: Rock Properties | C138: 0
A139: Thermal conductivity, k | C139: 0 | E139: =IF(E$2=0,1,G139) -> 1 | G139: =LOOKUP($E$12,$I$12:$S$12,I139:S139) -> 1 | I139: 1 | J139: 1 | K139: 1 | L139: 1 | M139: 1 | O139: 1 | P139: 1 | Q139: 1 | R139: 1 | S139: 1 | AC139: 1 | AD139: 1
A140: Specific Heat, Cp | C140: 0 | E140: 1 | G140: 1 | I140: 1 | J140: 1 | K140: 1 | L140: 1 | M140: 1 | O140: 1 | P140: 1 | Q140: 1 | R140: 1 | S140: 1 | AC140: 1 | AD140: 1
A141: Density, rho | C141: 0 | E141: 1 | G141: 1 | I141: 1 | J141: 1 | K141: 1 | L141: 1 | M141: 1 | O141: 1 | P141: 1 | Q141: 1 | R141: 1 | S141: 1 | AC141: 1 | AD141: 1
A142: Water Loss | C142: 0
A143: Subsurface Water loss as % of injected flow (> 0) | C143: 0 | D143: =IF(E$2=0,0,IF(E143=G143,0,1)) -> 0 | E143: =IF(E$2=0,1,IF(E$3=1,G143,IF(E$5=1,G143,1))) -> 1 | G143: =LOOKUP($E$12,$I$12:$S$12,I143:S143) -> 1 | I143: 1 | J143: 1 | K143: 1 | L143: 1 | M143: 1 | O143: 0.2 | P143: 0.2 | Q143: 0.2 | R143: 0.2 | S143: 0.2 | AC143: 0.2 | AD143: 1
A144: Makeup Water cost | C144: 0 | D144: 0 | E144: =IF(E$2=0,1,IF(E$3=1,G144,IF(E$5=1,G144,1))) -> 1 | G144: 1 | I144: 1 | J144: 1 | K144: 1 | L144: 1 | M144: 1 | O144: 1 | P144: 1 | Q144: 1 | R144: 1 | S144: 1 | AC144: 1 | AD144: 1
A145: GEOTHERMAL FLUID PUMPING | C145: 0
A146: Pump & Driver Efficiency for Production and Injection Pump | C146: 0 | D146: =IF(E$2=0,0,IF(E146=G146,0,1)) -> 0 | E146: =IF(E$2=0,1,IF(E$3=1,G146,IF(E$5=1,G146,1))) -> 1.111111111 | G146: =LOOKUP($E$12,$I$12:$S$12,I146:S146) -> 1.111111111 | I146: =0.75/'master list of 10-90s'!I40 -> 1.111111111 | J146: =0.75/'master list of 10-90s'!L40 -> 1.111111111 | K146: =0.75/'master list of 10-90s'!O40 -> 1.111111111 | L146: =0.75/'master list of 10-90s'!R40 -> 1.111111111 | M146: =0.75/'master list of 10-90s'!U40 -> 1.111111111 | O146: =0.85/'master list of 10-90s'!AB40 -> 1.259259259 | P146: =0.85/'master list of 10-90s'!AE40 -> 1.259259259 | Q146: =0.85/'master list of 10-90s'!AH40 -> 1.259259259 | R146: =0.85/'master list of 10-90s'!AK40 -> 1.259259259 | S146: =0.85/'master list of 10-90s'!AN40 -> 1.259259259 | AC146: =0.75/'master list of 10-90s'!AW40 -> 1.111111111 | AD146: =0.75/'master list of 10-90s'!AR40 -> 1.111111111
A147: Production Pump setting depth | C147: =G147-K147 -> 0 | D147: 0 | E147: =IF(E$2=0,1,G147) -> 1 | G147: 1 | I147: 1 | J147: 1 | K147: 1 | L147: 1 | M147: 1 | O147: 1 | P147: 1 | Q147: 1 | R147: 1 | S147: 1 | AC147: 1 | AD147: 1
A148: Calculation Pump Depth : | C148: 0
A149: Excess Pressure at pump Suction and/or well head | C149: 0 | D149: =IF(E$2=0,0,IF(E149=G149,0,1)) -> 0 | E149: =IF(E$2=0,1,IF(E$3=1,G149,IF(E$5=1,G149,1))) -> 1 | G149: =LOOKUP($E$12,$I$12:$S$12,I149:S149) -> 1 | I149: 1 | J149: 1 | K149: 1 | L149: 1 | M149: 1 | O149: 1 | P149: 1 | Q149: 1 | R149: 1 | S149: 1 | AC149: 1 | AD149: 1
A150: Inside diameter of production pump casing | C150: 0 | D150: 0 | E150: 1 | G150: 1 | I150: 1 | J150: 1 | K150: 1 | L150: 1 | M150: 1 | O150: 1 | P150: 1 | Q150: 1 | R150: 1 | S150: 1 | AC150: 1 | AD150: 1
A151: Input Installed Production Pump Cost | C151: 0 | D151: 0 | E151: 1 | G151: 1 | I151: 1 | J151: 1 | K151: 1 | L151: 1 | M151: 1 | O151: 1 | P151: 1 | Q151: 1 | R151: 1 | S151: 1 | AC151: 1 | AD151: 1
A152: Calculate Pump Cost : | C152: 0
A153: Casing cost | C153: 0 | D153: =IF(E$2=0,0,IF(E153=G153,0,1)) -> 0 | E153: =IF(E$2=0,1,IF(E$3=1,G153,IF(E$5=1,G153,1))) -> 1 | G153: =LOOKUP($E$12,$I$12:$S$12,I153:S153) -> 1 | I153: 1 | J153: 1 | K153: 1 | L153: 1 | M153: 1 | O153: 1 | P153: 1 | Q153: 1 | R153: 1 | S153: 1 | AC153: 1 | AD153: 1
A154: Installation Cost | C154: 0 | D154: 0 | E154: 1 | G154: 1 | I154: 1 | J154: 1 | K154: 1 | L154: 1 | M154: 1 | O154: 1 | P154: 1 | Q154: 1 | R154: 1 | S154: 1 | AC154: 1 | AD154: 1
A155: Other Costs | C155: 0 | D155: 0 | E155: 1 | G155: 1 | I155: 1 | J155: 1 | K155: 1 | L155: 1 | M155: 1 | O155: 1 | P155: 1 | Q155: 1 | R155: 1 | S155: 1 | AC155: 1 | AD155: 1
A156: Adjustment to calculated pump cost | C156: 0 | D156: 0 | E156: 1 | G156: 1 | I156: 1 | J156: 1 | K156: 1 | L156: 1 | M156: 1 | O156: 1 | P156: 1 | Q156: 1 | R156: 1 | S156: 1 | AC156: 1 | AD156: 1
A157: Injection Pump : | C157: 0
A158: Surface Equipment ΔP for binary conversion system | C158: 0 | D158: =IF(E$2=0,0,IF(E158=G158,0,1)) -> 0 | E158: =IF(E$2=0,1,IF(E$3=1,G158,IF(E$5=1,G158,1))) -> 1 | G158: =LOOKUP($E$12,$I$12:$S$12,I158:S158) -> 1 | I158: 1 | J158: 1 | K158: 1 | L158: 1 | M158: 1 | O158: 1 | P158: 1 | Q158: 1 | R158: 1 | S158: 1 | AC158: 1 | AD158: 1
A159: Additional Injection Pressure | C159: 0 | D159: 0 | E159: 1 | G159: 1 | I159: 1 | J159: 1 | K159: 1 | L159: 1 | M159: 1 | O159: 1 | P159: 1 | Q159: 1 | R159: 1 | S159: 1 | AC159: 1 | AD159: 1
A160: Adjustment to calculated injection pump cost | C160: 0 | D160: 0 | E160: 0.93 | G160: 0.93 | I160: 0.93 | J160: 0.93 | K160: 0.93 | L160: 0.93 | M160: 0.93 | O160: 0.9 | P160: 0.9 | Q160: 0.9 | R160: 0.9 | S160: 0.9 | AC160: 0.9 | AD160: 0.9
A161: OPERATION & MAINTENANCE | C161: 0
A162: Input the annual O&M Cost for the Power Plant | C162: 0 | E162: =IF(E$2=0,1,G162) -> 1 | G162: =LOOKUP($E$12,$I$12:$S$12,I162:S162) -> 1 | I162: 1 | J162: 1 | K162: 1 | L162: 1 | M162: 1 | O162: 1 | P162: 1 | Q162: 1 | R162: 1 | S162: 1 | AC162: 1 | AD162: 1
A163: Input the annual O&M cost for the Field (including production pumps) | C163: 0 | E163: 1 | G163: 1 | I163: 1 | J163: 1 | K163: 1 | L163: 1 | M163: 1 | O163: 1 | P163: 1 | Q163: 1 | R163: 1 | S163: 1 | AC163: 1 | AD163: 1
A164: Fraction of operator labor assigned to field | C164: 0 | D164: =IF(E$2=0,0,IF(E164=G164,0,1)) -> 0 | E164: =IF(E$2=0,1,IF(E$3=1,G164,IF(E$7=1,G164,1))) -> 1 | G164: 1 | I164: 1 | J164: 1 | K164: 1 | L164: 1 | M164: 1 | O164: 1 | P164: 1 | Q164: 1 | R164: 1 | S164: 1 | AC164: 1 | AD164: 1
A165: Labor Rates Used | C165: 0
A166: Operators | C166: 0
C167: 0 | E167: =IF(E$2=0,1,G167) -> 1 | G167: =LOOKUP($E$12,$I$12:$S$12,I167:S167) -> 1 | I167: 1 | J167: 1 | K167: 1 | L167: 1 | M167: 1 | O167: 1 | P167: 1 | Q167: 1 | R167: 1 | S167: 1 | AC167: 1 | AD167: 1
A168: maintenance mechanic | C168: 0
C169: 0 | E169: =IF(E$2=0,1,G169) -> 1 | G169: =LOOKUP($E$12,$I$12:$S$12,I169:S169) -> 1 | I169: 1 | J169: 1 | K169: 1 | L169: 1 | M169: 1 | O169: 1 | P169: 1 | Q169: 1 | R169: 1 | S169: 1 | AC169: 1 | AD169: 1
A170: electrician | C170: 0
C171: 0 | E171: =IF(E$2=0,1,G171) -> 1 | G171: =LOOKUP($E$12,$I$12:$S$12,I171:S171) -> 1 | I171: 1 | J171: 1 | K171: 1 | L171: 1 | M171: 1 | O171: 1 | P171: 1 | Q171: 1 | R171: 1 | S171: 1 | AC171: 1 | AD171: 1
A172: general maintenance labor | C172: 0
C173: 0 | E173: =IF(E$2=0,1,G173) -> 1 | G173: =LOOKUP($E$12,$I$12:$S$12,I173:S173) -> 1 | I173: 1 | J173: 1 | K173: 1 | L173: 1 | M173: 1 | O173: 1 | P173: 1 | Q173: 1 | R173: 1 | S173: 1 | AC173: 1 | AD173: 1
A174: facility manager/plant engineer | C174: 0
C175: 0 | E175: =IF(E$2=0,1,G175) -> 1 | G175: =LOOKUP($E$12,$I$12:$S$12,I175:S175) -> 1 | I175: 1 | J175: 1 | K175: 1 | L175: 1 | M175: 1 | O175: 1 | P175: 1 | Q175: 1 | R175: 1 | S175: 1 | AC175: 1 | AD175: 1
A176: operations manager | C176: 0
C177: 0 | E177: =IF(E$2=0,1,G177) -> 1 | G177: =LOOKUP($E$12,$I$12:$S$12,I177:S177) -> 1 | I177: 1 | J177: 1 | K177: 1 | L177: 1 | M177: 1 | O177: 1 | P177: 1 | Q177: 1 | R177: 1 | S177: 1 | AC177: 1 | AD177: 1
A178: clerical | C178: 0
C179: 0 | E179: =IF(E$2=0,1,G179) -> 1 | G179: =LOOKUP($E$12,$I$12:$S$12,I179:S179) -> 1 | I179: 1 | J179: 1 | K179: 1 | L179: 1 | M179: 1 | O179: 1 | P179: 1 | Q179: 1 | R179: 1 | S179: 1 | AC179: 1 | AD179: 1
A180: Labor multiplier (burdened labor cost) | C180: 0 | D180: =IF(E$2=0,0,IF(E180=G180,0,1)) -> 0 | E180: =IF(E$2=0,1,IF(E$3=1,G180,IF(E$7=1,G180,1))) -> 1 | G180: =LOOKUP($E$12,$I$12:$S$12,I180:S180) -> 1 | I180: 1 | J180: 1 | K180: 1 | L180: 1 | M180: 1 | O180: 1 | P180: 1 | Q180: 1 | R180: 1 | S180: 1 | AC180: 1 | AD180: 1
A181: Result: Number of O&M staff for Improved Scenario | C181: 0 | D181: 0 | E181: =IF(E$2=0,1,IF(E$3=1,G181,IF(E$7=1,G181,1))) -> 0.8 | G181: 0.8 | I181: 0.8 | J181: 0.8 | K181: 0.8 | L181: 0.8 | M181: 0.8 | O181: 0.7 | P181: 0.7 | Q181: 0.7 | R181: 0.7 | S181: 0.7 | AC181: 0.7 | AD181: 0.7
A182: Field Maintenance | C182: 0
A183: Annual Maintenance non-labor (fraction of field cost) | C183: 0 | D183: =IF(E$2=0,0,IF(E183=G183,0,1)) -> 0 | E183: =IF(E$2=0,1,IF(E$3=1,G183,IF(E$7=1,G183,1))) -> 0.8 | G183: =LOOKUP($E$12,$I$12:$S$12,I183:S183) -> 0.8 | I183: =1.2/1.5 -> 0.8 | J183: =1.2/1.5 -> 0.8 | K183: 0.8 | L183: 0.8 | M183: 0.8 | O183: =1/1.5 -> 0.6666666667 | P183: =1/1.5 -> 0.6666666667 | Q183: =1/1.5 -> 0.6666666667 | R183: 0.6666666667 | S183: 0.6666666667 | AC183: 0.6666666667 | AD183: 0.6666666667
A184: Geothermal fluid treatment - chemical dosage | C184: 0 | D184: =IF(E$2=0,0,IF(E184=G184,0,1)) -> 0 | E184: 1 | G184: 1 | I184: 1 | J184: 1 | K184: 1 | L184: 1 | M184: 1 | O184: 1 | P184: 1 | Q184: 1 | R184: 1 | S184: 1 | AC184: 1 | AD184: 1
A185: Chemical cost | C185: 0 | D185: 0 | E185: 1 | G185: 1 | I185: 1 | J185: 1 | K185: 1 | L185: 1 | M185: 1 | O185: 1 | P185: 1 | Q185: 1 | R185: 1 | S185: 1 | AC185: 1 | AD185: 1
A186: Power Plant Maintenance | C186: 0
A187: Annual O&M non-labor (fraction of plant cost) | C187: 0 | D187: =IF(E$2=0,0,IF(E187=G187,0,1)) -> 0 | E187: =IF(E$2=0,1,IF(E$3=1,G187,IF(E$7=1,G187,1))) -> 0.9166666667 | G187: =LOOKUP($E$12,$I$12:$S$12,I187:S187) -> 0.9166666667 | I187: =1.65/1.8 -> 0.9166666667 | J187: =1.65/1.8 -> 0.9166666667 | K187: 0.9166666667 | L187: 0.9166666667 | M187: 0.9166666667 | O187: =1.5/1.8 -> 0.8333333333 | P187: =1.5/1.8 -> 0.8333333333 | Q187: =1.5/1.8 -> 0.8333333333 | R187: 0.8333333333 | S187: 0.8333333333 | AC187: 0.8333333333 | AD187: 0.8333333333
A188: Cooling water treatment chemical dosage | C188: 0 | D188: 0 | E188: 1 | G188: 1 | I188: 1 | J188: 1 | K188: 1 | L188: 1 | M188: 1 | O188: 1 | P188: 1 | Q188: 1 | R188: 1 | S188: 1 | AC188: 1 | AD188: 1
A189: Chemical cost | C189: 0 | D189: 0 | E189: 1 | G189: 1 | I189: 1 | J189: 1 | K189: 1 | L189: 1 | M189: 1 | O189: 1 | P189: 1 | Q189: 1 | R189: 1 | S189: 1 | AC189: 1 | AD189: 1
A190: Geothermal Production Pump Maintenance | C190: 0
A191: User adjustment for re-work cost (< 1) | C191: 0 | D191: =IF(E$2=0,0,IF(E191=G191,0,1)) -> 0 | E191: =IF(E$2=0,1,IF(E$3=1,G191,IF(E$7=1,G191,1))) -> 1 | G191: =LOOKUP($E$12,$I$12:$S$12,I191:S191) -> 1 | I191: 1 | J191: 1 | K191: 1 | L191: 1 | M191: 1 | O191: 1 | P191: 1 | Q191: 1 | R191: 1 | S191: 1 | AC191: 1 | AD191: 1
A192: If No, input removal/installation cost | C192: 0
A193: Removal or installation cost used | C193: 0 | D193: =IF(E$2=0,0,IF(E193=G193,0,1)) -> 0 | E193: =IF(E$2=0,1,IF(E$3=1,G193,IF(E$7=1,G193,1))) -> 1 | G193: =LOOKUP($E$12,$I$12:$S$12,I193:S193) -> 1 | I193: 1 | J193: 1 | K193: 1 | L193: 1 | M193: 1 | O193: 1 | P193: 1 | Q193: 1 | R193: 1 | S193: 1 | AC193: 1 | AD193: 1
A194: Lineshaft pump operating life [p] | C194: -1 | D194: 0 | E194: 1 | G194: 1 | I194: 2 | J194: 1 | K194: 2 | L194: 1 | M194: 1 | O194: 2 | P194: 2 | Q194: 2 | R194: 1 | S194: 1 | AC194: 2 | AD194: 2
A195: Shaft lubricating oil dosage [o] | C195: 0 | D195: 0 | E195: 1 | G195: 1 | I195: 1 | J195: 1 | K195: 1 | L195: 1 | M195: 1 | O195: 1 | P195: 1 | Q195: 1 | R195: 1 | S195: 1 | AC195: 1 | AD195: 1
A196: Lubricating oil cost [o] | C196: 0 | D196: 0 | E196: 1 | G196: 1 | I196: 1 | J196: 1 | K196: 1 | L196: 1 | M196: 1 | O196: 1 | P196: 1 | Q196: 1 | R196: 1 | S196: 1 | AC196: 1 | AD196: 1
A197: Submersible pump operating life [p] | C197: 0 | D197: 0 | E197: 1 | G197: 1 | I197: 1 | J197: 1 | K197: 1 | L197: 1 | M197: 1 | O197: 1 | P197: 1 | Q197: 1 | R197: 1 | S197: 1 | AC197: 1 | AD197: 1
A198: Taxes and Insurance (Plant & Well Field Capital Costs) | C198: 0 | D198: 0 | E198: 1 | G198: 1 | I198: 1 | J198: 1 | K198: 1 | L198: 1 | M198: 1 | O198: 1 | P198: 1 | Q198: 1 | R198: 1 | S198: 1 | AC198: 1 | AD198: 1
A199: POWER PLANT | C199: 0
A200: Permitting Process Costs for Power Plant Construction | C200: 0 | D200: =IF(E$2=0,0,IF(E200=G200,0,1)) -> 0 | E200: =IF(E$2=0,1,IF(E$3=1,G200,IF(E$8=1,G200,1))) -> 1 | G200: =LOOKUP($E$12,$I$12:$S$12,I200:S200) -> 1 | I200: 1 | J200: 1 | K200: 1 | L200: 1 | M200: 1 | O200: 1 | P200: 1 | Q200: 1 | R200: 1 | S200: 1 | AC200: 1 | AD200: 1
A201: Power Sales | C201: 0 | D201: 0 | E201: =IF(E$2=0,1,IF(E$3=1,G201,IF(E$9=1,G201,1))) -> 1.666666667 | G201: 1.666666667 | I201: =25/'master list of 10-90s'!I50 -> 1.666666667 | J201: =50/'master list of 10-90s'!L50 -> 1.666666667 | K201: =50/'master list of 10-90s'!O50 -> 1.666666667 | L201: =50/'master list of 10-90s'!R50 -> 1.25 | M201: =25/'master list of 10-90s'!U50 -> 1.666666667 | O201: =25/'master list of 10-90s'!AB50 -> 2.5 | P201: =35/'master list of 10-90s'!AE50 -> 2.333333333 | Q201: =40/'master list of 10-90s'!AH50 -> 2 | R201: =50/'master list of 10-90s'!AK50 -> 2 | S201: =50/'master list of 10-90s'!AN50 -> 1.666666667 | AC201: 4 | AD201: =5/3 -> 1.666666667
... 41 more rows

Sheet other input for cases
A1: ='Input A1'!A75 -> 0 | B1: ='Input A1'!B1 -> FCR | C1: ='Input A1'!C1 -> FCR | D1: ='Input A1'!D1 -> Hydrothermal | E1: ='Input A1'!E1 -> Temperature | F1: ='Input A1'!F1 -> Greenfield | G1: ='Input A1'!G1 -> Yes | H1: ='Input A1'!H1 -> Success Rate | I1: ='Input A1'!I1 -> Lump Sum | J1: ='Input A1'!J1 -> Low | K1: ='Input A1'!K1 -> 1 | L1: ='Input A1'!L1 -> surface | M1: ='Input A1'!M1 -> Jet | O1: ='Input A1'!O1 -> 0 | P1: ='Input A1'!#REF! ->  | R1: 0
A2: ='Input A1'!A398 -> 1 | B2: ='Input A1'!B2 -> EERE Approach | C2: ='Input A1'!C2 -> Inputted COE | D2: ='Input A1'!D2 -> EGS | E2: ='Input A1'!E2 -> Depth | F2: ='Input A1'!F2 -> Field Expansion | G2: ='Input A1'!G2 -> No | H2: ='Input A1'!H2 -> # of Wells | I2: ='Input A1'!I2 -> By Activity | J2: ='Input A1'!J2 -> Medium | K2: ='Input A1'!K2 -> 2 | L2: ='Input A1'!L2 -> direct contact | M2: ='Input A1'!M2 -> VacPump | O2: ='Input A1'!O2 -> 0 | P2: ='Input A1'!P1 -> Version (0 -DOE, 1 Public, 2 -Industry) | R2: 0
J3: ='Input A1'!J3 -> High | K3: ='Input A1'!K3 -> 3 | L3: ='Input A1'!L3 -> 0 | M3: ='Input A1'!M3 -> Hybrid
B5: ='Input A1'!B5 -> Well Count | C5: ='Input A1'!C5 -> Lump Sum | D5: ='Input A1'!D5 -> Cost Curves | E5: ='Input A1'!E5 -> Smaller Diameter | F5: ='Input A1'!F5 -> Perforated / Slotted Liner | G5: ='Input A1'!G5 -> Lump Sum | H5: ='Input A1'!H5 -> k*A | I5: ='Input A1'!I5 -> Annual Decline Rate | J5: ='Input A1'!J5 -> Input Value | K5: ='Input A1'!K5 -> Yes | L5: ='Input A1'!L5 -> Input | M5: ='Input A1'!M5 -> Core Hole
B6: ='Input A1'!B6 -> Confirmed Capacity | C6: ='Input A1'!C6 -> % Confirmation Drilling Cost | D6: ='Input A1'!D6 -> GETEM Estimate | E6: ='Input A1'!E6 -> Larger Diameter | F6: ='Input A1'!F6 -> Open Hole | G6: ='Input A1'!G6 -> Calculated | H6: ='Input A1'!H6 -> k*A | I6: ='Input A1'!I6 -> Annual Decline Rate | J6: ='Input A1'!J6 -> Input Value | K6: ='Input A1'!K6 -> No | L6: ='Input A1'!L6 -> Calculate | M6: ='Input A1'!M6 -> Slim Hole
M7: ='Input A1'!M7 -> Production Size
C8: ='Input A1'!C8 -> Submersible | D8: ='Input A1'!D8 -> Power Sales | E8: ='Input A1'!E8 -> Binary | F8: ='Input A1'!F8 -> Power | G8: ='Input A1'!G8 -> Fixed | H8: ='Input A1'!H8 -> Performance | I8: ='Input A1'!I8 -> Fixed Cost | J8: ='Input A1'!J8 -> Input | K8: ='Input A1'!K8 -> ≤115kV | L8: ='Input A1'!L8 -> Flat | M8: ='Input A1'!M8 -> Rural
C9: ='Input A1'!C9 -> Lineshaft | D9: ='Input A1'!D9 -> Production Wells | E9: ='Input A1'!E9 -> Flash | F9: ='Input A1'!F9 -> Flow | G9: ='Input A1'!G9 -> Percent | H9: ='Input A1'!H9 -> Reference | I9: ='Input A1'!I9 -> Calculated | J9: ='Input A1'!J9 -> Calculate | K9: ='Input A1'!K9 -> 230kV | L9: ='Input A1'!L9 -> Hilly | M9: ='Input A1'!M9 -> Suburban
K10: ='Input A1'!K10 -> 500kV | L10: ='Input A1'!L10 -> Mountainous | M10: ='Input A1'!M10 -> Urban
L11: ='Input A1'!L11 -> Forested
C12: ='Input A1'!C12 -> C | D12: ='Input A1'!D12 -> meter | E12: ='Input A1'!E12 -> C/km | F12: ='Input A1'!F12 -> kg/s | G12: ='Input A1'!G12 -> km | H12: ='Input A1'!H12 -> psi-h/1000lb | I12: ='Input A1'!I12 -> ΔC | J12: ='Input A1'!J12 -> meter | K12: ='Input A1'!K12 -> KJ/h-m^2-C
C13: ='Input A1'!C13 -> F | D13: ='Input A1'!D13 -> ft | E13: ='Input A1'!E13 -> F/1000 ft | F13: ='Input A1'!F13 -> lb/hr | G13: ='Input A1'!G13 -> ft | H13: ='Input A1'!H13 -> kPa-s/kg | I13: ='Input A1'!I13 -> ΔF | J13: ='Input A1'!J13 -> inch | K13: ='Input A1'!K13 -> btu/h-sqft-F
F14: ='Input A1'!F14 -> gpm
C16: ='Input A1'!C16 -> $/m^3 | D16: ='Input A1'!D16 -> bar | E16: ='Input A1'!E16 -> cm | F16: ='Input A1'!F16 -> w-h/lb | G16: ='Input A1'!G16 -> kPa | H16: ='Input A1'!H16 -> mm-Hg
C17: ='Input A1'!C17 -> $/acre-ft | D17: ='Input A1'!D17 -> psi | E17: ='Input A1'!E17 -> inch | F17: ='Input A1'!F17 -> kW-s/kg | G17: ='Input A1'!G17 -> psi | H17: ='Input A1'!H17 -> inch-Hg
N20: GETEM - INPUT WORKSHEET
N21: HIGH-LEVEL SUMMARY
N22: TECHNOLOGY YEAR
N23: COST OF ELECTRICITY | P23: ¢ /kW-h
N24: RESOURCE TYPE
N25: CASE
N26: CONVERSION SYSTEM
N27: POWER SALES | P27: kW
N29: Resource | O29: =IF(Q33>0,"There are differences between input here and that on the INPUT sheet - see cells that have a value of 1 in Column Q"," ") ->  | R29: =R75 -> Resource Type | U29: =U75 -> Hydrothermal | V29: =V75 -> Hydrothermal | W29: =W75 -> Hydrothermal | X29: =X75 -> Hydrothermal | Y29: =Y75 -> Hydrothermal | AA29: =AA75 -> EGS | AB29: =AB75 -> EGS | AC29: =AC75 -> EGS | AE29: =AE75 -> EGS | AF29: =AF75 -> EGS | AJ29: =AJ75 -> Hydrothermal | AK29: =AK75 -> EGS
N30: Case/Date | R30: ='master list of 10-90s'!E5 -> Hydro E | U30: A | V30: B | W30: C | X30: D | Y30: E | AA30: A | AB30: B | AC30: C | AE30: D | AF30: E | AJ30: C - Dec 2011 | AK30: C - Dec 2011
N31: Temperature | R31: =R77 -> Temperature | U31: =U77 -> 140 | V31: 175 | W31: 175 | X31: 225 | Y31: 140 | AA31: =AA77 -> 100 | AB31: 150 | AC31: =AC77 -> 175 | AE31: =AE77 -> 250 | AF31: =AF77 -> 325 | AJ31: =AJ77 -> 175 | AK31: =AK77 -> 175
N32: Depth | R32: =R78 -> Depth | U32: 1500 | V32: 1500 | W32: 1500 | X32: 2500 | Y32: 2500 | AA32: =AA78 -> 2000 | AB32: 2500 | AC32: =AC78 -> 3000 | AE32: =AE78 -> 3500 | AF32: =AF78 -> 4000 | AJ32: 1500 | AK32: =AK78 -> 3000 | AM32: =SUM(AM39:AM398,AM453:AM527) -> 17 | AN32: F
N33: Conversion System | Q33: =SUM(Q34:Q527) -> 0 | R33: =R398 -> Plant type | U33: =U398 -> Binary | V33: =V398 -> Flash | W33: =W398 -> Binary | X33: =X398 -> Flash | Y33: =Y398 -> Binary | AA33: =AA398 -> Binary | AB33: =AB398 -> Binary | AC33: =AC398 -> Binary | AE33: =AE398 -> Flash | AF33: Flash | AJ33: =AJ398 -> Binary | AK33: Binary | AM33: =SUM(AM39:AM449) -> 25 | AN33: B
N34: PROJECT PHASE
N35: TECHNOLOGY YEAR | R35: =INPUT!R35 -> 2012 | U35: =$R35 -> 2012 | V35: =$R35 -> 2012 | W35: 2012 | X35: 2012 | Y35: 2012 | AA35: =$R35 -> 2012 | AB35: 2012 | AC35: 2012 | AE35: =$R35 -> 2012 | AF35: 2012 | AJ35: 2011 | AK35: 2011 | AM35: =IF(AF35=INPUT!R35,0,1) -> 0
N36: Case Being Evaluated | U36: C | V36: C | W36: C | X36: C | Y36: C
E37: =MIN(E38:M71) ->  | N37: ECONOMIC PARAMETERS
E38: =MIN(E39:E47) -> 0 | N38: General Project Variables :
N39: Reference Year $ | Q39: =IF(R39=INPUT!R39,0,1) -> 0 | R39: =INPUT!R39 -> 2011 | U39: =$R39 -> 2011 | V39: =$R39 -> 2011 | W39: 2011 | X39: 2011 | Y39: 2011 | AA39: =$R39 -> 2011 | AB39: 2011 | AC39: 2011 | AE39: =$R39 -> 2011 | AF39: 2011 | AJ39: 2010 | AK39: 2010 | AM39: =IF(AF39=INPUT!R39,0,1) -> 0
E40: =IF(AC40=1,1,0) -> 0 | N40: Utilization Factor | R40: Most Likely | U40: Most Likely | V40: Most Likely | W40: Most Likely | X40: Most Likely | Y40: Most Likely | AA40: Most Likely | AB40: Most Likely | AC40: Most Likely | AE40: Most Likely | AF40: Most Likely | AJ40: Most Likely | AK40: Most Likely
E41: 0 | N41: Contingency | P41: % | R41: Most Likely | U41: Most Likely | V41: Most Likely | W41: Most Likely | X41: Most Likely | Y41: Most Likely | AA41: Most Likely | AB41: Most Likely | AC41: Most Likely | AE41: Most Likely | AF41: Most Likely | AJ41: Most Likely | AK41: Most Likely
E42: 0 | N42: Royalty (thru Yr 10) | P42: % | Q42: =IF(R42=INPUT!R42,0,1) -> 0 | R42: 0.0175 | U42: 0.0175 | V42: 0.0175 | W42: 0.0175 | X42: 0.0175 | Y42: 0.0175 | AA42: 0.0175 | AB42: 0.0175 | AC42: 0.0175 | AE42: 0.0175 | AF42: 0.0175 | AJ42: 0.0175 | AK42: 0.0175 | AM42: =IF(AF42=INPUT!R42,0,1) -> 0
E43: 0 | N43: Royalty (after Yr 10) | Q43: =IF(R43=INPUT!R43,0,1) -> 0 | R43: 0.035 | U43: 0.035 | V43: 0.035 | W43: 0.035 | X43: 0.035 | Y43: 0.035 | AA43: 0.035 | AB43: 0.035 | AC43: 0.035 | AE43: 0.035 | AF43: 0.035 | AJ43: 0.035 | AK43: 0.035 | AM43: =IF(AF43=INPUT!R43,0,1) -> 0
E44: 0 | N44: Discount Rate | P44: % | R44: Most Likely | U44: Most Likely | V44: Most Likely | W44: Most Likely | X44: Most Likely | Y44: Most Likely | AA44: Most Likely | AB44: Most Likely | AC44: Most Likely | AE44: Most Likely | AF44: Most Likely | AJ44: Most Likely | AK44: Most Likely
E45: 0 | N45: Effective Tax Rate | P45: % | Q45: =IF(R45=INPUT!R45,0,1) -> 0 | R45: 0.392 | U45: 0.392 | V45: 0.392 | W45: 0.392 | X45: 0.392 | Y45: 0.392 | AA45: 0.392 | AB45: 0.392 | AC45: 0.392 | AE45: 0.392 | AF45: 0.392 | AJ45: 0.392 | AK45: 0.392 | AM45: =IF(AF45=INPUT!R45,0,1) -> 0
E46: 0 | N46: Project Life (Period of Operation) | P46: yr(s) | R46: Most Likely | U46: Most Likely | V46: Most Likely | W46: Most Likely | X46: Most Likely | Y46: Most Likely | AA46: Most Likely | AB46: Most Likely | AC46: Most Likely | AE46: Most Likely | AF46: Most Likely | AJ46: Most Likely | AK46: Most Likely
E47: 0 | N47: Calculations based on Fixed Charge Rate (FCR) of | R47: Most Likely | U47: Most Likely | V47: Most Likely | W47: Most Likely | X47: Most Likely | Y47: Most Likely | AA47: Most Likely | AB47: Most Likely | AC47: Most Likely | AE47: Most Likely | AF47: Most Likely | AJ47: Most Likely | AK47: Most Likely
N48: Method used to Calculate Cost of Electricity | Q48: =IF(R48=INPUT!R48,0,1) -> 0 | R48: EERE Approach | U48: EERE Approach | V48: EERE Approach | W48: EERE Approach | X48: EERE Approach | Y48: EERE Approach | AA48: EERE Approach | AB48: EERE Approach | AC48: EERE Approach | AE48: EERE Approach | AF48: EERE Approach | AJ48: EERE Approach | AK48: EERE Approach | AM48: =IF(AF48=INPUT!R48,0,1) -> 0
A49: ='Input A1'!A49 -> 1 | E49: =MIN(E50:M59) ->  | N49: Project Schedule & Durations :
N50: Year of Project Initiation | Q50: =IF(R50=INPUT!R50,0,1) -> 0 | R50: 2009 | U50: 2009 | V50: 2009 | W50: 2009 | X50: 2009 | Y50: 2009 | AA50: 2009 | AB50: 2009 | AC50: 2009 | AE50: 2009 | AF50: 2009 | AJ50: 2009 | AK50: 2009
N51: Duration for Permitting Exploration/Confirmation | Q51: =IF(R51=INPUT!R51,0,1) -> 0 | R51: 1 | U51: 1 | V51: 1 | W51: 1 | X51: 1 | Y51: 1 | AA51: 1 | AB51: 1 | AC51: 1 | AE51: 1 | AF51: 1
E52: =IF(#REF!=R52,1,0) ->  | N52: Duration of Exploration Phase | P52: yr(s) | R52: Most Likely | U52: Most Likely | V52: Most Likely | W52: Most Likely | X52: Most Likely | Y52: Most Likely | AA52: Most Likely | AB52: Most Likely | AC52: Most Likely | AE52: Most Likely | AF52: Most Likely | AJ52: Most Likely | AK52: Most Likely
E53: =IF(#REF!=R53,1,0) ->  | N53: Duration of Confirmation Phase | P53: yr(s) | R53: Most Likely | U53: Most Likely | V53: Most Likely | W53: Most Likely | X53: Most Likely | Y53: Most Likely | AA53: Most Likely | AB53: Most Likely | AC53: Most Likely | AE53: Most Likely | AF53: Most Likely | AJ53: Most Likely | AK53: Most Likely
N54: Duration for Utilization Permit (Well Field and Plant) | Q54: =IF(R54=INPUT!R54,0,1) -> 0 | R54: 1 | U54: 1 | V54: 1 | W54: 1 | X54: 1 | Y54: 1 | AA54: 1 | AB54: 1 | AC54: 1 | AE54: 1 | AF54: 1
E55: =IF(#REF!=R55,1,0) ->  | N55: Duration of Well Field Development Phase | P55: yr(s) | R55: Most Likely | U55: Most Likely | V55: Most Likely | W55: Most Likely | X55: Most Likely | Y55: Most Likely | AA55: Most Likely | AB55: Most Likely | AC55: Most Likely | AE55: Most Likely | AF55: Most Likely | AJ55: Most Likely | AK55: Most Likely
E56: =IF(#REF!=R56,1,0) ->  | N56: Duration of Plant Design and Construction | P56: yr(s) | R56: Most Likely | U56: Most Likely | V56: Most Likely | W56: Most Likely | X56: Most Likely | Y56: Most Likely | AA56: Most Likely | AB56: Most Likely | AC56: Most Likely | AE56: Most Likely | AF56: Most Likely | AJ56: Most Likely | AK56: Most Likely
N57: Year to Begin Operations
N58: Year to Cease Operations / Commence Decommissioning
E59: =IF(#REF!=R59,1,0) ->  | N59: Duration of Decommissioning, Dismantlement, & Demolition | P59: yr(s) | Q59: =IF(R59=INPUT!R59,0,1) -> 0 | R59: 0 | U59: 0 | V59: 0 | W59: 0 | X59: 0 | Y59: 0 | AA59: 0 | AB59: 0 | AC59: 0 | AE59: 0 | AF59: 0 | AJ59: 0 | AK59: 0 | AM59: =IF(AF59=INPUT!R59,0,1) -> 0
N60: Year of Plant Closure
A61: ='Input A1'!A49 -> 1 | N61: Pre-Operation Discount Rates
N62: Exploration | Q62: =IF(R62=INPUT!R62,0,1) -> 0 | R62: 0.3 | U62: 0.3 | V62: 0.3 | W62: 0.3 | X62: 0.3 | Y62: 0.3 | AA62: 0.3 | AB62: 0.3 | AC62: 0.3 | AE62: 0.3 | AF62: 0.3 | AH62: =IF(AK62=AC62," ","***") -> ***
N63: Confirmation | Q63: =IF(R63=INPUT!R63,0,1) -> 0 | R63: 0.3 | U63: 0.3 | V63: 0.3 | W63: 0.3 | X63: 0.3 | Y63: 0.3 | AA63: 0.3 | AB63: 0.3 | AC63: 0.3 | AE63: 0.3 | AF63: 0.3 | AH63: ***
N64: Well Field Development (including Stimulation) | Q64: =IF(R64=INPUT!R64,0,1) -> 0 | R64: 0.15 | U64: 0.15 | V64: 0.15 | W64: 0.15 | X64: 0.15 | Y64: 0.15 | AA64: 0.15 | AB64: 0.15 | AC64: 0.15 | AE64: 0.15 | AF64: 0.15 | AH64: ***
N65: Plant Construction & Startup | Q65: =IF(R65=INPUT!R65,0,1) -> 0 | R65: 0.07 | U65: 0.07 | V65: 0.07 | W65: 0.07 | X65: 0.07 | Y65: 0.07 | AA65: 0.07 | AB65: 0.07 | AC65: 0.07 | AE65: 0.07 | AF65: 0.07 | AH65: ***
A66: ='Input A1'!A49 -> 1 | E66: =MIN(E67:E71) -> 0 | N66: Inflation | Q66: =IF(R66=INPUT!R66,0,1) -> 0 | R66: 0 | U66: 0 | V66: 0 | W66: 0 | X66: 0 | Y66: 0 | AA66: 0 | AB66: 0 | AC66: 0 | AE66: 0 | AF66: 0
N67: Depreciation Schedule
N68: Year 1 | Q68: =IF(R68=INPUT!R68,0,1) -> 0 | R68: 0.2 | U68: 0.2 | V68: 0.2 | W68: 0.2 | X68: 0.2 | Y68: 0.2 | AA68: 0.2 | AB68: 0.2 | AC68: 0.2 | AE68: 0.2 | AF68: 0.2 | AH68: ***
N69: Year 2 | Q69: =IF(R69=INPUT!R69,0,1) -> 0 | R69: 0.32 | U69: 0.32 | V69: 0.32 | W69: 0.32 | X69: 0.32 | Y69: 0.32 | AA69: 0.32 | AB69: 0.32 | AC69: 0.32 | AE69: 0.32 | AF69: 0.32 | AH69: ***
N70: Year 3 | Q70: =IF(R70=INPUT!R70,0,1) -> 0 | R70: 0.192 | U70: 0.192 | V70: 0.192 | W70: 0.192 | X70: 0.192 | Y70: 0.192 | AA70: 0.192 | AB70: 0.192 | AC70: 0.192 | AE70: 0.192 | AF70: 0.192 | AH70: ***
E71: =IF(AC71=1,1,0) -> 0 | N71: Year 4 | Q71: =IF(R71=INPUT!R71,0,1) -> 0 | R71: 0.1152 | U71: 0.1152 | V71: 0.1152 | W71: 0.1152 | X71: 0.1152 | Y71: 0.1152 | AA71: 0.1152 | AB71: 0.1152 | AC71: 0.1152 | AE71: 0.1152 | AF71: 0.1152 | AH71: ***
N72: Year 5 | Q72: =IF(R72=INPUT!R72,0,1) -> 0 | R72: 0.1152 | U72: 0.1152 | V72: 0.1152 | W72: 0.1152 | X72: 0.1152 | Y72: 0.1152 | AA72: 0.1152 | AB72: 0.1152 | AC72: 0.1152 | AE72: 0.1152 | AF72: 0.1152
N73: Year 6 | Q73: =IF(R73=INPUT!R73,0,1) -> 0 | R73: 0.0576 | U73: 0.0576 | V73: 0.0576 | W73: 0.0576 | X73: 0.0576 | Y73: 0.0576 | AA73: 0.0576 | AB73: 0.0576 | AC73: 0.0576 | AE73: 0.0576 | AF73: 0.0576
N74: RESOURCE DEFINITION
A75: ='Input A1'!A75 -> 0 | N75: Geothermal Resource Type | R75: Resource Type | U75: Hydrothermal | V75: Hydrothermal | W75: Hydrothermal | X75: Hydrothermal | Y75: Hydrothermal | AA75: EGS | AB75: EGS | AC75: EGS | AE75: EGS | AF75: EGS | AJ75: Hydrothermal | AK75: EGS | AM75: =IF(AF75=INPUT!R75,0,1) -> 1
N76: Resource Temperature & Depth :
N77: Resource Temperature | P77: C | R77: Temperature | U77: 140 | V77: 175 | W77: 175 | X77: 225 | Y77: 140 | AA77: 100 | AB77: 150 | AC77: 175 | AE77: 250 | AF77: 325 | AJ77: 175 | AK77: 175 | AM77: =IF(AF77=INPUT!R77,0,1) -> 1
N78: Resource Depth | P78: meter | R78: Depth | U78: 1500 | V78: 1500 | W78: 1500 | X78: 2500 | Y78: 2500 | AA78: 2000 | AB78: 2500 | AC78: 3000 | AE78: 3500 | AF78: 4000 | AJ78: 1500 | AK78: 3000 | AM78: =IF(AF78=INPUT!R78,0,1) -> 1
E79: =MIN(E80:E157) -> 0 | N79: RESOURCE EXPLORATION
E80: =MIN(E81:E83) -> 0 | N80: Exploration Parameters: | P80: =IF(R82<'Input A1'!A151,"Stop - The Potential Resource Found is less than Net Plant Power"," ") -> 
N81: Resource status before development | Q81: =IF(R81=INPUT!R81,0,1) -> 0 | R81: Greenfield | U81: Greenfield | V81: Greenfield | W81: Greenfield | X81: Greenfield | Y81: Greenfield | AA81: Greenfield | AB81: Greenfield | AC81: Greenfield | AE81: Greenfield | AF81: Greenfield | AJ81: Greenfield | AK81: Greenfield | AM81: =IF(AF81=INPUT!R81,0,1) -> 0
E82: =IF(AC82=1,1,0) -> 0 | N82: Potential Resource found by Exploration & Confirmation activities | P82: MW | Q82: =IF(R82=INPUT!R82,0,1) -> 0 | R82: 300 | U82: 300 | V82: 300 | W82: 300 | X82: 300 | Y82: 300 | AA82: 300 | AB82: 300 | AC82: 300 | AE82: 300 | AF82: 300 | AJ82: 300 | AK82: 300 | AM82: =IF(AF82=INPUT!R82,0,1) -> 0
N83: Are Exploration costs to be proportioned based on Potential Resource? | Q83: =IF(R83=INPUT!R83,0,1) -> 0 | R83: No | U83: No | V83: No | W83: No | X83: No | Y83: No | AA83: No | AB83: No | AC83: No | AE83: No | AF83: No | AJ83: No | AK83: No | AM83: =IF(AF83=INPUT!R83,0,1) -> 0
E84: =MIN(E88:E150) -> 0 | N84: Exploration - Pre-Drilling Costs :
N85: Number of Locations Evaluated Before Exploration Drilling Begins | P85: per project | R85: Most Likely | U85: Most Likely | V85: Most Likely | W85: Most Likely | X85: Most Likely | Y85: Most Likely | AA85: Most Likely | AB85: Most Likely | AC85: Most Likely | AE85: Most Likely | AF85: Most Likely | AJ85: Most Likely | AK85: Most Likely
N86: Permitting Process Costs for Pre-Drilling Activities | P86: per location | Q86: =IF(R86=INPUT!R86,0,1) -> 0 | R86: 60000 | U86: 60000 | V86: 60000 | W86: 60000 | X86: 60000 | Y86: 60000 | AA86: 60000 | AB86: 60000 | AC86: 60000 | AE86: 60000 | AF86: 60000 | AJ86: 0 | AK86: 0 | AM86: =IF(AF86=INPUT!R86,0,1) -> 0
A88: ='Input A1'!A88 -> 0 | N88: How are Exploration, Pre-Drilling Costs Determined for Each Site? | Q88: =IF(R88=INPUT!R88,0,1) -> 0 | R88: Lump Sum | U88: Lump Sum | V88: Lump Sum | W88: Lump Sum | X88: Lump Sum | Y88: Lump Sum | AA88: Lump Sum | AB88: Lump Sum | AC88: Lump Sum | AE88: Lump Sum | AF88: Lump Sum | AJ88: Lump Sum | AK88: Lump Sum | AM88: =IF(AF88=INPUT!R88,0,1) -> 0
E89: =IF(AC89=1,1,0) -> 0 | N89: Lump Sum Cost for Pre-Drilling Exploration Activities at each site | P89: per site | R89: Most Likely | U89: Most Likely | V89: Most Likely | W89: Most Likely | X89: Most Likely | Y89: Most Likely | AA89: Most Likely | AB89: Most Likely | AC89: Most Likely | AE89: Most Likely | AF89: Most Likely | AJ89: Most Likely | AK89: Most Likely
E90: =MIN(E91:E150) -> 0 | N90: By Activity : | P90: per site
N91: Survey of Existing Information
E92: =IF(AC92=1,1,0) -> 0 | N92: Surveying existing information on the area's geology and hydrology | P92: default value
E94: =MIN(E95:E104) -> 0 | N94: Field Work
E95: =IF(AC95=1,1,0) -> 0 | N95: Field Reconnaissance and Sampling | P95: default value
E97: =IF(AC97=1,1,0) -> 0 | N97: Water & Gas Sample Analysis, including geothermometry | O97: Yes | P97: default value
E99: =IF(AC99=1,1,0) -> 0 | N99: Rock & Soil Sample Analysis | O99: No | P99: default value
E101: =IF(AC101=1,1,0) -> 0 | N101: Soil Gas Flux Analysis | O101: No | P101: default value
E103: =IF(AC103=1,1,0) -> 0 | N103: Fluid Inclusion Stratigraphy | O103: No | P103: default value
N105: Structural Analysis
E106: =IF(AC106=1,1,0) -> 0 | N106: Analysis of Field Structural (including modeling) | O106: Yes | P106: default value
E108: =MIN(E109:E118) -> 0 | N108: Remote Sensing
E109: =IF(AC109=1,1,0) -> 0 | N109: Multispectral imaging | O109: Yes | P109: default value
E111: =IF(AC111=1,1,0) -> 0 | N111: Hyperspectral imaging | O111: No | P111: default value
E113: =IF(AC113=1,1,0) -> 0 | N113: LiDAR | O113: No | P113: default value
E115: =IF(AC115=1,1,0) -> 0 | N115: Aerial Photography | O115: Yes | P115: default value
E117: =IF(AC117=1,1,0) -> 0 | N117: FLIR | O117: No | P117: default value
E119: =MIN(E120:E139) -> 0 | N119: Geophysics
E120: =IF(AC120=1,1,0) -> 0 | N120: Gravity | O120: Yes | P120: default value
E122: =IF(AC122=1,1,0) -> 0 | N122: Aeromagnetic | O122: Yes | P122: default value
E124: =IF(AC124=1,1,0) -> 0 | N124: 2D Seismic Reflection / Refraction | O124: No | P124: default value
E126: =IF(AC126=1,1,0) -> 0 | N126: 3D Seismic Reflection / Refraction | O126: No | P126: default value
E128: =IF(AC128=1,1,0) -> 0 | N128: Vertical Seismic Profiling (in well) | O128: No | P128: default value
E130: =IF(AC130=1,1,0) -> 0 | N130: Single Borehole and cross well seismic | O130: No | P130: default value
E132: =IF(AC132=1,1,0) -> 0 | N132: Direct Current / Resistivity | O132: Yes | P132: default value
E134: =IF(AC134=1,1,0) -> 0 | N134: Self-Potential | O134: No | P134: default value
E136: =IF(AC136=1,1,0) -> 0 | N136: Electromagnetic | O136: No | P136: default value
E138: =IF(AC138=1,1,0) -> 0 | N138: Magnetotelluric | O138: No | P138: default value
E140: =MIN(E141:M144) -> 0 | N140: Temperature Gradient Measurements
E141: =IF(AC141=1,1,0) -> 0 | N141: Drill Temperature Gradient holes | O141: Yes | P141: default value
E143: =IF(AC143=1,1,0) -> 0 | N143: 2-meter probes | O143: Yes | P143: default value
N145: Interpretation and Reporting
E146: =IF(AC146=1,1,0) -> 0 | P146: default value
R147: 50000 | U147: 50000 | V147: 50000 | W147: 50000 | X147: 50000 | Y147: 50000 | AA147: 50000 | AB147: 50000 | AC147: 50000 | AE147: 50000 | AF147: 50000 | AJ147: 50000 | AK147: 50000
N148: Other Costs
E149: =IF(AC149=1,1,0) -> 0 | N149: Technical & Office Support (% of Exploration Costs ) | P149: default value
E151: =MIN(E152:E154) -> 0 | N151: Exploration - Drilling Costs : | P151: =IF('Input A1'!A81+'Input A1'!A82+'Input A1'!A152=3,"Stop - No Exploration Wells for Hydrothermal Greenfield Project?"," ") -> 
A152: ='Input A1'!A152 -> 0 | N152: Will the Project have Exploration Drilling? | Q152: =IF(R152=INPUT!R152,0,1) -> 0 | R152: Yes | U152: Yes | V152: Yes | W152: Yes | X152: Yes | Y152: Yes | AA152: Yes | AB152: Yes | AC152: Yes | AE152: Yes | AF152: Yes | AJ152: Yes | AK152: Yes | AM152: =IF(AF152=INPUT!R152,0,1) -> 0
N153: Number of Sites where Exploration Drilling Occurs | P153: per project | R153: Most Likely | U153: Most Likely | V153: Most Likely | W153: Most Likely | X153: Most Likely | Y153: Most Likely | AA153: Most Likely | AB153: Most Likely | AC153: Most Likely | AE153: Most Likely | AF153: Most Likely | AJ153: Most Likely | AK153: Most Likely
N154: Site Exploration Drilling Cost (includes all temperature gradient, slimhole, corehole, and full-sized wells drilled) | R154: Most Likely | U154: Most Likely | V154: Most Likely | W154: Most Likely | X154: Most Likely | Y154: Most Likely | AA154: Most Likely | AB154: Most Likely | AC154: Most Likely | AE154: Most Likely | AF154: Most Likely | AJ154: Most Likely | AK154: Most Likely
N155: Permitting Process Costs for Exploration/Confirmation Phases | P155: per site | R155: permitting cost | U155: 125000 | V155: 125000 | W155: 125000 | X155: 125000 | Y155: 125000 | AA155: 250000 | AB155: 250000 | AC155: 250000 | AE155: 250000 | AF155: 250000 | AJ155: 125000 | AK155: 125000 | AM155: =IF(AF155=INPUT!R155,0,1) -> 1
N156: Leasing Cost (assume 160 acre per MW per location) | P156: $ per acre | R156: Most Likely | U156: Most Likely | V156: Most Likely | W156: Most Likely | X156: Most Likely | Y156: Most Likely | AA156: Most Likely | AB156: Most Likely | AC156: Most Likely | AE156: Most Likely | AF156: Most Likely | AJ156: Most Likely | AK156: Most Likely
N157: Costs Incurred not Associated with Drilling Exploration Wells | P157: per site | Q157: =IF(R157=INPUT!R157,0,1) -> 0 | R157: 0 | U157: 0 | V157: 0 | W157: 0 | X157: 0 | Y157: 0 | AA157: 0 | AB157: 0 | AC157: 0 | AE157: 0 | AF157: 0 | AJ157: 0 | AK157: 0 | AM157: =IF(AF157=INPUT!R157,0,1) -> 0
E158: =MIN(E160:E186) -> 0 | N158: RESOURCE CONFIRMATION
N159: Number of Confirmation Drilling Sites Needed per Successful Project | R159: Most Likely | U159: Most Likely | V159: Most Likely | W159: Most Likely | X159: Most Likely | Y159: Most Likely | AA159: Most Likely | AB159: Most Likely | AC159: Most Likely | AE159: Most Likely | AF159: Most Likely | AJ159: Most Likely | AK159: Most Likely
E160: =MIN(E162:E172) -> 0 | N160: Confirmation Well - Drilling Costs :
N161: Number of failed wells at Each Unsuccessful Site | R161: unsuccessful wells | U161: 2 | V161: 2 | W161: 2 | X161: 2 | Y161: 2 | AA161: 1.5 | AB161: 1.5 | AC161: 1.5 | AE161: 1.5 | AF161: 1.5 | AJ161: 2 | AK161: 0 | AM161: =IF(AF161=INPUT!R161,0,1) -> 1
E162: =IF(AC162=1,1,0) -> 0 | N162: Confirmation Well Success Ratio at Successful Site | R162: Most Likely | U162: Most Likely | V162: Most Likely | W162: Most Likely | X162: Most Likely | Y162: Most Likely | AA162: Most Likely | AB162: Most Likely | AC162: Most Likely | AE162: Most Likely | AF162: Most Likely | AJ162: Most Likely | AK162: Most Likely
A163: ='Input A1'!A163 -> 0 | N163: Are number of wells drilled determined by well count or confirmed production capacity ? | Q163: =IF(R163=INPUT!R163,0,1) -> 0 | R163: Well Count | U163: Well Count | V163: Well Count | W163: Well Count | X163: Well Count | Y163: Well Count | AA163: Well Count | AB163: Well Count | AC163: Well Count | AE163: Well Count | AF163: Well Count | AJ163: Well Count | AK163: Well Count | AM163: =IF(AF163=INPUT!R163,0,1) -> 0
A164: ='Input A1'!B164 -> 1.229617749 | E164: =IF(AC164=1,1,0) -> 0 | N164: =IF('Input A1'!B164<0,"Stop, # Successful Wells Exceed # Production wells Required","Number of Successful Confirmation Wells Required") -> Number of Successful Confirmation Wells Required | P164: count | R164: Most Likely | U164: Most Likely | V164: Most Likely | W164: Most Likely | X164: Most Likely | Y164: Most Likely | AA164: Most Likely | AB164: Most Likely | AC164: Most Likely | AE164: Most Likely | AF164: Most Likely | AJ164: Most Likely | AK164: Most Likely
N165: Production Capacity to be Confirmed | P165: % | U165: 0.5 | V165: 0.5 | W165: 0.5 | X165: 0.5 | Y165: 0.5 | AJ165: 0.5
N166: calculated Production Capacity per well | P166: MW / Well
N167: #Successful Wells Required to Confirm Production Capacity | P167: count
N168: # of Confirmation Wells Drilled (all sites) | P168: count
A169: ='Input A1'!A75 -> 0 | N169: =IF(AND('Input A1'!A75=1,R169<2),"Stop - 2 successful confirmation wells required for EGS"," # of Successful Confirmation Wells") -> # of Successful Confirmation Wells | P169: count
N170: Multiplier for Confirmation Well Costs (>= 1) | R170: Most Likely | U170: Most Likely | V170: Most Likely | W170: Most Likely | X170: Most Likely | Y170: Most Likely | AA170: Most Likely | AB170: Most Likely | AC170: Most Likely | AE170: Most Likely | AF170: Most Likely | AJ170: Most Likely | AK170: Most Likely
N171: Production Well Cost Used | P171: $ / well
E172: =IF(AC172=1,1,0) -> 0 | N172: Confirmation Well Cost Used | P172: $ / well
E173: =MIN(E175:E186) -> 0 | N173: Confirmation Well - Non-Drilling Costs :
N174: Permitting Process Cost during Confirmation Phase | P174: per site | Q174: =IF(R174=INPUT!R174,0,1) -> 0 | R174: 0 | U174: 0 | V174: 0 | W174: 0 | X174: 0 | Y174: 0 | AA174: 0 | AB174: 0 | AC174: 0 | AE174: 0 | AF174: 0 | AJ174: 0 | AK174: 0 | AM174: =IF(AF174=INPUT!R174,0,1) -> 0
A175: ='Input A1'!A175 -> 1 | N175: How are non-drilling confirmation costs to be determined ? | Q175: =IF(R175=INPUT!R175,0,1) -> 0 | R175: % Confirmation Drilling Cost | U175: % Confirmation Drilling Cost | V175: % Confirmation Drilling Cost | W175: % Confirmation Drilling Cost | X175: % Confirmation Drilling Cost | Y175: % Confirmation Drilling Cost | AA175: % Confirmation Drilling Cost | AB175: % Confirmation Drilling Cost | AC175: % Confirmation Drilling Cost | AE175: % Confirmation Drilling Cost | AF175: % Confirmation Drilling Cost | AJ175: % Confirmation Drilling Cost | AK175: % Confirmation Drilling Cost | AM175: =IF(AF175=INPUT!R175,0,1) -> 0
N176: Lump Sum or Fixed Value
E177: =IF(AC177=1,1,0) -> 0 | N177: Lump Sum for Non-Drilling Confirmation Costs (exclusive of stimulation) | U177: =2500000 -> 2500000 | V177: 2500000 | W177: 2500000 | X177: 2500000 | Y177: 2500000 | AJ177: =2500000 -> 2500000
N178: Percentage of Confirmation costs
E179: =IF(AC179=1,1,0) -> 0 | N179: % of total confirmation costs attributed to non-drilling activities (exclusive of stimulation & permitting) | Q179: =IF(R179=INPUT!R179,0,1) -> 0 | R179: 0.05 | U179: 0.05 | V179: 0.05 | W179: 0.05 | X179: 0.05 | Y179: 0.05 | AA179: 0.05 | AB179: 0.05 | AC179: 0.05 | AE179: 0.05 | AF179: 0.05 | AJ179: 0.06 | AK179: 0.05 | AM179: =IF(AF179=INPUT!R179,0,1) -> 0
N180: =IF(AND('Input A1'!A75=0,'Input A1'!A181=1),"Are you sure wells will stimulated for hydrothermal resource?",IF(AND('Input A1'!A75=1,'Input A1'!A181=0),"No stimulation Cost for EGS Resource?","Stimulation Costs During Confirmation")) -> Stimulation Costs During Confirmation
A181: ='Input A1'!A181 -> 0 | N181: Are Confirmation Wells to Be Stimulated ? | R181: Stimulation? | U181: No | V181: No | W181: No | X181: No | Y181: No | AA181: Yes | AB181: Yes | AC181: Yes | AE181: Yes | AF181: Yes | AJ181: No | AK181: Yes | AM181: =IF(AF181=INPUT!R181,0,1) -> 1
N182: Stimulation Cost used in well field development | P182: $ / well
E183: =IF(AC183=1,1,0) -> 0 | N183: enter Stimulation Cost per well | P183: $ / injection well | R183: Most Likely | U183: Most Likely | V183: Most Likely | W183: Most Likely | X183: Most Likely | Y183: Most Likely | AA183: Most Likely | AB183: Most Likely | AC183: Most Likely | AE183: Most Likely | AF183: Most Likely | AJ183: Most Likely | AK183: Most Likely
E184: =MIN(E185:E186) -> 0 | N184: Well Testing
E185: =IF(AC185=1,1,0) -> 0 | N185: Well Testing Cost at each site | P185: $/site | R185: Test Cost | U185: 150000 | V185: 150000 | W185: 150000 | X185: 150000 | Y185: 150000 | AA185: 500000 | AB185: 500000 | AC185: 500000 | AE185: 500000 | AF185: 500000 | AJ185: 150000 | AK185: 500000 | AM185: =IF(AF185=INPUT!R185,0,1) -> 1
N186: Total Well Testing Cost
E187: =MIN(E188:E237) -> 0 | N187: WELL FIELD DEVELOPMENT
E188: =MIN(E189:E194) -> 0 | N188: Well Field Details:
E189: =IF(AC189=1,1,0) -> 0 | N189: Drilling Success Rate during the final phase of well field development | R189: Most Likely | U189: Most Likely | V189: Most Likely | W189: Most Likely | X189: Most Likely | Y189: Most Likely | AA189: Most Likely | AB189: Most Likely | AC189: Most Likely | AE189: Most Likely | AF189: Most Likely | AJ189: Most Likely | AK189: Most Likely
E190: =IF(AC190=1,1,0) -> 0 | N190: Number of Spare Production Wells | Q190: =IF(R190=INPUT!R190,0,1) -> 0 | R190: 0 | U190: 0 | V190: 0 | W190: 0 | X190: 0 | Y190: 0 | AA190: 0 | AB190: 0 | AC190: 0 | AE190: 0 | AF190: 0 | AJ190: 0 | AK190: 0 | AM190: =IF(AF190=INPUT!R190,0,1) -> 0
N191: Number of Dry Wells (Unusable as Injectors) - calculated
